Workbook

Sheet OptiMaxx plus
AJ2: 93
C3: Simulador OptiMaxx plus | AJ3: 0.3 | AQ3: Artículo | AR3: Plazo | AS3: Periodicidad | AT3: Actualización con inflación | AU3: % ISR | AV3: 18 | AW3: 0 | AX3: Comentarios: | BG3: Rendimientos
AJ4: =+U76 -> 0 | AO4: Fideicomiso Art. 151 (Antes Art. 176) | AP4: Deducible Art. 151 (Antes Art. 176) | AQ4: 151 | AR4: 5 | AS4: Mensual | AT4: Si | AU4: 0.1 | AV4: =+AV3+1 -> 19 | AW4: =+AW3+1 -> 1 | AX4: el monto de inversión no debe ser mayor al 10% del ingreso anual del cliente con un tope máximo de 5 SMGA ($92,290) anualmente , | BG4: 0.05
D5: Datos Generales | AJ5: =+Y14 -> 0 | AO5: Deducible Art. 185 (Antes Art. 218) | AP5: Deducible Art. 185 (Antes Art. 218) | AQ5: 185 | AR5: =1+AR4 -> 6 | AS5: Trimestral | AT5: No | AU5: 0.15 | AV5: =+AV4+1 -> 20 | AW5: 2 | AX5: el monto de inversión no debe ser mayor a $152,000 anualmente , | BG5: 0.06
AJ6: =+AJ22 -> 0 | AO6: Art. 93 (Antes Art. 109) | AP6: Art. 93 (Antes Art. 109) | AQ6: 93 | AR6: 7 | AS6: Semestral | AU6: 0.2 | AV6: 21 | AW6: 3 | AX6: la distribución entre los diferentes portafolios tiene que sumar 100% , | BG6: 0.07
D7: EMMANUEL GONZALEZ | T7: 44 | AJ7: =+J45 -> 0 | AR7: 8 | AS7: Anual | AU7: 0.25 | AV7: 22 | AW7: 4 | BG7: 0.08
D8: Nombre | T8: Edad | AR8: 9 | AU8: 0.3 | AV8: 23 | AW8: 5 | BG8: 0.09
AR9: 10 | AU9: 0.32 | AV9: 24 | AW9: 6 | BG9: 0.1
AR10: 11 | AU10: 0.34 | AV10: 25 | BG10: 0.11
D11: Aportaciones | G11: =IF(D12<AM29,CONCATENATE("La aportación mínima es de"," ",AM29," ","pesos"," ",AN29),IF(D12>AM36,CONCATENATE("La aportación máxima es de"," ",AM36," ","pesos"," ",AN36),"")) ->  | T11: Características | AR11: 12 | AU11: 0.35 | AV11: 26 | AW11: =+AW9+1 -> 7 | BG11: 0.12
D12: 1500 | K12: Mensual | T12: Fideicomiso Art. 151 (Antes Art. 176) | AK12: =VLOOKUP(T12,$AO$4:$AQ$6,3,0) -> 151 | AR12: 13 | AV12: 27 | AW12: 8
D13: Aportación | K13: Periodicidad | T13: Tipo de Plan | AR13: 14 | AV13: 28 | AW13: 9
AR14: 15 | AV14: 29 | AW14: 10
D15: 21 | K15: Si | T15: 0.3 | AK15: No | AR15: 16 | AV15: 30 | AW15: 11
D16: Plazo Comprometido | K16: Incremento con Inflación | T16: % ISR del Cliente | AK16: 250000 | AR16: 17 | AV16: 31 | AW16: 12
C17: =+IF(AND(T7>=56,T7<70),"El plazo comprometido máximo que puede elegir es "&AL21,IF(T7>=70,"El plazo comprometido máximo que puede elegir es "&AL22,"")) ->  | AK17: 500000 | AR17: 18 | AU17: =+AU8+1% -> 0.31 | AV17: 32 | AW17: 13
AK18: 750000 | AR18: 19 | AV18: 33 | AW18: 14
D19: Supuesto de Rendimiento | T19: Resumen | AK19: 1000000 | AN19: Hombre | AR19: 20 | AV19: 34 | AW19: 15
D20: 0.12 | AN20: Mujer | AR20: 21 | AV20: 35 | AW20: 16
D21: Rendimientos promedio de 10 años | T21: =IF(D12="","",VLOOKUP(D15,$C$33:$O$57,9,0)) -> 642012.7646 | AA21: =IF(OR(T21="",T7=""),"",VLOOKUP((D15+T7),$E$33:$P$57,12,0)) -> 1611180.734 | AK21: =+T7+D15 -> 65 | AL21: =80-T7 -> 36 | AM21: entre 64 y 70años | AR21: 22 | AV21: 36 | AW21: 17
F22: Conservador | J22: Balanceado | N22: Dinámico | T22: Aportaciones Acumuladas | AA22: =CONCATENATE("Saldo proyectado a edad"," ",D15+T7) -> Saldo proyectado a edad 65 | AJ22: =+U43 -> 0 | AK22: =80-T7 -> 36 | AL22: =+MAX(AK22,10) -> 36 | AM22: 70+ | AR22: 23 | AV22: 37 | AW22: 18
D23: MXN | F23: =+PLUS!Q3 -> 0.05324944503 | J23: =+PLUS!Q4 -> 0.0357555562 | N23: =+PLUS!Q5 -> 0.02660171376 | AK23: APORRTACION MINIMA | AR23: 24 | AV23: 38
D24: DL | F24: =+PLUS!Q7 -> 0.05400445122 | J24: =+PLUS!Q9 -> 0.07672263572 | N24: =+PLUS!Q11 -> 0.1636132729 | T24: =IF(D12="","",Bono!T26) -> 0.55 | AA24: =IF(T24="","",Bono!T23*Bono!T26) -> 9900 | AK24: Mensual | AL24: 12 | AM24: 1500 | AN24: mensuales | AR24: 25 | AV24: 39
D25: EUR | F25: =+PLUS!Q13 -> 0.04584263279 | J25: =+PLUS!Q15 -> 0.04769725978 | N25: =+PLUS!Q17 -> 0.08468172207 | T25: % de Bono Acreditado | AA25: Bono Acreditado | AK25: Trimestral | AL25: 4 | AM25: 4500 | AN25: trimestrales | AV25: 40
D26: Alternativas Dedicadas 1 | AK26: Semestral | AL26: 2 | AM26: 9000 | AN26: semestrales | AV26: 41
D27: China | F27: BRIC | H27: ORO | J27: Brazil | L27: Mercados Emergentes | O27: Pesos Revaluables | AK27: Anual | AL27: 1 | AM27: 18000 | AN27: anuales | AV27: 42
D28: =+PLUS!Q19 -> 0.03954031298 | F28: =+PLUS!Q21 -> 0.05673592864 | H28: =+PLUS!Q22 -> 0.04949008882 | J28: =+PLUS!Q18 -> -0.003585493675 | L28: =+PLUS!Q20 -> 0.05876299604 | O28: =+PLUS!Q23 -> 0.05786078349 | AV28: =+AV27+1 -> 43
F29: Clean Energy | H29: ACWI | J29: Nasdaq | L29: Socially Responsible | AM29: =VLOOKUP(K12,AK24:AN27,3,0) -> 1500 | AN29: =VLOOKUP(K12,AK24:AN27,4,0) -> mensuales | AV29: 44
F30: =+Pat!O58 -> 0.3421868752 | H30: =+Pat!O3 -> 0.1819182768 | J30: =+Pat!O21 -> 0.3516336619 | L30: =+Pat!O59 -> 0.1786571236 | AK30: APORTACION MAXIMA | AV30: 45
AK31: Mensual | AL31: 12 | AM31: 12500 | AN31: mensuales | AV31: 46
C32: Año | E32: Edad | G32: Aportación Anual | K32: Aportación Acumulada | P32: Saldo del Fondo | T32: Saldo Disponible | X32: Saldo disponible neto de retención de impuestos de Allianz | AC32: =IF(AK12="","",IF(AK12=$AK$48,"",Resumen!AC8)) -> Beneficio Deducibilidad Acumulado Re-invertido a tasa 12% | AK32: Trimestral | AL32: 4 | AM32: 37500 | AN32: trimestrales | AP32: Retiros | AQ32: Año de Retiro | AV32: 47
C33: 1 | E33: =IF(T7=" "," ",T7+1) -> 45 | G33: =IF($K$12="","",VLOOKUP(C33,'No Deducible 93'!$AG$25:$AH$49,2,0)) -> 18000 | K33: =IF(G33="","",G33) -> 18000 | P33: =IF(G33="","",VLOOKUP(C33*12,Resumen!$C$5:$F$408,VLOOKUP('OptiMaxx plus'!$AK$12,'OptiMaxx plus'!$AK$46:$AL$48,2,0)+1,0)) -> 28058.03336 | T33: =IF(K33="","",IF(C33=$D$15,P33,VLOOKUP(C33*12,Resumen!$H$5:$K$408,$AN$46+1,0))) -> 0 | X33: =IF(P33="","",VLOOKUP(C33,Resumen!$M$5:$R$29,'OptiMaxx plus'!$AN$46+2,0)) -> 0 | AC33: =IF(C33="","",IF(AC32="","",VLOOKUP(C33,Resumen!$T$5:$AB$29,9,0))) -> 5400 | AK33: Semestral | AL33: 2 | AM33: 75000 | AN33: semestrales | AP33: Si | AQ33: 2 | AV33: 48
C34: =IF(C33="","",IF((C33+1)=($D$15+1),"",(C33+1))) -> 2 | E34: =+IF(C34="","",E33+1) -> 46 | G34: =IF(E34="","",VLOOKUP(C34,'No Deducible 93'!$AG$25:$AH$49,2,0)) -> 18897.6636 | K34: =IF(G34="","",+G34+K33) -> 36897.6636 | P34: =IF(G34="","",VLOOKUP(C34*12,Resumen!$C$5:$F$408,VLOOKUP('OptiMaxx plus'!$AK$12,'OptiMaxx plus'!$AK$46:$AL$48,2,0)+1,0)) -> 48327.88059 | T34: =IF(K34="","",IF(C34=$D$15,P34,VLOOKUP(C34*12,Resumen!$H$5:$K$408,$AN$46+1,0))) -> 8962.891706 | X34: =IF(P34="","",VLOOKUP(C34,Resumen!$M$5:$R$29,'OptiMaxx plus'!$AN$46+3,0)) -> 7170.313365 | AC34: =IF(C34="","",IF(AC33="","",VLOOKUP(C34,Resumen!$T$5:$AB$29,9,0))) -> 11717.29908 | AK34: Anual | AL34: 1 | AM34: 150000 | AN34: anuales | AP34: No | AQ34: 3 | AV34: 49
C35: =IF(C34="","",IF((C34+1)=($D$15+1),"",(C34+1))) -> 3 | E35: =+IF(C35="","",E34+1) -> 47 | G35: =IF(E35="","",VLOOKUP(C35,'No Deducible 93'!$AG$25:$AH$49,2,0)) -> 19840.09386 | K35: =IF(G35="","",+G35+K34) -> 56737.75746 | P35: =IF(G35="","",VLOOKUP(C35*12,Resumen!$C$5:$F$408,VLOOKUP('OptiMaxx plus'!$AK$12,'OptiMaxx plus'!$AK$46:$AL$48,2,0)+1,0)) -> 70676.85717 | T35: =IF(K35="","",IF(C35=$D$15,P35,VLOOKUP(C35*12,Resumen!$H$5:$K$408,$AN$46+1,0))) -> 29198.82777 | X35: =IF(P35="","",VLOOKUP(C35,Resumen!$M$5:$R$29,'OptiMaxx plus'!$AN$46+3,0)) -> 23359.06222 | AC35: =IF(C35="","",IF(AC34="","",VLOOKUP(C35,Resumen!$T$5:$AB$29,9,0))) -> 19075.40313 | AQ35: 4 | AV35: 50
C36: 4 | E36: 48 | G36: =IF(E36="","",VLOOKUP(C36,'No Deducible 93'!$AG$25:$AH$49,2,0)) -> 20829.52331 | K36: 77567.28078 | P36: =IF(G36="","",VLOOKUP(C36*12,Resumen!$C$5:$F$408,VLOOKUP('OptiMaxx plus'!$AK$12,'OptiMaxx plus'!$AK$46:$AL$48,2,0)+1,0)) -> 96219.74294 | T36: =IF(K36="","",IF(C36=$D$15,P36,VLOOKUP(C36*12,Resumen!$H$5:$K$408,$AN$46+1,0))) -> 52512.05163 | X36: =IF(P36="","",VLOOKUP(C36,Resumen!$M$5:$R$29,'OptiMaxx plus'!$AN$46+3,0)) -> 42009.64131 | AC36: =IF(C36="","",IF(AC35="","",VLOOKUP(C36,Resumen!$T$5:$AB$29,9,0))) -> 27613.3085 | AM36: =VLOOKUP(K12,AK31:AN34,3,FALSE) -> 12500 | AN36: =VLOOKUP(K12,AK31:AN34,4,FALSE) -> mensuales | AQ36: 5 | AV36: 51
C37: 5 | E37: 49 | G37: =IF(E37="","",VLOOKUP(C37,'No Deducible 93'!$AG$25:$AH$49,2,0)) -> 21868.29581 | K37: 99435.57658 | P37: =IF(G37="","",VLOOKUP(C37*12,Resumen!$C$5:$F$408,VLOOKUP('OptiMaxx plus'!$AK$12,'OptiMaxx plus'!$AK$46:$AL$48,2,0)+1,0)) -> 125332.7118 | T37: =IF(K37="","",IF(C37=$D$15,P37,VLOOKUP(C37*12,Resumen!$H$5:$K$408,$AN$46+1,0))) -> 79272.16449 | X37: =IF(P37="","",VLOOKUP(C37,Resumen!$M$5:$R$29,'OptiMaxx plus'!$AN$46+3,0)) -> 63417.73159 | AC37: =IF(C37="","",IF(AC36="","",VLOOKUP(C37,Resumen!$T$5:$AB$29,9,0))) -> 37487.39426 | AQ37: 6 | AV37: 52
C38: 6 | E38: 50 | G38: =IF(E38="","",VLOOKUP(C38,'No Deducible 93'!$AG$25:$AH$49,2,0)) -> 22958.87209 | K38: 122394.4487 | P38: =IF(G38="","",VLOOKUP(C38*12,Resumen!$C$5:$F$408,VLOOKUP('OptiMaxx plus'!$AK$12,'OptiMaxx plus'!$AK$46:$AL$48,2,0)+1,0)) -> 158433.3341 | T38: =IF(K38="","",IF(C38=$D$15,P38,VLOOKUP(C38*12,Resumen!$H$5:$K$408,$AN$46+1,0))) -> 109889.7878 | X38: =IF(P38="","",VLOOKUP(C38,Resumen!$M$5:$R$29,'OptiMaxx plus'!$AN$46+3,0)) -> 87911.83021 | AC38: =IF(C38="","",IF(AC37="","",VLOOKUP(C38,Resumen!$T$5:$AB$29,9,0))) -> 48873.5432 | AQ38: 7 | AV38: 53
C39: 7 | E39: 51 | G39: =IF(E39="","",VLOOKUP(C39,'No Deducible 93'!$AG$25:$AH$49,2,0)) -> 24103.83563 | K39: 146498.2843 | P39: =IF(G39="","",VLOOKUP(C39*12,Resumen!$C$5:$F$408,VLOOKUP('OptiMaxx plus'!$AK$12,'OptiMaxx plus'!$AK$46:$AL$48,2,0)+1,0)) -> 195985.0043 | T39: =IF(K39="","",IF(C39=$D$15,P39,VLOOKUP(C39*12,Resumen!$H$5:$K$408,$AN$46+1,0))) -> 144820.9694 | X39: =IF(P39="","",VLOOKUP(C39,Resumen!$M$5:$R$29,'OptiMaxx plus'!$AN$46+3,0)) -> 115856.7755 | AC39: =IF(C39="","",IF(AC38="","",VLOOKUP(C39,Resumen!$T$5:$AB$29,9,0))) -> 61969.51907 | AQ39: 8 | AV39: 54
C40: 8 | E40: 52 | G40: =IF(E40="","",VLOOKUP(C40,'No Deducible 93'!$AG$25:$AH$49,2,0)) -> 25305.89874 | K40: 171804.183 | P40: =IF(G40="","",VLOOKUP(C40*12,Resumen!$C$5:$F$408,VLOOKUP('OptiMaxx plus'!$AK$12,'OptiMaxx plus'!$AK$46:$AL$48,2,0)+1,0)) -> 238501.8372 | T40: =IF(K40="","",IF(C40=$D$15,P40,VLOOKUP(C40*12,Resumen!$H$5:$K$408,$AN$46+1,0))) -> 184572.0566 | X40: =IF(P40="","",VLOOKUP(C40,Resumen!$M$5:$R$29,'OptiMaxx plus'!$AN$46+3,0)) -> 147657.6453 | AC40: =IF(C40="","",IF(AC39="","",VLOOKUP(C40,Resumen!$T$5:$AB$29,9,0))) -> 76997.63098 | AQ40: 9 | AR40: =1+AR16 -> 18 | AU40: =+AU17+1% -> 0.32 | AV40: 55 | AW40: 7
C41: 9 | E41: 53 | G41: =IF(E41="","",VLOOKUP(C41,'No Deducible 93'!$AG$25:$AH$49,2,0)) -> 26567.90897 | K41: 198372.092 | P41: =IF(G41="","",VLOOKUP(C41*12,Resumen!$C$5:$F$408,VLOOKUP('OptiMaxx plus'!$AK$12,'OptiMaxx plus'!$AK$46:$AL$48,2,0)+1,0)) -> 286554.0804 | T41: =IF(K41="","",IF(C41=$D$15,P41,VLOOKUP(C41*12,Resumen!$H$5:$K$408,$AN$46+1,0))) -> 229705.0844 | X41: =IF(P41="","",VLOOKUP(C41,Resumen!$M$5:$R$29,'OptiMaxx plus'!$AN$46+3,0)) -> 183764.0675 | AC41: =IF(C41="","",IF(AC40="","",VLOOKUP(C41,Resumen!$T$5:$AB$29,9,0))) -> 94207.71939 | AK41: 750000 | AQ41: 10 | AV41: 56
C42: 10 | E42: 54 | G42: =IF(E42="","",VLOOKUP(C42,'No Deducible 93'!$AG$25:$AH$49,2,0)) -> 27892.8559 | K42: 226264.9479 | P42: =IF(G42="","",VLOOKUP(C42*12,Resumen!$C$5:$F$408,VLOOKUP('OptiMaxx plus'!$AK$12,'OptiMaxx plus'!$AK$46:$AL$48,2,0)+1,0)) -> 340774.098 | T42: =IF(K42="","",IF(C42=$D$15,P42,VLOOKUP(C42*12,Resumen!$H$5:$K$408,$AN$46+1,0))) -> 280843.7333 | X42: =IF(P42="","",VLOOKUP(C42,Resumen!$M$5:$R$29,'OptiMaxx plus'!$AN$46+3,0)) -> 224674.9866 | AC42: =IF(C42="","",IF(AC41="","",VLOOKUP(C42,Resumen!$T$5:$AB$29,9,0))) -> 113880.5025 | AQ42: 11 | AR42: =1+AR40 -> 19 | AU42: =+AU40+1% -> 0.33 | AV42: 57 | AW42: 8 | AX42: Aportaciones Adicionales
C43: 11 | E43: 55 | G43: =IF(E43="","",VLOOKUP(C43,'No Deducible 93'!$AG$25:$AH$49,2,0)) -> 29283.87821 | K43: 255548.8261 | P43: =IF(G43="","",VLOOKUP(C43*12,Resumen!$C$5:$F$408,VLOOKUP('OptiMaxx plus'!$AK$12,'OptiMaxx plus'!$AK$46:$AL$48,2,0)+1,0)) -> 401862.9857 | T43: =IF(K43="","",IF(C43=$D$15,P43,VLOOKUP(C43*12,Resumen!$H$5:$K$408,$AN$46+1,0))) -> 338679.9168 | X43: =IF(P43="","",VLOOKUP(C43,Resumen!$M$5:$R$29,'OptiMaxx plus'!$AN$46+3,0)) -> 270943.9335 | AC43: =IF(C43="","",IF(AC42="","",VLOOKUP(C43,Resumen!$T$5:$AB$29,9,0))) -> 136331.3262 | AQ43: 12 | AV43: 58
C44: 12 | E44: 56 | G44: =IF(E44="","",VLOOKUP(C44,'No Deducible 93'!$AG$25:$AH$49,2,0)) -> 30744.27107 | K44: 286293.0972 | P44: =IF(G44="","",VLOOKUP(C44*12,Resumen!$C$5:$F$408,VLOOKUP('OptiMaxx plus'!$AK$12,'OptiMaxx plus'!$AK$46:$AL$48,2,0)+1,0)) -> 470597.8825 | T44: =IF(K44="","",IF(C44=$D$15,P44,VLOOKUP(C44*12,Resumen!$H$5:$K$408,$AN$46+1,0))) -> 403981.0651 | X44: =IF(P44="","",VLOOKUP(C44,Resumen!$M$5:$R$29,'OptiMaxx plus'!$AN$46+3,0)) -> 323184.8521 | AC44: =IF(C44="","",IF(AC43="","",VLOOKUP(C44,Resumen!$T$5:$AB$29,9,0))) -> 161914.3667 | AQ44: 13 | AV44: 59
C45: 13 | E45: 57 | G45: =IF(E45="","",VLOOKUP(C45,'No Deducible 93'!$AG$25:$AH$49,2,0)) -> 32277.49402 | K45: 318570.5912 | P45: =IF(G45="","",VLOOKUP(C45*12,Resumen!$C$5:$F$408,VLOOKUP('OptiMaxx plus'!$AK$12,'OptiMaxx plus'!$AK$46:$AL$48,2,0)+1,0)) -> 547840.0535 | T45: =IF(K45="","",IF(C45=$D$15,P45,VLOOKUP(C45*12,Resumen!$H$5:$K$408,$AN$46+1,0))) -> 477598.1763 | X45: =IF(P45="","",VLOOKUP(C45,Resumen!$M$5:$R$29,'OptiMaxx plus'!$AN$46+3,0)) -> 382078.5411 | AC45: =IF(C45="","",IF(AC44="","",VLOOKUP(C45,Resumen!$T$5:$AB$29,9,0))) -> 191027.3389 | AQ45: 14 | AV45: 60
C46: 14 | E46: 58 | G46: =IF(E46="","",VLOOKUP(C46,'No Deducible 93'!$AG$25:$AH$49,2,0)) -> 33887.1791 | K46: 352457.7703 | P46: =IF(G46="","",VLOOKUP(C46*12,Resumen!$C$5:$F$408,VLOOKUP('OptiMaxx plus'!$AK$12,'OptiMaxx plus'!$AK$46:$AL$48,2,0)+1,0)) -> 634543.8233 | T46: =IF(K46="","",IF(C46=$D$15,P46,VLOOKUP(C46*12,Resumen!$H$5:$K$408,$AN$46+1,0))) -> 560474.7186 | X46: =IF(P46="","",VLOOKUP(C46,Resumen!$M$5:$R$29,'OptiMaxx plus'!$AN$46+3,0)) -> 448379.7749 | AC46: =IF(C46="","",IF(AC45="","",VLOOKUP(C46,Resumen!$T$5:$AB$29,9,0))) -> 224116.7733 | AK46: 151 | AL46: 2 | AN46: =VLOOKUP(AK12,$AK$46:$AL$48,2,0) -> 2 | AQ46: 15 | AV46: 61
C47: 15 | E47: 59 | G47: =IF(E47="","",VLOOKUP(C47,'No Deducible 93'!$AG$25:$AH$49,2,0)) -> 35577.1395 | K47: 388034.9098 | P47: =IF(G47="","",VLOOKUP(C47*12,Resumen!$C$5:$F$408,VLOOKUP('OptiMaxx plus'!$AK$12,'OptiMaxx plus'!$AK$46:$AL$48,2,0)+1,0)) -> 731766.4508 | T47: =IF(K47="","",IF(C47=$D$15,P47,VLOOKUP(C47*12,Resumen!$H$5:$K$408,$AN$46+1,0))) -> 653656.4699 | X47: =IF(P47="","",VLOOKUP(C47,Resumen!$M$5:$R$29,'OptiMaxx plus'!$AN$46+3,0)) -> 522925.1759 | AC47: =IF(C47="","",IF(AC46="","",VLOOKUP(C47,Resumen!$T$5:$AB$29,9,0))) -> 261683.928 | AK47: 185 | AL47: 3 | AQ47: 16 | AV47: 62
C48: 16 | E48: 60 | G48: =IF(E48="","",VLOOKUP(C48,'No Deducible 93'!$AG$25:$AH$49,2,0)) -> 37351.37856 | K48: 425386.2884 | P48: =IF(G48="","",VLOOKUP(C48*12,Resumen!$C$5:$F$408,VLOOKUP('OptiMaxx plus'!$AK$12,'OptiMaxx plus'!$AK$46:$AL$48,2,0)+1,0)) -> 840679.0425 | T48: =IF(K48="","",IF(C48=$D$15,P48,VLOOKUP(C48*12,Resumen!$H$5:$K$408,$AN$46+1,0))) -> 758302.3951 | X48: =IF(P48="","",VLOOKUP(C48,Resumen!$M$5:$R$29,'OptiMaxx plus'!$AN$46+3,0)) -> 606641.916 | AC48: =IF(C48="","",IF(AC47="","",VLOOKUP(C48,Resumen!$T$5:$AB$29,9,0))) -> 304291.4129 | AK48: 93 | AL48: 1 | AQ48: 17 | AV48: 63
C49: 17 | E49: 61 | G49: =IF(E49="","",VLOOKUP(C49,'No Deducible 93'!$AG$25:$AH$49,2,0)) -> 39214.09928 | K49: 464600.3876 | P49: =IF(G49="","",VLOOKUP(C49*12,Resumen!$C$5:$F$408,VLOOKUP('OptiMaxx plus'!$AK$12,'OptiMaxx plus'!$AK$46:$AL$48,2,0)+1,0)) -> 962578.6137 | T49: =IF(K49="","",IF(C49=$D$15,P49,VLOOKUP(C49*12,Resumen!$H$5:$K$408,$AN$46+1,0))) -> 875696.6694 | X49: =IF(P49="","",VLOOKUP(C49,Resumen!$M$5:$R$29,'OptiMaxx plus'!$AN$46+3,0)) -> 700557.3355 | AC49: =IF(C49="","",IF(AC48="","",VLOOKUP(C49,Resumen!$T$5:$AB$29,9,0))) -> 352570.6122 | AQ49: 18 | AV49: 64
C50: 18 | E50: 62 | G50: =IF(E50="","",VLOOKUP(C50,'No Deducible 93'!$AG$25:$AH$49,2,0)) -> 41169.71425 | K50: 505770.1019 | P50: =IF(G50="","",VLOOKUP(C50*12,Resumen!$C$5:$F$408,VLOOKUP('OptiMaxx plus'!$AK$12,'OptiMaxx plus'!$AK$46:$AL$48,2,0)+1,0)) -> 1098901.419 | T50: =IF(K50="","",IF(C50=$D$15,P50,VLOOKUP(C50*12,Resumen!$H$5:$K$408,$AN$46+1,0))) -> 1007261.968 | X50: =IF(P50="","",VLOOKUP(C50,Resumen!$M$5:$R$29,'OptiMaxx plus'!$AN$46+3,0)) -> 805809.5745 | AC50: =IF(C50="","",IF(AC49="","",VLOOKUP(C50,Resumen!$T$5:$AB$29,9,0))) -> 407230 | AQ50: 19 | AV50: 65
C51: 19 | E51: 63 | G51: =IF(E51="","",VLOOKUP(C51,'No Deducible 93'!$AG$25:$AH$49,2,0)) -> 43222.85614 | K51: 548992.958 | P51: =IF(G51="","",VLOOKUP(C51*12,Resumen!$C$5:$F$408,VLOOKUP('OptiMaxx plus'!$AK$12,'OptiMaxx plus'!$AK$46:$AL$48,2,0)+1,0)) -> 1251237.684 | T51: =IF(K51="","",IF(C51=$D$15,P51,VLOOKUP(C51*12,Resumen!$H$5:$K$408,$AN$46+1,0))) -> 1154574.154 | X51: =IF(P51="","",VLOOKUP(C51,Resumen!$M$5:$R$29,'OptiMaxx plus'!$AN$46+3,0)) -> 923659.3234 | AC51: =IF(C51="","",IF(AC50="","",VLOOKUP(C51,Resumen!$T$5:$AB$29,9,0))) -> 469064.4568 | AQ51: 20 | AV51: 66
C52: 20 | E52: 64 | G52: =IF(E52="","",VLOOKUP(C52,'No Deducible 93'!$AG$25:$AH$49,2,0)) -> 45378.38862 | K52: 594371.3466 | P52: =IF(G52="","",VLOOKUP(C52*12,Resumen!$C$5:$F$408,VLOOKUP('OptiMaxx plus'!$AK$12,'OptiMaxx plus'!$AK$46:$AL$48,2,0)+1,0)) -> 1421347.884 | T52: =IF(K52="","",IF(C52=$D$15,P52,VLOOKUP(C52*12,Resumen!$H$5:$K$408,$AN$46+1,0))) -> 1319378.514 | X52: =IF(P52="","",VLOOKUP(C52,Resumen!$M$5:$R$29,'OptiMaxx plus'!$AN$46+3,0)) -> 1055502.811 | AC52: =IF(C52="","",IF(AC51="","",VLOOKUP(C52,Resumen!$T$5:$AB$29,9,0))) -> 538965.7082 | AQ52: 21 | AV52: 67
C53: 21 | E53: 65 | G53: =IF(E53="","",VLOOKUP(C53,'No Deducible 93'!$AG$25:$AH$49,2,0)) -> 47641.41793 | K53: 642012.7646 | P53: =IF(G53="","",VLOOKUP(C53*12,Resumen!$C$5:$F$408,VLOOKUP('OptiMaxx plus'!$AK$12,'OptiMaxx plus'!$AK$46:$AL$48,2,0)+1,0)) -> 1611180.734 | T53: =IF(K53="","",IF(C53=$D$15,P53,VLOOKUP(C53*12,Resumen!$H$5:$K$408,$AN$46+1,0))) -> 1611180.734 | X53: =IF(P53="","",VLOOKUP(C53,Resumen!$M$5:$R$29,'OptiMaxx plus'!$AN$46+3,0)) -> 1611180.734 | AC53: =IF(C53="","",IF(AC52="","",VLOOKUP(C53,Resumen!$T$5:$AB$29,9,0))) -> 617934.0186 | AQ53: 22 | AV53: 68
G54: =IF(E54="","",VLOOKUP(C54,'No Deducible 93'!$AG$25:$AH$49,2,0)) ->  | P54: =IF(G54="","",VLOOKUP(C54*12,Resumen!$C$5:$F$408,VLOOKUP('OptiMaxx plus'!$AK$12,'OptiMaxx plus'!$AK$46:$AL$48,2,0)+1,0)) ->  | T54: =IF(K54="","",IF(C54=$D$15,P54,VLOOKUP(C54*12,Resumen!$H$5:$K$408,$AN$46+1,0))) ->  | X54: =IF(P54="","",VLOOKUP(C54,Resumen!$M$5:$R$29,'OptiMaxx plus'!$AN$46+3,0)) ->  | AC54: =IF(C54="","",IF(AC53="","",VLOOKUP(C54,Resumen!$T$5:$AB$29,9,0))) ->  | AM54: Conservador | AN54: Balanceado | AO54: Dinámico | AS54: Conservador | AT54: Balanceado | AU54: Dinámico | AV54: 69
G55: =IF(E55="","",VLOOKUP(C55,'No Deducible 93'!$AG$25:$AH$49,2,0)) ->  | P55: =IF(G55="","",VLOOKUP(C55*12,Resumen!$C$5:$F$408,VLOOKUP('OptiMaxx plus'!$AK$12,'OptiMaxx plus'!$AK$46:$AL$48,2,0)+1,0)) ->  | T55: =IF(K55="","",IF(C55=$D$15,P55,VLOOKUP(C55*12,Resumen!$H$5:$K$408,$AN$46+1,0))) ->  | X55: =IF(P55="","",VLOOKUP(C55,Resumen!$M$5:$R$29,'OptiMaxx plus'!$AN$46+3,0)) ->  | AC55: =IF(C55="","",IF(AC54="","",VLOOKUP(C55,Resumen!$T$5:$AB$29,9,0))) ->  | AL55: Pesos | AM55: =D12*VLOOKUP(K12,AK24:AL27,2,FALSE)*F20 -> 0 | AN55: =D12*VLOOKUP(K12,AK24:AL27,2,FALSE)*#REF! ->  | AO55: =D12*VLOOKUP(K12,AK24:AL27,2,FALSE)*#REF! ->  | AR55: Pesos | AS55: =IF(OR(AM55=0,AM55>=12000),"","El monto mínimo para cada fondo debe de ser de 12,000 pesos anuales") ->  | AV55: 70
G56: =IF(E56="","",VLOOKUP(C56,'No Deducible 93'!$AG$25:$AH$49,2,0)) ->  | P56: =IF(G56="","",VLOOKUP(C56*12,Resumen!$C$5:$F$408,VLOOKUP('OptiMaxx plus'!$AK$12,'OptiMaxx plus'!$AK$46:$AL$48,2,0)+1,0)) ->  | T56: =IF(K56="","",IF(C56=$D$15,P56,VLOOKUP(C56*12,Resumen!$H$5:$K$408,$AN$46+1,0))) ->  | X56: =IF(P56="","",VLOOKUP(C56,Resumen!$M$5:$R$29,'OptiMaxx plus'!$AN$46+3,0)) ->  | AC56: =IF(C56="","",IF(AC55="","",VLOOKUP(C56,Resumen!$T$5:$AB$29,9,0))) ->  | AL56: Dólares | AM56: =D12*VLOOKUP(K12,AK24:AL27,2,FALSE)*#REF! ->  | AN56: =D12*VLOOKUP(K12,AK24:AL27,2,FALSE)*#REF! ->  | AO56: =D12*VLOOKUP(K12,AK24:AL27,2,FALSE)*N21 -> 0 | AR56: Dólares | AV56: 71
E57: =+IF(C57="","",E56+1) ->  | G57: =IF(E57="","",VLOOKUP(C57,'No Deducible 93'!$AG$25:$AH$49,2,0)) ->  | P57: =IF(G57="","",VLOOKUP(C57*12,Resumen!$C$5:$F$408,VLOOKUP('OptiMaxx plus'!$AK$12,'OptiMaxx plus'!$AK$46:$AL$48,2,0)+1,0)) ->  | T57: =IF(K57="","",IF(C57=$D$15,P57,VLOOKUP(C57*12,Resumen!$H$5:$K$408,$AN$46+1,0))) ->  | X57: =IF(P57="","",VLOOKUP(C57,Resumen!$M$5:$R$29,'OptiMaxx plus'!$AN$46+3,0)) ->  | AC57: =IF(C57="","",IF(AC56="","",VLOOKUP(C57,Resumen!$T$5:$AB$29,9,0))) ->  | AL57: Euros | AM57: =D12*VLOOKUP(K12,AK24:AL27,2,FALSE)*#REF! ->  | AN57: =D12*VLOOKUP(K12,AK24:AL27,2,FALSE)*#REF! ->  | AO57: =D12*VLOOKUP(K12,AK24:AL27,2,FALSE)*#REF! ->  | AR57: Euros | AV57: 72
C58: =CONCATENATE("Aportaciones Acumuladas a edad"," ",Resumen!AD25) -> Aportaciones Acumuladas a edad 65 | K58: =IF(T7="","",VLOOKUP(Resumen!AD25,'Deducible 151'!$AF$25:$AI$104,4,0)) -> 642012.7646 | P58: Tasa anual proyectada | X58: =+'Deducible 151'!L20 -> 0.12 | AV58: 73
C59: =CONCATENATE("Saldo Proyectado a edad"," ",Resumen!AD25) -> Saldo Proyectado a edad 65 | K59: =IFERROR(IF(E57=Resumen!AD25,'OptiMaxx plus'!P57,VLOOKUP('OptiMaxx plus'!AK12,Resumen!AD18:AE20,2,0)),"") -> 1611180.734 | P59: =IF(AK12=AK48,"",CONCATENATE("Valor acumulado del beneficio fiscal a edad"," ",Resumen!AD23)) -> Valor acumulado del beneficio fiscal a edad 65 | X59: =VLOOKUP(T7+D15,$E$33:$AC$57,25,0) -> 617934.0186 | AL59: Revaluables | AM59: =D12*VLOOKUP(K12,AK24:AL27,2,FALSE)*F24 -> 972.0801219 | AN59: China | AO59: =D12*VLOOKUP(K12,AK24:AL27,2,FALSE)*N24 -> 2945.038911 | AR59: Revaluables | AS59: =IF(OR(AM59=0,AM59>=12000),"","El monto mínimo para cada fondo debe de ser de 12,000 pesos anuales") -> El monto mínimo para cada fondo debe de ser de 12,000 pesos anuales | AT59: China | AU59: =IF(OR(AO59=0,AO59>=12000),"","El monto mínimo para cada fondo debe de ser de 12,000 pesos anuales") -> El monto mínimo para cada fondo debe de ser de 12,000 pesos anuales | AV59: 74
C60: =IF(AK12="","",IF(AK12=151,Resumen!AT13,IF(AK12=185,Resumen!AT19,""))) -> De acuerdo con la Ley del Impuesto Sobre la Renta, el monto total de las deducciones personales no podrá exceder de la cantidad que resulte menor entre 5 UMA´s anuales y el 10% de los ingresos anuales percibidos. El fondo exento a edad 65 será el equivalente a 15 UMA´s anuales (dicha exención se podrá realizar cada año) o 90 UMA´s anuales en una sola exhibición. Sobre excedente se retendrá 20%. | AL60: Brasil | AM60: =D12*VLOOKUP(K12,AK24:AL27,2,FALSE)*F25 -> 825.1673902 | AN60: Mercados Emergentes | AO60: =D12*VLOOKUP(K12,AK24:AL27,2,FALSE)*N25 -> 1524.270997 | AR60: Brasil | AS60: =IF(OR(AM60=0,AM60>=12000),"","El monto mínimo para cada fondo debe de ser de 12,000 pesos anuales") -> El monto mínimo para cada fondo debe de ser de 12,000 pesos anuales | AT60: Mercados Emergentes | AU60: =IF(OR(AO60=0,AO60>=12000),"","El monto mínimo para cada fondo debe de ser de 12,000 pesos anuales") -> El monto mínimo para cada fondo debe de ser de 12,000 pesos anuales | AV60: 75
AL61: BRIC | AM61: =D12*VLOOKUP(K12,AK24:AL27,2,FALSE)*F27 ->  | AN61: Oro | AO61: =D12*VLOOKUP(K12,AK24:AL27,2,FALSE)*N26 -> 0 | AR61: BRIC | AS61: =IF(OR(AM61=0,AM61>=12000),"","El monto mínimo para cada fondo debe de ser de 12,000 pesos anuales") ->  | AT61: Oro | AU61: =IF(OR(AO61=0,AO61>=12000),"","El monto mínimo para cada fondo debe de ser de 12,000 pesos anuales") -> 
AV62: 1
D63: =+IF(AK12="","",IF(AK12=151,Resumen!AI13,IF(AK12=185,Resumen!AI19,Resumen!AI25))) -> Las tasas de crecimiento elegidas tienen fines ilustrativos únicamente. La tasa anual proyectada está expresada antes de cargos. La ganancia real podría ser otra, ya que, debido a la naturaleza de este tipo de inversiones, su rendimiento puede indistintamente subir o bajar. El saldo proyectado se expresa después de los cargos del producto. Si se rescata de forma anticipada el Saldo Sujeto a Retiro, el valor ilustrado le da una estimación de lo que podrá recibir, por lo tanto, para obtener los máximos beneficios de esta inversión, la aportación debería ser realizada por la duración del plazo contratado. En caso de fallecimiento se entregará a los beneficiarios el Saldo del Fondo menos el Bono de fidelidad después de aplicar la retención de impuestos. Dicha retención actualmente es del 20%. | AP63: El monto mínimo para cada fondo debe de ser de 12,000 pesos anuales | AV63: 2
AP64: =IFERROR(VLOOKUP(AP63,AS55:AS61,1,FALSE),IFERROR(VLOOKUP(AP63,AT55:AT57,1,FALSE),IFERROR(VLOOKUP(AP63,AU55:AU57,1,FALSE),IFERROR(VLOOKUP(AP63,AU59:AU61,1,FALSE),0)))) -> El monto mínimo para cada fondo debe de ser de 12,000 pesos anuales | AQ64: =IF(AP64=0,"","El monto mínimo para cada fondo debe de ser de 12,000 pesos anuales.") -> El monto mínimo para cada fondo debe de ser de 12,000 pesos anuales. | AV64: 3
D65: =+IF(AK12=" "," ",IF(AK12=151,Resumen!AO13,IF(AK12=185,Resumen!AO19,Resumen!AO25))) -> Todo retiro es acumulable al ingreso del (los) beneficiario(s), por lo que la retención representa un pago provisional de los impuestos. La presente ilustración se ofrece únicamente a modo de guía y no debe ser considerada como un contrato desde el punto de vista legal. Para mayores detalles vea el folleto del cliente y las Condiciones de la Póliza. | AV65: 4
AV66: 5
AV67: 6
AV68: 7
D69: El supuesto de inflación utilizado para los cálculos es del 5%. | AV69: =+AV68+1 -> 8
D70: Los rendimientos mostrados para los portafolios en pesos, dólares y euros corresponden al promedio del 2012 al 2021.
D71: Los rendimientos de las alternativas dedicadas corresponden al promedio del 2012 al 2021.1 Para las nuevas alternativas de plus el promedio es del 2019 al 2021.
D72: Los valores mostrados en el presente documento son de referencia. Los rendimientos pasados no garantizan la misma ganancia a futuro. | AV72: =+AV69+1 -> 9
AV73: 10
AV74: 11
AV75: 12
AV76: 13
AV77: 14
AR78: =1+AR42 -> 20 | AU78: =+AU42+1% -> 0.34 | AV78: 15 | AW78: 9 | AX78: Anualmente desde un inicio
AR79: =1+AR78 -> 21 | AU79: =+AU78+1% -> 0.35 | AV79: 16 | AW79: 10 | AX79: Única aportación adicional
AR80: =1+AR79 -> 22 | AU80: =+AU79+1% -> 0.36 | AV80: 17 | AW80: 11 | AX80: No aplica
AR81: =1+AR80 -> 23 | AU81: =+AU80+1% -> 0.37 | AV81: 18 | AW81: 12
AR82: =1+AR81 -> 24 | AU82: =+AU81+1% -> 0.38 | AV82: =1+AV81 -> 19 | AW82: 13
AJ83: La tasa de rendimiento proyectada antes de cargos, de
AJ84: %,corresponde a una estimación con base en rendimientos históricos, por lo que es de carácter informativo. Por ningún motivo representa un compromiso futuro para Allianz México S.A., Compañía de Seguros.
AR85: =1+#REF! ->  | AU85: =+#REF!+1% ->  | AV85: =1+#REF! ->  | AW85: 16
AR86: =1+AR85 ->  | AU86: =+AU85+1% ->  | AV86: =1+AV85 ->  | AW86: 17
AR87: =1+AR86 ->  | AW87: 18
AR88: =+AR87+1 ->  | AW88: 19
AW89: 20
AW90: 21 | BA90: Portafolios | BE90: Conservador | BI90: Moderado | BM90: Dinámico | BS90: Resumen de Resultados
AW91: 22 | BA91: Pesos (Mex) | BE91: =+K21 -> 0 | BI91: 0 | BM91: 0
BA92: Euros | BE92: 0 | BI92: 0 | BM92: 0 | BS92: Aportaciones Acumuladas
BA93: Dólares USA | BE93: 0 | BI93: 0 | BM93: 0
BE94: Distribución de fondos | BS94: % de Bono Acreditado
P138: =+#REF! -> 
AK168: 0.46
AK169: 0.47
AK170: 0.48
AK171: 0.49
AK172: 0.5
AK173: 0.51
AK174: 0.52
AK175: 0.53
AK176: 0.54
AK177: 0.55
AK178: 0.56
AK179: 0.57
AK180: 0.58
AK181: 0.59
AK182: 0.6
AK183: 0.61
AK184: 0.62
AK185: 0.63
AK186: 0.64
AK187: 0.65
AK188: 0.66
AK189: 0.67
AK190: 0.68
AK191: 0.69
AK192: 0.7
AK193: 0.71
AK194: 0.72
AK195: 0.73
AK196: 0.74
AK197: 0.75
AK198: 0.76
AK199: 0.77
AK200: 0.78
AK201: 0.79
AK202: 0.8
AK203: 0.81
AK204: 0.82
AK205: 0.83
AK206: 0.84
AK207: 0.85
AK208: 0.86
AK209: 0.87
AK210: 0.88
AK211: 0.89
AK212: 0.9
AK213: 0.91
AK214: 0.92
AK215: 0.93
AK216: 0.94
AK217: 0.95
AK218: 0.96
AK219: 0.97
AK220: 0.98
AK221: 0.99
AK222: 1

Sheet Rendimientos_UDI_Inflación (hidden)
Z2: Rendimiento
B3: *Cifras al cierre de DICIEMBRE 2019 | Y3: Dinámico Pesos | Z3: 0.06750337488 | AB3: Cálculos de dólares y euros en el archivo Rendimientos cotizador plus 2022
R4: UDI | Y4: Balanceado Pesos | Z4: 0.05381911143
R5: Año | S5: Promedio | Y5: Conservador Pesos | Z5: 0.05231506064
R6: 2010 | S6: 4.434275521 | Y6: Dinámico Dólares | Z6: 0.1483441172
L7: Revaluables | M7: =+M39 -> 0.028 | O7: =+O39 -> 0.105 | R7: 2011 | S7: 4.587675003 | Y7: Balanceado Dólares | Z7: 0.0801337601
L8: Dedicados | M8: =+MIN(M42,M45,M48,M51,M54,) -> -0.3470771385 | O8: =+MAX(O42,O45,O48,O51,O54,) -> 0.8981144453 | R8: 2012 | S8: 4.777064568 | Y8: Conservador Dólares | Z8: 0.04538336896
L9: MN/DL/EUR | M9: =+MIN(M12:M14,M17,M20,M23,M27,M30,M35) -> -0.1978 | N9: =+AVERAGE(N12:N14,N17,N20,N23,N27,N30,N35,N39,N42,N45,N48,N51,N54) -> 0.05016821818 | O9: =+MAX(O12:O14,O17,O20,O23,O27,O30,O35) -> 0.2658 | R9: 2013 | S9: 4.957508973 | Y9: Dinámico Euros | Z9: 0.05051736762
B10: Alternativas de Inversión | C10: 2010 | D10: 2011 | E10: 2012 | F10: 2013 | G10: 2014 | H10: 2015 | I10: 2016 | J10: 2017 | K10: 2018 | L10: 2019 | M10: Mínimo | N10: Promedio | O10: Máximo | R10: 2014 | S10: 5.156123033 | Y10: Balanceado Euros | Z10: 0.03759805207
B11: Moneda Nacional | R11: 2015 | S11: 5.305169696 | Y11: Conservador Euros | Z11: 0.03103820614
B12: Conservador | C12: 0.0469 | D12: 0.04473326366 | E12: 0.04457114239 | F12: 0.04029455967 | G12: 0.03288495741 | H12: 0.03178637031 | I12: 0.04443914515 | J12: 0.0731 | K12: 0.0813 | L12: 0.08015036246 | M12: =+MIN(C12:L12) -> 0.03178637031 | N12: =+AVERAGE(C12:L12) -> 0.0520159801 | O12: =+MAX(C12:L12) -> 0.0813 | P12: =+IF(N12>L12,"Promedio","Cierre 2019") -> Cierre 2019 | R12: 2016 | S12: 5.449087213 | Y12: China | Z12: 0.02950931684
B13: Balanceado | C13: 0.0747 | D13: 0.00753506448 | E13: 0.09137212369 | F13: 0.017 | G13: 0.02193992699 | H13: 0.01100399361 | I13: 0.04111981521 | J13: 0.07191369535 | K13: -0.004220340011 | L13: 0.05604069253 | M13: =+MIN(C13:L13) -> -0.004220340011 | N13: =+AVERAGE(C13:L13) -> 0.03884049718 | O13: =+MAX(C13:L13) -> 0.09137212369 | P13: =+IF(N13>L13,"Promedio","Cierre 2019") -> Cierre 2019 | R13: 2017 | S13: 5.762276718 | Y13: BRIC | Z13: 0.03421592204
B14: Dinámico | C14: 0.1701 | D14: -0.0493162355 | E14: 0.1688452209 | F14: -0.0088 | G14: 0.00860599242 | H14: 0.0021868281 | I14: 0.06027674953 | J14: 0.08523609275 | K14: -0.1384334964 | L14: 0.03325675818 | M14: =+MIN(C14:L14) -> -0.1384334964 | N14: 0.033195791 | O14: 0.1701 | P14: =+IF(N14>L14,"Promedio","Cierre 2019") -> Cierre 2019 | R14: 2018 | S14: 6.05408483 | Y14: Oro | Z14: 0.05236625667
B15: Dólares | R15: 2019 | S15: 6.284793222 | Y15: Brasil | Z15: -0.04049523225
B16: Conservador | R16: 2020 | S16: 6.496487003 | Y16: Mercados Emergentes | Z16: 0.04496122436
B17: Expresado en Pesos | C17: -0.03574167736 | D17: 0.1438933865 | E17: -0.06123820823 | F17: 0.007329183597 | G17: 0.1459669919 | H17: 0.1811207248 | I17: 0.2204206875 | J17: -0.03928315808 | K17: 0.009698841982 | L17: -0.02985812556 | M17: =+MIN(C17:L17) -> -0.06123820823 | N17: 0.0542308647 | O17: 0.2204206875 | P17: =+IF(N17>L17,"Promedio","Cierre 2019") -> Promedio | R17: 2021 | S17: 6.842488737 | Y17: Revaluables | Z17: 0.06521267784
B18: Expresado en Dólares | C18: 0.0181 | D18: 0.01772167343 | E18: 0.01780934277 | F18: 0.01292339636 | G18: 0.01275403884 | H18: 0.01275403884 | I18: 0.01275426073 | J18: 0.01274716278 | K18: 0.0103 | L18: 0.01005072591 | M18: =+MIN(C18:L18) -> 0.01005072591 | N18: 0.01379146397 | O18: 0.0181 | P18: Promedio
B19: Balanceado
B20: Expresado en Pesos | C20: 0.0162 | D20: 0.132 | E20: -0.0442 | F20: 0.0765 | G20: 0.1465 | H20: 0.1586 | I20: 0.213 | J20: 0.0011 | K20: -0.0244 | L20: 0.03294431949 | M20: =+MIN(C20:L20) -> -0.0442 | N20: 0.07082443195 | O20: 0.213 | P20: Promedio
B21: Expresado en Dólares | C21: 0.071 | D21: 0.0026 | E21: 0.0262 | F21: 0.0674 | G21: 0.0198 | H21: -0.0115 | I21: 0.0176 | J21: 0.0475 | K21: -0.0238 | L21: 0.07299276437 | M21: =+MIN(C21:L21) -> -0.0238 | N21: 0.02897927644 | O21: 0.07299276437 | P21: Cierre 2019 | R21: Inflación | U21: Inflación 2020
B22: Dinámico | R22: Año | S22: Infl Anual | U22: 2020 | V22: Infl Anual
B23: Expresado en Pesos | C23: 0.0395 | D23: 0.1169 | E23: 0.0336 | F23: 0.2539 | G23: 0.2128 | H23: 0.1498 | I23: 0.2658 | J23: 0.1106 | K23: -0.069 | L23: 0.1997697879 | M23: =+MIN(C23:L23) -> -0.069 | N23: 0.1313669788 | O23: 0.2658 | P23: Cierre 2019 | R23: 2011 | S23: 4.4 | U23: Enero | V23: 3.24
B24: Expresado en Dólares | C24: 0.0944 | D24: -0.01247403334 | E24: 0.1040020888 | F24: 0.2447268239 | G24: 0.0861304211 | H24: -0.02028100817 | I24: 0.07036226561 | J24: 0.1278765129 | K24: -0.05155214323 | L24: 0.2398182328 | M24: =+MIN(C24:L24) -> -0.05155214323 | N24: 0.08830091603 | O24: 0.2447268239 | P24: Cierre 2019 | R24: 2012 | S24: 3.82 | U24: Febrero | V24: 3.7
B25: Euros | R25: 2013 | S25: 3.57 | U25: Marzo | V25: 3.25
B26: Conservador | R26: 2014 | S26: 3.97 | U26: Abril | V26: 2.15
B27: Expresado en Pesos | C27: -0.1087213186 | D27: 0.1173715407 | E27: -0.04070031131 | F27: 0.07951541998 | G27: 0.01773570262 | H27: 0.06935286518 | I27: 0.1934129377 | J27: 0.1055242626 | K27: -0.03276658579 | L27: -0.04145182543 | M27: =+MIN(C27:L27) -> -0.1087213186 | N27: 0.03592726876 | O27: 0.1934129377 | P27: =+IF(N27>L27,"Promedio","Cierre 2019") -> Promedio | R27: 2015 | S27: 4.08
B28: Expresado en Euros | C28: 0.0117 | D28: 0.02172646744 | E28: 0.02178663578 | F28: 0.02172646744 | G28: 0.02172646744 | H28: 0.02172646744 | I28: 0.02172710945 | J28: 0.02170657768 | K28: 0.0167 | L28: 0.0163 | M28: =+MIN(C28:L28) -> 0.0117 | N28: 0.01968261927 | O28: 0.02178663578 | P28: Promedio | R28: 2016 | S28: 2.13
B29: Balanceado | R29: 2017 | S29: 3.36
B30: Expresado en Pesos | C30: -0.1242 | D30: 0.0621 | E30: -0.0145 | F30: 0.1058 | G30: -0.0068 | H30: 0.068 | I30: 0.1743 | J30: 0.1067 | K30: -0.1011 | L30: -0.002414990803 | M30: =+MIN(C30:L30) -> -0.1242 | N30: 0.02678850092 | O30: 0.1743 | P30: Promedio | R30: 2018 | S30: 6.77
B31: Expresado en Euros | C31: -0.0053 | D31: -0.03880945542 | E31: 0.05002913036 | F31: 0.05024255975 | G31: -0.00251501271 | H31: 0.02231889844 | I31: 0.00597022501 | J31: 0.0252 | K31: -0.0544 | L31: 0.05556322352 | M31: =+MIN(C31:L31) -> -0.0544 | N31: 0.01082995689 | O31: 0.05556322352 | P31: Cierre 2019 | R31: 2019 | S31: 4.83
B32: Dinámico | R32: 2020 | S32: 2.83
R33: 2021 | S33: 3.15
R34: 2022 | S34: 7.3551
B35: Expresado en Pesos | C35: -0.1284 | D35: -0.0731 | E35: 0.0811 | F35: 0.2077 | G35: -0.019 | H35: 0.1005 | I35: 0.1737 | J35: 0.1557 | K35: -0.1978 | L35: 0.1246436864 | M35: =+MIN(C35:L35) -> -0.1978 | N35: 0.04250436864 | O35: 0.2077 | P35: Cierre 2019
B36: Expresado en Euros | C36: -0.0095 | D36: -0.174010859 | E36: 0.1456032993 | F36: 0.1521202966 | G36: -0.01475592788 | H36: 0.05485661075 | I36: 0.00532350702 | J36: 0.0741 | K36: -0.151 | L36: 0.1826219007 | M36: =+MIN(C36:L36) -> -0.174010859 | N36: 0.02653588275 | O36: 0.1826219007 | P36: Cierre 2019 | S36: =+AVERAGE(S30:S34) -> 4.98702 | T36: Promedio de los últimos 5 años
B37: Revaluables
B38: AZ Revaluables
B39: Expresado en Pesos | C39: 0.05790581171 | D39: 0.06448062051 | E39: 0.04933818622 | F39: 0.04706110355 | G39: 0.05116097529 | H39: 0.04172060908 | I39: 0.0581220199 | J39: 0.105 | K39: 0.028 | L39: 0.0934 | M39: =+MIN(C39:L39) -> 0.028 | N39: 0.05961893263 | O39: 0.105 | P39: =+IF(N39>L39,"Promedio","Cierre 2019") -> Cierre 2019
B40: Dedicados
B41: AZ Brasil
B42: Expresado en Pesos | C42: -0.028 | D42: -0.1754820965 | E42: -0.1093128391 | F42: -0.2054499802 | G42: -0.0943258342 | H42: -0.3470771385 | I42: 0.8981144453 | J42: 0.1590131484 | K42: -0.04352616978 | L42: 0.1744100088 | M42: =+MIN(C42:L42) -> -0.3470771385 | N42: 0.02283635442 | O42: 0.8981144453 | P42: =+IF(N42>L42,"Promedio","Cierre 2019") -> Cierre 2019
B43: Expresado en Dólares | C43: n.a | D43: n.a | E43: n.a | F43: n.a | G43: n.a | H43: n.a | I43: n.a | J43: n.a | K43: n.a | L43: n.a
B44: AZ China
B45: Expresado en Pesos | C45: -0.0471 | D45: -0.1074782793 | E45: 0.07176761743 | F45: -0.05937500497 | G45: 0.2081325217 | H45: -0.02495830896 | I45: 0.1579826277 | J45: 0.2769270666 | K45: -0.1488577461 | L45: 0.05554303432 | M45: =+MIN(C45:L45) -> -0.1488577461 | N45: 0.03825835284 | O45: 0.2769270666 | P45: =+IF(N45>L45,"Promedio","Cierre 2019") -> Cierre 2019
B46: Expresado en Dólares | C46: n.a | D46: n.a | E46: n.a | F46: n.a | G46: n.a | H46: n.a | I46: n.a | J46: n.a | K46: n.a | L46: n.a
B47: AZ Mercados emergentes
B48: Expresado en Pesos | C48: 0.0816 | D48: -0.1089791836 | E48: 0.06271310489 | F48: -0.06391384174 | G48: 0.04469217973 | H48: -0.05666973051 | I48: 0.2804780702 | J48: 0.2834527903 | K48: -0.1698236112 | L48: 0.08609973091 | M48: =+MIN(C48:L48) -> -0.1698236112 | N48: 0.0439649509 | O48: 0.2834527903 | P48: =+IF(N48>L48,"Promedio","Cierre 2019") -> Cierre 2019
B49: Expresado en Dólares | C49: n.a | D49: n.a | E49: n.a | F49: n.a | G49: n.a | H49: n.a | I49: n.a | J49: n.a | K49: n.a | L49: n.a
B50: AZ BRIC
B51: Expresado en Pesos | C51: 0.0018 | D51: -0.1730593575 | E51: 0.02496726112 | F51: -0.0844594151 | G51: 0.03501920787 | H51: -0.03806053929 | I51: 0.2814448784 | J51: 0.3300161249 | K51: -0.1537142522 | L51: 0.1420147306 | M51: =+MIN(C51:L51) -> -0.1730593575 | N51: 0.03659686387 | O51: 0.3300161249 | P51: =+IF(N51>L51,"Promedio","Cierre 2019") -> Cierre 2019
B52: Expresado en Dólares | C52: n.a | D52: n.a | E52: n.a | F52: n.a | G52: n.a | H52: n.a | I52: n.a | J52: n.a | K52: n.a | L52: n.a
B53: AZ Oro
B54: Expresado en Pesos | C54: 0.2053 | D54: 0.2261173466 | E54: -0.02688223013 | F54: -0.2883307794 | G54: 0.09250232076 | H54: 0.02783967433 | I54: 0.2751604451 | J54: 0.06089842546 | K54: -0.03255555894 | L54: 0.1154817167 | M54: =+MIN(C54:L54) -> -0.2883307794 | N54: 0.06555313605 | O54: 0.2751604451 | P54: =+IF(N54>L54,"Promedio","Cierre 2019") -> Cierre 2019
B55: Expresado en Dólares | C55: n.a | D55: n.a | E55: n.a | F55: n.a | G55: n.a | H55: n.a | I55: n.a | J55: n.a | K55: n.a | L55: n.a
M56: =+AVERAGE(M39,M42,M45,M48,M51,M54) -> -0.1831914388 | O56: =+AVERAGE(O39,O42,O45,O48,O51,O54) -> 0.3614451454 | P56: =+IF(N56>L56,"Promedio","Cierre 2019") -> Cierre 2019

Sheet PLUS (hidden)
P1: promedio
B2: 2010 | C2: =+B2+1 -> 2011 | D2: =+C2+1 -> 2012 | E2: 2013 | F2: 2014 | G2: 2015 | H2: 2016 | I2: 2017 | J2: 2018 | K2: 2019 | L2: 2020 | M2: 2021 | N2: Junio | O2: Acum. 2019 | P2: 12años | Q2: 10 años | R2: 8 años | S2: 5 años | U2: Simulador web | Y2: Este ticket no meterle
A3: Conservador | B3: 0.04691623959 | C3: 0.04473323797 | D3: 0.04457116808 | E3: 0.03960371431 | F3: 0.03288495741 | G3: 0.03176186771 | H3: 0.04454392526 | I3: 0.07311633008 | J3: 0.08129296068 | K3: 0.08015036246 | L3: 0.05477018856 | M3: 0.0497989757 | N3: 0.0794035894 | O3: 0.07329381682 | P3: =+AVERAGE(B3:M3) -> 0.05201199398 | Q3: =+AVERAGE(D3:M3) -> 0.05324944503 | R3: =+AVERAGE(F3:M3) -> 0.05603994598 | S3: =+AVERAGE(I3:M3) -> 0.0678257635 | V3: Pesos | W3: Dólares | X3: Euros
A4: Balanceado | B4: 0.07470710652 | C4: 0.007535036763 | D4: 0.06826433859 | E4: 0.007786825538 | F4: 0.01272334813 | G4: 0.008595331207 | H4: 0.03575630037 | I4: 0.06074780901 | J4: -0.008293283335 | K4: 0.05604069253 | L4: 0.03327126771 | M4: 0.08266293227 | N4: -0.01459429754 | O4: -0.02287121036 | P4: 0.03664980878 | Q4: =+AVERAGE(D4:M4) -> 0.0357555562 | R4: =+AVERAGE(F4:M4) -> 0.03518804974 | S4: =+AVERAGE(I4:M4) -> 0.04488588364 | U4: Conservador | V4: 0.06 | W4: 0.03 | X4: 0.03
A5: Dinámico | B5: 0.1700852815 | C5: -0.0493162355 | D5: 0.1540800754 | E5: -0.03434524615 | F5: -0.003997831264 | G5: -0.01426754636 | H5: 0.04352190774 | I5: 0.06283971223 | J5: -0.1580129273 | K5: 0.03325675818 | L5: 0.0008154204742 | M5: 0.1821268147 | N5: -0.05980301796 | O5: -0.1529014408 | P5: 0.03223218197 | Q5: 0.02660171376 | R5: 0.01828528854 | S5: 0.02420515564 | U5: Balanceado | V5: 0.09 | W5: 0.06 | X5: 0.06
A6: Conservador USD | B6: 0.01814133021 | C6: 0.01772167343 | D6: 0.01780934277 | E6: 0.01464470719 | F6: 0.01275403884 | G6: 0.01275403884 | H6: 0.01278920391 | I6: 0.01275403884 | J6: 0.01026748717 | K6: 0.01005072591 | L6: 0.007230543442 | M6: 0.0009920086531 | N6: 0.01601137669 | O6: 0.008695430556 | P6: 0.0123257616 | Q6: 0.01120461356 | R6: 0.009949010702 | S6: 0.008258960804 | U6: Dinamico | V6: 0.12 | W6: 0.1 | X6: 0.09
A7: Conservador MXN | B7: -0.03668076394 | C7: 0.147118577 | D7: -0.052582696 | E7: 0.02378413553 | F7: 0.1394020063 | G7: 0.1828396481 | H7: 0.2082068296 | I7: -0.03363431387 | J7: 0.009672457956 | K7: -0.02985812556 | L7: 0.06312750601 | M7: 0.02908706417 | N7: -0.00932276003 | O7: -0.01005370481 | P7: 0.05420686043 | Q7: 0.05400445122 | R7: 0.07110538408 | S7: 0.007678917742 | U7: Revaluables | V7: 0.08 | W7: - | X7: -
A8: Balanceado USD | B8: 0.07103397509 | C8: 0.002590427668 | D8: 0.02620684625 | E8: 0.06740377723 | F8: 0.01980876848 | G8: -0.01152263583 | H8: 0.01756220776 | I8: 0.04752392124 | J8: -0.02384776833 | K8: 0.07299276437 | L8: 0.05756014142 | M8: 0.06134119672 | N8: -0.01222846155 | O8: -0.04799836143 | P8: 0.03405446851 | Q8: 0.03350292193 | R8: 0.03017732448 | S8: 0.04311405108
A9: Balanceado MXN | B9: 0.01621188094 | C9: 0.1319873312 | D9: -0.04418519252 | E9: 0.07654320558 | F9: 0.1464567359 | G9: 0.1585629734 | H9: 0.2129798334 | I9: 0.001135568523 | J9: -0.02444279755 | K9: 0.03294431949 | L9: 0.1161166436 | M9: 0.09111506736 | N9: -0.02287135958 | O9: -0.06306874384 | P9: 0.07628546411 | Q9: 0.07672263572 | R9: 0.09185854301 | S9: 0.04337376028
A10: Dinámico USD | B10: 0.09436758924 | C10: -0.01247404085 | D10: 0.1040020888 | E10: 0.2447268239 | F10: 0.0861304211 | G10: -0.02028100817 | H10: 0.07036226561 | I10: 0.1570365537 | J10: -0.06836647481 | K10: 0.2398182328 | L10: 0.1550233762 | M10: 0.2254821709 | N10: -0.03648598225 | O10: -0.1342127267 | P10: 0.1063189999 | Q10: 0.119393445 | R10: 0.1056506922 | S10: 0.1417987718 | W10: Conservador | Z10: Balanceado | AC10: Dinámico
A11: Dinámico MXN | B11: 0.03954549509 | C11: 0.1169228627 | D11: 0.03361005006 | E11: 0.2538662522 | F11: 0.2127783885 | G11: 0.1498046011 | H11: 0.2657798913 | I11: 0.110648201 | J11: -0.06896150402 | K11: 0.1997697879 | L11: 0.2189763621 | M11: 0.2598606985 | N11: -0.04686751385 | O11: -0.1479183179 | P11: 0.1493834239 | Q11: 0.1636132729 | R11: 0.1685820533 | S11: 0.1440587091 | U11: MXN | W11: 0.05231506064 | Z11: 0.05381911143 | AC11: 0.06750337488
A12: Conservador EUR | B12: 0.01171547259 | C12: 0.02172646744 | D12: 0.02178663578 | E12: 0.02172646744 | F12: 0.02172646744 | G12: 0.02172646744 | H12: 0.02178663578 | I12: 0.02172646744 | J12: 0.01671556782 | K12: 0.01633340338 | L12: 0.007498788024 | M12: 0.002002023582 | N12: 0.008295148922 | O12: 0.00638265435 | P12: 0.01720590535 | Q12: 0.01730289241 | R12: 0.01618947761 | S12: 0.01285525005 | U12: DL | W12: 0.04538336896 | Z12: 0.0801337601 | AC12: 0.1483441172
A13: Conservador MXN | B13: -0.1071587279 | C13: 0.1226083188 | D13: -0.04271010879 | E13: 0.07728660652 | F13: 0.01748345446 | G13: 0.06737622804 | H13: 0.190151247 | I13: 0.1032730484 | J13: -0.03007039045 | K13: -0.04141795811 | L13: 0.1584003159 | M13: -0.04134611518 | N13: -0.0257317573 | O13: -0.1267539555 | P13: 0.0394896599 | Q13: 0.04584263279 | R13: 0.05298122877 | S13: 0.02976778012 | U13: EUR | W13: 0.03103820614 | Z13: 0.03759805207 | AC13: 0.05051736762
A14: Balanceado EUR | B14: -0.005337002124 | C14: -0.03881028591 | D14: 0.05002830255 | E14: 0.05024278269 | F14: -0.002514234496 | G14: 0.02231884981 | H14: 0.005968869588 | I14: 0.02516281724 | J14: -0.05435634216 | K14: 0.05556322352 | L14: 0.0001019775435 | M14: 0.04230766518 | N14: -0.01856773016 | O14: -0.06155772886 | P14: 0.01255638529 | Q14: 0.01948239115 | R14: 0.01181910328 | S14: 0.01375586826
A15: Balanceado MXN | B15: -0.1242112026 | C15: 0.06207156544 | D15: -0.01446844202 | E15: 0.1058029218 | F15: -0.006757247482 | G15: 0.06796861041 | H15: 0.1743334808 | I15: 0.1067093982 | J15: -0.1011423004 | K15: -0.002414990803 | L15: 0.1497529968 | M15: -0.002811829523 | N15: -0.04454822183 | O15: -0.1840244594 | P15: 0.03456941339 | Q15: 0.04769725978 | R15: 0.04820476476 | S15: 0.03001865486
A16: Dinámico EUR | B16: -0.009525478373 | C16: -0.1740118047 | D16: 0.1456020499 | E16: 0.152120397 | F16: -0.01475559823 | G16: 0.05485659026 | H16: 0.005322880047 | I16: 0.07413078678 | J16: -0.1510333684 | K16: 0.1826219007 | L16: -0.03155270541 | M16: 0.1570596677 | N16: -0.05425392439 | O16: -0.1726578363 | P16: 0.03256960978 | Q16: 0.05743726004 | R16: 0.03458126919 | S16: 0.04624525629
A17: Dinámico MXN | B17: -0.1283996789 | C17: -0.07312995336 | D17: 0.08110530532 | E17: 0.2076805361 | F17: -0.01899861121 | G17: 0.1005063508 | H17: 0.1736874913 | I17: 0.1556773678 | J17: -0.1978193266 | K17: 0.1246436864 | L17: 0.1133616413 | M17: 0.1069727795 | N17: -0.07928973052 | O17: -0.2806260011 | P17: 0.0537739657 | Q17: 0.08468172207 | R17: 0.06975392241 | S17: 0.06056722967
A18: Brasil | B18: -0.03571323535 | C18: -0.1754766965 | D18: -0.109319122 | E18: -0.2054499802 | F18: -0.0943258342 | G18: -0.3470771385 | H18: 0.8981144453 | I18: 0.1395183222 | J18: -0.07043568627 | K18: 0.1744100088 | L18: -0.1879890165 | M18: =+[1]WEB!$H$37 -> -0.2333009352 | N18: 0.03722298852 | O18: 0.05681990223 | P18: -0.02058707238 | Q18: -0.003585493675 | R18: 0.03486427068 | S18: -0.03555946142
A19: China | B19: -0.06032059987 | C19: -0.1074782793 | D19: 0.07176761743 | E19: -0.05937500497 | F19: 0.2081325217 | G19: -0.02495830896 | H19: 0.1579826277 | I19: 0.2493262017 | J19: -0.1668415127 | K19: 0.05554303432 | L19: 0.1061047746 | M19: =+[1]WEB!$H$40 -> -0.2022788212 | N19: -0.01927565283 | O19: -0.1972866699 | P19: 0.01896702088 | Q19: 0.03954031298 | R19: 0.04787631466 | S19: 0.008370735365
A20: Emergentes | B20: 0.06805766411 | C20: -0.1089760238 | D20: 0.06269575846 | E20: -0.06391384174 | F20: 0.04469217973 | G20: -0.05666973051 | H20: 0.2804780702 | I20: 0.264107609 | J20: -0.1840572237 | K20: 0.08609973091 | L20: 0.1969243809 | M20: =+[1]WEB!$H$43 -> -0.04272697287 | N20: -0.02683788886 | O20: -0.2154585104 | P20: 0.04555930006 | Q20: 0.05876299604 | R20: 0.07360600546 | S20: 0.06406950484
A21: BRIC's | B21: -0.009103280836 | C21: -0.1730641146 | D21: 0.02495958493 | E21: -0.0844594151 | F21: 0.03501920787 | G21: -0.03806053929 | H21: 0.2814448784 | I21: 0.3107370526 | J21: -0.1701154865 | K21: 0.1420147306 | L21: 0.1978252425 | M21: =+[1]WEB!$H$46 -> -0.1320059696 | N21: -0.004843488931 | O21: -0.2241170206 | P21: 0.03209932425 | Q21: 0.05673592864 | R21: 0.07835738957 | S21: 0.06969111392
A22: Oro | B22: 0.1949797707 | C22: 0.2261173466 | D22: -0.02688223013 | E22: -0.2883307794 | F22: 0.09250232076 | G22: 0.02783967433 | H22: 0.2751604451 | I22: 0.06043789103 | J22: -0.03299086585 | K22: 0.1154817167 | L22: 0.2996175427 | M22: =+[1]WEB!$H$49 -> -0.02793482713 | N22: -0.04294699666 | O22: -0.09363959173 | P22: 0.07633316712 | Q22: 0.04949008882 | R22: 0.1012642372 | S22: 0.08292229151
A23: Revaluables | B23: 0.02721732799 | C23: 0.05149462357 | D23: 0.04933818622 | E23: 0.04706110355 | F23: 0.05116097529 | G23: 0.04172060908 | H23: 0.0581220199 | I23: 0.1005085937 | J23: 0.08998929338 | K23: 0.0667425115 | L23: 0.05488764444 | M23: 0.01907689791 | N23: 0.1184475045 | O23: 0.1163336349 | P23: =+AVERAGE(B23:M23) -> 0.05477664888 | Q23: =+AVERAGE(D23:M23) -> 0.05786078349 | R23: =+AVERAGE(F23:M23) -> 0.06027606815 | S23: =+AVERAGE(I23:M23) -> 0.06624098818
A25: Pesos
A26: Dólares
A27: Euros

Sheet Pat (hidden)
B1: 2012 | C1: 2013 | D1: 2014 | E1: 2015 | F1: 2016 | G1: 2017 | H1: 2018 | I1: 2019 | J1: 2020 | K1: 2021 | L1: Julio | M1: Acumulado 2021
A2: AZMAEJ | D2: 0.07978839941 | E2: 0.01638291565 | F2: 0.2353718973 | G2: 0.1662975567 | H2: -0.1295977651 | I2: 0.09823269712 | J2: 0.08093505403 | K2: 0.04342180426 | L2: -0.04484028792 | M2: -0.1297160436 | N2: =+VLOOKUP(A2,[2]Catálogo!$B$4:$C$269,2,) -> 
A3: AZACWI | E3: 0.1006602075 | F3: 0.2532147262 | G3: 0.1528440667 | H3: -0.1141620271 | I3: 0.1795389321 | J3: 0.1830560749 | K3: 0.1831598232 | L3: -0.0510686896 | M3: -0.1926918166 | N3: ACWI | O3: =+AVERAGE(I3:K3) -> 0.1819182768
A4: AZBCSAG | B4: -0.05327047042 | C4: -0.03001071169 | D4: 0.1617064487 | E4: 0.1399975066 | F4: 0.170303102 | G4: -0.04134568758 | H4: -0.02878667323 | I4: -0.9939509948 | J4: 0 | K4: 0 | L4: 0 | M4: 0 | N4: =+VLOOKUP(A4,[2]Catálogo!$B$4:$C$269,2,) -> 
A5: AZAUS | B5: 0.1241293319 | C5: -0.01025128122 | D5: 0.04026135264 | E5: 0.007573643874 | F5: 0.2488982314 | G5: 0.05996261465 | H5: -0.3766967763 | I5: 0.0971938846 | J5: 0.09641292773 | K5: 0.09099704045 | L5: -0.04432542324 | M5: -0.1194453209 | N5: =+VLOOKUP(A5,[2]Catálogo!$B$4:$C$269,2,) -> 
A6: AZCAN | B6: -0.01298593012 | C6: 0.03855854495 | D6: 0.1077888532 | E6: -0.1175340958 | F6: 0.3835114811 | G6: 0.009448954814 | H6: -0.1427402771 | I6: 0.177115449 | J6: 0.0346530063 | K6: 0.2536365592 | L6: -0.05310565082 | M6: -0.12533942 | N6: =+VLOOKUP(A6,[2]Catálogo!$B$4:$C$269,2,) -> 
A7: AZGER | B7: 0.1868167012 | C7: 0.2825418441 | D7: -0.01950858485 | E7: 0.104179529 | F7: 0.2031142665 | G7: 0.1830174035 | H7: -0.2308764066 | I7: 0.1072961196 | J7: 0.1121393479 | K7: 0.06761698051 | L7: -0.07867615191 | M7: -0.3205362722 | N7: =+VLOOKUP(A7,[2]Catálogo!$B$4:$C$269,2,) -> 
A8: AZHKONG | B8: 0.1749470711 | C8: -0.04497050715 | D8: 0.1279447762 | E8: 0.1197660426 | F8: 0.1624479005 | G8: 0.227613749 | H8: -0.07529661677 | I8: 0.05174152127 | J8: 0.04462016931 | K8: -0.01990605173 | L8: -0.04607056633 | M8: -0.1321529431 | N8: =+VLOOKUP(A8,[2]Catálogo!$B$4:$C$269,2,) -> 
A9: AZJAPAN | B9: -0.01202680829 | C9: -0.01958198702 | D9: 0.08813691 | E9: 0.2207672838 | F9: 0.1577337122 | G9: 0.05362448041 | H9: -0.1347455505 | I9: 0.1073565541 | J9: 0.176560094 | K9: 0.02291701131 | L9: -0.05332898975 | M9: -0.2160265451 | N9: =+VLOOKUP(A9,[2]Catálogo!$B$4:$C$269,2,) -> 
A10: AZTAIW | F10: 0.3487964431 | G10: 0.1714687623 | H10: -0.09977823151 | I10: 0.2121304672 | J10: 0.3085928222 | K10: 0.2913308298 | L10: -0.03036459604 | M10: -0.2614560414 | N10: =+VLOOKUP(A10,[2]Catálogo!$B$4:$C$269,2,) -> 
A11: AZUK | D11: 0.004122166587 | E11: 0.05174127131 | F11: 0.1200598166 | G11: 0.1001128216 | H11: -0.07688848767 | I11: 0.1338721741 | J11: -0.06039985401 | K11: 0.1824671308 | L11: -0.07057580847 | M11: -0.1505301489 | N11: =+VLOOKUP(A11,[2]Catálogo!$B$4:$C$269,2,) -> 
A12: AZEMU | E12: 0 | F12: 0.20100003 | G12: 0.1644116029 | H12: -0.1608948931 | I12: -0.9914781459 | J12: 0 | K12: 0 | L12: 0 | M12: 0 | N12: =+VLOOKUP(A12,[2]Catálogo!$B$4:$C$269,2,) -> 
A13: AZCHINA | D13: 0.03063276595 | E13: -0.22128309 | F13: 0.1744500193 | G13: 0.2556027648 | H13: -0.1246117054 | I13: 0.06017875799 | J13: 0.09373775573 | K13: -0.1958482347 | L13: -0.01637443433 | M13: -0.1642297228 | N13: =+VLOOKUP(A13,[2]Catálogo!$B$4:$C$269,2,) -> 
A14: AZDJO& | B14: -0.05113124491 | C14: 0.3029596083 | D14: -0.02882896116 | E14: -0.1336555936 | F14: 0.4400910947 | G14: -0.03728327722 | H14: -0.1721053595 | I14: 0.006000332486 | J14: -0.1758391084 | K14: 0.7849033961 | L14: 0.05975093609 | M14: 0.3648686014 | N14: =+VLOOKUP(A14,[2]Catálogo!$B$4:$C$269,2,) -> 
A15: AZIPCL | B15: 0.172695451 | C15: -0.01824358177 | D15: 0.008807845202 | E15: -0.01579483664 | F15: 0.05412190173 | G15: 0.0928611946 | H15: -0.1780688177 | I15: 0.04108094949 | J15: -0.03388132221 | K15: 0.2014406167 | L15: 0.005660119395 | M15: -0.06767710307 | N15: =+VLOOKUP(A15,[2]Catálogo!$B$4:$C$269,2,) -> 
A16: AZSPLAT | B16: -0.009079624847 | C16: -0.1205563503 | D16: -0.01156205 | E16: -0.01468857953 | F16: 0.2531691865 | G16: 0.14942529 | H16: -0.9913 | I16: 0 | J16: 0 | K16: 0 | L16: 0 | M16: 0 | N16: =+VLOOKUP(A16,[2]Catálogo!$B$4:$C$269,2,) -> 
A17: AZHOMEC | C17: 0.1632734042 | D17: 0.1650668189 | E17: 0.1871043657 | F17: 0.2157993465 | G17: 0.4456872743 | H17: -0.3068484173 | I17: 0.3872818363 | J17: 0.2787849785 | K17: 0.4485672329 | L17: -0.08671766376 | M17: -0.3081011776 | N17: =+VLOOKUP(A17,[2]Catálogo!$B$4:$C$269,2,) -> 
A18: AZIWM | E18: -0.1078883809 | F18: 0.3371913344 | G18: 0.05460701729 | H18: -0.1167387911 | I18: 0.1668173341 | J18: 0.1901721604 | K18: 0.1547086717 | L18: -0.02926242754 | M18: -0.1891371444 | N18: =+VLOOKUP(A18,[2]Catálogo!$B$4:$C$269,2,) -> 
A19: AZDJFS | B19: 0.1453418061 | C19: 0.3214668401 | D19: 0.2517288548 | E19: 0.1304209746 | F19: 0.3603419729 | G19: 0.1112257731 | H19: -0.1106024641 | I19: 0.2277771204 | J19: -0.01667607379 | K19: 0.3394452416 | L19: -0.02778635106 | M19: -0.1814322423 | N19: =+VLOOKUP(A19,[2]Catálogo!$B$4:$C$269,2,) -> 
A20: AZLM10 | B20: 0.137875943 | C20: 0.005859047628 | D20: 0.052271292 | E20: 0.01982236149 | F20: -0.03861185321 | G20: 0.06298268085 | H20: -0.02693698292 | I20: -0.9921577393 | J20: 0 | K20: 0 | L20: 0 | M20: 0 | N20: =+VLOOKUP(A20,[2]Catálogo!$B$4:$C$269,2,) -> 
A21: AZQQQ | F21: 0.2337161764 | G21: 0.2392200452 | H21: -0.01513600148 | I21: 0.2959817231 | J21: 0.4981367554 | K21: 0.2607825072 | L21: -0.05810745909 | M21: -0.245933798 | N21: NASDAQ | O21: =+AVERAGE(I21:K21) -> 0.3516336619
A22: AZSLV | B22: -0.01291744236 | C22: -0.3688182321 | D22: -0.1149577169 | E22: 0.01034866021 | F22: 0.3330539689 | G22: 0.002774463811 | H22: -0.09595524755 | I22: 0.08825569667 | J22: 0.4665995748 | K22: -0.1159259487 | L22: -0.1155061003 | M22: -0.2267587773 | N22: =+VLOOKUP(A22,[2]Catálogo!$B$4:$C$269,2,) -> 
A23: AZS&P5 | B23: 0.05134212441 | C23: 0.2617770726 | D23: 0.2605804151 | E23: 0.1422041821 | F23: 0.2993532321 | G23: 0.1289366492 | H23: -0.06506523698 | I23: 0.2237798024 | J23: 0.1949933193 | K23: 0.2790610123 | L23: -0.04909411983 | M23: -0.1776067073 | N23: =+VLOOKUP(A23,[2]Catálogo!$B$4:$C$269,2,) -> 
A24: AZLUDI | B24: 0.181783113 | C24: -0.06317708558 | D24: 0.1540746251 | E24: -0.04719107714 | F24: 0.07165296834 | G24: 0.0600552753 | H24: 0.0214 | I24: 0.05446970931 | J24: 0.07869489328 | K24: 0.02695538703 | L24: 0.002099199567 | M24: 0.00798646645 | N24: =+VLOOKUP(A24,[2]Catálogo!$B$4:$C$269,2,) -> 
A25: AZXLF | D25: 0.272620151 | E25: 0.09653832048 | F25: 0.3534268518 | G25: 0.1044813032 | H25: -0.1188362437 | I25: 0.2212827983 | J25: -0.001312743145 | K25: 0.3768062579 | L25: -0.0291525125 | M25: -0.1892079729 | N25: =+VLOOKUP(A25,[2]Catálogo!$B$4:$C$269,2,) -> 
A26: AZHCARE | B26: 0.06619155565 | C26: 0.3820419512 | D26: 0.3862179062 | E26: 0.1916094191 | F26: 0.1313681151 | G26: 0.1340305974 | H26: 0.0334 | I26: 0.1286533192 | J26: 0.1758546032 | K26: 0.195870797 | L26: -0.06745705131 | M26: -0.1206797413 | N26: =+VLOOKUP(A26,[2]Catálogo!$B$4:$C$269,2,) -> 
A27: AZACWIE | F27: 0.209773508 | G27: 0.1620424431 | H27: -0.1599749627 | I27: 0.1247672321 | J27: 0.1178997833 | K27: 0.08014027924 | L27: -0.05559491761 | M27: -0.2063316605 | N27: =+VLOOKUP(A27,[2]Catálogo!$B$4:$C$269,2,) -> 
A28: AZINDA | F28: 0.1569736513 | G28: 0.2461247906 | H28: -0.06557519558 | I28: -0.002817287047 | J28: 0.1564698638 | K28: 0.2093277018 | L28: -0.003767610947 | M28: -0.09886205646 | N28: =+VLOOKUP(A28,[2]Catálogo!$B$4:$C$269,2,) -> 
A29: AZBRIC | B29: 0.04645504117 | C29: -0.0679934146 | D29: 0.054407609 | E29: -0.02584595904 | F29: 0.1081904014 | G29: 0.25356311 | H29: -0.1374831938 | I29: 0.1686808203 | J29: 0.198863066 | K29: -0.1181820826 | L29: -0.003493266199 | M29: -0.197716062 | N29: =+VLOOKUP(A29,[2]Catálogo!$B$4:$C$269,2,) -> AZ BRIC INDEXFUND
A30: AZDBO | F30: 0.2473418952 | G30: 0.003571394246 | H30: -0.1401998626 | I30: 0.149324366 | J30: -0.195869298 | K30: 0.612781351 | L30: -0.05933014044 | M30: 0.1701920457 | N30: =+VLOOKUP(A30,[2]Catálogo!$B$4:$C$269,2,) -> AZ DB OIL FUND
A31: AZGLOBA | C31: 0.09860267259 | D31: 0.1074043299 | E31: 0.0769852089 | F31: 0.218008364 | G31: 0.1302689857 | H31: -0.1062014963 | I31: 0.1609331285 | J31: 0.1751671279 | K31: 0.1818453461 | L31: -0.0499360665 | M31: -0.1879461148 | N31: =+VLOOKUP(A31,[2]Catálogo!$B$4:$C$269,2,) -> 
A32: AZGOLD | B32: -0.03388848872 | C32: -0.2904926983 | D32: 0.08901157446 | E32: 0.01927921488 | F32: 0.2625210986 | G32: 0.05089755486 | H32: -0.03694857971 | I32: 0.1050412295 | J32: 0.2694369229 | K32: -0.03764500263 | L32: -0.03834059209 | M32: -0.07947785253 | N32: =+VLOOKUP(A32,[2]Catálogo!$B$4:$C$269,2,) -> AZ GOLD TRUST
A33: AZINDIA | B33: 0.01785729211 | C33: 0.04469137466 | D33: 0 | E33: 0 | F33: 0 | G33: -0.99 | H33: 0 | I33: 0 | J33: 0 | K33: 0 | L33: 0 | M33: 0 | N33: =+VLOOKUP(A33,[2]Catálogo!$B$4:$C$269,2,) -> 
A34: AZBRZ | B34: -0.08891512888 | C34: -0.1636876678 | D34: -0.07043159254 | E34: -0.3234794422 | F34: 0.8831075111 | G34: 0.1265276484 | H34: -0.008087925334 | I34: 0.1908474628 | J34: -0.1596163508 | K34: -0.1986631552 | L34: 0.03652024765 | M34: 0.1326906483 | N34: =+VLOOKUP(A34,[2]Catálogo!$B$4:$C$269,2,) -> 
A35: AZMSCE | B35: 0.08007494411 | C35: -0.04937475759 | D35: 0.05689565982 | E35: -0.04750182082 | F35: 0.2529643543 | G35: 0.2279690319 | H35: -0.167252704 | I35: 0.09797148493 | J35: 0.1835040295 | K35: -0.02818627583 | L35: -0.02343331342 | M35: -0.1980637381 | N35: =+VLOOKUP(A35,[2]Catálogo!$B$4:$C$269,2,) -> AZ MSCI EMERGING MKT IN | O35: =+AVERAGE(B35:K35) -> 0.06070639463
A36: AZSPY | E36: 0.1303864399 | F36: 0.2949299546 | G36: 0.1340401464 | H36: -0.05420381885 | I36: 0.214643277 | J36: 0.1830506998 | K36: 0.2802240879 | L36: -0.04852694347 | M36: -0.174686634 | N36: =+VLOOKUP(A36,[2]Catálogo!$B$4:$C$269,2,) -> 
A37: AZBLD | B37: -0.04933671099 | C37: 0.08188685907 | D37: 0.1631571401 | E37: 0.1458470723 | F37: 0.2130938802 | G37: -0.01079742418 | H37: -0.03239379985 | I37: 0.04569051319 | J37: 0.09912232122 | K37: 0.08028448963 | L37: -0.02953280383 | M37: -0.1011031294 | N37: =+VLOOKUP(A37,[2]Catálogo!$B$4:$C$269,2,) -> 
A38: AZBLE | B38: -0.01718663095 | C38: -0.00929298143 | D38: 0.6912060429 | E38: 0.04385366318 | F38: 0.1443346067 | G38: 0.07909918957 | H38: -0.01251023249 | I38: 0.004393842066 | J38: 0.005424173896 | K38: -0.005887613769 | L38: -0.04461554838 | M38: -0.1836682108 | N38: =+VLOOKUP(A38,[2]Catálogo!$B$4:$C$269,2,) -> 
A39: AZBLP | B39: 0.06552415635 | C39: 0.006466673806 | D39: 0.01046691742 | E39: 0.003511976269 | F39: 0.02265740946 | G39: 0.05173400885 | H39: -0.03902682073 | I39: 0.06459066966 | J39: 0.02396764398 | K39: 0.06899105874 | L39: -0.01537663599 | M39: -0.02134242653 | N39: =+VLOOKUP(A39,[2]Catálogo!$B$4:$C$269,2,) -> 
A40: AZCRD | B40: -0.0895453358 | C40: -0.007630737711 | D40: 0.1280440206 | E40: 0.1469166614 | F40: 0.1856375948 | G40: -0.05446685619 | H40: 0.009570546619 | I40: -0.02503818453 | J40: 0.03922560236 | K40: -0.003638334819 | L40: -0.02097248369 | M40: -0.06550395191 | N40: =+VLOOKUP(A40,[2]Catálogo!$B$4:$C$269,2,) -> 
A41: AZCRE | B41: -0.0134672649 | C41: 0.05868567023 | D41: -0.06836691179 | E41: 0.0397572617 | F41: 0.1276869637 | G41: 0.04789567153 | H41: 0.03102475325 | I41: -0.05751552349 | J41: 0.01137200546 | K41: -0.07979753216 | L41: -0.0281379801 | M41: -0.1363340826 | N41: =+VLOOKUP(A41,[2]Catálogo!$B$4:$C$269,2,) -> 
A42: AZCRP | B42: 0.02241926418 | C42: 0.01891826795 | D42: 0.01197089898 | E42: 0.006637965816 | F42: 0.01046008746 | G42: 0.0408125073 | H42: 0.0534335226 | I42: 0.06273736467 | J42: 0.01733260941 | K42: 0.01600614748 | L42: 0.005763683692 | M42: 0.03073920187 | N42: =+VLOOKUP(A42,[2]Catálogo!$B$4:$C$269,2,) -> 
A43: AZDID | B43: 0.04396600419 | C43: 0.2795699484 | D43: 0.2536126116 | E43: 0.1417673502 | F43: 0.2883446938 | G43: 0.1144056836 | H43: -0.06527187454 | I43: 0.2037257401 | J43: 0.2073833608 | K43: 0.2803785442 | L43: -0.04897989223 | M43: -0.177117135 | N43: =+VLOOKUP(A43,[2]Catálogo!$B$4:$C$269,2,) -> 
A44: AZDIE | B44: 0.124611394 | C44: 0.2449994984 | D44: -0.004999340115 | E44: 0.09970970138 | F44: 0.1774840433 | G44: 0.1846599269 | H44: -0.1875509458 | I44: 0.1460810133 | J44: 0.09695942543 | K44: 0.1387315475 | L44: -0.08267213107 | M44: -0.288336163 | N44: =+VLOOKUP(A44,[2]Catálogo!$B$4:$C$269,2,) -> 
A45: AZDIP | B45: 0.1591095209 | C45: -0.01872020029 | D45: 0.000963589623 | E45: -0.005589726848 | F45: 0.04890649063 | G45: 0.07779613185 | H45: -0.1509890219 | I45: 0.05456030996 | J45: 0.01543140943 | K45: 0.1925087926 | L45: -0.06000713833 | M45: -0.1366928849 | N45: =+VLOOKUP(A45,[2]Catálogo!$B$4:$C$269,2,) -> 
A46: AZREAL | B46: 0.139003557 | C46: -0.03827966432 | D46: 0.06759125301 | E46: -0.03216544407 | F46: 0.05064525136 | G46: 0.04702629824 | H46: 0.02801696431 | I46: 0.0934013803 | J46: 0.04995556001 | K46: 0.01907689791 | L46: 0.003005055953 | M46: 0.01502672449 | N46: =+VLOOKUP(A46,[2]Catálogo!$B$4:$C$269,2,) -> 
A47: AZFRAN | F47: 0.23722116 | G47: 0.2076116044 | H47: -0.1059581825 | I47: 0.1630461658 | J47: 0.06459036848 | K47: 0.2165267566 | L47: -0.0777718593 | M47: -0.2340834343 | N47: =+VLOOKUP(A47,[2]Catálogo!$B$4:$C$269,2,) -> 
A48: AZDJIA | C48: 0.2240030406 | D48: 0.2212175672 | E48: 0.090628741 | F48: 0.2788924741 | G48: 0.1728280854 | H48: -0.001709574235 | I48: 0.1575601457 | J48: 0.1288373667 | K48: 0.2114889701 | L48: -0.04702218155 | M48: -0.1499974851 | N48: =+VLOOKUP(A48,[2]Catálogo!$B$4:$C$269,2,) -> 
A49: AZSUIZA | F49: 0.1172476997 | G49: 0.1415848164 | H49: -0.1105916025 | I49: 0.2208350036 | J49: 0.1325110919 | K49: 0.1904754714 | L49: -0.07180212395 | M49: -0.2240168466 | N49: =+VLOOKUP(A49,[2]Catálogo!$B$4:$C$269,2,) -> 
A50: AZTELEC | F50: 0.11837291 | G50: -0.1809962296 | H50: -0.09616499072 | I50: -0.9879207964 | J50: -1 | N50: =+VLOOKUP(A50,[2]Catálogo!$B$4:$C$269,2,) -> 
A51: AZISRAE | F51: 0.06925267899 | G51: 0.004854807205 | H51: -0.08510709675 | I51: -0.9897058531 | J51: -1 | N51: =+VLOOKUP(A51,[2]Catálogo!$B$4:$C$269,2,) -> 
A52: AZESTAT | F52: 0.2269200879 | G52: 0.02177971678 | H52: -0.06725439389 | I52: 0.1727789434 | J52: -0.05657774849 | K52: 0.3466277101 | L52: -0.06486443634 | M52: -0.1867207971 | N52: =+VLOOKUP(A52,[2]Catálogo!$B$4:$C$269,2,) -> 
A53: AZTRANS | F53: 0.4163655952 | G53: 0.1124726022 | H53: -0.1397768977 | I53: 0.1214989588 | J53: 0.1358956387 | K53: 0.2711577183 | L53: -0.02809044944 | M53: -0.1884919045 | N53: =+VLOOKUP(A53,[2]Catálogo!$B$4:$C$269,2,) -> 
A54: AZESP | F54: 0.1346853742 | G54: 0.1766930541 | H54: -0.1627624412 | I54: 0.04149746553 | J54: -0.04790108286 | K54: 0.01517272431 | L54: -0.0578240851 | M54: -0.1802562262 | N54: =+VLOOKUP(A54,[2]Catálogo!$B$4:$C$269,2,) -> 
A55: AZSKORE | G55: 0.2870248921 | H55: -0.1999287163 | I55: 0.04260432689 | J55: 0.3544510932 | K55: -0.06925827 | L55: -0.05124987549 | M55: -0.2581297313 | N55: =+VLOOKUP(A55,[2]Catálogo!$B$4:$C$269,2,) -> 
A56: AZLM5 | H56: 102.270766 | I56: 0.07046617627 | J56: 0.07408532243 | K56: -0.05561907832 | L56: -0.005759362395 | M56: 0.02529106603 | N56: =+VLOOKUP(A56,[2]Catálogo!$B$4:$C$269,2,) -> 
A57: AZRBOT | I57: 0.06578807 | J57: 0.3826972467 | K57: 0.1871084394 | L57: -0.05975612224 | M57: -0.3250111223 | N57: =+VLOOKUP(A57,[2]Catálogo!$B$4:$C$269,2,) -> AZ AUTOMATION & ROBOTICS SECTOR FUND
A58: AZICLN | I58: 0.03371192 | J58: 1.220631382 | K58: -0.2277826769 | L58: -0.01571317187 | M58: 0.03341107214 | N58: =+VLOOKUP(A58,[2]Catálogo!$B$4:$C$269,2,) -> AZ CLEAN ENERGY SECTOR FUND | O58: =+AVERAGE(I58:K58) -> 0.3421868752
A59: AZDSI | I59: 0.04455619 | J59: 0.1929397881 | K59: 0.2984753926 | L59: -0.05608662847 | M59: -0.2060788805 | N59: =+VLOOKUP(A59,[2]Catálogo!$B$4:$C$269,2,) -> AZ SOCIALLY RESPONSIBLE COMPANIES INDEX FUND | O59: =+AVERAGE(I59:K59) -> 0.1786571236
A60: AZHDV | I60: 0.01462358 | J60: -0.04185930707 | K60: 0.1872204386 | L60: -0.03751161323 | M60: -0.02571819206 | N60: =+VLOOKUP(A60,[2]Catálogo!$B$4:$C$269,2,) -> AZ CORE US HIGH DIVIDEND FUND
A61: AZEMBMXX | I61: 0.01275597 | J61: 0.03837416036 | K61: -0.01128547781 | L61: -0.01989026413 | M61: -0.1548011083 | N61: =+VLOOKUP(A61,[2]Catálogo!$B$4:$C$269,2,) -> 

Sheet No Deducible 93 (hidden)
F2: Edad | G2: =+'OptiMaxx plus'!T7 -> 44 | I2: Portafolio | J2: Tasa
F3: Aportación | G3: =+'OptiMaxx plus'!D12 -> 1500 | I3: Conservador Pesos | J3: 0.06 | K3: =+J3 -> 0.06 | L3: =+'OptiMaxx plus'!F20 -> 0
F4: Periodicidad | G4: =+'OptiMaxx plus'!K12 -> Mensual | I4: Moderado Pesos | J4: 0.09 | K4: 0.09 | L4: =+'OptiMaxx plus'!#REF! -> 
F5: Plazo | G5: =+'OptiMaxx plus'!D15 -> 21 | I5: Dinámico Pesos | J5: 0.12 | K5: 0.12 | L5: =+'OptiMaxx plus'!#REF! -> 
F6: Portafolio | G6: =L20 -> 0.12 | I6: Conservador Dólares | J6: 0.03 | K6: 0.03 | L6: =+'OptiMaxx plus'!#REF! -> 
F7: Interés Anual | G7: =+L20 -> 0.12 | I7: Moderado Dólares | J7: 0.06 | K7: 0.06 | L7: =+'OptiMaxx plus'!#REF! -> 
F8: Interés Mensual | G8: =(1+G7)^(1/12)-1 -> 0.009488792935 | I8: Dinámico Dólares | J8: 0.1 | K8: 0.1 | L8: =+'OptiMaxx plus'!N21 -> 0
F9: % Bono | G9: =+Bono!F9 -> 0.55 | I9: Conservador Euros | J9: 0.03 | K9: 0.03 | L9: =+'OptiMaxx plus'!#REF! -> 
I10: Moderado Euros | J10: 0.06 | K10: 0.06 | L10: =+'OptiMaxx plus'!#REF! -> 
I11: Dinámico Euros | J11: 0.09 | K11: 0.09 | L11: =+'OptiMaxx plus'!#REF! -> 
I12: Pesos Revaluables | J12: 0.08 | K12: 0.08 | L12: =+'OptiMaxx plus'!F24 -> 0.05400445122
I13: BRIC | J13: 0.08 | K13: 0.08 | L13: =+'OptiMaxx plus'!F27 -> BRIC
I14: China | J14: 0.08 | K14: 0.08 | L14: =+'OptiMaxx plus'!N24 -> 0.1636132729
I15: Brasil | J15: 0.08 | K15: 0.08 | L15: =+'OptiMaxx plus'!F25 -> 0.04584263279
I16: Oro | J16: 0.08 | K16: 0.08 | L16: =+'OptiMaxx plus'!N26 -> 0
F17: Incremento Inflación | G17: =+'OptiMaxx plus'!K15 -> Si | I17: Mercado Emergentes | J17: 0.08 | K17: 0.08 | L17: =+'OptiMaxx plus'!N25 -> 0.08468172207
F18: Inflación | G18: =+Rendimientos_UDI_Inflación!S36/100 -> 0.0498702
F19: Udi | G19: =+Rendimientos_UDI_Inflación!S17 -> 6.842488737
G20: =+G18 -> 0.0498702 | I20: Tasa Ponderada Bruta | L20: =+'OptiMaxx plus'!D20 -> 0.12
J21: =3.6%/4 -> 0.009
C22: Saldo Inicial | O22: Saldo Comprometido | AA22: Bono
C23: Año | D23: Mes | E23: Edad | F23: Saldo Anterior | G23: Aportación | H23: Interés | I23: Prima | J23: Cargo Administrativo | K23: Cargo Gestión Inversión | L23: Saldo Final | O23: Año | P23: Mes | Q23: Edad | R23: Saldo Anterior | S23: Aportación | T23: Bono | U23: Interés | V23: Cargo Fijo | W23: Cargo Administrativo | X23: Cargo Gestión Inversión | Y23: Saldo Final | AA23: Saldo Final | AD23: Saldo Fondo
B24: 1 | C24: 0 | D24: 1 | E24: =G2 -> 44 | F24: 0 | G24: =G3 -> 1500 | H24: =SUM(F24:G24)*$G$8 -> 14.2331894 | I24: -500 | J24: 0 | K24: =-SUM(F24:H24)*0.1% -> -1.514233189 | L24: =SUM(F24:K24) -> 1012.718956 | N24: 1 | O24: 0 | P24: 1 | Q24: =S9 -> 0 | R24: 0 | T24: =S24*$G$9 -> 0 | U24: =SUM(R24:T24)*$G$8 -> 0 | V24: 0 | X24: =-SUM(R24:U24)*0.1% -> 0 | Y24: =SUM(R24:X24) -> 0 | AA24: =+Bono!J24 -> 830.1150957 | AC24: =+B24/12 -> 0.08333333333 | AD24: =+AA24+Y24+L24 -> 1842.834052 | AG24: Años | AH24: Aportación Anual
B25: =+B24+1 -> 2 | C25: 0 | D25: 2 | E25: =E24 -> 44 | F25: =L24 -> 1012.718956 | G25: =IF($G$4="mensual",$G$3,0) -> 1500 | H25: 23.84266988 | I25: 0 | J25: 0 | K25: =-SUM(F25:H25)*0.1% -> -2.536561626 | L25: =SUM(F25:K25) -> 2534.025064 | N25: =+N24+1 -> 2 | O25: 0 | P25: 2 | Q25: =Q24 -> 0 | R25: =Y24 -> 0 | T25: 0 | U25: 0 | V25: 0 | X25: =-SUM(R25:U25)*0.1% -> 0 | Y25: =SUM(R25:X25) -> 0 | AA25: =+Bono!J25 -> 1665.377001 | AC25: =+B25/12 -> 0.1666666667 | AD25: =+AA25+Y25+L25 -> 4199.402066 | AG25: 1 | AH25: =VLOOKUP(G4,$AK$25:$AL$28,2,0)*G3 -> 18000 | AK25: Mensual | AL25: 12
B26: 3 | C26: 0 | D26: 3 | E26: 44 | F26: =L25 -> 2534.025064 | G26: =IF($G$4="mensual",$G$3,0) -> 1500 | H26: 38.27802853 | I26: 0 | J26: =-SUM(F26:H26)*$J$21 -> -36.65072784 | K26: -4.072303093 | L26: 4031.580062 | N26: 3 | O26: 0 | P26: 3 | Q26: 0 | R26: 0 | T26: 0 | U26: 0 | V26: 0 | X26: 0 | Y26: 0 | AA26: =+Bono!J26 -> 2483.242694 | AC26: 0.25 | AD26: 6514.822756 | AG26: =+AG25+1 -> 2 | AH26: =IF($G$17="Si",(1+$G$20)*AH25,AH25) -> 18897.6636 | AK26: Trimestral | AL26: 4
B27: 4 | C27: 0 | D27: 4 | E27: 44 | F27: 4031.580062 | G27: =IF($G$4="mensual",$G$3,IF($G$4="trimestral",G3,0)) -> 1500 | H27: 52.48801781 | I27: 0 | J27: 0 | K27: -5.58406808 | L27: 5578.484012 | N27: 4 | O27: 0 | P27: 4 | Q27: 0 | R27: 0 | T27: 0 | U27: =SUM(R27:T27)*$G$8 -> 0 | V27: 0 | X27: 0 | Y27: 0 | AA27: =+Bono!J27 -> 3328.754182 | AC27: 0.3333333333 | AD27: 8907.238194 | AG27: =+AG26+1 -> 3 | AH27: =IF($G$17="Si",(1+$G$20)*AH26,AH26) -> 19840.09386 | AK27: Semestral | AL27: 2
B28: 5 | C28: 0 | D28: 5 | E28: 44 | F28: 5578.484012 | G28: =IF($G$4="mensual",$G$3,0) -> 1500 | H28: 67.16626908 | I28: 0 | J28: 0 | K28: -7.145650281 | L28: 7138.504631 | N28: 5 | O28: 0 | P28: 5 | Q28: 0 | R28: 0 | T28: 0 | U28: 0 | V28: 0 | X28: 0 | Y28: 0 | AA28: =+Bono!J28 -> 4179.50794 | AC28: 0.4166666667 | AD28: 11318.01257 | AG28: 4 | AH28: 20829.52331 | AK28: Anual | AL28: 1
B29: 6 | C29: 0 | D29: 6 | E29: 44 | F29: 7138.504631 | G29: =IF($G$4="mensual",$G$3,0) -> 1500 | H29: 81.9689817 | I29: 0 | J29: =-SUM(F29:H29)*$J$21 -> -78.48426251 | K29: -8.720473612 | L29: 8633.268876 | N29: 6 | O29: 0 | P29: 6 | Q29: 0 | R29: 0 | T29: 0 | U29: 0 | V29: 0 | X29: 0 | Y29: 0 | AA29: =+Bono!J29 -> 4990.171276 | AC29: 0.5 | AD29: 13623.44015 | AG29: 5 | AH29: 21868.29581 | AV29: el valor estimado le da una ilustración
B30: 7 | C30: 0 | D30: 7 | E30: 44 | F30: 8633.268876 | G30: =IF($G$4="mensual",$G$3,IF($G$4="trimestral",$G$3,IF(G4="semestral",$G$3,0))) -> 1500 | H30: 96.15249012 | I30: 0 | J30: 0 | K30: -10.22942137 | L30: 10219.19194 | N30: 7 | O30: 0 | P30: 7 | Q30: 0 | R30: 0 | T30: 0 | U30: =SUM(R30:T30)*$G$8 -> 0 | V30: 0 | X30: 0 | Y30: 0 | AA30: =+Bono!J30 -> 5851.226013 | AC30: 0.5833333333 | AD30: 16070.41796 | AG30: 6 | AH30: 22958.87209 | AV30: el valor ilustrado le da una estimación
B31: 8 | C31: 0 | D31: 8 | E31: 44 | F31: 10219.19194 | G31: =IF($G$4="mensual",$G$3,0) -> 1500 | H31: 111.2009857 | I31: 0 | J31: 0 | K31: -11.83039293 | L31: 11818.56254 | N31: 8 | O31: 0 | P31: 8 | Q31: 0 | R31: 0 | T31: 0 | U31: 0 | V31: 0 | X31: 0 | Y31: 0 | AA31: =+Bono!J31 -> 6717.619389 | AC31: 0.6666666667 | AD31: 18536.18193 | AG31: 7 | AH31: 24103.83563
B32: 9 | C32: 0 | D32: 9 | E32: 44 | F32: 11818.56254 | G32: =IF($G$4="mensual",$G$3,0) -> 1500 | H32: 126.3770821 | I32: 0 | J32: =-SUM(F32:H32)*$J$21 -> -121.0044566 | K32: -13.44493962 | L32: 13310.49022 | N32: 9 | O32: 0 | P32: 9 | Q32: 0 | R32: 0 | T32: 0 | U32: 0 | V32: 0 | X32: 0 | Y32: 0 | AA32: =+Bono!J32 -> 7521.01167 | AC32: 0.75 | AD32: 20831.50189 | AG32: 8 | AH32: 25305.89874 | AK32: Las tasas de crecimiento elegidas tienen fines ilustrativos únicamente. La tasa anual proyectada está expresada antes de cargos. La ganancia real podría ser otra, ya que, debido a la naturaleza de este tipo de inversiones, su rendimiento puede indistintamente subir o bajar. El saldo proyectado se expresa después de los cargos del producto. Si se rescata de forma anticipada el Saldo Sujeto a Retiro, el valor ilustrado le da una estimación de lo que podrá recibir, por lo tanto, para obtener los máximos beneficios de esta inversión, la aportación debería ser realizada por la duración del plazo contratado. En caso de fallecimiento se entregará a los beneficiarios el Saldo del Fondo menos el Bono de fidelidad exento de impuestos.
B33: 10 | C33: 0 | D33: 10 | E33: 44 | F33: 13310.49022 | G33: =IF($G$4="mensual",$G$3,IF($G$4="trimestral",$G$3,0)) -> 1500 | H33: 140.533675 | I33: 0 | J33: 0 | K33: -14.9510239 | L33: 14936.07287 | N33: 10 | O33: 0 | P33: 10 | Q33: 0 | R33: 0 | T33: 0 | U33: =SUM(R33:T33)*$G$8 -> 0 | V33: 0 | X33: 0 | Y33: 0 | AA33: =+Bono!J33 -> 8397.757911 | AC33: 0.8333333333 | AD33: 23333.83079 | AG33: 9 | AH33: 26567.90897
B34: 11 | C34: 0 | D34: 11 | E34: 44 | F34: 14936.07287 | G34: =IF($G$4="mensual",$G$3,0) -> 1500 | H34: 155.9584922 | I34: 0 | J34: 0 | K34: -16.59203137 | L34: 16575.43934 | N34: 11 | O34: 0 | P34: 11 | Q34: 0 | R34: 0 | T34: 0 | U34: 0 | V34: 0 | X34: 0 | Y34: 0 | AA34: =+Bono!J34 -> 9279.94008 | AC34: 0.9166666667 | AD34: 25855.37942 | AG34: 10 | AH34: 27892.8559
B35: 12 | C35: 0 | D35: 12 | E35: 44 | F35: 16575.43934 | G35: =IF($G$4="mensual",$G$3,0) -> 1500 | H35: 171.5141011 | I35: 0 | J35: =-SUM(F35:H35)*$J$21 -> -164.2225809 | K35: -18.24695344 | L35: 18064.4839 | N35: 12 | O35: 0 | P35: 12 | Q35: 0 | R35: 0 | T35: 0 | U35: 0 | V35: 0 | X35: 0 | Y35: 0 | AA35: =+Bono!J35 -> 10075.99195 | AC35: 1 | AD35: 28140.47586 | AG35: 11 | AH35: 29283.87821
B36: 13 | C36: =C24+1 -> 1 | D36: =D24 -> 1 | E36: =E24+1 -> 45 | F36: =L35 -> 18064.4839 | G36: =IF(AND(G4="Anual",$G$17="si"),G24*(1+$G$20)/2,IF(AND(G4="Anual",G17="No"),G24/2,IF(G17="Si",G24*(1+$G$20),G24))) -> 1574.8053 | H36: 186.3531486 | I36: 0 | J36: 0 | K36: -19.82564235 | L36: 19805.81671 | N36: 13 | O36: =O24+1 -> 1 | P36: =P24 -> 1 | Q36: =Q24+1 -> 1 | R36: 0 | S36: =IF(G4="Anual",G36,0) -> 0 | U36: =SUM(R36:T36)*$G$8 -> 0 | V36: 0 | X36: 0 | Y36: 0 | AA36: =+Bono!J36 -> 10138.46427 | AC36: 1.083333333 | AD36: 29944.28098 | AG36: 12 | AH36: 30744.27107
B37: 14 | C37: 1 | D37: 2 | E37: 45 | F37: 19805.81671 | G37: =+IF($G$4="mensual",G36,0) -> 1574.8053 | H37: 202.8762951 | I37: 0 | J37: 0 | K37: -21.5834983 | L37: 21561.91481 | N37: 14 | O37: 1 | P37: 2 | Q37: 1 | R37: 0 | U37: 0 | V37: 0 | X37: 0 | Y37: 0 | AA37: =+Bono!J37 -> 10201.32393 | AC37: 1.166666667 | AD37: 31763.23873 | AG37: 13 | AH37: 32277.49402
B38: 15 | C38: 1 | D38: 3 | E38: 45 | F38: 21561.91481 | G38: =+G37 -> 1574.8053 | H38: 219.5395463 | I38: 0 | J38: =-SUM(F38:H38)*$J$21 -> -210.2063369 | K38: -23.35625965 | L38: 23122.69705 | N38: 15 | O38: 1 | P38: 3 | Q38: 1 | R38: 0 | U38: 0 | V38: 0 | X38: 0 | Y38: 0 | AA38: =+Bono!J38 -> 10172.09968 | AC38: 1.25 | AD38: 33294.79674 | AG38: 14 | AH38: 33887.1791
B39: 16 | C39: 1 | D39: 4 | E39: 45 | F39: 23122.69705 | G39: =IF($G$4="mensual",G36,IF($G$4="trimestral",G36,0)) -> 1574.8053 | H39: 234.3494858 | I39: 0 | J39: 0 | K39: -24.93185184 | L39: 24906.91999 | N39: 16 | O39: 1 | P39: 4 | Q39: 1 | R39: 0 | U39: 0 | V39: 0 | X39: 0 | Y39: 0 | AA39: =+Bono!J39 -> 10235.16788 | AC39: 1.333333333 | AD39: 35142.08787 | AG39: 15 | AH39: 35577.1395
B40: 17 | C40: 1 | D40: 5 | E40: 45 | F40: 24906.91999 | G40: =+IF($G$4="mensual",G39,0) -> 1574.8053 | H40: 251.2796078 | I40: 0 | J40: 0 | K40: -26.7330049 | L40: 26706.27189 | N40: 17 | O40: 1 | P40: 5 | Q40: 1 | R40: 0 | U40: 0 | V40: 0 | X40: 0 | Y40: 0 | AA40: =+Bono!J40 -> 10298.62711 | AC40: 1.416666667 | AD40: 37004.899 | AG40: 16 | AH40: 37351.37856
B41: 18 | C41: 1 | D41: 6 | E41: 45 | F41: 26706.27189 | G41: =+G40 -> 1574.8053 | H41: 268.3532854 | I41: 0 | J41: =-SUM(F41:H41)*$J$21 -> -256.9448743 | K41: -28.54943048 | L41: 28263.93617 | N41: 18 | O41: 1 | P41: 6 | Q41: 1 | R41: 0 | S41: 0 | U41: 0 | V41: 0 | X41: 0 | Y41: 0 | AA41: =+Bono!J41 -> 10269.12412 | AC41: 1.5 | AD41: 38533.06029 | AG41: 17 | AH41: 39214.09928
B42: 19 | C42: 1 | D42: 7 | E42: 45 | F42: 28263.93617 | H42: 268.1906379 | I42: 0 | J42: 0 | K42: -28.53212681 | L42: 28503.59468 | N42: 19 | O42: 1 | P42: 7 | Q42: 1 | R42: 0 | S42: =+IF($G$4="mensual",G36,IF($G$4="trimestral",G36,IF(G4="semestral",G36,0))) -> 1574.8053 | U42: 14.9430014 | V42: =-(15*G19*(1+$G$20)) -> -107.7558753 | X42: -1.589748301 | Y42: =SUM(R42:X42) -> 1480.402678 | AA42: =+Bono!J42 -> 10332.79388 | AC42: 1.583333333 | AD42: 40316.79124 | AG42: 18 | AH42: 41169.71425 | AK42: La presente ilustración se ofrece únicamente a modo de guía y no debe ser considerada como un contrato desde el punto de vista legal. Para mayores detalles vea el folleto del cliente y las Condiciones de la Póliza.
B43: 20 | C43: 1 | D43: 8 | E43: 45 | F43: 28503.59468 | H43: 270.4647078 | I43: 0 | J43: 0 | K43: -28.77405939 | L43: 28745.28533 | N43: 20 | O43: 1 | P43: 8 | Q43: 1 | R43: 1480.402678 | S43: =IF($G$4="mensual",G36,0) -> 1574.8053 | U43: 28.99023587 | V43: =V42 -> -107.7558753 | X43: -3.084198214 | Y43: =SUM(R43:X43) -> 2973.35814 | AA43: =+Bono!J43 -> 10396.8584 | AC43: 1.666666667 | AD43: 42115.50187 | AG43: 19 | AH43: 43222.85614
B44: 21 | C44: 1 | D44: 9 | E44: 45 | F44: 28745.28533 | H44: 272.7580604 | I44: 0 | J44: =-SUM(F44:H44)*$J$21 -> -261.1623905 | K44: -29.01804339 | L44: 28727.86296 | N44: 21 | O44: 1 | P44: 9 | Q44: 1 | R44: 2973.35814 | S44: =IF($G$4="mensual",G36,0) -> 1574.8053 | U44: 43.15658112 | V44: =V43 -> -107.7558753 | X44: -4.591320021 | Y44: 4478.972826 | AA44: =+Bono!J44 -> 10367.074 | AC44: 1.75 | AD44: 43573.90979 | AG44: 20 | AH44: 45378.38862
B45: 22 | C45: 1 | D45: 10 | E45: 45 | F45: 28727.86296 | H45: 272.5927431 | I45: 0 | J45: 0 | K45: -29.0004557 | L45: 28971.45525 | N45: 22 | O45: 1 | P45: 10 | Q45: 1 | R45: 4478.972826 | S45: =IF($G$4="mensual",G36,IF($G$4="trimestral",G36,0)) -> 1574.8053 | U45: 57.44304711 | V45: =V44 -> -107.7558753 | X45: -6.111221173 | Y45: 5997.354077 | AA45: =+Bono!J45 -> 10431.35106 | AC45: 1.833333333 | AD45: 45400.16039 | AG45: 21 | AH45: 47641.41793
B46: 23 | C46: 1 | D46: 11 | E46: 45 | F46: 28971.45525 | H46: 274.9041398 | I46: 0 | J46: 0 | K46: -29.24635939 | L46: 29217.11303 | N46: 23 | O46: 1 | P46: 11 | Q46: 1 | R46: 5997.354077 | S46: =IF($G$4="mensual",G36,0) -> 1574.8053 | U46: 71.85065239 | V46: =V45 -> -107.7558753 | X46: -7.644010029 | Y46: 7528.610144 | AA46: =+Bono!J46 -> 10496.02665 | AC46: 1.916666667 | AD46: 47241.74982 | AG46: 22 | AH46: 50017.30497
B47: 24 | C47: 1 | D47: 12 | E47: 45 | F47: 29217.11303 | H47: 277.2351357 | I47: 0 | J47: =-SUM(F47:H47)*$J$21 -> -265.4491335 | K47: -29.49434816 | L47: 29199.40468 | N47: 24 | O47: 1 | P47: 12 | Q47: 1 | R47: 7528.610144 | S47: =IF($G$4="mensual",G36,0) -> 1574.8053 | U47: 86.38042414 | V47: =V46 -> -107.7558753 | X47: -9.189795868 | Y47: 9072.850197 | AA47: =+Bono!J47 -> 10465.95816 | AC47: 2 | AD47: 48738.21304 | AG47: 23 | AH47: 52511.67797
B48: 25 | C48: 2 | D48: 1 | E48: 46 | F48: 29199.40468 | H48: 277.0671048 | I48: 0 | J48: 0 | K48: -29.47647179 | L48: 29446.99531 | N48: 25 | O48: 2 | P48: 1 | Q48: 2 | R48: 9072.850197 | S48: =IF(AND($G$17="si",$G$4="Anual"),G36*(1+$G$20)*2,IF(AND($G$17="no",$G$4="Anual"),G36*2,IF($G$17="si",G36*(1+$G$20),G36))) -> 1653.341155 | U48: 101.7786087 | V48: =(V47*(1+$G$18)) -> -113.1296823 | X48: -10.82796996 | Y48: 10704.01231 | AA48: =+Bono!J48 -> 10530.84831 | AC48: 2.083333333 | AD48: 50681.85593 | AG48: 24 | AH48: 55130.44586
B49: 26 | C49: 2 | D49: 2 | E49: 46 | F49: 29446.99531 | H49: 279.4164411 | I49: 0 | J49: 0 | K49: -29.72641175 | L49: 29696.68534 | N49: 26 | O49: 2 | P49: 2 | Q49: 2 | R49: 10704.01231 | S49: =IF($G$4="mensual",S48,0) -> 1653.341155 | U49: 117.2563682 | V49: =V48 -> -113.1296823 | X49: -12.47460983 | Y49: 12349.00554 | AA49: =+Bono!J49 -> 10596.14079 | AC49: 2.166666667 | AD49: 52641.83168 | AG49: 25 | AH49: 57879.81222
B50: 27 | C50: 2 | D50: 3 | E50: 46 | F50: 29696.68534 | H50: 281.7856981 | I50: 0 | J50: =-SUM(F50:H50)*$J$21 -> -269.8062394 | K50: -29.97847104 | L50: 29678.68633 | N50: 27 | O50: 2 | P50: 3 | Q50: 2 | R50: 12349.00554 | S50: =IF($G$4="mensual",S49,0) -> 1653.341155 | U50: 132.8653684 | V50: -113.1296823 | X50: -14.13521206 | Y50: 14007.94717 | AA50: =+Bono!J50 -> 10565.7855 | AC50: 2.25 | AD50: 54252.419
B51: 28 | C51: 2 | D51: 4 | E51: 46 | F51: 29678.68633 | H51: 281.6149092 | I51: 0 | J51: 0 | K51: -29.96030124 | L51: 29930.34094 | N51: 28 | O51: 2 | P51: 4 | Q51: 2 | R51: 14007.94717 | S51: =IF($G$4="mensual",S48,IF($G$4="trimestral",S48,0)) -> 1653.341155 | U51: 148.606722 | V51: -113.1296823 | X51: -15.80989505 | Y51: 15680.95547 | AA51: =+Bono!J51 -> 10631.2946 | AC51: 2.333333333 | AD51: 56242.591
B52: 29 | C52: 2 | D52: 5 | E52: 46 | F52: 29930.34094 | H52: 284.0028076 | I52: 0 | J52: 0 | K52: -30.21434375 | L52: 30184.1294 | N52: 29 | O52: 2 | P52: 5 | Q52: 2 | R52: 15680.95547 | S52: =IF($G$4="mensual",S51,0) -> 1653.341155 | U52: 164.4815513 | V52: -113.1296823 | X52: -17.49877818 | Y52: 17368.14972 | AA52: =+Bono!J52 -> 10697.20986 | AC52: 2.416666667 | AD52: 58249.48897
B53: 30 | C53: 2 | D53: 6 | E53: 46 | F53: 30184.1294 | H53: 286.4109538 | I53: 0 | J53: =-SUM(F53:H53)*$J$21 -> -274.2348632 | K53: -30.47054036 | L53: 30165.83495 | N53: 30 | O53: 2 | P53: 6 | Q53: 2 | R53: 17368.14972 | S53: =IF($G$4="mensual",S52,0) -> 1653.341155 | U53: 180.4909882 | V53: -113.1296823 | X53: -19.20198186 | Y53: 19069.65019 | AA53: =+Bono!J53 -> 10666.56502 | AC53: 2.5 | AD53: 59902.05017
B54: 31 | C54: 2 | D54: 7 | E54: 46 | F54: 30165.83495 | H54: 286.2373616 | I54: 0 | J54: 0 | K54: -30.45207231 | L54: 30421.62024 | N54: 31 | O54: 2 | P54: 7 | Q54: 2 | R54: 19069.65019 | S54: =+IF($G$4="mensual",S48,IF($G$4="trimestral",S48,IF($G$4="Semestral",S48,0))) -> 1653.341155 | U54: 196.6361739 | V54: -113.1296823 | X54: -20.91962752 | Y54: 20785.57821 | AA54: =+Bono!J54 -> 10732.69896 | AC54: 2.583333333 | AD54: 61939.89742
B55: 32 | C55: 2 | D55: 8 | E55: 46 | F55: 30421.62024 | H55: 288.6644552 | I55: 0 | J55: 0 | K55: -30.7102847 | L55: 30679.57441 | N55: 32 | O55: 2 | P55: 8 | Q55: 2 | R55: 20785.57821 | S55: =IF($G$4="mensual",S54,0) -> 1653.341155 | U55: 212.9182596 | V55: -113.1296823 | X55: -22.65183763 | Y55: 22516.05611 | AA55: =+Bono!J55 -> 10799.24294 | AC55: 2.666666667 | AD55: 63994.87346
B56: 33 | C56: 2 | D56: 9 | E56: 46 | F56: 30679.57441 | H56: 291.1121289 | I56: 0 | J56: =-SUM(F56:H56)*$J$21 -> -278.7361789 | K56: -30.97068654 | L56: 30660.97968 | N56: 33 | O56: 2 | P56: 9 | Q56: 2 | R56: 22516.05611 | S56: =IF($G$4="mensual",S55,0) -> 1653.341155 | U56: 229.338406 | V56: -113.1296823 | X56: -24.39873567 | Y56: 24261.20725 | AA56: =+Bono!J56 -> 10768.30581 | AC56: 2.75 | AD56: 65690.49274
B57: 34 | C57: 2 | D57: 10 | E57: 46 | F57: 30660.97968 | H57: 290.9356873 | I57: 0 | J57: 0 | K57: -30.95191536 | L57: 30920.96345 | N57: 34 | O57: 2 | P57: 10 | Q57: 2 | R57: 24261.20725 | S57: =IF($G$4="mensual",S48,IF($G$4="trimestral",S48,0)) -> 1653.341155 | U57: 245.8977838 | V57: -113.1296823 | X57: -26.16044619 | Y57: 26021.15606 | AA57: =+Bono!J57 -> 10835.07056 | AC57: 2.833333333 | AD57: 67777.19007
B58: 35 | C58: 2 | D58: 11 | E58: 46 | F58: 30920.96345 | H58: 293.4026195 | I58: 0 | J58: 0 | K58: -31.21436607 | L58: 31183.1517 | N58: 35 | O58: 2 | P58: 11 | Q58: 2 | R58: 26021.15606 | S58: =IF($G$4="mensual",S57,0) -> 1653.341155 | U58: 262.5975737 | V58: -113.1296823 | X58: -27.93709479 | Y58: 27796.02801 | AA58: =+Bono!J58 -> 10902.24925 | AC58: 2.916666667 | AD58: 69881.42897
B59: 36 | C59: 2 | D59: 12 | E59: 46 | F59: 31183.1517 | H59: 295.8904695 | I59: 0 | J59: =-SUM(F59:H59)*$J$21 -> -283.3113795 | K59: -31.47904217 | L59: 31164.25175 | N59: 36 | O59: 2 | P59: 12 | Q59: 2 | R59: 27796.02801 | S59: =IF($G$4="mensual",S58,0) -> 1653.341155 | U59: 279.4389661 | V59: -113.1296823 | X59: -29.72880814 | Y59: 29585.94965 | AA59: =+Bono!J59 -> 10871.01703 | AC59: 3 | AD59: 71621.21843
B60: 37 | C60: 3 | D60: 1 | E60: 47 | F60: 31164.25175 | H60: 295.7111318 | I60: 0 | J60: 0 | K60: -31.45996288 | L60: 31428.50292 | N60: 37 | O60: 3 | P60: 1 | Q60: 3 | R60: 29585.94965 | S60: =IF($G$17="si",S48*(1+$G$20),S48) -> 1735.793609 | U60: 297.2055361 | V60: =(V59*(1+$G$18)) -> -118.7714822 | X60: -31.61894879 | Y60: 31468.55836 | AA60: =+Bono!J60 -> 10938.4186 | AC60: 3.083333333 | AD60: 73835.47988
B61: 38 | C61: 3 | D61: 2 | E61: 47 | F61: 31428.50292 | H61: 298.2185564 | I61: 0 | J61: 0 | K61: -31.72672147 | L61: 31694.99475 | N61: 38 | O61: 3 | P61: 2 | Q61: 3 | R61: 31468.55836 | S61: =IF($G$4="mensual",S60,0) -> 1735.793609 | U61: 315.0692204 | V61: -118.7714822 | X61: -33.51942119 | Y61: 33367.13029 | AA61: =+Bono!J61 -> 11006.23807 | AC61: 3.166666667 | AD61: 76068.3631
B62: 39 | C62: 3 | D62: 3 | E62: 47 | F62: 31694.99475 | H62: 300.7472423 | I62: 0 | J62: =-SUM(F62:H62)*$J$21 -> -287.961678 | K62: -31.995742 | L62: 31675.78458 | N62: 39 | O62: 3 | P62: 3 | Q62: 3 | R62: 33367.13029 | S62: =IF($G$4="mensual",S61,0) -> 1735.793609 | U62: 333.0843762 | V62: -118.7714822 | X62: -35.43600827 | Y62: 35281.80078 | AA62: =+Bono!J62 -> 10974.70795 | AC62: 3.25 | AD62: 77932.2933
B63: 40 | C63: 3 | D63: 4 | E63: 47 | F63: 31675.78458 | H63: 300.5649609 | I63: 0 | J63: 0 | K63: -31.97634954 | L63: 31944.37319 | N63: 40 | O63: 3 | P63: 4 | Q63: 3 | R63: 35281.80078 | S63: =IF($G$4="mensual",S60,IF($G$4="trimestral",S60,0)) -> 1735.793609 | U63: 351.2522881 | V63: -118.7714822 | X63: -37.36884668 | Y63: 37212.70635 | AA63: =+Bono!J63 -> 11042.75241 | AC63: 3.333333333 | AD63: 80199.83194
B64: 41 | C64: 3 | D64: 5 | E64: 47 | F64: 31944.37319 | H64: 303.1135426 | I64: 0 | J64: 0 | K64: -32.24748673 | L64: 32215.23924 | N64: 41 | O64: 3 | P64: 5 | Q64: 3 | R64: 37212.70635 | S64: =IF($G$4="mensual",S63,0) -> 1735.793609 | U64: 369.5742512 | V64: -118.7714822 | X64: -39.31807421 | Y64: 39159.98465 | AA64: =+Bono!J64 -> 11111.21875 | AC64: 3.416666667 | AD64: 82486.44265
B65: 42 | C65: 3 | D65: 6 | E65: 47 | F65: 32215.23924 | H65: 305.6837345 | I65: 0 | J65: =-SUM(F65:H65)*$J$21 -> -292.6883068 | K65: -32.52092298 | L65: 32195.71375 | N65: 42 | O65: 3 | P65: 6 | Q65: 3 | R65: 39159.98465 | S65: =IF($G$4="mensual",S64,0) -> 1735.793609 | U65: 388.0515718 | V65: -118.7714822 | X65: -41.28382983 | Y65: 41123.77452 | AA65: =+Bono!J65 -> 11079.38789 | AC65: 3.5 | AD65: 84398.87616
B66: 43 | C66: 3 | D66: 7 | E66: 47 | F66: 32195.71375 | H66: 305.4984611 | I66: 0 | J66: 0 | K66: -32.50121221 | L66: 32468.711 | N66: 43 | O66: 3 | P66: 7 | Q66: 3 | R66: 41123.77452 | S66: =+IF($G$4="mensual",S60,IF($G$4="trimestral",S60,IF($G$4="semestral",S60,0))) -> 1735.793609 | U66: 406.6855673 | V66: -118.7714822 | X66: -43.2662537 | Y66: 43104.21596 | AA66: =+Bono!J66 -> 11148.08138 | AC66: 3.583333333 | AD66: 86721.00834
B67: 44 | C67: 3 | D67: 8 | E67: 47 | F67: 32468.711 | H67: 308.0888755 | I67: 0 | J67: 0 | K67: -32.77679987 | L67: 32744.02307 | N67: 44 | O67: 3 | P67: 8 | Q67: 3 | R67: 43104.21596 | S67: =IF($G$4="mensual",S66,0) -> 1735.793609 | U67: 425.477566 | V67: -118.7714822 | X67: -45.26548714 | Y67: 45101.45017 | AA67: =+Bono!J67 -> 11217.20078 | AC67: 3.666666667 | AD67: 89062.67402
B68: 45 | C68: 3 | D68: 9 | E68: 47 | F68: 32744.02307 | H68: 310.7012548 | I68: 0 | J68: =-SUM(F68:H68)*$J$21 -> -297.4925189 | K68: -33.05472433 | L68: 32724.17708 | N68: 45 | O68: 3 | P68: 9 | Q68: 3 | R68: 45101.45017 | S68: =IF($G$4="mensual",S67,0) -> 1735.793609 | U68: 444.4289078 | V68: -118.7714822 | X68: -47.28167269 | Y68: 47115.61953 | AA68: =+Bono!J68 -> 11185.0663 | AC68: 3.75 | AD68: 91024.86292
B69: 46 | C69: 3 | D69: 10 | E69: 47 | F69: 32724.17708 | H69: 310.5129403 | I69: 0 | J69: 0 | K69: -33.03469002 | L69: 33001.65533 | N69: 46 | O69: 3 | P69: 10 | Q69: 3 | R69: 47115.61953 | S69: =IF($G$4="mensual",S60,IF($G$4="trimestral",S60,0)) -> 1735.793609 | U69: 463.5409439 | V69: -118.7714822 | X69: -49.31495408 | Y69: 49146.86765 | AA69: =+Bono!J69 -> 11254.41501 | AC69: 3.833333333 | AD69: 93402.93799
B70: 47 | C70: 3 | D70: 11 | E70: 47 | F70: 33001.65533 | H70: 313.145874 | I70: 0 | J70: 0 | K70: -33.31480121 | L70: 33281.48641 | N70: 47 | O70: 3 | P70: 11 | Q70: 3 | R70: 49146.86765 | S70: =IF($G$17="si",S58*(1+$G$20),S58) -> 1735.793609 | U70: 482.8150366 | V70: -118.7714822 | X70: -51.36547629 | Y70: 51195.33934 | AA70: =+Bono!J70 -> 11324.19369 | AC70: 3.916666667 | AD70: 95801.01943
B71: 48 | C71: 3 | D71: 12 | E71: 47 | F71: 33281.48641 | H71: 315.8011331 | I71: 0 | J71: =-SUM(F71:H71)*$J$21 -> -302.3755879 | K71: -33.59728754 | L71: 33261.31466 | N71: 48 | O71: 3 | P71: 12 | Q71: 3 | R71: 51195.33934 | S71: =IF($G$4="mensual",S70,0) -> 1735.793609 | U71: 502.2525603 | V71: -118.7714822 | X71: -53.43338551 | Y71: 53261.18064 | AA71: =+Bono!J71 -> 11291.75271 | AC71: 4 | AD71: 97814.24801
B72: 49 | C72: 4 | D72: 1 | E72: 48 | F72: 33261.31466 | H72: 315.6097276 | I72: 0 | J72: 0 | K72: -33.57692439 | L72: 33543.34747 | N72: 49 | O72: 4 | P72: 1 | Q72: 4 | R72: 53261.18064 | S72: =IF($G$17="si",S60*(1+$G$20),S60) -> 1822.357984 | U72: 522.6762921 | V72: =(V71*(1+$G$18)) -> -124.6946398 | X72: -55.60621491 | Y72: 55425.91406 | AA72: =+Bono!J72 -> 11361.76288 | AC72: 4.083333333 | AD72: 100331.0244
B73: 50 | C73: 4 | D73: 2 | E73: 48 | F73: 33543.34747 | H73: 318.2858784 | I73: 0 | J73: 0 | K73: -33.86163335 | L73: 33827.77171 | N73: 50 | O73: 4 | P73: 2 | Q73: 4 | R73: 55425.91406 | S73: =IF($G$4="mensual",S72,0) -> 1822.357984 | U73: 543.2169993 | V73: -124.6946398 | X73: -57.79148904 | Y73: 57609.00291 | AA73: =+Bono!J73 -> 11432.20713 | AC73: 4.166666667 | AD73: 102868.9818
B74: 51 | C74: 4 | D74: 3 | E74: 48 | F74: 33827.77171 | H74: 320.9847212 | I74: 0 | J74: =-SUM(F74:H74)*$J$21 -> -307.3388079 | K74: -34.14875643 | L74: 33807.26887 | N74: 51 | O74: 4 | P74: 3 | Q74: 4 | R74: 57609.00291 | S74: =IF($G$4="mensual",S73,0) -> 1822.357984 | U74: 563.9318774 | V74: -124.6946398 | X74: -59.99529277 | Y74: 59810.60284 | AA74: =+Bono!J74 -> 11399.45672 | AC74: 4.25 | AD74: 105017.3284
B75: 52 | C75: 4 | D75: 4 | E75: 48 | F75: 33807.26887 | H75: 320.790174 | I75: 0 | J75: 0 | K75: -34.12805904 | L75: 34093.93098 | N75: 52 | O75: 4 | P75: 4 | Q75: 4 | R75: 59810.60284 | S75: =IF($G$4="mensual",S72,IF($G$4="trimestral",S72,0)) -> 1822.357984 | U75: 584.8224032 | V75: -124.6946398 | X75: -62.21778323 | Y75: 62030.87081 | AA75: =+Bono!J75 -> 11470.13467 | AC75: 4.333333333 | AD75: 107594.9365
B76: 53 | C76: 4 | D76: 5 | E76: 48 | F76: 34093.93098 | H76: 323.5102514 | I76: 0 | J76: 0 | K76: -34.41744124 | L76: 34383.02379 | N76: 53 | O76: 4 | P76: 5 | Q76: 4 | R76: 62030.87081 | S76: =IF($G$4="mensual",S75,0) -> 1822.357984 | U76: 605.8900662 | V76: -124.6946398 | X76: -64.45911886 | Y76: 64269.9651 | AA76: =+Bono!J76 -> 11541.25084 | AC76: 4.416666667 | AD76: 110194.2397
B77: 54 | C77: 4 | D77: 6 | E77: 48 | F77: 34383.02379 | H77: 326.2533932 | I77: 0 | J77: =-SUM(F77:H77)*$J$21 -> -312.3834947 | K77: -34.70927719 | L77: 34362.18442 | N77: 54 | O77: 4 | P77: 6 | Q77: 4 | R77: 64269.9651 | S77: =IF($G$4="mensual",S76,0) -> 1822.357984 | U77: 627.1363683 | V77: -124.6946398 | X77: -66.71945945 | Y77: 66528.04535 | AA77: =+Bono!J77 -> 11508.18804 | AC77: 4.5 | AD77: 112398.4178
B78: 55 | C78: 4 | D78: 7 | E78: 48 | F78: 34362.18442 | H78: 326.0556527 | I78: 0 | J78: 0 | K78: -34.68824007 | L78: 34653.55183 | N78: 55 | O78: 4 | P78: 7 | Q78: 4 | R78: 66528.04535 | S78: =+IF($G$4="mensual",S72,IF($G$4="trimestral",S72,IF($G$4="semestral",S72,0))) -> 1822.357984 | U78: 648.5628242 | V78: -124.6946398 | X78: -68.99896616 | Y78: 68805.27255 | AA78: =+Bono!J78 -> 11579.54014 | AC78: 4.583333333 | AD78: 115038.3645
B79: 56 | C79: 4 | D79: 8 | E79: 48 | F79: 34653.55183 | H79: 328.8203777 | I79: 0 | J79: 0 | K79: -34.98237221 | L79: 34947.38983 | N79: 56 | O79: 4 | P79: 8 | Q79: 4 | R79: 68805.27255 | S79: =IF($G$4="mensual",S78,0) -> 1822.357984 | U79: 670.1709616 | V79: -124.6946398 | X79: -71.2978015 | Y79: 71101.80906 | AA79: =+Bono!J79 -> 11651.33463 | AC79: 4.666666667 | AD79: 117700.5335
B80: 57 | C80: 4 | D80: 9 | E80: 48 | F80: 34947.38983 | H80: 331.6085457 | I80: 0 | J80: =-SUM(F80:H80)*$J$21 -> -317.5109854 | K80: -35.27899838 | L80: 34926.2084 | N80: 57 | O80: 4 | P80: 9 | Q80: 4 | R80: 71101.80906 | S80: =IF($G$4="mensual",S79,0) -> 1822.357984 | U80: 691.962321 | V80: -124.6946398 | X80: -73.61612936 | Y80: 73417.81859 | AA80: =+Bono!J80 -> 11617.95647 | AC80: 4.75 | AD80: 119961.9835
B81: 58 | C81: 4 | D81: 10 | E81: 48 | F81: 34926.2084 | H81: 331.4075595 | I81: 0 | J81: 0 | K81: -35.25761596 | L81: 35222.35834 | N81: 58 | O81: 4 | P81: 10 | Q81: 4 | R81: 73417.81859 | S81: =IF($G$4="mensual",S72,IF($G$4="trimestral",S72,0)) -> 1822.357984 | U81: 713.9384559 | V81: -124.6946398 | X81: -75.95411503 | Y81: 75753.46628 | AA81: =+Bono!J81 -> 11689.98915 | AC81: 4.833333333 | AD81: 122665.8138
B82: 59 | C82: 4 | D82: 11 | E82: 48 | F82: 35222.35834 | H82: 334.2176649 | I82: 0 | J82: 0 | K82: -35.556576 | L82: 35521.01943 | N82: 59 | O82: 4 | P82: 11 | Q82: 4 | R82: 75753.46628 | S82: =IF($G$17="si",S70*(1+$G$20),S70) -> 1822.357984 | U82: 736.1009331 | V82: -124.6946398 | X82: -78.31192519 | Y82: 78108.91863 | AA82: =+Bono!J82 -> 11762.46844 | AC82: 4.916666667 | AD82: 125392.4065
B83: 60 | C83: 4 | D83: 12 | E83: 48 | F83: 35521.01943 | H83: 337.0515982 | I83: 0 | J83: =-SUM(F83:H83)*$J$21 -> -322.7226392 | K83: -35.85807103 | L83: 35499.49032 | N83: 60 | O83: 4 | P83: 12 | Q83: 4 | R83: 78108.91863 | S83: =IF($G$4="mensual",S82,0) -> 1822.357984 | U83: 758.4513328 | V83: -124.6946398 | X83: -80.68972795 | Y83: 80484.34358 | AA83: =+Bono!J83 -> 11728.77191 | AC83: 5 | AD83: 127712.6058
B84: 61 | C84: 5 | D84: 1 | E84: 49 | F84: 35499.49032 | H84: 336.8473129 | I84: 0 | J84: 0 | K84: -35.83633763 | L84: 35800.50129 | N84: 61 | O84: 5 | P84: 1 | Q84: 5 | R84: 80484.34358 | S84: =IF($G$17="si",S72*(1+$G$20),S72) -> 1913.239341 | U84: 781.8536026 | V84: =(V83*(1+$G$18)) -> -130.9131864 | X84: -83.17943652 | Y84: 82965.3439 | AA84: =+Bono!J84 -> 11801.49165 | AC84: 5.083333333 | AD84: 130567.3368
B85: 62 | C85: 5 | D85: 2 | E85: 49 | F85: 35800.50129 | H85: 339.7035437 | I85: 0 | J85: 0 | K85: -36.14020483 | L85: 36104.06463 | N85: 62 | O85: 5 | P85: 2 | Q85: 5 | R85: 82965.3439 | S85: =IF($G$4="mensual",S84,0) -> 1913.239341 | U85: 805.3953009 | V85: -130.9131864 | X85: -85.68397854 | Y85: 85467.38138 | AA85: =+Bono!J85 -> 11874.66227 | AC85: 5.166666667 | AD85: 133446.1083
B86: 63 | C86: 5 | D86: 3 | E86: 49 | F86: 36104.06463 | H86: 342.5839934 | I86: 0 | J86: =-SUM(F86:H86)*$J$21 -> -328.0198376 | K86: -36.44664862 | L86: 36082.18214 | N86: 63 | O86: 5 | P86: 3 | Q86: 5 | R86: 85467.38138 | S86: =IF($G$4="mensual",S85,0) -> 1913.239341 | U86: 829.1366165 | V86: -130.9131864 | X86: -88.20975733 | Y86: 87990.63439 | AA86: =+Bono!J86 -> 11840.64433 | AC86: 5.25 | AD86: 135913.4609
B87: 64 | C87: 5 | D87: 4 | E87: 49 | F87: 36082.18214 | H87: 342.3763549 | I87: 0 | J87: 0 | K87: -36.42455849 | L87: 36388.13393 | N87: 64 | O87: 5 | P87: 4 | Q87: 5 | R87: 87990.63439 | S87: =IF($G$4="mensual",S84,IF($G$4="trimestral",S84,0)) -> 1913.239341 | U87: 853.0792418 | V87: -130.9131864 | X87: -90.75695297 | Y87: 90535.28283 | AA87: =+Bono!J87 -> 11914.0577 | AC87: 5.333333333 | AD87: 138837.4745
B88: 65 | C88: 5 | D88: 5 | E88: 49 | F88: 36388.13393 | H88: =SUM(F88:G88)*$G$8 -> 345.2794682 | I88: 0 | J88: 0 | K88: -36.7334134 | L88: =SUM(F88:K88) -> 36696.67999 | N88: 65 | O88: 5 | P88: 5 | Q88: 5 | R88: 90535.28283 | S88: =IF($G$4="mensual",S87,0) -> 1913.239341 | U88: 877.224884 | V88: -130.9131864 | X88: -93.32574706 | Y88: =SUM(R88:X88) -> 93101.50812 | AA88: =+Bono!J88 -> 11987.92624 | AC88: 5.416666667 | AD88: 141786.1144
B89: =+B88+1 -> 66 | C89: 5 | D89: 6 | E89: 49 | F89: =L88 -> 36696.67999 | H89: 348.2071978 | I89: 0 | J89: =-SUM(F89:H89)*$J$21 -> -333.4039847 | K89: =-SUM(F89:H89)*0.1% -> -37.04488719 | L89: 36674.43831 | N89: =+N88+1 -> 66 | O89: 5 | P89: 6 | Q89: 5 | R89: =Y88 -> 93101.50812 | S89: =IF($G$4="mensual",S88,0) -> 1913.239341 | U89: 901.5752644 | V89: -130.9131864 | X89: =-SUM(R89:U89)*0.1% -> -95.91632273 | Y89: 95689.49322 | AA89: =+Bono!J89 -> 11953.58383 | AC89: =+B89/12 -> 5.5 | AD89: =+AA89+Y89+L89 -> 144317.5154
B90: 67 | C90: 5 | D90: 7 | E90: 49 | F90: 36674.43831 | H90: 347.9961512 | I90: 0 | J90: 0 | K90: -37.02243447 | L90: 36985.41203 | N90: 67 | O90: 5 | P90: 7 | Q90: 5 | R90: 95689.49322 | S90: =+IF($G$4="mensual",S84,IF($G$4="trimestral",S84,IF($G$4="semestral",S84,0))) -> 1913.239341 | U90: 926.1321191 | V90: -130.9131864 | X90: -98.52886468 | Y90: 98299.42263 | AA90: =+Bono!J90 -> 12027.69744 | AC90: 5.583333333 | AD90: 147312.5321
B91: 68 | C91: 5 | D91: 8 | E91: 49 | F91: 36985.41203 | H91: 350.9469164 | I91: 0 | J91: 0 | K91: -37.33635895 | L91: 37299.02259 | N91: 68 | O91: 5 | P91: 8 | Q91: 5 | R91: 98299.42263 | S91: =IF($G$4="mensual",S90,0) -> 1913.239341 | U91: 950.8971989 | V91: -130.9131864 | X91: -101.1635592 | Y91: 100931.4824 | AA91: =+Bono!J91 -> 12102.27056 | AC91: 5.666666667 | AD91: 150332.7756
B92: 69 | C92: 5 | D92: 9 | E92: 49 | F92: 37299.02259 | H92: 353.922702 | I92: 0 | J92: =-SUM(F92:H92)*$J$21 -> -338.8765076 | K92: -37.65294529 | L92: 37276.41584 | N92: 69 | O92: 5 | P92: 9 | Q92: 5 | R92: 100931.4824 | S92: =IF($G$4="mensual",S91,0) -> 1913.239341 | U92: 975.8722692 | V92: -130.9131864 | X92: -103.820594 | Y92: 103585.8603 | AA92: =+Bono!J92 -> 12067.60058 | AC92: 5.75 | AD92: 152929.8767
B93: 70 | C93: 5 | D93: 10 | E93: 49 | F93: 37276.41584 | H93: 353.7081912 | I93: 0 | J93: 0 | K93: -37.63012403 | L93: 37592.4939 | N93: 70 | O93: 5 | P93: 10 | Q93: 5 | R93: 103585.8603 | S93: =IF($G$4="mensual",S84,IF($G$4="trimestral",S84,0)) -> 1913.239341 | U93: 1001.059111 | V93: -130.9131864 | X93: -106.5001587 | Y93: 106262.7454 | AA93: =+Bono!J93 -> 12142.4211 | AC93: 5.833333333 | AD93: 155997.6604
B94: 71 | C94: 5 | D94: 11 | E94: 49 | F94: 37592.4939 | H94: 356.7073906 | I94: 0 | J94: 0 | K94: -37.9492013 | L94: 37911.25209 | N94: 71 | O94: 5 | P94: 11 | Q94: 5 | R94: 106262.7454 | S94: =IF($G$17="si",S82*(1+$G$20),S82) -> 1913.239341 | U94: 1026.459519 | V94: -130.9131864 | X94: -109.2024442 | Y94: 108962.3286 | AA94: =+Bono!J94 -> 12217.70552 | AC94: 5.916666667 | AD94: 159091.2862
B95: 72 | C95: 5 | D95: 12 | E95: 49 | F95: 37911.25209 | H95: 359.732021 | I95: 0 | J95: =-SUM(F95:H95)*$J$21 -> -344.438857 | K95: -38.27098412 | L95: 37888.27427 | N95: 72 | O95: 5 | P95: 12 | Q95: 5 | R95: 108962.3286 | S95: =IF($G$4="mensual",S94,0) -> 1913.239341 | U95: 1052.075306 | V95: -130.9131864 | X95: -111.9276432 | Y95: 111684.8024 | AA95: =+Bono!J95 -> 12182.70485 | AC95: 6 | AD95: 161755.7815
B96: 73 | C96: 6 | D96: 1 | E96: 50 | F96: 37888.27427 | H96: 359.5139892 | I96: 0 | J96: 0 | K96: -38.24778826 | L96: 38209.54047 | N96: 73 | O96: 6 | P96: 1 | Q96: 6 | R96: 111684.8024 | S96: =IF($G$17="si",S84*(1+$G$20),S84) -> 2008.65297 | U96: 1078.813656 | V96: =(V95*(1+$G$18)) -> -137.4418532 | X96: -114.772269 | Y96: 114520.0549 | AA96: =+Bono!J96 -> 12258.23903 | AC96: 6.083333333 | AD96: 164987.8344
B97: 74 | C97: 6 | D97: 2 | E97: 50 | F97: 38209.54047 | H97: 362.5624177 | I97: 0 | J97: 0 | K97: -38.57210289 | L97: 38533.53079 | N97: 74 | O97: 6 | P97: 2 | Q97: 6 | R97: 114520.0549 | S97: =IF($G$4="mensual",S96,0) -> 2008.65297 | U97: 1105.71678 | V97: -137.4418532 | X97: -117.6344247 | Y97: 117379.3484 | AA97: =+Bono!J97 -> 12334.24154 | AC97: 6.166666667 | AD97: 168247.1207
B98: 75 | C98: 6 | D98: 3 | E98: 50 | F98: 38533.53079 | H98: 365.6366947 | I98: 0 | J98: =-SUM(F98:H98)*$J$21 -> -350.0925074 | K98: -38.89916748 | L98: 38510.17581 | N98: 75 | O98: 6 | P98: 3 | Q98: 6 | R98: 117379.3484 | S98: =IF($G$4="mensual",S97,0) -> 2008.65297 | U98: 1132.848024 | V98: -137.4418532 | X98: -120.5208494 | Y98: 120262.8867 | AA98: =+Bono!J98 -> 12298.90702 | AC98: 6.25 | AD98: 171071.9695
B99: 76 | C99: 6 | D99: 4 | E99: 50 | F99: 38510.17581 | H99: 365.4150841 | I99: 0 | J99: 0 | K99: -38.87559089 | L99: 38836.7153 | N99: 76 | O99: 6 | P99: 4 | Q99: 6 | R99: 120262.8867 | S99: =IF($G$4="mensual",S96,IF($G$4="trimestral",S96,0)) -> 2008.65297 | U99: 1160.209321 | V99: -137.4418532 | X99: -123.431749 | Y99: 123170.8754 | AA99: =+Bono!J99 -> 12375.16167 | AC99: 6.333333333 | AD99: 174382.7523
B100: 77 | C100: =C88+1 -> 6 | D100: =D88 -> 5 | E100: =E88+1 -> 50 | F100: 38836.7153 | H100: 368.5135498 | I100: 0 | J100: 0 | K100: -39.20522885 | L100: 39166.02362 | N100: 77 | O100: =O88+1 -> 6 | P100: =P88 -> 5 | Q100: =Q88+1 -> 6 | R100: 123170.8754 | S100: =IF($G$4="mensual",S99,0) -> 2008.65297 | U100: =SUM(R100:T100)*$G$8 -> 1187.802624 | V100: -137.4418532 | X100: -126.367331 | Y100: 126103.5218 | AA100: =+Bono!J100 -> 12451.88911 | AC100: 6.416666667 | AD100: 177721.4345
B101: 78 | C101: 6 | D101: 6 | E101: 50 | F101: 39166.02362 | H101: 371.6382882 | I101: 0 | J101: =-SUM(F101:H101)*$J$21 -> -355.8389572 | K101: -39.53766191 | L101: 39142.28529 | N101: 78 | O101: 6 | P101: 6 | Q101: 6 | R101: 126103.5218 | S101: =IF($G$4="mensual",S100,0) -> 2008.65297 | U101: 1215.629899 | V101: -137.4418532 | X101: -129.3278046 | Y101: 129061.035 | AA101: =+Bono!J101 -> 12416.21756 | AC101: 6.5 | AD101: 180619.5378
B102: 79 | C102: 6 | D102: 7 | E102: 50 | F102: 39142.28529 | H102: 371.4130401 | I102: 0 | J102: 0 | K102: -39.51369833 | L102: 39474.18463 | N102: 79 | O102: 6 | P102: 7 | Q102: 6 | R102: 129061.035 | S102: =+IF($G$4="mensual",S96,IF($G$4="trimestral",S96,IF($G$4="semestral",S96,0))) -> 2008.65297 | U102: 1243.693129 | V102: -137.4418532 | X102: -132.3133811 | Y102: 132043.6258 | AA102: =+Bono!J102 -> 12493.19955 | AC102: 6.583333333 | AD102: 184011.01
B103: 80 | C103: 6 | D103: 8 | E103: 50 | F103: 39474.18463 | H103: 374.5623643 | I103: 0 | J103: 0 | K103: -39.848747 | L103: 39808.89825 | N103: 80 | O103: 6 | P103: 8 | Q103: 6 | R103: 132043.6258 | S103: =IF($G$4="mensual",S102,0) -> 2008.65297 | U103: 1271.994316 | V103: -137.4418532 | X103: -135.3242731 | Y103: 135051.507 | AA103: =+Bono!J103 -> 12570.65883 | AC103: 6.666666667 | AD103: 187431.0641
B104: 81 | C104: 6 | D104: 9 | E104: 50 | F104: 39808.89825 | H104: 377.7383925 | I104: 0 | J104: =-SUM(F104:H104)*$J$21 -> -361.6797298 | K104: -40.18663664 | L104: 39784.77028 | N104: 81 | O104: 6 | P104: 9 | Q104: 6 | R104: 135051.507 | S104: =IF($G$4="mensual",S103,0) -> 2008.65297 | U104: 1300.535478 | V104: -137.4418532 | X104: -138.3606955 | Y104: 138084.8929 | AA104: =+Bono!J104 -> 12534.64704 | AC104: 6.75 | AD104: 190404.3102
B105: 82 | C105: 6 | D105: 10 | E105: 50 | F105: 39784.77028 | H105: 377.5094471 | I105: 0 | J105: 0 | K105: -40.16227972 | L105: 40122.11745 | N105: 82 | O105: 6 | P105: 10 | Q105: 6 | R105: 138084.8929 | S105: =IF($G$4="mensual",S96,IF($G$4="trimestral",S96,0)) -> 2008.65297 | U105: 1329.318648 | V105: -137.4418532 | X105: -141.4228645 | Y105: 141143.9998 | AA105: =+Bono!J105 -> 12612.36331 | AC105: 6.833333333 | AD105: 193878.4806
B106: 83 | C106: 6 | D106: 11 | E106: 50 | F106: 40122.11745 | H106: 380.7104645 | I106: 0 | J106: 0 | K106: -40.50282791 | L106: 40462.32508 | N106: 83 | O106: 6 | P106: 11 | Q106: 6 | R106: 141143.9998 | S106: =IF($G$17="si",S94*(1+$G$20),S94) -> 2008.65297 | U106: 1358.34588 | V106: -137.4418532 | X106: -144.5109987 | Y106: 144229.0458 | AA106: =+Bono!J106 -> 12690.56142 | AC106: 6.916666667 | AD106: 197381.9323
B107: 84 | C107: 6 | D107: 12 | E107: 50 | F107: 40462.32508 | H107: 383.9386244 | I107: 0 | J107: =-SUM(F107:H107)*$J$21 -> -367.6163734 | K107: -40.84626371 | L107: 40437.80107 | N107: 84 | O107: 6 | P107: 12 | Q107: 6 | R107: 144229.0458 | S107: =IF($G$4="mensual",S106,0) -> 2008.65297 | U107: 1387.619243 | V107: -137.4418532 | X107: -147.625318 | Y107: 147340.2508 | AA107: =+Bono!J107 -> 12654.20614 | AC107: 7 | AD107: 200432.258
B108: 85 | C108: 7 | D108: 1 | E108: 51 | F108: 40437.80107 | H108: 383.7059211 | I108: 0 | J108: 0 | K108: -40.82150699 | L108: 40780.68548 | N108: 85 | O108: 7 | P108: 1 | Q108: 7 | R108: 147340.2508 | S108: =IF($G$17="si",S96*(1+$G$20),S96) -> 2108.824895 | U108: 1418.091334 | V108: =(V107*(1+$G$18)) -> -144.2961059 | X108: -150.8671671 | Y108: 150572.0038 | AA108: =+Bono!J108 -> 12732.66368 | AC108: 7.083333333 | AD108: 204085.353
B109: 86 | C109: 7 | D109: 2 | E109: 51 | F109: 40780.68548 | H109: 386.9594803 | I109: 0 | J109: 0 | K109: -41.16764496 | L109: 41126.47732 | N109: 86 | O109: 7 | P109: 2 | Q109: 7 | R109: 150572.0038 | S109: =IF($G$4="mensual",S108,0) -> 2108.824895 | U109: 1448.756769 | V109: -144.2961059 | X109: -154.1295855 | Y109: 153831.1598 | AA109: =+Bono!J109 -> 12811.60767 | AC109: 7.166666667 | AD109: 207769.2448
B110: 87 | C110: 7 | D110: 3 | E110: 51 | F110: 41126.47732 | H110: 390.2406274 | I110: 0 | J110: =-SUM(F110:H110)*$J$21 -> -373.6504615 | K110: -41.51671795 | L110: 41101.55077 | N110: 87 | O110: 7 | P110: 3 | Q110: 7 | R110: 153831.1598 | S110: =IF($G$4="mensual",S109,0) -> 2108.824895 | U110: 1479.682225 | V110: -144.2961059 | X110: -157.4196669 | Y110: 157117.9511 | AA110: =+Bono!J110 -> 12774.90562 | AC110: 7.25 | AD110: 210994.4075
B111: 88 | C111: 7 | D111: 4 | E111: 51 | F111: 41101.55077 | H111: 390.0041045 | I111: 0 | J111: 0 | K111: -41.49155487 | L111: 41450.06332 | N111: 88 | O111: 7 | P111: 4 | Q111: 7 | R111: 157117.9511 | S111: =IF($G$4="mensual",S108,IF($G$4="trimestral",S108,0)) -> 2108.824895 | U111: 1510.869907 | V111: -144.2961059 | X111: -160.7376459 | Y111: 160432.6122 | AA111: =+Bono!J111 -> 12854.11152 | AC111: 7.333333333 | AD111: 214736.787
B112: 89 | C112: 7 | D112: 5 | E112: 51 | F112: 41450.06332 | H112: 393.3110679 | I112: 0 | J112: 0 | K112: -41.84337438 | L112: 41801.53101 | N112: 89 | O112: 7 | P112: 5 | Q112: 7 | R112: 160432.6122 | S112: =IF($G$4="mensual",S111,0) -> 2108.824895 | U112: 1542.32204 | V112: -144.2961059 | X112: -164.0837591 | Y112: 163775.3792 | AA112: =+Bono!J112 -> 12933.8085 | AC112: 7.416666667 | AD112: 218510.7187
B113: 90 | C113: 7 | D113: 6 | E113: 51 | F113: 41801.53101 | H113: 396.6460721 | I113: 0 | J113: =-SUM(F113:H113)*$J$21 -> -379.7835937 | K113: -42.19817708 | L113: 41776.19531 | N113: 90 | O113: 7 | P113: 6 | Q113: 7 | R113: 163775.3792 | S113: =IF($G$4="mensual",S112,0) -> 2108.824895 | U113: 1574.040864 | V113: =V112 -> -144.2961059 | X113: -167.458245 | Y113: 167146.4906 | AA113: =+Bono!J113 -> 12896.75637 | AC113: 7.5 | AD113: 221819.4423
B114: 91 | C114: 7 | D114: 7 | E114: 51 | F114: 41776.19531 | H114: 396.4056669 | I114: 0 | J114: 0 | K114: -42.17260098 | L114: 42130.42838 | N114: 91 | O114: 7 | P114: 7 | Q114: 7 | R114: 167146.4906 | S114: =+IF($G$4="mensual",S108,IF($G$4="trimestral",S108,IF($G$4="semestral",S108,0))) -> 2108.824895 | U114: 1606.028642 | V114: -144.2961059 | X114: -170.8613442 | Y114: 170546.1867 | AA114: =+Bono!J114 -> 12976.71776 | AC114: 7.583333333 | AD114: 225653.3329
B115: 92 | C115: 7 | D115: 8 | E115: 51 | F115: 42130.42838 | H115: 399.7669111 | I115: 0 | J115: 0 | K115: -42.53019529 | L115: 42487.66509 | N115: 92 | O115: 7 | P115: 8 | Q115: 7 | R115: 170546.1867 | S115: =IF($G$4="mensual",S114,0) -> 2108.824895 | U115: 1638.287654 | V115: -144.2961059 | X115: -174.2932993 | Y115: 173974.7099 | AA115: =+Bono!J115 -> 13057.17492 | AC115: 7.666666667 | AD115: 229519.5499
B116: 93 | C116: 7 | D116: 9 | E116: 51 | F116: 42487.66509 | H116: 403.1566563 | I116: 0 | J116: =-SUM(F116:H116)*$J$21 -> -386.0173957 | K116: -42.89082175 | L116: 42461.91353 | N116: 93 | O116: 7 | P116: 9 | Q116: 7 | R116: 173974.7099 | S116: =IF($G$4="mensual",S115,0) -> 2108.824895 | U116: 1670.820201 | V116: -144.2961059 | X116: -177.754355 | Y116: 177432.3045 | AA116: =+Bono!J116 -> 13019.76937 | AC116: 7.75 | AD116: 232913.9874
B117: 94 | C117: 7 | D117: 10 | E117: 51 | F117: 42461.91353 | H117: 402.9123051 | I117: 0 | J117: 0 | K117: -42.86482584 | L117: 42821.96101 | N117: 94 | O117: 7 | P117: 10 | Q117: 7 | R117: 177432.3045 | S117: =IF($G$4="mensual",S108,IF($G$4="trimestral",S108,0)) -> 2108.824895 | U117: 1703.6286 | V117: -144.2961059 | X117: -181.244758 | Y117: 180919.2171 | AA117: =+Bono!J117 -> 13100.49345 | AC117: 7.833333333 | AD117: 236841.6716
B118: 95 | C118: 7 | D118: 11 | E118: 51 | F118: 42821.96101 | H118: 406.3287211 | I118: 0 | J118: 0 | K118: -43.22828973 | L118: 43185.06144 | N118: 95 | O118: 7 | P118: 11 | Q118: 7 | R118: 180919.2171 | S118: =IF($G$17="si",S106*(1+$G$20),S106) -> 2108.824895 | U118: 1736.715192 | V118: -144.2961059 | X118: -184.7647572 | Y118: 184435.6964 | AA118: =+Bono!J118 -> 13181.71803 | AC118: 7.916666667 | AD118: 240802.4758
B119: 96 | C119: 7 | D119: 12 | E119: 51 | F119: 43185.06144 | H119: 409.7741059 | I119: 0 | J119: =-SUM(F119:H119)*$J$21 -> -392.3535199 | K119: -43.59483555 | L119: 43158.88719 | N119: 96 | O119: 7 | P119: 12 | Q119: 7 | R119: 184435.6964 | S119: =IF($G$4="mensual",S118,0) -> 2108.824895 | U119: 1770.082335 | V119: -144.2961059 | X119: -188.3146036 | Y119: 187981.9929 | AA119: =+Bono!J119 -> 13143.95571 | AC119: 8 | AD119: 244284.8358
B120: 97 | C120: 8 | D120: 1 | E120: 52 | F120: 43158.88719 | H120: 409.5257439 | I120: 0 | J120: 0 | K120: -43.56841294 | L120: 43524.84452 | N120: 97 | O120: 8 | P120: 1 | Q120: 8 | R120: 187981.9929 | S120: =IF($G$17="si",S108*(1+$G$20),S108) -> 2213.992414 | U120: 1804.730321 | V120: =(V119*(1+$G$18)) -> -151.4921816 | X120: -192.0007156 | Y120: 191657.2227 | AA120: =+Bono!J120 -> 13225.44976 | AC120: 8.083333333 | AD120: 248407.517
B121: 98 | C121: 8 | D121: 2 | E121: 52 | F121: 43524.84452 | H121: 412.9982372 | I121: 0 | J121: 0 | K121: -43.93784276 | L121: 43893.90492 | N121: 98 | O121: 8 | P121: 2 | Q121: 8 | R121: 191657.2227 | S121: =IF($G$4="mensual",S120,0) -> 2213.992414 | U121: 1839.603816 | V121: -151.4921816 | X121: -195.710819 | Y121: 195363.616 | AA121: =+Bono!J121 -> 13307.44908 | AC121: 8.166666667 | AD121: 252564.97
B122: 99 | C122: 8 | D122: 3 | E122: 52 | F122: 43893.90492 | H122: 416.5001749 | I122: 0 | J122: =-SUM(F122:H122)*$J$21 -> -398.7936458 | K122: -44.31040509 | L122: 43867.30104 | N122: 99 | O122: 8 | P122: 3 | Q122: 8 | R122: 195363.616 | S122: =IF($G$4="mensual",S121,0) -> 2213.992414 | U122: 1874.773014 | V122: -151.4921816 | X122: -199.4523814 | Y122: 199101.4368 | AA122: =+Bono!J122 -> 13269.32657 | AC122: 8.25 | AD122: 256238.0644
B123: 100 | C123: 8 | D123: 4 | E123: 52 | F123: 43867.30104 | H123: 416.2477362 | I123: 0 | J123: 0 | K123: -44.28354878 | L123: 44239.26523 | N123: 100 | O123: 8 | P123: 4 | Q123: 8 | R123: 199101.4368 | S123: =IF($G$4="mensual",S120,IF($G$4="trimestral",S120,0)) -> 2213.992414 | U123: 1910.240423 | V123: -151.4921816 | X123: -203.2256697 | Y123: 202870.9518 | AA123: =+Bono!J123 -> 13351.59793 | AC123: 8.333333333 | AD123: 260461.815
B124: 101 | C124: 8 | D124: 5 | E124: 52 | F124: 44239.26523 | H124: 419.7772273 | I124: 0 | J124: 0 | K124: -44.65904246 | L124: 44614.38341 | N124: 101 | O124: 8 | P124: 5 | Q124: 8 | R124: 202870.9518 | S124: =IF($G$4="mensual",S123,0) -> 2213.992414 | U124: 1946.00857 | V124: -151.4921816 | X124: -207.0309528 | Y124: 206672.4297 | AA124: =+Bono!J124 -> 13434.37939 | AC124: 8.416666667 | AD124: 264721.1925
B125: 102 | C125: 8 | D125: 6 | E125: 52 | F125: 44614.38341 | H125: 423.3366461 | I125: 0 | J125: =-SUM(F125:H125)*$J$21 -> -405.3394805 | K125: -45.03772006 | L125: 44587.34286 | N125: 102 | O125: 8 | P125: 6 | Q125: 8 | R125: 206672.4297 | S125: =IF($G$4="mensual",S124,0) -> 2213.992414 | U125: 1982.080006 | V125: -151.4921816 | X125: -210.8685021 | Y125: 210506.1414 | AA125: =+Bono!J125 -> 13395.89325 | AC125: 8.5 | AD125: 268489.3775
B126: 103 | C126: 8 | D126: 7 | E126: 52 | F126: 44587.34286 | H126: 423.0800639 | I126: 0 | J126: 0 | K126: -45.01042292 | L126: 44965.4125 | N126: 103 | O126: 8 | P126: 7 | Q126: 8 | R126: 210506.1414 | S126: =+IF($G$4="mensual",S120,IF($G$4="trimestral",S120,IF($G$4="semestral",S120,0))) -> 2213.992414 | U126: 2018.457303 | V126: -151.4921816 | X126: -214.7385911 | Y126: 214372.3603 | AA126: =+Bono!J126 -> 13478.94934 | AC126: 8.583333333 | AD126: 272816.7222
B127: 104 | C127: 8 | D127: 8 | E127: 52 | F127: 44965.4125 | H127: 426.6674884 | I127: 0 | J127: 0 | K127: -45.39207999 | L127: 45346.68791 | N127: 104 | O127: 8 | P127: 8 | Q127: 8 | R127: 214372.3603 | S127: =IF($G$4="mensual",S126,0) -> 2213.992414 | U127: 2055.143054 | V127: -151.4921816 | X127: -218.6414958 | Y127: 218271.3621 | AA127: =+Bono!J127 -> 13562.52039 | AC127: 8.666666667 | AD127: 277180.5704
B128: 105 | C128: 8 | D128: 9 | E128: 52 | F128: 45346.68791 | H128: 430.2853318 | I128: 0 | J128: =-SUM(F128:H128)*$J$21 -> -411.9927592 | K128: -45.77697324 | L128: 45319.20351 | N128: 105 | O128: 8 | P128: 9 | Q128: 8 | R128: 218271.3621 | S128: =IF($G$4="mensual",S127,0) -> 2213.992414 | U128: 2092.139874 | V128: -151.4921816 | X128: -222.5774944 | Y128: 222203.4247 | AA128: =+Bono!J128 -> 13523.66716 | AC128: 8.75 | AD128: 281046.2954
B129: 106 | C129: 8 | D129: 10 | E129: 52 | F129: 45319.20351 | H129: 430.0245381 | I129: 0 | J129: 0 | K129: -45.74922805 | L129: 45703.47882 | N129: 106 | O129: 8 | P129: 10 | Q129: 8 | R129: 222203.4247 | S129: =IF($G$4="mensual",S120,IF($G$4="trimestral",S120,0)) -> 2213.992414 | U129: 2129.450402 | V129: -151.4921816 | X129: -226.5468676 | Y129: 226168.8285 | AA129: =+Bono!J129 -> 13607.51547 | AC129: 8.833333333 | AD129: 285479.8228
B130: 107 | C130: 8 | D130: 11 | E130: 52 | F130: 45703.47882 | H130: 433.6708469 | I130: 0 | J130: 0 | K130: -46.13714967 | L130: 46091.01252 | N130: 107 | O130: 8 | P130: 11 | Q130: 8 | R130: 226168.8285 | S130: =IF($G$17="si",S118*(1+$G$20),S118) -> 2213.992414 | U130: 2167.077298 | V130: -151.4921816 | X130: -230.5498982 | Y130: 230167.8561 | AA130: =+Bono!J130 -> 13691.88364 | AC130: 8.916666667 | AD130: 289950.7523
B131: 108 | C131: 8 | D131: 12 | E131: 52 | F131: 46091.01252 | H131: 437.3480739 | I131: 0 | J131: =-SUM(F131:H131)*$J$21 -> -418.7552453 | K131: -46.52836059 | L131: 46063.07698 | N131: 108 | O131: 8 | P131: 12 | Q131: 8 | R131: 230167.8561 | S131: =IF($G$4="mensual",S130,0) -> 2213.992414 | U131: 2205.023243 | V131: -151.4921816 | X131: -234.5868718 | Y131: 234200.7927 | AA131: =+Bono!J131 -> 13652.65982 | AC131: 9 | AD131: 293916.5295
B132: 109 | C132: 9 | D132: 1 | E132: 53 | F132: 46063.07698 | H132: 437.0829994 | I132: 0 | J132: 0 | K132: -46.50015998 | L132: 46453.65982 | N132: 109 | O132: 9 | P132: 1 | Q132: 9 | R132: 234200.7927 | S132: =IF($G$17="si",S120*(1+$G$20),S120) -> 2324.404659 | U132: 2244.338622 | V132: =(V131*(1+$G$18)) -> -159.047127 | X132: -238.769536 | Y132: 238371.7194 | AA132: =+Bono!J132 -> 13737.30789 | AC132: 9.083333333 | AD132: 298562.6871
B133: 110 | C133: 9 | D133: 2 | E133: 53 | F133: 46453.65982 | H133: 440.7891591 | I133: 0 | J133: 0 | K133: -46.89444898 | L133: 46847.55453 | N133: 110 | O133: 9 | P133: 2 | Q133: 9 | R133: 238371.7194 | S133: =IF($G$4="mensual",S132,0) -> 2324.404659 | U133: 2283.915681 | V133: -159.047127 | X133: -242.9800397 | Y133: 242578.0125 | AA133: =+Bono!J133 -> 13822.4808 | AC133: 9.166666667 | AD133: 303248.0479
B134: 111 | C134: 9 | D134: 3 | E134: 53 | F134: 46847.55453 | H134: 444.5267445 | I134: 0 | J134: =-SUM(F134:H134)*$J$21 -> -425.6287315 | K134: -47.29208128 | L134: 46819.16047 | N134: 111 | O134: 9 | P134: 3 | Q134: 9 | R134: 242578.0125 | S134: =IF($G$4="mensual",S133,0) -> 2324.404659 | U134: 2323.828326 | V134: -159.047127 | X134: -247.2262455 | Y134: 246819.9721 | AA134: =+Bono!J134 -> 13782.88284 | AC134: 9.25 | AD134: 307422.0155
B135: 112 | C135: 9 | D135: 4 | E135: 53 | F135: 46819.16047 | H135: 444.257319 | I135: 0 | J135: 0 | K135: -47.26341778 | L135: 47216.15437 | N135: 112 | O135: 9 | P135: 4 | Q135: 9 | R135: 246819.9721 | S135: =IF($G$4="mensual",S132,IF($G$4="trimestral",S132,0)) -> 2324.404659 | U135: 2364.079402 | V135: -159.047127 | X135: -251.5084562 | Y135: 251097.9006 | AA135: =+Bono!J135 -> 13868.33832 | AC135: 9.333333333 | AD135: 312182.3933
B136: 113 | C136: 9 | D136: 5 | E136: 53 | F136: 47216.15437 | H136: 448.0243119 | I136: 0 | J136: 0 | K136: -47.66417868 | L136: 47616.5145 | N136: 113 | O136: 9 | P136: 5 | Q136: 9 | R136: 251097.9006 | S136: =IF($G$4="mensual",S135,0) -> 2324.404659 | U136: 2404.67178 | V136: -159.047127 | X136: -255.8269771 | Y136: 255412.103 | AA136: =+Bono!J136 -> 13954.32362 | AC136: 9.416666667 | AD136: 316982.9411
B137: 114 | C137: 9 | D137: 6 | E137: 53 | F137: 47616.5145 | H137: 451.8232464 | I137: 0 | J137: =-SUM(F137:H137)*$J$21 -> -432.6150397 | K137: -48.06833775 | L137: 47587.65437 | N137: 114 | O137: 9 | P137: 6 | Q137: 9 | R137: 255412.103 | S137: =IF($G$4="mensual",S136,0) -> 2324.404659 | U137: 2445.608352 | V137: -159.047127 | X137: -260.182116 | Y137: 259762.8867 | AA137: =+Bono!J137 -> 13914.34798 | AC137: 9.5 | AD137: 321264.8891
B138: 115 | C138: 9 | D138: 7 | E138: 53 | F138: 47587.65437 | H138: 451.5493985 | I138: 0 | J138: 0 | K138: -48.03920377 | L138: 47991.16456 | N138: 115 | O138: 9 | P138: 7 | Q138: 9 | R138: 259762.8867 | S138: =+IF($G$4="mensual",S132,IF($G$4="trimestral",S132,IF($G$4="semestral",S132,0))) -> 2324.404659 | U138: 2486.892039 | V138: -159.047127 | X138: -264.5741834 | Y138: 264150.5621 | AA138: =+Bono!J138 -> 14000.61855 | AC138: 9.583333333 | AD138: 326142.3452
B139: 116 | C139: 9 | D139: 8 | E139: 53 | F139: 47991.16456 | H139: 455.3782232 | I139: 0 | J139: 0 | K139: -48.44654279 | L139: 48398.09624 | N139: 116 | O139: 9 | P139: 8 | Q139: 9 | R139: 264150.5621 | S139: =IF($G$4="mensual",S138,0) -> 2324.404659 | U139: 2528.525782 | V139: -159.047127 | X139: -269.0034925 | Y139: 268575.4419 | AA139: =+Bono!J139 -> 14087.42401 | AC139: 9.666666667 | AD139: 331060.9622
B140: 117 | C140: 9 | D140: 9 | E140: 53 | F140: 48398.09624 | H140: 459.2395137 | I140: 0 | J140: =-SUM(F140:H140)*$J$21 -> -439.7160218 | K140: -48.85733576 | L140: 48368.7624 | N140: 117 | O140: 9 | P140: 9 | Q140: 9 | R140: 268575.4419 | S140: =IF($G$4="mensual",S139,0) -> 2324.404659 | U140: 2570.51255 | V140: -159.047127 | X140: -273.4703591 | Y140: 273037.8417 | AA140: =+Bono!J140 -> 14047.06706 | AC140: 9.75 | AD140: 335453.6711
B141: 118 | C141: 9 | D141: 10 | E141: 53 | F141: 48368.7624 | H141: 458.9611709 | I141: 0 | J141: 0 | K141: -48.82772357 | L141: 48778.89585 | N141: 118 | O141: 9 | P141: 10 | Q141: 9 | R141: 273037.8417 | S141: =IF($G$4="mensual",S132,IF($G$4="trimestral",S132,0)) -> 2324.404659 | U141: 2612.855337 | V141: -159.047127 | X141: -277.9751016 | Y141: 277538.0794 | AA141: =+Bono!J141 -> 14134.1605 | AC141: 9.833333333 | AD141: 340451.1358
B142: 119 | C142: 9 | D142: 11 | E142: 53 | F142: 48778.89585 | H142: 462.8528423 | I142: 0 | J142: 0 | K142: -49.24174869 | L142: 49192.50694 | N142: 119 | O142: 9 | P142: 11 | Q142: 9 | R142: 277538.0794 | S142: =IF($G$17="si",S130*(1+$G$20),S130) -> 2324.404659 | U142: 2655.557162 | V142: -159.047127 | X142: -282.5180412 | Y142: 282076.4761 | AA142: =+Bono!J142 -> 14221.79394 | AC142: 9.916666667 | AD142: 345490.777
B143: 120 | C143: 9 | D143: 12 | E143: 53 | F143: 49192.50694 | H143: 466.7775123 | I143: 0 | J143: =-SUM(F143:H143)*$J$21 -> -446.9335601 | K143: -49.65928445 | L143: 49162.69161 | N143: 120 | O143: 9 | P143: 12 | Q143: 9 | R143: 282076.4761 | S143: =IF($G$4="mensual",S142,0) -> 2324.404659 | U143: 2698.621068 | V143: -159.047127 | X143: -287.0995018 | Y143: 286653.3552 | AA143: =+Bono!J143 -> 14181.05206 | AC143: 10 | AD143: 349997.0988
B144: 121 | C144: 10 | D144: 1 | E144: 54 | F144: 49162.69161 | H144: 466.4946008 | I144: 0 | J144: 0 | K144: -49.62918621 | L144: 49579.55702 | N144: 121 | O144: 10 | P144: 1 | Q144: 10 | R144: 286653.3552 | S144: =IF($G$17="si",S132*(1+$G$20),S132) -> 2440.323184 | U144: 2743.150053 | V144: =(V143*(1+$G$18)) -> -166.978839 | X144: -291.8368284 | Y144: 291378.0127 | AA144: =+Bono!J144 -> 14268.97622 | AC144: 10.08333333 | AD144: 355226.546
B145: 122 | C145: 10 | D145: 2 | E145: 54 | F145: 49579.55702 | H145: 470.4501504 | I145: 0 | J145: 0 | K145: -50.05000717 | L145: 49999.95717 | N145: 122 | O145: 10 | P145: 2 | Q145: 10 | R145: 291378.0127 | S145: =IF($G$4="mensual",S144,0) -> 2440.323184 | U145: 2787.98135 | V145: -166.978839 | X145: -296.6063173 | Y145: 296142.7321 | AA145: =+Bono!J145 -> 14357.44553 | AC145: 10.16666667 | AD145: 360500.1348
B146: 123 | C146: 10 | D146: 3 | E146: 54 | F146: 49999.95717 | H146: 474.4392403 | I146: 0 | J146: =-SUM(F146:H146)*$J$21 -> -454.2695677 | K146: -50.47439641 | L146: 49969.65244 | N146: 123 | O146: 10 | P146: 3 | Q146: 10 | R146: 296142.7321 | S146: =IF($G$4="mensual",S145,0) -> 2440.323184 | U146: 2833.192786 | V146: -166.978839 | X146: -301.4162481 | Y146: 300947.853 | AA146: =+Bono!J146 -> 14316.31504 | AC146: 10.25 | AD146: 365233.8205
B147: 124 | C147: 10 | D147: 4 | E147: 54 | F147: 49969.65244 | H147: 474.151685 | I147: 0 | J147: 0 | K147: -50.44380413 | L147: 50393.36032 | N147: 124 | O147: 10 | P147: 4 | Q147: 10 | R147: 300947.853 | S147: =IF($G$4="mensual",S144,IF($G$4="trimestral",S144,0)) -> 2440.323184 | U147: 2878.787583 | V147: -166.978839 | X147: -306.2669638 | Y147: 305793.718 | AA147: =+Bono!J147 -> 14405.07785 | AC147: 10.33333333 | AD147: 370592.1561
B148: 125 | C148: 10 | D148: 5 | E148: 54 | F148: 50393.36032 | H148: 478.1721614 | I148: 0 | J148: 0 | K148: -50.87153248 | L148: 50820.66095 | N148: 125 | O148: 10 | P148: 5 | Q148: 10 | R148: 305793.718 | S148: =IF($G$4="mensual",S147,0) -> 2440.323184 | U148: 2924.768992 | V148: -166.978839 | X148: -311.1588101 | Y148: 310680.6725 | AA148: =+Bono!J148 -> 14494.39101 | AC148: 10.41666667 | AD148: 375995.7244
B149: 126 | C149: 10 | D149: 6 | E149: 54 | F149: 50820.66095 | H149: 482.2267286 | I149: 0 | J149: =-SUM(F149:H149)*$J$21 -> -461.7259891 | K149: -51.30288768 | L149: 50789.8588 | N149: 126 | O149: 10 | P149: 6 | Q149: 10 | R149: 310680.6725 | S149: =IF($G$4="mensual",S148,0) -> 2440.323184 | U149: 2971.140291 | V149: -166.978839 | X149: -316.092136 | Y149: 315609.065 | AA149: =+Bono!J149 -> 14452.8682 | AC149: 10.5 | AD149: 380851.792
B150: 127 | C150: 10 | D150: 7 | E150: 54 | F150: 50789.8588 | H150: 481.9344534 | I150: 0 | J150: 0 | K150: -51.27179326 | L150: 51220.52146 | N150: 127 | O150: 10 | P150: 7 | Q150: 10 | R150: 315609.065 | S150: =+IF($G$4="mensual",S144,IF($G$4="trimestral",S144,IF($G$4="semestral",S144,0))) -> 2440.323184 | U150: 3017.904787 | V150: -166.978839 | X150: -321.067293 | Y150: 320579.2468 | AA150: =+Bono!J150 -> 14542.47766 | AC150: 10.58333333 | AD150: 386342.246
B151: 128 | C151: 10 | D151: 8 | E151: 54 | F151: 51220.52146 | H151: 486.0209222 | I151: 0 | J151: 0 | K151: -51.70654239 | L151: 51654.83584 | N151: 128 | O151: 10 | P151: 8 | Q151: 10 | R151: 320579.2468 | S151: =IF($G$4="mensual",S150,0) -> 2440.323184 | U151: 3065.065814 | V151: -166.978839 | X151: -326.0846358 | Y151: 325591.5723 | AA151: =+Bono!J151 -> 14632.64271 | AC151: 10.66666667 | AD151: 391879.0509
B152: 129 | C152: 10 | D152: 9 | E152: 54 | F152: 51654.83584 | H152: =SUM(F152:G152)*$G$8 -> 490.1420414 | I152: 0 | J152: =-SUM(F152:H152)*$J$21 -> -469.304801 | K152: -52.14497789 | L152: =SUM(F152:K152) -> 51623.52811 | N152: 129 | O152: 10 | P152: 9 | Q152: 10 | R152: 325591.5723 | S152: =IF($G$4="mensual",S151,0) -> 2440.323184 | U152: 3112.626733 | V152: -166.978839 | X152: -331.1445223 | Y152: =SUM(R152:X152) -> 330646.3989 | AA152: =+Bono!J152 -> 14590.72385 | AC152: 10.75 | AD152: 396860.6509
B153: =+B152+1 -> 130 | C153: 10 | D153: 10 | E153: 54 | F153: =L152 -> 51623.52811 | H153: 489.8449688 | I153: 0 | J153: 0 | K153: =-SUM(F153:H153)*0.1% -> -52.11337308 | L153: 52061.2597 | N153: =+N152+1 -> 130 | O153: 10 | P153: 10 | Q153: 10 | R153: =Y152 -> 330646.3989 | S153: =IF($G$4="mensual",S144,IF($G$4="trimestral",S144,0)) -> 2440.323184 | U153: 3160.590935 | V153: -166.978839 | X153: =-SUM(R153:U153)*0.1% -> -336.247313 | Y153: 335744.0869 | AA153: =+Bono!J153 -> 14681.18803 | AC153: =+B153/12 -> 10.83333333 | AD153: =+AA153+Y153+L153 -> 402486.5346
B154: 131 | C154: 10 | D154: 11 | E154: 54 | F154: 52061.2597 | H154: 493.9985132 | I154: 0 | J154: 0 | K154: -52.55525822 | L154: 52502.70296 | N154: 131 | O154: 10 | P154: 11 | Q154: 10 | R154: 335744.0869 | S154: =IF($G$17="si",S142*(1+$G$20),S142) -> 2440.323184 | U154: 3208.961841 | V154: -166.978839 | X154: -341.3933719 | Y154: 340884.9997 | AA154: =+Bono!J154 -> 14772.2131 | AC154: 10.91666667 | AD154: 408159.9157
B155: 132 | C155: 10 | D155: 12 | E155: 54 | F155: 52502.70296 | H155: 498.1872769 | I155: 0 | J155: =-SUM(F155:H155)*$J$21 -> -477.0080121 | K155: -53.00089023 | L155: 52470.88133 | N155: 132 | O155: 10 | P155: 12 | Q155: 10 | R155: 340884.9997 | S155: =IF($G$4="mensual",S154,0) -> 2440.323184 | U155: 3257.742898 | V155: -166.978839 | X155: -346.5830658 | Y155: 346069.5039 | AA155: =+Bono!J155 -> 14729.8944 | AC155: 11 | AD155: 413270.2796
B156: 133 | C156: 11 | D156: 1 | E156: 55 | F156: 52470.88133 | H156: 497.8853281 | I156: 0 | J156: 0 | K156: -52.96876666 | L156: 52915.79789 | N156: 133 | O156: 11 | P156: 1 | Q156: 11 | R156: 346069.5039 | S156: =IF($G$17="si",S144*(1+$G$20),S144) -> 2562.022589 | U156: 3308.092365 | V156: =(V155*(1+$G$18)) -> -175.3061071 | X156: -351.9396188 | Y156: 351412.3731 | AA156: =+Bono!J156 -> 14821.22145 | AC156: 11.08333333 | AD156: 419149.3924
B157: 134 | C157: 11 | D157: 2 | E157: 55 | F157: 52915.79789 | H157: 502.1070492 | I157: 0 | J157: 0 | K157: -53.41790494 | L157: 53364.48704 | N157: 134 | O157: 11 | P157: 2 | Q157: 11 | R157: 351412.3731 | S157: =IF($G$4="mensual",S156,0) -> 2562.022589 | U157: 3358.789745 | V157: -175.3061071 | X157: -357.3331854 | Y157: 356800.5461 | AA157: =+Bono!J157 -> 14913.11475 | AC157: 11.16666667 | AD157: 425078.1479
B158: 135 | C158: 11 | D158: 3 | E158: 55 | F158: 53364.48704 | H158: 506.3645676 | I158: 0 | J158: =-SUM(F158:H158)*$J$21 -> -484.8376644 | K158: -53.8708516 | L158: 53332.14309 | N158: 135 | O158: 11 | P158: 3 | Q158: 11 | R158: 356800.5461 | S158: =IF($G$4="mensual",S157,0) -> 2562.022589 | U158: 3409.917003 | V158: -175.3061071 | X158: -362.7724857 | Y158: 362234.4071 | AA158: =+Bono!J158 -> 14870.3924 | AC158: 11.25 | AD158: 430436.9426
B159: 136 | C159: 11 | D159: 4 | E159: 55 | F159: 53332.14309 | H159: 506.0576625 | I159: 0 | J159: 0 | K159: -53.83820075 | L159: 53784.36255 | N159: 136 | O159: 11 | P159: 4 | Q159: 11 | R159: 362234.4071 | S159: =IF($G$4="mensual",S156,IF($G$4="trimestral",S156,0)) -> 2562.022589 | U159: 3461.477785 | V159: -175.3061071 | X159: -368.2579075 | Y159: 367714.3435 | AA159: =+Bono!J159 -> 14962.59056 | AC159: 11.33333333 | AD159: 436461.2966
B160: 137 | C160: 11 | D160: 5 | E160: 55 | F160: 53784.36255 | H160: 510.3486794 | I160: 0 | J160: 0 | K160: -54.29471123 | L160: 54240.41652 | N160: 137 | O160: 11 | P160: 5 | Q160: 11 | R160: 367714.3435 | S160: =IF($G$4="mensual",S159,0) -> 2562.022589 | U160: 3513.475766 | V160: -175.3061071 | X160: -373.7898418 | Y160: 373240.7459 | AA160: =+Bono!J160 -> 15055.36036 | AC160: 11.41666667 | AD160: 442536.5228
B161: 138 | C161: 11 | D161: 6 | E161: 55 | F161: 54240.41652 | H161: 514.676081 | I161: 0 | J161: =-SUM(F161:H161)*$J$21 -> -492.7958334 | K161: -54.7550926 | L161: 54207.54167 | N161: 138 | O161: 11 | P161: 6 | Q161: 11 | R161: 373240.7459 | S161: =IF($G$4="mensual",S160,0) -> 2562.022589 | U161: 3565.914654 | V161: -175.3061071 | X161: -379.3686831 | Y161: 378814.0083 | AA161: =+Bono!J161 -> 15012.23052 | AC161: 11.5 | AD161: 448033.7805
B162: 139 | C162: 11 | D162: 7 | E162: 55 | F162: 54207.54167 | H162: 514.3641384 | I162: 0 | J162: 0 | K162: -54.72190581 | L162: 54667.18391 | N162: 139 | O162: 11 | P162: 7 | Q162: 11 | R162: 378814.0083 | S162: =+IF($G$4="mensual",S156,IF($G$4="trimestral",S156,IF($G$4="semestral",S156,0))) -> 2562.022589 | U162: 3618.798188 | V162: -175.3061071 | X162: -384.9948291 | Y162: 384434.5282 | AA162: =+Bono!J162 -> 15105.30809 | AC162: 11.58333333 | AD162: 454207.0202
B163: 140 | C163: 11 | D163: 8 | E163: 55 | F163: 54667.18391 | H163: 518.7255884 | I163: 0 | J163: 0 | K163: -55.18590949 | L163: 55130.72359 | N163: 140 | O163: 11 | P163: 8 | Q163: 11 | R163: 384434.5282 | S163: =IF($G$4="mensual",S162,0) -> 2562.022589 | U163: 3672.130137 | V163: -175.3061071 | X163: -390.6686809 | Y163: 390102.7061 | AA163: =+Bono!J163 -> 15198.96275 | AC163: 11.66666667 | AD163: 460432.3925
B164: 141 | C164: =C152+1 -> 11 | D164: =D152 -> 9 | E164: =E152+1 -> 55 | F164: 55130.72359 | H164: 523.1240204 | I164: 0 | J164: =-SUM(F164:H164)*$J$21 -> -500.8846285 | K164: -55.65384761 | L164: 55097.30913 | N164: 141 | O164: =O152+1 -> 11 | P164: =P152 -> 9 | Q164: =Q152+1 -> 11 | R164: 390102.7061 | S164: =IF($G$4="mensual",S163,0) -> 2562.022589 | U164: =SUM(R164:T164)*$G$8 -> 3725.914304 | V164: -175.3061071 | X164: -396.390643 | Y164: 395818.9463 | AA164: =+Bono!J164 -> 15155.42152 | AC164: 11.75 | AD164: 466071.6769
B165: 142 | C165: 11 | D165: 10 | E165: 55 | F165: 55097.30913 | H165: 522.8069576 | I165: 0 | J165: 0 | K165: -55.62011609 | L165: 55564.49597 | N165: 142 | O165: 11 | P165: 10 | Q165: 11 | R165: 395818.9463 | S165: =IF($G$4="mensual",S156,IF($G$4="trimestral",S156,0)) -> 2562.022589 | U165: 3780.154523 | V165: -175.3061071 | X165: -402.1611234 | Y165: 401583.6562 | AA165: =+Bono!J165 -> 15249.38689 | AC165: 11.83333333 | AD165: 472397.539
B166: 143 | C166: 11 | D166: 11 | E166: 55 | F166: 55564.49597 | H166: 527.2399968 | I166: 0 | J166: 0 | K166: -56.09173597 | L166: 56035.64423 | N166: 143 | O166: 11 | P166: 11 | Q166: 11 | R166: 401583.6562 | S166: =IF($G$17="si",S154*(1+$G$20),S154) -> 2562.022589 | U166: 3834.854661 | V166: -175.3061071 | X166: -407.9805334 | Y166: 407397.2468 | AA166: =+Bono!J166 -> 15343.93486 | AC166: 11.91666667 | AD166: 478776.8259
B167: 144 | C167: 11 | D167: 12 | E167: 55 | F167: 56035.64423 | H167: 531.7106251 | I167: 0 | J167: =-SUM(F167:H167)*$J$21 -> -509.1061937 | K167: -56.56735486 | L167: 56001.68131 | N167: 144 | O167: 11 | P167: 12 | Q167: 11 | R167: 407397.2468 | S167: =IF($G$4="mensual",S166,0) -> 2562.022589 | U167: 3890.018618 | V167: -175.3061071 | X167: -413.849288 | Y167: 413260.1326 | AA167: =+Bono!J167 -> 15299.97832 | AC167: 12 | AD167: 484561.7922
B168: 145 | C168: 12 | D168: 1 | E168: 56 | F168: 56001.68131 | H168: 531.3883579 | I168: 0 | J168: 0 | K168: -56.53306967 | L168: 56476.5366 | N168: 145 | O168: 12 | P168: 1 | Q168: 12 | R168: 413260.1326 | S168: =IF($G$17="si",S156*(1+$G$20),S156) -> 2689.791168 | U168: 3946.862698 | V168: =(V167*(1+$G$18)) -> -184.0486577 | X168: -419.8967864 | Y168: 419292.841 | AA168: =+Bono!J168 -> 15394.83996 | AC168: 12.08333333 | AD168: 491164.2176
B169: 146 | C169: 12 | D169: 2 | E169: 56 | F169: 56476.5366 | H169: 535.8941614 | I169: 0 | J169: 0 | K169: -57.01243076 | L169: 56955.41833 | N169: 146 | O169: 12 | P169: 2 | Q169: 12 | R169: 419292.841 | S169: =IF($G$4="mensual",S168,0) -> 2689.791168 | U169: 4004.105819 | V169: -184.0486577 | X169: -425.986738 | Y169: 425376.7026 | AA169: =+Bono!J169 -> 15490.28976 | AC169: 12.16666667 | AD169: 497822.4107
B170: 147 | C170: 12 | D170: 3 | E170: 56 | F170: 56955.41833 | H170: 540.438171 | I170: 0 | J170: =-SUM(F170:H170)*$J$21 -> -517.4627085 | K170: -57.4958565 | L170: 56920.89793 | N170: 147 | O170: 12 | P170: 3 | Q170: 12 | R170: 425376.7026 | S170: =IF($G$4="mensual",S169,0) -> 2689.791168 | U170: 4061.834321 | V170: -184.0486577 | X170: -432.1283281 | Y170: 431512.1511 | AA170: =+Bono!J170 -> 15445.91395 | AC170: 12.25 | AD170: 503878.963
B171: 148 | C171: 12 | D171: 4 | E171: 56 | F171: 56920.89793 | H171: 540.1106141 | I171: 0 | J171: 0 | K171: -57.46100855 | L171: 57403.54754 | N171: 148 | O171: 12 | P171: 4 | Q171: 12 | R171: 431512.1511 | S171: =IF($G$4="mensual",S168,IF($G$4="trimestral",S168,0)) -> 2689.791168 | U171: 4120.052322 | V171: -184.0486577 | X171: -438.3219946 | Y171: 437699.6239 | AA171: =+Bono!J171 -> 15541.68041 | AC171: 12.33333333 | AD171: 510644.8519
B172: 149 | C172: 12 | D172: 5 | E172: 56 | F172: 57403.54754 | H172: 544.6903763 | I172: 0 | J172: 0 | K172: -57.94823792 | L172: 57890.28968 | N172: 149 | O172: 12 | P172: 5 | Q172: 12 | R172: 437699.6239 | S172: =IF($G$4="mensual",S171,0) -> 2689.791168 | U172: 4178.76397 | V172: -184.0486577 | X172: -444.5681791 | Y172: 443939.5622 | AA172: =+Bono!J172 -> 15638.04063 | AC172: 12.41666667 | AD172: 517467.8925
B173: 150 | C173: 12 | D173: 6 | E173: 56 | F173: 57890.28968 | H173: 549.3089717 | I173: 0 | J173: =-SUM(F173:H173)*$J$21 -> -525.9563878 | K173: -58.43959865 | L173: 57855.20266 | N173: 150 | O173: 12 | P173: 6 | Q173: 12 | R173: 443939.5622 | S173: =IF($G$4="mensual",S172,0) -> 2689.791168 | U173: 4237.973453 | V173: -184.0486577 | X173: -450.8673268 | Y173: 450232.4109 | AA173: =+Bono!J173 -> 15593.24155 | AC173: 12.5 | AD173: 523680.8551
B174: 151 | C174: 12 | D174: 7 | E174: 56 | F174: 57855.20266 | H174: 548.9760383 | I174: 0 | J174: 0 | K174: -58.4041787 | L174: 58345.77452 | N174: 151 | O174: 12 | P174: 7 | Q174: 12 | R174: 450232.4109 | S174: =+IF($G$4="mensual",S168,IF($G$4="trimestral",S168,IF($G$4="semestral",S168,0))) -> 2689.791168 | U174: 4297.684991 | V174: -184.0486577 | X174: -457.219887 | Y174: 456578.6185 | AA174: =+Bono!J174 -> 15689.92146 | AC174: 12.58333333 | AD174: 530614.3145
B175: 152 | C175: 12 | D175: 8 | E175: 56 | F175: 58345.77452 | H175: 553.630973 | I175: 0 | J175: 0 | K175: -58.8994055 | L175: 58840.50609 | N175: 152 | O175: 12 | P175: 8 | Q175: 12 | R175: 456578.6185 | S175: =IF($G$4="mensual",S174,0) -> 2689.791168 | U175: 4357.902841 | V175: -184.0486577 | X175: -463.6263125 | Y175: 462978.6375 | AA175: =+Bono!J175 -> 15787.20079 | AC175: 12.66666667 | AD175: 537606.3444
B176: 153 | C176: 12 | D176: 9 | E176: 56 | F176: 58840.50609 | H176: 558.3253785 | I176: 0 | J176: =-SUM(F176:H176)*$J$21 -> -534.5894832 | K176: -59.39883147 | L176: 58804.84315 | N176: 153 | O176: 12 | P176: 9 | Q176: 12 | R176: 462978.6375 | S176: =IF($G$4="mensual",S175,0) -> 2689.791168 | U176: 4418.631296 | V176: -184.0486577 | X176: -470.08706 | Y176: 469432.9243 | AA176: =+Bono!J176 -> 15741.97441 | AC176: 12.75 | AD176: 543979.7418
B177: 154 | C177: 12 | D177: 10 | E177: 56 | F177: 58804.84315 | H177: 557.9869802 | I177: 0 | J177: 0 | K177: -59.36283013 | L177: 59303.4673 | N177: 154 | O177: 12 | P177: 10 | Q177: 12 | R177: 469432.9243 | S177: =IF($G$4="mensual",S168,IF($G$4="trimestral",S168,0)) -> 2689.791168 | U177: 4479.874686 | V177: =V176 -> -184.0486577 | X177: -476.6025901 | Y177: 475941.9389 | AA177: =+Bono!J177 -> 15839.57648 | AC177: 12.83333333 | AD177: 551084.9827
B178: 155 | C178: 12 | D178: 11 | E178: 56 | F178: 59303.4673 | H178: 562.7183215 | I178: 0 | J178: 0 | K178: -59.86618563 | L178: 59806.31944 | N178: 155 | O178: 12 | P178: 11 | Q178: 12 | R178: 475941.9389 | S178: =IF($G$17="si",S166*(1+$G$20),S166) -> 2689.791168 | U178: 4541.637378 | V178: -184.0486577 | X178: -483.1733674 | Y178: 482506.1454 | AA178: =+Bono!J178 -> 15937.78369 | AC178: 12.91666667 | AD178: 558250.2485
B179: 156 | C179: 12 | D179: 12 | E179: 56 | F179: 59806.31944 | H179: 567.4897813 | I179: 0 | J179: =-SUM(F179:H179)*$J$21 -> -543.364283 | K179: -60.37380922 | L179: 59770.07113 | N179: 156 | O179: 12 | P179: 12 | Q179: 12 | R179: 482506.1454 | S179: =IF($G$4="mensual",S178,0) -> 2689.791168 | U179: 4603.923775 | V179: -184.0486577 | X179: -489.7998603 | Y179: 489126.0118 | AA179: =+Bono!J179 -> 15892.12593 | AC179: 13 | AD179: 564788.2089
B180: 157 | C180: 13 | D180: 1 | E180: 57 | F180: 59770.07113 | H180: 567.1458286 | I180: 0 | J180: 0 | K180: -60.33721696 | L180: 60276.87974 | N180: 157 | O180: 13 | P180: 1 | Q180: 13 | R180: 489126.0118 | S180: =IF($G$17="si",S168*(1+$G$20),S168) -> 2823.931591 | U180: 4668.011147 | V180: =(V179*(1+$G$18)) -> -193.2272011 | X180: -496.6179546 | Y180: 495928.1094 | AA180: =+Bono!J180 -> 15990.65895 | AC180: 13.08333333 | AD180: 572195.6481
B181: 158 | C181: 13 | D181: 2 | E181: 57 | F181: 60276.87974 | H181: 571.9548306 | I181: 0 | J181: 0 | K181: -60.84883457 | L181: 60787.98574 | N181: 158 | O181: 13 | P181: 2 | Q181: 13 | R181: 495928.1094 | S181: =IF($G$4="mensual",S180,0) -> 2823.931591 | U181: 4732.554843 | V181: -193.2272011 | X181: -503.4845958 | Y181: 502787.884 | AA181: =+Bono!J181 -> 16089.80289 | AC181: 13.16666667 | AD181: 579665.6727
B182: 159 | C182: 13 | D182: 3 | E182: 57 | F182: 60787.98574 | H182: 576.8046096 | I182: 0 | J182: =-SUM(F182:H182)*$J$21 -> -552.2831131 | K182: -61.36479035 | L182: 60751.14244 | N182: 159 | O182: 13 | P182: 3 | Q182: 13 | R182: 502787.884 | S182: =IF($G$4="mensual",S181,0) -> 2823.931591 | U182: 4797.645824 | V182: -193.2272011 | X182: -510.4094615 | Y182: 509705.8248 | AA182: =+Bono!J182 -> 16043.70963 | AC182: 13.25 | AD182: 586500.6769
B183: 160 | C183: 13 | D183: 4 | E183: 57 | F183: 60751.14244 | H183: 576.4550112 | I183: 0 | J183: 0 | K183: -61.32759745 | L183: 61266.26986 | N183: 160 | O183: 13 | P183: 4 | Q183: 13 | R183: 509705.8248 | S183: =IF($G$4="mensual",S180,IF($G$4="trimestral",S180,0)) -> 2823.931591 | U183: 4863.288731 | V183: -193.2272011 | X183: -517.3930451 | Y183: 516682.4249 | AA183: =+Bono!J183 -> 16143.18249 | AC183: 13.33333333 | AD183: 594091.8772
B184: 161 | C184: 13 | D184: 5 | E184: 57 | F184: 61266.26986 | H184: 581.3429485 | I184: 0 | J184: 0 | K184: -61.8476128 | L184: 61785.76519 | N184: 161 | O184: 13 | P184: 5 | Q184: 13 | R184: 516682.4249 | S184: =IF($G$4="mensual",S183,0) -> 2823.931591 | U184: 4929.488245 | V184: -193.2272011 | X184: -524.4358447 | Y184: 523718.1817 | AA184: =+Bono!J184 -> 16243.27209 | AC184: 13.41666667 | AD184: 601747.2189
B185: 162 | C185: 13 | D185: 6 | E185: 57 | F185: 61785.76519 | H185: 586.2723322 | I185: 0 | J185: =-SUM(F185:H185)*$J$21 -> -561.3483377 | K185: -62.37203752 | L185: 61748.31715 | N185: 162 | O185: 13 | P185: 6 | Q185: 13 | R185: 523718.1817 | S185: =IF($G$4="mensual",S184,0) -> 2823.931591 | U185: 4996.249084 | V185: -193.2272011 | X185: -531.5383623 | Y185: 530813.5968 | AA185: =+Bono!J185 -> 16196.73918 | AC185: 13.5 | AD185: 608758.6531
B186: 163 | C186: 13 | D186: 7 | E186: 57 | F186: 61748.31715 | H186: 585.9169955 | I186: 0 | J186: 0 | K186: -62.33423414 | L186: 62271.89991 | N186: 163 | O186: 13 | P186: 7 | Q186: 13 | R186: 530813.5968 | S186: =+IF($G$4="mensual",S180,IF($G$4="trimestral",S180,IF($G$4="semestral",S180,0))) -> 2823.931591 | U186: 5063.576009 | V186: -193.2272011 | X186: -538.7011044 | Y186: 537969.1761 | AA186: =+Bono!J186 -> 16297.16084 | AC186: 13.58333333 | AD186: 616538.2368
B187: 164 | C187: 13 | D187: 8 | E187: 57 | F187: 62271.89991 | H187: 590.8851639 | I187: 0 | J187: 0 | K187: -62.86278507 | L187: 62799.92229 | N187: 164 | O187: 13 | P187: 8 | Q187: 13 | R187: 537969.1761 | S187: =IF($G$4="mensual",S186,0) -> 2823.931591 | U187: 5131.473819 | V187: -193.2272011 | X187: -545.9245815 | Y187: 545185.4297 | AA187: =+Bono!J187 -> 16398.20513 | AC187: 13.66666667 | AD187: 624383.5571
B188: 165 | C188: 13 | D188: 9 | E188: 57 | F188: 62799.92229 | H188: 595.8954589 | I188: 0 | J188: =-SUM(F188:H188)*$J$21 -> -570.5623597 | K188: -63.39581775 | L188: 62761.85957 | N188: 165 | O188: 13 | P188: 9 | Q188: 13 | R188: 545185.4297 | S188: =IF($G$4="mensual",S187,0) -> 2823.931591 | U188: 5199.947355 | V188: -193.2272011 | X188: -553.2093086 | Y188: 552462.8721 | AA188: =+Bono!J188 -> 16351.22837 | AC188: 13.75 | AD188: 631575.9601
B189: 166 | C189: 13 | D189: 10 | E189: 57 | F189: 62761.85957 | H189: 595.5342897 | I189: 0 | J189: 0 | K189: -63.35739386 | L189: 63294.03647 | N189: 166 | O189: 13 | P189: 10 | Q189: 13 | R189: 552462.8721 | S189: =IF($G$4="mensual",S180,IF($G$4="trimestral",S180,0)) -> 2823.931591 | U189: 5269.0015 | V189: -193.2272011 | X189: -560.5558052 | Y189: 559802.0222 | AA189: =+Bono!J189 -> 16452.60789 | AC189: 13.83333333 | AD189: 639548.6666
B190: 167 | C190: 13 | D190: 11 | E190: 57 | F190: 63294.03647 | H190: 600.584006 | I190: 0 | J190: 0 | K190: -63.89462047 | L190: 63830.72585 | N190: 167 | O190: 13 | P190: 11 | Q190: 13 | R190: 559802.0222 | S190: =IF($G$17="si",S178*(1+$G$20),S178) -> 2823.931591 | U190: 5338.641175 | V190: -193.2272011 | X190: -567.964595 | Y190: 567203.4032 | AA190: =+Bono!J190 -> 16554.61596 | AC190: 13.91666667 | AD190: 647588.745
B191: 168 | C191: 13 | D191: 12 | E191: 57 | F191: 63830.72585 | H191: 605.6765405 | I191: 0 | J191: =-SUM(F191:H191)*$J$21 -> -579.9276215 | K191: -64.43640239 | L191: 63792.03837 | N191: 168 | O191: 13 | P191: 12 | Q191: 13 | R191: 567203.4032 | S191: =IF($G$4="mensual",S190,0) -> 2823.931591 | U191: 5408.871347 | V191: -193.2272011 | X191: -575.4362061 | Y191: 574667.5427 | AA191: =+Bono!J191 -> 16507.19113 | AC191: 14 | AD191: 654966.7722
B192: 169 | C192: 14 | D192: 1 | E192: 58 | F192: 63792.03837 | H192: 605.309443 | I192: 0 | J192: 0 | K192: -64.39734781 | L192: 64332.95046 | N192: 169 | O192: 14 | P192: 1 | Q192: 14 | R192: 574667.5427 | S192: =IF($G$17="si",S180*(1+$G$20),S180) -> 2964.761625 | U192: 5481.033328 | V192: =(V191*(1+$G$18)) -> -202.8634802 | X192: -583.1133377 | Y192: 582327.3608 | AA192: =+Bono!J192 -> 16609.53763 | AC192: 14.08333333 | AD192: 663269.8489
B193: 170 | C193: 14 | D193: 2 | E193: 58 | F193: 64332.95046 | H193: 610.4420458 | I193: 0 | J193: 0 | K193: -64.94339251 | L193: 64878.44912 | N193: 170 | O193: 14 | P193: 2 | Q193: 14 | R193: 582327.3608 | S193: =IF($G$4="mensual",S192,0) -> 2964.761625 | U193: 5553.715756 | V193: -202.8634802 | X193: -590.8458382 | Y193: 590052.1289 | AA193: =+Bono!J193 -> 16712.51869 | AC193: 14.16666667 | AD193: 671643.0967
B194: 171 | C194: 14 | D194: 3 | E194: 58 | F194: 64878.44912 | H194: 615.6181696 | I194: 0 | J194: =-SUM(F194:H194)*$J$21 -> -589.4466056 | K194: -65.49406729 | L194: 64839.12661 | N194: 171 | O194: 14 | P194: 3 | Q194: 14 | R194: 590052.1289 | S194: =IF($G$4="mensual",S193,0) -> 2964.761625 | U194: 5627.014481 | V194: -202.8634802 | X194: -598.643905 | Y194: 597842.3976 | AA194: =+Bono!J194 -> 16664.6415 | AC194: 14.25 | AD194: 679346.1657
B195: 172 | C195: 14 | D195: 4 | E195: 58 | F195: 64839.12661 | H195: 615.2450465 | I195: 0 | J195: 0 | K195: -65.45437166 | L195: 65388.91729 | N195: 172 | O195: 14 | P195: 4 | Q195: 14 | R195: 597842.3976 | S195: =IF($G$4="mensual",S192,IF($G$4="trimestral",S192,0)) -> 2964.761625 | U195: 5700.934728 | V195: -202.8634802 | X195: -606.508094 | Y195: 605698.7224 | AA195: =+Bono!J195 -> 16767.96421 | AC195: 14.33333333 | AD195: 687855.6039
B196: 173 | C196: 14 | D196: 5 | E196: 58 | F196: 65388.91729 | H196: 620.4618964 | I196: 0 | J196: 0 | K196: -66.00937918 | L196: 65943.36981 | N196: 173 | O196: 14 | P196: 5 | Q196: 14 | R196: 605698.7224 | S196: =IF($G$4="mensual",S195,0) -> 2964.761625 | U196: 5775.481767 | V196: -202.8634802 | X196: -614.4389658 | Y196: 613621.6634 | AA196: =+Bono!J196 -> 16871.92754 | AC196: 14.41666667 | AD196: 696436.9607
B197: 174 | C197: 14 | D197: 6 | E197: 58 | F197: 65943.36981 | H197: 625.7229815 | I197: 0 | J197: =-SUM(F197:H197)*$J$21 -> -599.1218351 | K197: -66.56909279 | L197: 65903.40186 | N197: 174 | O197: 14 | P197: 6 | Q197: 14 | R197: 613621.6634 | S197: =IF($G$4="mensual",S196,0) -> 2964.761625 | U197: 5850.660913 | V197: -202.8634802 | X197: -622.4370859 | Y197: 621611.7853 | AA197: =+Bono!J197 -> 16823.59368 | AC197: 14.5 | AD197: 704338.7809
B198: 175 | C198: 14 | D198: 7 | E198: 58 | F198: 65903.40186 | H198: 625.3437339 | I198: 0 | J198: 0 | K198: -66.52874559 | L198: 66462.21685 | N198: 175 | O198: 14 | P198: 7 | Q198: 14 | R198: 621611.7853 | S198: =+IF($G$4="mensual",S192,IF($G$4="trimestral",S192,IF($G$4="semestral",S192,0))) -> 2964.761625 | U198: 5926.477526 | V198: -202.8634802 | X198: -630.5030245 | Y198: 629669.658 | AA198: =+Bono!J198 -> 16927.90191 | AC198: 14.58333333 | AD198: 713059.7767
B199: 176 | C199: 14 | D199: 8 | E199: 58 | F199: 66462.21685 | H199: 630.6462136 | I199: 0 | J199: 0 | K199: -67.09286306 | L199: 67025.7702 | N199: 176 | O199: 14 | P199: 8 | Q199: 14 | R199: 629669.658 | S199: =IF($G$4="mensual",S198,0) -> 2964.761625 | U199: 6002.937011 | V199: -202.8634802 | X199: -638.6373566 | Y199: 637795.8558 | AA199: =+Bono!J199 -> 17032.85687 | AC199: 14.66666667 | AD199: 721854.4828
B200: 177 | C200: 14 | D200: 9 | E200: 58 | F200: 67025.7702 | H200: 635.9936547 | I200: 0 | J200: =-SUM(F200:H200)*$J$21 -> -608.9558747 | K200: -67.66176385 | L200: 66985.14621 | N200: 177 | O200: 14 | P200: 9 | Q200: 14 | R200: 637795.8558 | S200: =IF($G$4="mensual",S199,0) -> 2964.761625 | U200: 6080.044819 | V200: -202.8634802 | X200: -646.8406622 | Y200: 645990.9581 | AA200: =+Bono!J200 -> 16984.06199 | AC200: 14.75 | AD200: 729960.1663
B201: 178 | C201: 14 | D201: 10 | E201: 58 | F201: 66985.14621 | H201: 635.6081821 | I201: 0 | J201: 0 | K201: -67.6207544 | L201: 67553.13364 | N201: 178 | O201: 14 | P201: 10 | Q201: 14 | R201: 645990.9581 | S201: =IF($G$4="mensual",S192,IF($G$4="trimestral",S192,0)) -> 2964.761625 | U201: 6157.806448 | V201: -202.8634802 | X201: -655.1135261 | Y201: 654255.5491 | AA201: =+Bono!J201 -> 17089.36515 | AC201: 14.83333333 | AD201: 738898.0479
... 554 more rows

Sheet Deducible 151 (hidden)
F2: Edad | G2: =+'OptiMaxx plus'!T7 -> 44 | I2: Portafolio | J2: Tasa
F3: Aportación | G3: =+'OptiMaxx plus'!D12 -> 1500 | I3: Conservador Pesos | J3: 0.06 | K3: =+J3 -> 0.06 | L3: =+'OptiMaxx plus'!F20 -> 0
F4: Periodicidad | G4: =+'OptiMaxx plus'!K12 -> Mensual | I4: Moderado Pesos | J4: 0.09 | K4: =+J4 -> 0.09 | L4: =+'OptiMaxx plus'!#REF! -> 
F5: Plazo | G5: =+'OptiMaxx plus'!D15 -> 21 | I5: Dinámico Pesos | J5: 0.12 | K5: 0.12 | L5: =+'OptiMaxx plus'!#REF! -> 
F6: Portafolio | G6: =L20 -> 0.12 | I6: Conservador Dólares | J6: 0.03 | K6: 0.03 | L6: =+'OptiMaxx plus'!#REF! -> 
F7: Interés Anual | G7: =+L20 -> 0.12 | I7: Moderado Dólares | J7: 0.06 | K7: 0.06 | L7: =+'OptiMaxx plus'!#REF! -> 
F8: Interés Mensual | G8: =(1+G7)^(1/12)-1 -> 0.009488792935 | I8: Dinámico Dólares | J8: 0.1 | K8: 0.1 | L8: =+'OptiMaxx plus'!N21 -> 0
F9: % Bono | G9: =+Bono!F9 -> 0.55 | I9: Conservador Euros | J9: 0.03 | K9: 0.03 | L9: =+'OptiMaxx plus'!#REF! -> 
I10: Moderado Euros | J10: 0.06 | K10: 0.06 | L10: =+'OptiMaxx plus'!#REF! -> 
I11: Dinámico Euros | J11: 0.09 | K11: 0.09 | L11: =+'OptiMaxx plus'!#REF! -> 
I12: Pesos Revaluables | J12: 0.08 | K12: 0.08 | L12: =+'OptiMaxx plus'!F24 -> 0.05400445122
I13: BRIC | J13: 0.08 | K13: 0.08 | L13: =+'OptiMaxx plus'!F27 -> BRIC
I14: China | J14: 0.08 | K14: 0.08 | L14: =+'OptiMaxx plus'!N24 -> 0.1636132729
I15: Brasil | J15: 0.08 | K15: 0.08 | L15: =+'OptiMaxx plus'!F25 -> 0.04584263279
I16: Oro | J16: 0.08 | K16: 0.08 | L16: =+'OptiMaxx plus'!N26 -> 0
F17: Incremento Inflación | G17: =+'OptiMaxx plus'!K15 -> Si | I17: Mercado Emergentes | J17: 0.08 | K17: 0.08 | L17: =+'OptiMaxx plus'!N25 -> 0.08468172207
F18: Inflación | G18: =+Rendimientos_UDI_Inflación!S36/100 -> 0.0498702
F19: Udi | G19: =+Rendimientos_UDI_Inflación!S17 -> 6.842488737
G20: =+G18 -> 0.0498702 | I20: Tasa Ponderada Bruta | L20: =+'OptiMaxx plus'!D20 -> 0.12
J21: =3.6%/4 -> 0.009
C22: Saldo Inicial | O22: Saldo Comprometido | AA22: Bono
C23: Año | D23: Mes | E23: Edad | F23: Saldo Anterior | G23: Aportación | H23: Interés | I23: Cargo Fijo | J23: Cargo Administrativo | K23: Cargo Gestión Inversión | L23: Saldo Final | O23: Año | P23: Mes | Q23: Edad | R23: Saldo Anterior | S23: Aportación | T23: Bono | U23: Interés | V23: Cargo Fijo | W23: Cargo Administrativo | X23: Cargo Gestión Inversión | Y23: Saldo Final | AA23: Saldo Final | AD23: Saldo Fondo
A24: =+B24/12 -> 0.08333333333 | B24: 1 | C24: 0 | D24: 1 | E24: =G2 -> 44 | F24: 0 | G24: =G3 -> 1500 | H24: =SUM(F24:G24)*$G$8 -> 14.2331894 | I24: -500 | J24: 0 | K24: =-SUM(F24:J24)*0.1%*1.16 -> -1.1765105 | L24: =SUM(F24:K24) -> 1013.056679 | N24: 1 | O24: 0 | P24: 1 | Q24: =S9 -> 0 | R24: 0 | T24: =S24*$G$9 -> 0 | U24: =SUM(R24:T24)*$G$8 -> 0 | V24: 0 | X24: =-SUM(R24:U24)*0.1% -> 0 | Y24: =SUM(R24:X24) -> 0 | AA24: =+Bono!J24 -> 830.1150957 | AC24: =+B24/12 -> 0.08333333333 | AD24: =+AA24+Y24+L24 -> 1843.171775 | AF24: Edad | AG24: Año | AH24: Aportación Anual | AI24: Aportación Acum.
A25: =+B25/12 -> 0.1666666667 | B25: =+B24+1 -> 2 | C25: 0 | D25: 2 | E25: =E24 -> 44 | F25: =L24 -> 1013.056679 | G25: =IF($G$4="mensual",$G$3,0) -> 1500 | H25: 23.84587446 | I25: 0 | J25: 0 | K25: =-SUM(F25:J25)*0.1%*1.16 -> -2.942806962 | L25: =SUM(F25:K25) -> 2533.959746 | N25: =+N24+1 -> 2 | O25: 0 | P25: 2 | Q25: =Q24 -> 0 | R25: =Y24 -> 0 | T25: 0 | U25: 0 | V25: 0 | X25: =-SUM(R25:U25)*0.1% -> 0 | Y25: =SUM(R25:X25) -> 0 | AA25: =+Bono!J25 -> 1665.377001 | AC25: 0.1666666667 | AD25: =+AA25+Y25+L25 -> 4199.336748 | AF25: =+'OptiMaxx plus'!T7+1 -> 45 | AG25: 1 | AH25: =VLOOKUP(G4,$AK$25:$AL$28,2,0)*G3 -> 18000 | AI25: =+AH25 -> 18000 | AK25: Mensual | AL25: 12
A26: 0.25 | B26: 3 | C26: 0 | D26: 3 | E26: 44 | F26: 2533.959746 | G26: =IF($G$4="mensual",$G$3,0) -> 1500 | H26: 38.27740874 | I26: 0 | J26: =-SUM(F26:H26)*$J$21*1.16 -> -42.5141559 | K26: -4.674478679 | L26: 4025.048521 | N26: 3 | O26: 0 | P26: 3 | Q26: 0 | R26: 0 | T26: 0 | U26: 0 | V26: 0 | X26: 0 | Y26: 0 | AA26: =+Bono!J26 -> 2483.242694 | AC26: 0.25 | AD26: 6508.291215 | AF26: =+AF25+1 -> 46 | AG26: =+AG25+1 -> 2 | AH26: =IF($G$17="Si",(1+$G$20)*AH25,AH25) -> 18897.6636 | AI26: =+AI25+AH26 -> 36897.6636 | AK26: Trimestral | AL26: 4 | AP26: SMG | AQ26: 5 SMG | AR26: 15 SMG
A27: 0.3333333333 | B27: 4 | C27: 0 | D27: 4 | E27: 44 | F27: 4025.048521 | G27: =IF($G$4="mensual",$G$3,IF($G$4="trimestral",G3,0)) -> 1500 | H27: 52.42604137 | I27: 0 | J27: 0 | K27: -6.469870492 | L27: 5571.004691 | N27: 4 | O27: 0 | P27: 4 | Q27: 0 | R27: 0 | T27: 0 | U27: =SUM(R27:T27)*$G$8 -> 0 | V27: 0 | X27: 0 | Y27: 0 | AA27: =+Bono!J27 -> 3328.754182 | AC27: 0.3333333333 | AD27: 8899.758874 | AF27: =+AF26+1 -> 47 | AG27: 3 | AH27: 19840.09386 | AI27: =+AI26+AH27 -> 56737.75746 | AK27: Semestral | AL27: 2 | AP27: 67.29 | AQ27: =+AP27*5*365 -> 122804.25 | AR27: =AQ27*3 -> 368412.75
A28: 0.4166666667 | B28: 5 | C28: 0 | D28: 5 | E28: 44 | F28: 5571.004691 | G28: =IF($G$4="mensual",$G$3,0) -> 1500 | H28: 67.09529936 | I28: 0 | J28: 0 | K28: -8.280195989 | L28: 7129.819795 | N28: 5 | O28: 0 | P28: 5 | Q28: 0 | R28: 0 | T28: 0 | U28: 0 | V28: 0 | X28: 0 | Y28: 0 | AA28: =+Bono!J28 -> 4179.50794 | AC28: 0.4166666667 | AD28: 11309.32773 | AF28: 48 | AG28: 4 | AH28: 20829.52331 | AI28: 77567.28078 | AK28: Anual | AL28: 1
A29: 0.5 | B29: 6 | C29: 0 | D29: 6 | E29: 44 | F29: 7129.819795 | G29: =IF($G$4="mensual",$G$3,0) -> 1500 | H29: 81.8865731 | I29: 0 | J29: =-SUM(F29:H29)*$J$21*1.16 -> -90.95021448 | K29: -10.00007714 | L29: 8610.756076 | N29: 6 | O29: 0 | P29: 6 | Q29: 0 | R29: 0 | T29: 0 | U29: 0 | V29: 0 | X29: 0 | Y29: 0 | AA29: =+Bono!J29 -> 4990.171276 | AC29: 0.5 | AD29: 13600.92735 | AF29: 49 | AG29: 5 | AH29: 21868.29581 | AI29: 99435.57658
A30: 0.5833333333 | B30: 7 | C30: 0 | D30: 7 | E30: 44 | F30: 8610.756076 | G30: =IF($G$4="mensual",$G$3,IF($G$4="trimestral",$G$3,IF(G4="semestral",$G$3,0))) -> 1500 | H30: 95.93887082 | I30: 0 | J30: 0 | K30: -11.83976614 | L30: 10194.85518 | N30: 7 | O30: 0 | P30: 7 | Q30: 0 | R30: 0 | T30: 0 | U30: =SUM(R30:T30)*$G$8 -> 0 | V30: 0 | X30: 0 | Y30: 0 | AA30: =+Bono!J30 -> 5851.226013 | AC30: 0.5833333333 | AD30: 16046.08119 | AF30: 50 | AG30: 6 | AH30: 22958.87209 | AI30: 122394.4487
A31: 0.6666666667 | B31: 8 | C31: 0 | D31: 8 | E31: 44 | F31: 10194.85518 | G31: =IF($G$4="mensual",$G$3,0) -> 1500 | H31: 110.9700592 | I31: 0 | J31: 0 | K31: -13.69475728 | L31: 11792.13048 | N31: 8 | O31: 0 | P31: 8 | Q31: 0 | R31: 0 | T31: 0 | U31: 0 | V31: 0 | X31: 0 | Y31: 0 | AA31: =+Bono!J31 -> 6717.619389 | AC31: 0.6666666667 | AD31: 18509.74987 | AF31: 51 | AG31: 7 | AH31: 24103.83563 | AI31: 146498.2843
A32: 0.75 | B32: 9 | C32: 0 | D32: 9 | E32: 44 | F32: 11792.13048 | G32: =IF($G$4="mensual",$G$3,0) -> 1500 | H32: 126.1262738 | I32: 0 | J32: =-SUM(F32:H32)*$J$21*1.16 -> -140.0866005 | K32: -15.40267738 | L32: 13262.76748 | N32: 9 | O32: 0 | P32: 9 | Q32: 0 | R32: 0 | T32: 0 | U32: 0 | V32: 0 | X32: 0 | Y32: 0 | AA32: =+Bono!J32 -> 7521.01167 | AC32: 0.75 | AD32: 20783.77915 | AF32: 52 | AG32: 8 | AH32: 25305.89874 | AI32: 171804.183 | AK32: De acuerdo con la Ley del Impuesto Sobre la Renta, el monto total de las deducciones personales no podrá exceder de la cantidad que resulte menor entre 5 UMA´s anuales y el 10% de los ingresos anuales percibidos. El fondo exento a edad 65 será el equivalente a 15 UMA´s anuales (dicha exención se podrá realizar cada año) o 90 UMA´s anuales en una sola exhibición. Sobre excedente se retendrá 20%.
A33: 0.8333333333 | B33: 10 | C33: 0 | D33: 10 | E33: 44 | F33: 13262.76748 | G33: =IF($G$4="mensual",$G$3,IF($G$4="trimestral",$G$3,0)) -> 1500 | H33: 140.0808437 | I33: 0 | J33: 0 | K33: -17.28730405 | L33: 14885.56102 | N33: 10 | O33: 0 | P33: 10 | Q33: 0 | R33: 0 | T33: 0 | U33: =SUM(R33:T33)*$G$8 -> 0 | V33: 0 | X33: 0 | Y33: 0 | AA33: =+Bono!J33 -> 8397.757911 | AC33: 0.8333333333 | AD33: 23283.31893 | AF33: 53 | AG33: 9 | AH33: 26567.90897 | AI33: 198372.092
A34: 0.9166666667 | B34: 11 | C34: 0 | D34: 11 | E34: 44 | F34: 14885.56102 | G34: =IF($G$4="mensual",$G$3,0) -> 1500 | H34: 155.4791956 | I34: 0 | J34: 0 | K34: -19.18760665 | L34: 16521.85261 | N34: 11 | O34: 0 | P34: 11 | Q34: 0 | R34: 0 | T34: 0 | U34: 0 | V34: 0 | X34: 0 | Y34: 0 | AA34: =+Bono!J34 -> 9279.94008 | AC34: 0.9166666667 | AD34: 25801.79269 | AF34: 54 | AG34: 10 | AH34: 27892.8559 | AI34: 226264.9479
A35: 1 | B35: 12 | C35: 0 | D35: 12 | E35: 44 | F35: 16521.85261 | G35: =IF($G$4="mensual",$G$3,0) -> 1500 | H35: 171.0056277 | I35: 0 | J35: =-SUM(F35:H35)*$J$21*1.16 -> -189.93344 | K35: -20.88339276 | L35: 17982.0414 | N35: 12 | O35: 0 | P35: 12 | Q35: 0 | R35: 0 | T35: 0 | U35: 0 | V35: 0 | X35: 0 | Y35: 0 | AA35: =+Bono!J35 -> 10075.99195 | AC35: 1 | AD35: 28058.03336 | AF35: 55 | AG35: 11 | AH35: 29283.87821 | AI35: 255548.8261
A36: 1.083333333 | B36: 13 | C36: =C24+1 -> 1 | D36: =D24 -> 1 | E36: =E24+1 -> 45 | F36: 17982.0414 | G36: =IF(AND(G4="Anual",$G$17="si"),G24*(1+$G$20)/2,IF(AND(G4="Anual",$G$17="No"),G24/2,IF(G17="Si",G24*(1+$G$20),G24))) -> 1574.8053 | H36: 185.5708688 | I36: 0 | J36: 0 | K36: -22.90120438 | L36: 19719.51637 | N36: 13 | O36: =O24+1 -> 1 | P36: =P24 -> 1 | Q36: =Q24+1 -> 1 | R36: 0 | S36: =IF(G4="Anual",G36,0) -> 0 | U36: =SUM(R36:T36)*$G$8 -> 0 | V36: 0 | X36: 0 | Y36: 0 | AA36: =+Bono!J36 -> 10138.46427 | AC36: 1.083333333 | AD36: 29857.98064 | AF36: 56 | AG36: 12 | AH36: 30744.27107 | AI36: 286293.0972
A37: 1.166666667 | B37: 14 | C37: 1 | D37: 2 | E37: 45 | F37: 19719.51637 | G37: =+IF($G$4="mensual",G36,0) -> 1574.8053 | H37: 202.057409 | I37: 0 | J37: 0 | K37: -24.93579973 | L37: 21471.44328 | N37: 14 | O37: 1 | P37: 2 | Q37: 1 | R37: 0 | U37: 0 | V37: 0 | X37: 0 | Y37: 0 | AA37: =+Bono!J37 -> 10201.32393 | AC37: 1.166666667 | AD37: 31672.7672 | AF37: 57 | AG37: 13 | AH37: 32277.49402 | AI37: 318570.5912 | AK37: Las tasas de crecimiento elegidas tienen fines ilustrativos únicamente. La tasa anual proyectada está expresada antes de cargos. La ganancia real podría ser otra, ya que, debido a la naturaleza de este tipo de inversiones, su rendimiento puede indistintamente subir o bajar. El saldo proyectado se expresa después de los cargos del producto. Si se rescata de forma anticipada el Saldo Sujeto a Retiro, el valor ilustrado le da una estimación de lo que podrá recibir, por lo tanto, para obtener los máximos beneficios de esta inversión, la aportación debería ser realizada por la duración del plazo contratado. En caso de fallecimiento se entregará a los beneficiarios el Saldo del Fondo menos el Bono de fidelidad después de aplicar la retención de impuestos. Dicha retención actualmente es del 20%.
A38: 1.25 | B38: 15 | C38: 1 | D38: 3 | E38: 45 | F38: 21471.44328 | G38: =+G37 -> 1574.8053 | H38: 218.6810807 | I38: 0 | J38: =-SUM(F38:H38)*$J$21*1.16 -> -242.8858656 | K38: -26.7055708 | L38: 22995.33822 | N38: 15 | O38: 1 | P38: 3 | Q38: 1 | R38: 0 | U38: 0 | V38: 0 | X38: 0 | Y38: 0 | AA38: =+Bono!J38 -> 10172.09968 | AC38: 1.25 | AD38: 33167.43791 | AF38: 58 | AG38: 14 | AH38: 33887.1791 | AI38: 352457.7703
A39: 1.333333333 | B39: 16 | C39: 1 | D39: 4 | E39: 45 | F39: 22995.33822 | G39: =IF($G$4="mensual",G36,IF($G$4="trimestral",G36,0)) -> 1574.8053 | H39: 233.1410042 | I39: 0 | J39: 0 | K39: -28.77181005 | L39: 24774.51271 | N39: 16 | O39: 1 | P39: 4 | Q39: 1 | R39: 0 | U39: 0 | V39: 0 | X39: 0 | Y39: 0 | AA39: =+Bono!J39 -> 10235.16788 | AC39: 1.333333333 | AD39: 35009.6806 | AF39: 59 | AG39: 15 | AH39: 35577.1395 | AI39: 388034.9098
A40: 1.416666667 | B40: 17 | C40: 1 | D40: 5 | E40: 45 | F40: 24774.51271 | G40: =+IF($G$4="mensual",G39,0) -> 1574.8053 | H40: 250.0232226 | I40: 0 | J40: 0 | K40: -30.85523584 | L40: 26568.486 | N40: 17 | O40: 1 | P40: 5 | Q40: 1 | R40: 0 | U40: 0 | V40: 0 | X40: 0 | Y40: 0 | AA40: =+Bono!J40 -> 10298.62711 | AC40: 1.416666667 | AD40: 36867.11311 | AF40: 60 | AG40: 16 | AH40: 37351.37856 | AI40: 425386.2884
A41: 1.5 | B41: 18 | C41: 1 | D41: 6 | E41: 45 | F41: 26568.486 | G41: =+G40 -> 1574.8053 | H41: 267.0458637 | I41: 0 | J41: =-SUM(F41:H41)*$J$21*1.16 -> -296.60392 | K41: -32.61193056 | L41: 28081.12131 | N41: 18 | O41: 1 | P41: 6 | Q41: 1 | R41: 0 | S41: 0 | U41: 0 | V41: 0 | X41: 0 | Y41: 0 | AA41: =+Bono!J41 -> 10269.12412 | AC41: 1.5 | AD41: 38350.24543 | AF41: 61 | AG41: 17 | AH41: 39214.09928 | AI41: 464600.3876
A42: 1.583333333 | B42: 19 | C42: 1 | D42: 7 | E42: 45 | F42: 28081.12131 | H42: 266.4559455 | I42: 0 | J42: 0 | K42: -32.88318962 | L42: 28314.69407 | N42: 19 | O42: 1 | P42: 7 | Q42: 1 | R42: 0 | S42: =+IF($G$4="mensual",G36,IF($G$4="trimestral",G36,IF(G4="semestral",G36,0))) -> 1574.8053 | U42: 14.9430014 | V42: =-15*G19*(1+$G$20)*1.16 -> -124.9968153 | X42: =-SUM(R42:V42)*0.1%*1.16 -> -1.699111724 | Y42: =SUM(R42:X42) -> 1463.052374 | AA42: =+Bono!J42 -> 10332.79388 | AC42: 1.583333333 | AD42: 40110.54032 | AF42: 62 | AG42: 18 | AH42: 41169.71425 | AI42: 505770.1019 | AK42: Todo retiro es acumulable al ingreso del (los) beneficiario(s), por lo que la retención representa un pago provisional de los impuestos. La presente ilustración se ofrece únicamente a modo de guía y no debe ser considerada como un contrato desde el punto de vista legal. Para mayores detalles vea el folleto del cliente y las Condiciones de la Póliza.
A43: 1.666666667 | B43: 20 | C43: 1 | D43: 8 | E43: 45 | F43: 28314.69407 | H43: 268.672269 | I43: 0 | J43: 0 | K43: -33.15670495 | L43: 28550.20963 | N43: 20 | O43: 1 | P43: 8 | Q43: 1 | R43: 1463.052374 | S43: =IF($G$4="mensual",G36,0) -> 1574.8053 | U43: 28.82560244 | V43: =+V42 -> -124.9968153 | X43: =-SUM(R43:V43)*0.1%*1.16 -> -3.412356295 | Y43: 2938.274105 | AA43: =+Bono!J43 -> 10396.8584 | AC43: 1.666666667 | AD43: 41885.34214 | AF43: 63 | AG43: 19 | AH43: 43222.85614 | AI43: 548992.958
A44: 1.75 | B44: 21 | C44: 1 | D44: 9 | E44: 45 | F44: 28550.20963 | H44: 270.9070275 | I44: 0 | J44: =-SUM(F44:H44)*$J$21*1.16 -> -300.8924579 | K44: -33.08346008 | L44: 28487.14074 | N44: 21 | O44: 1 | P44: 9 | Q44: 1 | R44: 2938.274105 | S44: =IF($G$4="mensual",G36,0) -> 1574.8053 | U44: 42.82367597 | V44: =+V43 -> -124.9968153 | X44: -5.139851268 | Y44: 4425.766415 | AA44: =+Bono!J44 -> 10367.074 | AC44: 1.75 | AD44: 43279.98116 | AF44: 64 | AG44: 20 | AH44: 45378.38862 | AI44: 594371.3466
A45: 1.833333333 | B45: 22 | C45: 1 | D45: 10 | E45: 45 | F45: 28487.14074 | H45: 270.3085798 | I45: 0 | J45: 0 | K45: -33.35864122 | L45: 28724.09068 | N45: 22 | O45: 1 | P45: 10 | Q45: 1 | R45: 4425.766415 | S45: =IF($G$4="mensual",G36,IF($G$4="trimestral",G36,0)) -> 1574.8053 | U45: 56.93818249 | V45: =+V44 -> -124.9968153 | X45: -6.881715175 | Y45: 5925.631367 | AA45: =+Bono!J45 -> 10431.35106 | AC45: 1.833333333 | AD45: 45081.07311 | AF45: 65 | AG45: 21 | AH45: 47641.41793 | AI45: 642012.7646
A46: 1.916666667 | B46: 23 | C46: 1 | D46: 11 | E46: 45 | F46: 28724.09068 | H46: 272.5569487 | I46: 0 | J46: 0 | K46: -33.63611125 | L46: 28963.01152 | N46: 23 | O46: 1 | P46: 11 | Q46: 1 | R46: 5925.631367 | S46: =IF($G$4="mensual",G36,0) -> 1574.8053 | U46: 71.17009045 | V46: =+V45 -> -124.9968153 | X46: -8.638067532 | Y46: 7437.971874 | AA46: =+Bono!J46 -> 10496.02665 | AC46: 1.916666667 | AD46: 46897.01004 | AF46: 66 | AG46: 22 | AH46: 50017.30497 | AI46: 692030.0695
A47: 2 | B47: 24 | C47: 1 | D47: 12 | E47: 45 | F47: 28963.01152 | H47: 274.8240191 | I47: 0 | J47: =-SUM(F47:H47)*$J$21*1.16 -> -305.243003 | K47: -33.56180734 | L47: 28899.03073 | N47: 24 | O47: 1 | P47: 12 | Q47: 1 | R47: 7437.971874 | S47: =IF($G$4="mensual",G36,0) -> 1574.8053 | U47: 85.52037637 | V47: =+V46 -> -124.9968153 | X47: -10.40902885 | Y47: 8962.891706 | AA47: =+Bono!J47 -> 10465.95816 | AC47: 2 | AD47: 48327.88059 | AF47: 67 | AG47: 23 | AH47: 52511.67797 | AI47: 744541.7475
A48: 2.083333333 | B48: 25 | C48: 2 | D48: 1 | E48: 46 | F48: 28899.03073 | H48: 274.2169186 | I48: 0 | J48: 0 | K48: -33.84096727 | L48: 29139.40668 | N48: 25 | O48: 2 | P48: 1 | Q48: 2 | R48: 8962.891706 | S48: =IF(AND($G$17="si",$G$4="Anual"),G36*(1+$G$20)*2,IF(AND($G$17="no",$G$4="Anual"),G36*2,IF($G$17="si",G36*(1+$G$20),G36))) -> 1653.341155 | U48: 100.7352354 | V48: =V47*(1+$G$18) -> -131.2304315 | X48: -12.27945569 | Y48: 10573.45821 | AA48: =+Bono!J48 -> 10530.84831 | AC48: 2.083333333 | AD48: 50243.7132 | AF48: 68 | AG48: 24 | AH48: 55130.44586 | AI48: 799672.1934
A49: 2.166666667 | B49: 26 | C49: 2 | D49: 2 | E49: 46 | F49: 29139.40668 | H49: 276.4977962 | I49: 0 | J49: 0 | K49: -34.12244919 | L49: 29381.78203 | N49: 26 | O49: 2 | P49: 2 | Q49: 2 | R49: 10573.45821 | S49: =IF($G$4="mensual",S48,0) -> 1653.341155 | U49: 116.0175674 | V49: =V48 -> -131.2304315 | X49: -14.16544034 | Y49: 12197.42106 | AA49: =+Bono!J49 -> 10596.14079 | AC49: 2.166666667 | AD49: 52175.34388 | AF49: 69 | AG49: 25 | AH49: 57879.81222 | AI49: 857552.0056
A50: 2.25 | B50: 27 | C50: 2 | D50: 3 | E50: 46 | F50: 29381.78203 | H50: 278.7976457 | I50: 0 | J50: =-SUM(F50:H50)*$J$21*1.16 -> -309.6564518 | K50: -34.04707094 | L50: 29316.87615 | N50: 27 | O50: 2 | P50: 3 | Q50: 2 | R50: 12197.42106 | S50: =IF($G$4="mensual",S49,0) -> 1653.341155 | U50: 131.4270147 | V50: -131.2304315 | X50: -16.06711221 | Y50: 13834.89169 | AA50: =+Bono!J50 -> 10565.7855 | AC50: 2.25 | AD50: 53717.55334 | AF50: 70 | AG50: =+AG49+1 -> 26 | AH50: =IF($G$17="Si",(1+$G$20)*AH49,AH49) -> 60766.29003 | AI50: 918318.2956
A51: 2.333333333 | B51: 28 | C51: 2 | D51: 4 | E51: 46 | F51: 29316.87615 | H51: 278.1817673 | I51: 0 | J51: 0 | K51: -34.33026718 | L51: 29560.72765 | N51: 28 | O51: 2 | P51: 4 | Q51: 2 | R51: 13834.89169 | S51: =IF($G$4="mensual",S48,IF($G$4="trimestral",S48,0)) -> 1653.341155 | U51: 146.9646344 | V51: -131.2304315 | X51: -17.98460177 | Y51: 15485.98244 | AA51: =+Bono!J51 -> 10631.2946 | AC51: 2.333333333 | AD51: 55678.00469 | AF51: 71 | AG51: 27 | AH51: 63796.71707 | AI51: 982115.0127
A52: 2.416666667 | B52: 29 | C52: 2 | D52: 5 | E52: 46 | F52: 29560.72765 | H52: 280.4956237 | I52: 0 | J52: 0 | K52: -34.615819 | L52: 29806.60745 | N52: 29 | O52: 2 | P52: 5 | Q52: 2 | R52: 15485.98244 | S52: =IF($G$4="mensual",S51,0) -> 1653.341155 | U52: 162.6314927 | V52: -131.2304315 | X52: -19.91804061 | Y52: 17150.80662 | AA52: =+Bono!J52 -> 10697.20986 | AC52: 2.416666667 | AD52: 57654.62393 | AF52: 72 | AG52: 28 | AH52: 66978.27211 | AI52: 1049093.285
A53: 2.5 | B53: 30 | C53: 2 | D53: 6 | E53: 46 | F53: 29806.60745 | H53: 282.8287262 | I53: 0 | J53: =-SUM(F53:H53)*$J$21*1.16 -> -314.1337137 | K53: -34.53935086 | L53: 29740.76312 | N53: 30 | O53: 2 | P53: 6 | Q53: 2 | R53: 17150.80662 | S53: =IF($G$4="mensual",S52,0) -> 1653.341155 | U53: 178.4286645 | V53: -131.2304315 | X53: -21.86756137 | Y53: 18829.47845 | AA53: =+Bono!J53 -> 10666.56502 | AC53: 2.5 | AD53: 59236.80659 | AF53: 73 | AG53: 29 | AH53: 70318.49193 | AI53: 1119411.777
A54: 2.583333333 | B54: 31 | C54: 2 | D54: 7 | E54: 46 | F54: 29740.76312 | H54: 282.2039429 | I54: 0 | J54: 0 | K54: -34.82664179 | L54: 29988.14042 | N54: 31 | O54: 2 | P54: 7 | Q54: 2 | R54: 18829.47845 | S54: =+IF($G$4="mensual",S48,IF($G$4="trimestral",S48,IF($G$4="semestral",S48,0))) -> 1653.341155 | U54: 194.3572339 | V54: -131.2304315 | X54: -23.83329783 | Y54: 20522.11311 | AA54: =+Bono!J54 -> 10732.69896 | AC54: 2.583333333 | AD54: 61242.95249 | AF54: 74 | AG54: 30 | AH54: 73825.28919 | AI54: 1193237.066
A55: 2.666666667 | B55: 32 | C55: 2 | D55: 8 | E55: 46 | F55: 29988.14042 | H55: 284.5512549 | I55: 0 | J55: 0 | K55: -35.11632234 | L55: 30237.57535 | N55: 32 | O55: 2 | P55: 8 | Q55: 2 | R55: 20522.11311 | S55: =IF($G$4="mensual",S54,0) -> 1653.341155 | U55: 210.4182937 | V55: =V54 -> -131.2304315 | X55: -25.81538486 | Y55: 22228.82674 | AA55: =+Bono!J55 -> 10799.24294 | AC55: 2.666666667 | AD55: 63265.64503 | AF55: 75 | AG55: 31 | AH55: 77506.97112 | AI55: 1270744.037
A56: 2.75 | B56: 33 | C56: 2 | D56: 9 | E56: 46 | F56: 30237.57535 | H56: 286.9180913 | I56: 0 | J56: =-SUM(F56:H56)*$J$21*1.16 -> -318.6757115 | K56: -35.03874857 | L56: 30170.77898 | N56: 33 | O56: 2 | P56: 9 | Q56: 2 | R56: 22228.82674 | S56: =IF($G$4="mensual",S55,0) -> 1653.341155 | U56: 226.612946 | V56: =V55 -> -131.2304315 | X56: -27.81395847 | Y56: 23949.73645 | AA56: =+Bono!J56 -> 10768.30581 | AC56: 2.75 | AD56: 64888.82124 | AF56: 76 | AG56: 32 | AH56: 81372.25928 | AI56: 1352116.296
A57: 2.833333333 | B57: 34 | C57: 2 | D57: 10 | E57: 46 | F57: 30170.77898 | H57: 286.2842744 | I57: 0 | J57: 0 | K57: -35.33019338 | L57: 30421.73306 | N57: 34 | O57: 2 | P57: 10 | Q57: 2 | R57: 23949.73645 | S57: =IF($G$4="mensual",S48,IF($G$4="trimestral",S48,0)) -> 1653.341155 | U57: 242.9423019 | V57: =V56 -> -131.2304315 | X57: -29.82915579 | Y57: 25684.96032 | AA57: =+Bono!J57 -> 10835.07056 | AC57: 2.833333333 | AD57: 66941.76394 | AF57: 77 | AG57: 33 | AH57: 85430.31012 | AI57: 1437546.606
A58: 2.916666667 | B58: 35 | C58: 2 | D58: 11 | E58: 46 | F58: 30421.73306 | H58: 288.6655257 | I58: 0 | J58: 0 | K58: -35.62406236 | L58: 30674.77453 | N58: 35 | O58: 2 | P58: 11 | Q58: 2 | R58: 25684.96032 | S58: =IF($G$4="mensual",S57,0) -> 1653.341155 | U58: 259.4074819 | V58: =V57 -> -131.2304315 | X58: -31.86111509 | Y58: 27434.61741 | AA58: =+Bono!J58 -> 10902.24925 | AC58: 2.916666667 | AD58: 69011.64119 | AF58: 78 | AG58: 34 | AH58: 89690.73677 | AI58: 1527237.343
A59: 3 | B59: 36 | C59: 2 | D59: 12 | E59: 46 | F59: 30674.77453 | H59: 291.0665838 | I59: 0 | J59: =-SUM(F59:H59)*$J$21*1.16 -> -323.2833812 | K59: -35.54536696 | L59: 30607.01236 | N59: 36 | O59: 2 | P59: 12 | Q59: 2 | R59: 27434.61741 | S59: =IF($G$4="mensual",S58,0) -> 1653.341155 | U59: 276.0096157 | V59: =V58 -> -131.2304315 | X59: -33.90997579 | Y59: 29198.82777 | AA59: =+Bono!J59 -> 10871.01703 | AC59: 3 | AD59: 70676.85717 | AF59: 79 | AG59: 35 | AH59: 94163.63175 | AI59: 1621400.975
A60: 3.083333333 | B60: 37 | C60: 3 | D60: 1 | E60: 47 | F60: 30607.01236 | H60: 290.4236026 | I60: 0 | J60: 0 | K60: -35.84102572 | L60: 30861.59494 | N60: 37 | O60: 3 | P60: 1 | Q60: 3 | R60: 29198.82777 | S60: =IF($G$17="si",S48*(1+$G$20),S48) -> 1735.793609 | U60: 293.5322168 | V60: =V59*(1+$G$18) -> -137.7749194 | X60: -36.06483927 | Y60: 31054.31384 | AA60: =+Bono!J60 -> 10938.4186 | AC60: 3.083333333 | AD60: 72854.32738 | AF60: 80 | AG60: 36 | AH60: 98859.5909 | AI60: 1720260.566
A61: 3.166666667 | B61: 38 | C61: 3 | D61: 2 | E61: 47 | F61: 30861.59494 | H61: 292.839284 | I61: 0 | J61: 0 | K61: -36.1391437 | L61: 31118.29508 | N61: 38 | O61: 3 | P61: 2 | Q61: 3 | R61: 31054.31384 | S61: =IF($G$4="mensual",S60,0) -> 1735.793609 | U61: 311.1385399 | V61: =V60 -> -137.7749194 | X61: -38.23762644 | Y61: 32925.23344 | AA61: =+Bono!J61 -> 11006.23807 | AC61: 3.166666667 | AD61: 75049.76659 | AF61: 81 | AG61: 37 | AH61: 103789.7385 | AI61: 1824050.304
A62: 3.25 | B62: 39 | C62: 3 | D62: 3 | E62: 47 | F62: 31118.29508 | H62: 295.2750585 | I62: 0 | J62: =-SUM(F62:H62)*$J$21*1.16 -> -327.9576722 | K62: -36.05931046 | L62: 31049.55315 | N62: 39 | O62: 3 | P62: 3 | Q62: 3 | R62: 32925.23344 | S62: =IF($G$4="mensual",S61,0) -> 1735.793609 | U62: 328.8913086 | V62: -137.7749194 | X62: -40.42848639 | Y62: 34811.71496 | AA62: =+Bono!J62 -> 10974.70795 | AC62: 3.25 | AD62: 76835.97606 | AF62: 82 | AG62: 38 | AH62: 108965.7535 | AI62: 1933016.058
A63: 3.333333333 | B63: 40 | C63: 3 | D63: 4 | E63: 47 | F63: 31049.55315 | H63: 294.6227806 | I63: 0 | J63: 0 | K63: -36.35924408 | L63: 31307.81669 | N63: 40 | O63: 3 | P63: 4 | Q63: 3 | R63: 34811.71496 | S63: =IF($G$4="mensual",S60,IF($G$4="trimestral",S60,0)) -> 1735.793609 | U63: 346.7917411 | V63: -137.7749194 | X63: -42.63756945 | Y63: 36713.88782 | AA63: =+Bono!J63 -> 11042.75241 | AC63: 3.333333333 | AD63: 79064.45692 | AF63: 83 | AG63: 39 | AH63: 114399.8974 | AI63: 2047415.955
A64: 3.416666667 | B64: 41 | C64: 3 | D64: 5 | E64: 47 | F64: 31307.81669 | H64: 297.0733898 | I64: 0 | J64: 0 | K64: -36.66167249 | L64: 31568.22841 | N64: 41 | O64: 3 | P64: 5 | Q64: 3 | R64: 36713.88782 | S64: =IF($G$4="mensual",S63,0) -> 1735.793609 | U64: 364.8410655 | V64: -137.7749194 | X64: -44.86502719 | Y64: 38631.88255 | AA64: =+Bono!J64 -> 11111.21875 | AC64: 3.416666667 | AD64: 81311.32971 | AF64: 84 | AG64: 40 | AH64: 120105.0432 | AI64: 2167520.998
A65: 3.5 | B65: 42 | C65: 3 | D65: 6 | E65: 47 | F65: 31568.22841 | H65: 299.5443827 | I65: 0 | J65: =-SUM(F65:H65)*$J$21*1.16 -> -332.6995479 | K65: -36.58068496 | L65: 31498.49256 | N65: 42 | O65: 3 | P65: 6 | Q65: 3 | R65: 38631.88255 | S65: =IF($G$4="mensual",S64,0) -> 1735.793609 | U65: 383.0405203 | V65: -137.7749194 | X65: -47.11101244 | Y65: 40565.83074 | AA65: =+Bono!J65 -> 11079.38789 | AC65: 3.5 | AD65: 83143.71119 | AF65: 85 | AG65: 41 | AH65: 126094.7057 | AI65: 2293615.704
A66: 3.583333333 | B66: 43 | C66: 3 | D66: 7 | E66: 47 | F66: 31498.49256 | H66: 298.8826736 | I66: 0 | J66: 0 | K66: -36.88495527 | L66: 31760.49028 | N66: 43 | O66: 3 | P66: 7 | Q66: 3 | R66: 40565.83074 | S66: =+IF($G$4="mensual",S60,IF($G$4="trimestral",S60,IF($G$4="semestral",S60,0))) -> 1735.793609 | U66: 401.3913543 | V66: -137.7749194 | X66: -49.37567932 | Y66: 42515.86511 | AA66: =+Bono!J66 -> 11148.08138 | AC66: 3.583333333 | AD66: 85424.43677 | AF66: 86 | AG66: 42 | AH66: 132383.0739 | AI66: 2425998.778
A67: 3.666666667 | B67: 44 | C67: 3 | D67: 8 | E67: 47 | F67: 31760.49028 | H67: 301.3687157 | I67: 0 | J67: 0 | K67: -37.19175643 | L67: 32024.66724 | N67: 44 | O67: 3 | P67: 8 | Q67: 3 | R67: 42515.86511 | S67: =IF($G$4="mensual",S66,0) -> 1735.793609 | U67: 419.8948266 | V67: -137.7749194 | X67: -51.65918321 | Y67: 44482.11944 | AA67: =+Bono!J67 -> 11217.20078 | AC67: 3.666666667 | AD67: 87723.98746 | AF67: 87 | AG67: 43 | AH67: 138985.0443 | AI67: 2564983.822
A68: 3.75 | B68: 45 | C68: 3 | D68: 9 | E68: 47 | F68: 32024.66724 | H68: 303.8754362 | I68: 0 | J68: =-SUM(F68:H68)*$J$21*1.16 -> -337.5099855 | K68: -37.10959792 | L68: 31953.92309 | N68: 45 | O68: 3 | P68: 9 | Q68: 3 | R68: 44482.11944 | S68: =IF($G$4="mensual",S67,0) -> 1735.793609 | U68: 438.5522068 | V68: -137.7749194 | X68: -53.96168079 | Y68: 46464.72866 | AA68: =+Bono!J68 -> 11185.0663 | AC68: 3.75 | AD68: 89603.71805 | AF68: 88 | AG68: 44 | AH68: 145916.2562 | AI68: 2710900.078
A69: 3.833333333 | B69: 46 | C69: 3 | D69: 10 | E69: 47 | F69: 31953.92309 | H69: 303.2041596 | I69: 0 | J69: 0 | K69: -37.41826761 | L69: 32219.70898 | N69: 46 | O69: 3 | P69: 10 | Q69: 3 | R69: 46464.72866 | S69: =IF($G$4="mensual",S60,IF($G$4="trimestral",S60,0)) -> 1735.793609 | U69: 457.3647751 | V69: -137.7749194 | X69: -56.28333006 | Y69: 48463.82879 | AA69: =+Bono!J69 -> 11254.41501 | AC69: 3.833333333 | AD69: 91937.95279 | AF69: 89 | AG69: 45 | AH69: 153193.1291 | AI69: 2864093.208
A70: 3.916666667 | B70: 47 | C70: 3 | D70: 11 | E70: 47 | F70: 32219.70898 | H70: 305.7261469 | I70: 0 | J70: 0 | K70: -37.72950475 | L70: 32487.70562 | N70: 47 | O70: 3 | P70: 11 | Q70: 3 | R70: 48463.82879 | S70: =IF($G$17="si",S58*(1+$G$20),S58) -> 1735.793609 | U70: 476.3338224 | V70: -137.7749194 | X70: -58.62429032 | Y70: 50479.55702 | AA70: =+Bono!J70 -> 11324.19369 | AC70: 3.916666667 | AD70: 94291.45633 | AF70: 90 | AG70: 46 | AH70: 160832.9011 | AI70: 3024926.109
A71: 4 | B71: 48 | C71: 3 | D71: 12 | E71: 47 | F71: 32487.70562 | H71: 308.2691116 | I71: 0 | J71: =-SUM(F71:H71)*$J$21*1.16 -> -342.3899762 | K71: -37.64615832 | L71: 32415.9386 | N71: 48 | O71: 3 | P71: 12 | Q71: 3 | R71: 50479.55702 | S71: =IF($G$4="mensual",S70,0) -> 1735.793609 | U71: 495.4606501 | V71: -137.7749194 | X71: -60.98472217 | Y71: 52512.05163 | AA71: =+Bono!J71 -> 11291.75271 | AC71: 4 | AD71: 96219.74294 | AF71: 91 | AG71: 47 | AH71: 168853.67 | AI71: 3193779.779
A72: 4.083333333 | B72: 49 | C72: 4 | D72: 1 | E72: 48 | F72: 32415.9386 | H72: 307.5881292 | I72: 0 | J72: 0 | K72: -37.95929101 | L72: 32685.56744 | N72: 49 | O72: 4 | P72: 1 | Q72: 4 | R72: 52512.05163 | S72: =IF($G$17="si",S60*(1+$G$20),S60) -> 1822.357984 | U72: 515.5679621 | V72: =V71*(1+$G$18) -> -144.6457822 | X72: -63.45818489 | Y72: 54641.87361 | AA72: =+Bono!J72 -> 11361.76288 | AC72: 4.083333333 | AD72: 98689.20393 | AF72: 92 | AG72: 48 | AH72: 177274.4363 | AI72: 3371054.215
A73: 4.166666667 | B73: 50 | C73: 4 | D73: 2 | E73: 48 | F73: 32685.56744 | H73: 310.1465814 | I73: 0 | J73: 0 | K73: -38.27502826 | L73: 32957.43899 | N73: 50 | O73: 4 | P73: 2 | Q73: 4 | R73: 54641.87361 | S73: =IF($G$4="mensual",S72,0) -> 1822.357984 | U73: 535.7774018 | V73: -144.6457822 | X73: -65.95222133 | Y73: 56789.41099 | AA73: =+Bono!J73 -> 11432.20713 | AC73: 4.166666667 | AD73: 101179.0571 | AF73: 93 | AG73: 49 | AH73: 186115.1479 | AI73: 3557169.363
A74: 4.25 | B74: 51 | C74: 4 | D74: 3 | E74: 48 | F74: 32957.43899 | H74: 312.7263142 | I74: 0 | J74: =-SUM(F74:H74)*$J$21*1.16 -> -347.3405258 | K74: -38.19047674 | L74: 32884.6343 | N74: 51 | O74: 4 | P74: 3 | Q74: 4 | R74: 56789.41099 | S74: =IF($G$4="mensual",S73,0) -> 1822.357984 | U74: 556.1549394 | V74: -144.6457822 | X74: -68.46700264 | Y74: 58954.81113 | AA74: =+Bono!J74 -> 11399.45672 | AC74: 4.25 | AD74: 103238.9022 | AF74: 94 | AG74: 50 | AH74: 195396.7476 | AI74: 3752566.11
A75: 4.333333333 | B75: 52 | C75: 4 | D75: 4 | E75: 48 | F75: 32884.6343 | H75: 312.0354856 | I75: 0 | J75: 0 | K75: -38.50813695 | L75: 33158.16165 | N75: 52 | O75: 4 | P75: 4 | Q75: 4 | R75: 58954.81113 | S75: =IF($G$4="mensual",S72,IF($G$4="trimestral",S72,0)) -> 1822.357984 | U75: 576.7019729 | V75: -144.6457822 | X75: -71.00270136 | Y75: 61138.22261 | AA75: =+Bono!J75 -> 11470.13467 | AC75: 4.333333333 | AD75: 105766.5189 | AF75: 95 | AG75: 51 | AH75: 205141.2224 | AI75: 3957707.333
A76: 4.416666667 | B76: 53 | C76: 4 | D76: 5 | E76: 48 | F76: 33158.16165 | H76: 314.63093 | I76: 0 | J76: 0 | K76: -38.82843939 | L76: 33433.96414 | N76: 53 | O76: 4 | P76: 5 | Q76: 4 | R76: 61138.22261 | S76: =IF($G$4="mensual",S75,0) -> 1822.357984 | U76: 597.4199123 | V76: -144.6457822 | X76: -73.55949148 | Y76: 63339.79523 | AA76: =+Bono!J76 -> 11541.25084 | AC76: 4.416666667 | AD76: 108315.0102 | AF76: 96 | AG76: 52 | AH76: 215371.6562 | AI76: 4173078.989
A77: 4.5 | B77: 54 | C77: 4 | D77: 6 | E77: 48 | F77: 33433.96414 | H77: 317.2479627 | I77: 0 | J77: =-SUM(F77:H77)*$J$21*1.16 -> -352.3626544 | K77: -38.74266536 | L77: 33360.10678 | N77: 54 | O77: 4 | P77: 6 | Q77: 4 | R77: 63339.79523 | S77: =IF($G$4="mensual",S76,0) -> 1822.357984 | U77: 618.310179 | V77: -144.6457822 | X77: -76.13754843 | Y77: 65559.68006 | AA77: =+Bono!J77 -> 11508.18804 | AC77: 4.5 | AD77: 110427.9749 | AF77: 97 | AG77: 53 | AH77: 226112.2838 | AI77: 4399191.273
A78: 4.583333333 | B78: 55 | C78: 4 | D78: 7 | E78: 48 | F78: 33360.10678 | H78: 316.5471456 | I78: 0 | J78: 0 | K78: -39.06491856 | L78: 33637.58901 | N78: 55 | O78: 4 | P78: 7 | Q78: 4 | R78: 65559.68006 | S78: =+IF($G$4="mensual",S72,IF($G$4="trimestral",S72,IF($G$4="semestral",S72,0))) -> 1822.357984 | U78: 639.3742065 | V78: -144.6457822 | X78: -78.7370491 | Y78: 67798.02942 | AA78: =+Bono!J78 -> 11579.54014 | AC78: 4.583333333 | AD78: 113015.1586 | AF78: 98 | AG78: 54 | AH78: 237388.5486 | AI78: 4636579.822
A79: 4.666666667 | B79: 56 | C79: 4 | D79: 8 | E79: 48 | F79: 33637.58901 | H79: 319.180117 | I79: 0 | J79: 0 | K79: -39.38985219 | L79: 33917.37928 | N79: 56 | O79: 4 | P79: 8 | Q79: 4 | R79: 67798.02942 | S79: =IF($G$4="mensual",S78,0) -> 1822.357984 | U79: 660.6134401 | V79: -144.6457822 | X79: -81.35817187 | Y79: 70054.99689 | AA79: =+Bono!J79 -> 11651.33463 | AC79: 4.666666667 | AD79: 115623.7108 | AF79: 99 | AG79: 55 | AH79: 249227.163 | AI79: 4885806.985
A80: 4.75 | B80: 57 | C80: 4 | D80: 9 | E80: 48 | F80: 33917.37928 | H80: 321.8349888 | I80: 0 | J80: =-SUM(F80:H80)*$J$21*1.16 -> -357.4573969 | K80: -39.30283797 | L80: 33842.45403 | N80: 57 | O80: 4 | P80: 9 | Q80: 4 | R80: 70054.99689 | S80: =IF($G$4="mensual",S79,0) -> 1822.357984 | U80: 682.0293371 | V80: -144.6457822 | X80: -84.00109658 | Y80: 72330.73733 | AA80: =+Bono!J80 -> 11617.95647 | AC80: 4.75 | AD80: 117791.1478 | AF80: 100 | AG80: 56 | AH80: 261656.1715 | AI80: 5147463.156
A81: 4.833333333 | B81: 58 | C81: 4 | D81: 10 | E81: 48 | F81: 33842.45403 | H81: 321.1240387 | I81: 0 | J81: 0 | K81: -39.62975056 | L81: 34123.94832 | N81: 58 | O81: 4 | P81: 10 | Q81: 4 | R81: 72330.73733 | S81: =IF($G$4="mensual",S72,IF($G$4="trimestral",S72,0)) -> 1822.357984 | U81: 703.6233669 | V81: -144.6457822 | X81: -86.66600457 | Y81: 74625.4069 | AA81: =+Bono!J81 -> 11689.98915 | AC81: 4.833333333 | AD81: 120439.3444 | AF81: 101 | AG81: 57 | AH81: 274705.0171 | AI81: 5422168.173
A82: 4.916666667 | B82: 59 | C82: 4 | D82: 11 | E82: 48 | F82: 34123.94832 | H82: 323.7950797 | I82: 0 | J82: 0 | K82: -39.95938234 | L82: 34407.78402 | N82: 59 | O82: 4 | P82: 11 | Q82: 4 | R82: 74625.4069 | S82: =IF($G$17="si",S70*(1+$G$20),S70) -> 1822.357984 | U82: 725.3970113 | V82: -144.6457822 | X82: -89.35307869 | Y82: 76939.16303 | AA82: =+Bono!J82 -> 11762.46844 | AC82: 4.916666667 | AD82: 123109.4155 | AF82: 102 | AG82: 58 | AH82: 288404.6112 | AI82: 5710572.784
A83: 5 | B83: 60 | C83: 4 | D83: 12 | E83: 48 | F83: 34407.78402 | H83: 326.4883379 | I83: 0 | J83: =-SUM(F83:H83)*$J$21*1.16 -> -362.6258034 | K83: -39.87111 | L83: 34331.77544 | N83: 60 | O83: 4 | P83: 12 | Q83: 4 | R83: 76939.16303 | S83: =IF($G$4="mensual",S82,0) -> 1822.357984 | U83: 747.3517641 | V83: -144.6457822 | X83: -92.06250332 | Y83: 79272.16449 | AA83: =+Bono!J83 -> 11728.77191 | AC83: 5 | AD83: 125332.7118 | AF83: 103 | AG83: 59 | AH83: 302787.4069 | AI83: 6013360.191
A84: 5.083333333 | B84: 61 | C84: 5 | D84: 1 | E84: 49 | F84: 34331.77544 | H84: 325.7671082 | I84: 0 | J84: 0 | K84: -40.20274936 | L84: 34617.3398 | N84: 61 | O84: 5 | P84: 1 | Q84: 5 | R84: 79272.16449 | S84: =IF($G$17="si",S72*(1+$G$20),S72) -> 1913.239341 | U84: 770.3514863 | V84: =V83*(1+$G$18) -> -151.8592962 | X84: -94.89251939 | Y84: 81709.0035 | AA84: =+Bono!J84 -> 11801.49165 | AC84: 5.083333333 | AD84: 128127.835 | AF84: 104 | AG84: 60 | AH84: 317887.4754 | AI84: 6331247.667
A85: 5.166666667 | B85: 62 | C85: 5 | D85: 2 | E85: 49 | F85: 34617.3398 | H85: 328.4767693 | I85: 0 | J85: 0 | K85: -40.53714722 | L85: 34905.27942 | N85: 62 | O85: 5 | P85: 2 | Q85: 5 | R85: 81709.0035 | S85: =IF($G$4="mensual",S84,0) -> 1913.239341 | U85: 793.4741471 | V85: -151.8592962 | X85: -97.74607493 | Y85: 84166.11162 | AA85: =+Bono!J85 -> 11874.66227 | AC85: 5.166666667 | AD85: 130946.0533 | AF85: 105 | AG85: 61 | AH85: 333740.5874 | AI85: 6664988.254
A86: 5.25 | B86: 63 | C86: 5 | D86: 3 | E86: 49 | F86: 34905.27942 | H86: 331.2089688 | I86: 0 | J86: =-SUM(F86:H86)*$J$21*1.16 -> -367.8689388 | K86: -40.44759856 | L86: 34828.17185 | N86: 63 | O86: 5 | P86: 3 | Q86: 5 | R86: 84166.11162 | S86: =IF($G$4="mensual",S85,0) -> 1913.239341 | U86: 816.7891372 | V86: -151.8592962 | X86: -100.6233657 | Y86: 86643.65744 | AA86: =+Bono!J86 -> 11840.64433 | AC86: 5.25 | AD86: 133312.4736 | AF86: 106 | AG86: 62 | AH86: 350384.2972 | AI86: 7015372.551
A87: 5.333333333 | B87: 64 | C87: 5 | D87: 4 | E87: 49 | F87: 34828.17185 | H87: 330.477311 | I87: 0 | J87: 0 | K87: -40.78403303 | L87: 35117.86513 | N87: 64 | O87: 5 | P87: 4 | Q87: 5 | R87: 86643.65744 | S87: =IF($G$4="mensual",S84,IF($G$4="trimestral",S84,0)) -> 1913.239341 | U87: 840.2980565 | V87: -151.8592962 | X87: -103.5245892 | Y87: 89141.81095 | AA87: =+Bono!J87 -> 11914.0577 | AC87: 5.333333333 | AD87: 136173.7338 | AF87: 107 | AG87: 63 | AH87: 367858.0322 | AI87: 7383230.583
A88: 5.416666667 | B88: 65 | C88: 5 | D88: 5 | E88: 49 | F88: 35117.86513 | H88: =SUM(F88:G88)*$G$8 -> 333.2261505 | I88: 0 | J88: 0 | K88: -41.12326589 | L88: =SUM(F88:K88) -> 35409.96802 | N88: 65 | O88: 5 | P88: 5 | Q88: 5 | R88: 89141.81095 | S88: =IF($G$4="mensual",S87,0) -> 1913.239341 | U88: 864.0025179 | V88: -151.8592962 | X88: -106.4499445 | Y88: =SUM(R88:X88) -> 91660.74357 | AA88: =+Bono!J88 -> 11987.92624 | AC88: =+B88/12 -> 5.416666667 | AD88: =+AA88+Y88+L88 -> 139058.6378 | AF88: 108 | AG88: 64 | AH88: 386203.1858 | AI88: 7769433.769
A89: =+B89/12 -> 5.5 | B89: =+B88+1 -> 66 | C89: 5 | D89: 6 | E89: 49 | F89: =L88 -> 35409.96802 | H89: 335.9978543 | I89: 0 | J89: =-SUM(F89:H89)*$J$21*1.16 -> -373.1878837 | K89: =-SUM(F89:J89)*0.1%*1.16 -> -41.03242246 | L89: 35331.74556 | N89: =+N88+1 -> 66 | O89: 5 | P89: 6 | Q89: 5 | R89: =Y88 -> 91660.74357 | S89: =IF($G$4="mensual",S88,0) -> 1913.239341 | U89: 887.9041479 | V89: -151.8592962 | X89: -109.3996322 | Y89: 94200.62813 | AA89: =+Bono!J89 -> 11953.58383 | AC89: 5.5 | AD89: 141485.9575 | AF89: 109 | AG89: 65 | AH89: 405463.216 | AI89: 8174896.985
A90: 5.583333333 | B90: 67 | C90: 5 | D90: 7 | E90: 49 | F90: 35331.74556 | H90: 335.2556177 | I90: 0 | J90: 0 | K90: -41.37372137 | L90: 35625.62746 | N90: 67 | O90: 5 | P90: 7 | Q90: 5 | R90: 94200.62813 | S90: =+IF($G$4="mensual",S84,IF($G$4="trimestral",S84,IF($G$4="semestral",S84,0))) -> 1913.239341 | U90: 912.0045866 | V90: -151.8592962 | X90: -112.3738548 | Y90: 96761.6389 | AA90: =+Bono!J90 -> 12027.69744 | AC90: 5.583333333 | AD90: 144414.9638 | AF90: 110 | AG90: 66 | AH90: 425683.7476 | AI90: 8600580.733
A91: 5.666666667 | B91: 68 | C91: 5 | D91: 8 | E91: 49 | F91: 35625.62746 | H91: 338.0442021 | I91: 0 | J91: 0 | K91: -41.71785913 | L91: 35921.9538 | N91: 68 | O91: 5 | P91: 8 | Q91: 5 | R91: 96761.6389 | S91: =IF($G$4="mensual",S90,0) -> 1913.239341 | U91: 936.3054875 | V91: -151.8592962 | X91: -115.3728163 | Y91: 99343.95162 | AA91: =+Bono!J91 -> 12102.27056 | AC91: 5.666666667 | AD91: 147368.176 | AF91: =+AF90+1 -> 111 | AG91: 67 | AH91: 446912.6813 | AI91: =+AI90+AH91 -> 9047493.414
A92: 5.75 | B92: 69 | C92: 5 | D92: 9 | E92: 49 | F92: 35921.9538 | H92: 340.8559814 | I92: 0 | J92: =-SUM(F92:H92)*$J$21*1.16 -> -378.5837341 | K92: -41.62570222 | L92: 35842.60035 | N92: 69 | O92: 5 | P92: 9 | Q92: 5 | R92: 99343.95162 | S92: =IF($G$4="mensual",S91,0) -> 1913.239341 | U92: 960.8085182 | V92: -151.8592962 | X92: -118.3967226 | Y92: 101947.7435 | AA92: =+Bono!J92 -> 12067.60058 | AC92: 5.75 | AD92: 149857.9444 | AF92: 112 | AG92: =+AG91+1 -> 68 | AH92: =IF($G$17="Si",(1+$G$20)*AH91,AH91) -> 469200.3061 | AI92: 9516693.72
A93: 5.833333333 | B93: 70 | C93: 5 | D93: 10 | E93: 49 | F93: 35842.60035 | H93: 340.1030129 | I93: 0 | J93: 0 | K93: -41.9719359 | L93: 36140.73143 | N93: 70 | O93: 5 | P93: 10 | Q93: 5 | R93: 101947.7435 | S93: =IF($G$4="mensual",S84,IF($G$4="trimestral",S84,0)) -> 1913.239341 | U93: 985.5153598 | V93: -151.8592962 | X93: -121.4457811 | Y93: 104573.1931 | AA93: =+Bono!J93 -> 12142.4211 | AC93: 5.833333333 | AD93: 152856.3456 | AF93: 113 | AG93: 69 | AH93: 492599.4192 | AI93: 10009293.14
A94: 5.916666667 | B94: 71 | C94: 5 | D94: 11 | E94: 49 | F94: 36140.73143 | H94: 342.931917 | I94: 0 | J94: 0 | K94: -42.32104948 | L94: 36441.34229 | N94: 71 | O94: 5 | P94: 11 | Q94: 5 | R94: 104573.1931 | S94: =IF($G$17="si",S82*(1+$G$20),S82) -> 1913.239341 | U94: 1010.427708 | V94: -151.8592962 | X94: -124.520201 | Y94: 107220.4806 | AA94: =+Bono!J94 -> 12217.70552 | AC94: 5.916666667 | AD94: 155879.5284 | AF94: 114 | AG94: 70 | AH94: 517165.4507 | AI94: 10526458.59
A95: 6 | B95: 72 | C95: 5 | D95: 12 | E95: 49 | F95: 36441.34229 | H95: 345.7843513 | I95: 0 | J95: =-SUM(F95:H95)*$J$21*1.16 -> -384.0576022 | K95: -42.22756009 | L95: 36360.84148 | N95: 72 | O95: 5 | P95: 12 | Q95: 5 | R95: 107220.4806 | S95: =IF($G$4="mensual",S94,0) -> 1913.239341 | U95: 1035.547271 | V95: -151.8592962 | X95: -127.6201932 | Y95: 109889.7878 | AA95: =+Bono!J95 -> 12182.70485 | AC95: 6 | AD95: 158433.3341 | AF95: 115 | AG95: 71 | AH95: 542956.5952 | AI95: 11069415.19
A96: 6.083333333 | B96: 73 | C96: 6 | D96: 1 | E96: 50 | F96: 36360.84148 | H96: 345.0204957 | I96: 0 | J96: 0 | K96: -42.57879989 | L96: 36663.28318 | N96: 73 | O96: 6 | P96: 1 | Q96: 6 | R96: 109889.7878 | S96: =IF($G$17="si",S84*(1+$G$20),S84) -> 2008.65297 | U96: 1061.781134 | V96: =V95*(1+$G$18) -> -159.4325497 | X96: -130.8489156 | Y96: 112669.9404 | AA96: =+Bono!J96 -> 12258.23903 | AC96: 6.083333333 | AD96: 161591.4626 | AF96: 116 | AG96: 72 | AH96: 570033.9492 | AI96: 11639449.13
A97: 6.166666667 | B97: 74 | C97: 6 | D97: 2 | E97: 50 | F97: 36663.28318 | H97: 347.8903024 | I97: 0 | J97: 0 | K97: -42.93296124 | L97: 36968.24052 | N97: 74 | O97: 6 | P97: 2 | Q97: 6 | R97: 112669.9404 | S97: =IF($G$4="mensual",S96,0) -> 2008.65297 | U97: 1088.161426 | V97: -159.4325497 | X97: -134.1044938 | Y97: 115473.2177 | AA97: =+Bono!J97 -> 12334.24154 | AC97: 6.166666667 | AD97: 164775.6998 | AF97: 117 | AG97: 73 | AH97: 598461.6562 | AI97: 12237910.79
A98: 6.25 | B98: 75 | C98: 6 | D98: 3 | E98: 50 | F98: 36968.24052 | H98: 350.7839794 | I98: 0 | J98: =-SUM(F98:H98)*$J$21*1.16 -> -389.6106158 | K98: -42.8381201 | L98: 36886.57576 | N98: 75 | O98: 6 | P98: 3 | Q98: 6 | R98: 115473.2177 | S98: =IF($G$4="mensual",S97,0) -> 2008.65297 | U98: 1114.761145 | V98: -159.4325497 | X98: -137.3871512 | Y98: 118299.8122 | AA98: =+Bono!J98 -> 12298.90702 | AC98: 6.25 | AD98: 167485.2949 | AF98: 118 | AG98: 74 | AH98: 628307.0587 | AI98: 12866217.85
A99: 6.333333333 | B99: 76 | C99: 6 | D99: 4 | E99: 50 | F99: 36886.57576 | H99: 350.0090795 | I99: 0 | J99: 0 | K99: -43.19443842 | L99: 37193.3904 | N99: 76 | O99: 6 | P99: 4 | Q99: 6 | R99: 118299.8122 | S99: =IF($G$4="mensual",S96,IF($G$4="trimestral",S96,0)) -> 2008.65297 | U99: 1141.582114 | V99: -159.4325497 | X99: -140.697113 | Y99: 121149.9176 | AA99: =+Bono!J99 -> 12375.16167 | AC99: 6.333333333 | AD99: 170718.4697 | AF99: 119 | AG99: 75 | AH99: 659640.8574 | AI99: 13525858.71
A100: 6.416666667 | B100: 77 | C100: =C88+1 -> 6 | D100: =D88 -> 5 | E100: =E88+1 -> 50 | F100: 37193.3904 | H100: 352.9203801 | I100: 0 | J100: 0 | K100: -43.55372051 | L100: 37502.75706 | N100: 77 | O100: =O88+1 -> 6 | P100: =P88 -> 5 | Q100: =Q88+1 -> 6 | R100: 121149.9176 | S100: =IF($G$4="mensual",S99,0) -> 2008.65297 | U100: =SUM(R100:T100)*$G$8 -> 1168.626174 | V100: -159.4325497 | X100: -144.0346064 | Y100: 124023.7296 | AA100: =+Bono!J100 -> 12451.88911 | AC100: 6.416666667 | AD100: 173978.3757 | AF100: 120 | AG100: 76 | AH100: 692537.2789 | AI100: 14218395.99
A101: 6.5 | B101: 78 | C101: 6 | D101: 6 | E101: 50 | F101: 37502.75706 | H101: 355.8558962 | I101: 0 | J101: =-SUM(F101:H101)*$J$21*1.16 -> -395.2439193 | K101: -43.45750809 | L101: 37419.91153 | N101: 78 | O101: 6 | P101: 6 | Q101: 6 | R101: 124023.7296 | S101: =IF($G$4="mensual",S100,0) -> 2008.65297 | U101: 1195.895181 | V101: -159.4325497 | X101: -147.3998604 | Y101: 126921.4453 | AA101: =+Bono!J101 -> 12416.21756 | AC101: 6.5 | AD101: 176757.5744 | AF101: 121 | AG101: 77 | AH101: 727074.2515 | AI101: 14945470.24
A102: 6.583333333 | B102: 79 | C102: 6 | D102: 7 | E102: 50 | F102: 37419.91153 | H102: 355.0697922 | I102: 0 | J102: 0 | K102: -43.81897834 | L102: 37731.16235 | N102: 79 | O102: 6 | P102: 7 | Q102: 6 | R102: 126921.4453 | S102: =+IF($G$4="mensual",S96,IF($G$4="trimestral",S96,IF($G$4="semestral",S96,0))) -> 2008.65297 | U102: 1223.391006 | V102: -159.4325497 | X102: -150.7931058 | Y102: 129843.2636 | AA102: =+Bono!J102 -> 12493.19955 | AC102: 6.583333333 | AD102: 180067.6255 | AF102: 122 | AG102: 78 | AH102: 763333.5898 | AI102: 15708803.83
A103: 6.666666667 | B103: 80 | C103: 6 | D103: 8 | E103: 50 | F103: 37731.16235 | H103: 358.0231867 | I103: 0 | J103: 0 | K103: -44.18345522 | L103: 38045.00208 | N103: 80 | O103: 6 | P103: 8 | Q103: 6 | R103: 129843.2636 | S103: =IF($G$4="mensual",S102,0) -> 2008.65297 | U103: 1251.115535 | V103: -159.4325497 | X103: -154.2145755 | Y103: 132789.385 | AA103: =+Bono!J103 -> 12570.65883 | AC103: 6.666666667 | AD103: 183405.0459 | AF103: 123 | AG103: 79 | AH103: 801401.1886 | AI103: 16510205.02
A104: 6.75 | B104: 81 | C104: 6 | D104: 9 | E104: 50 | F104: 38045.00208 | H104: 361.0011469 | I104: 0 | J104: =-SUM(F104:H104)*$J$21*1.16 -> -400.9586737 | K104: -44.08585168 | L104: 37960.9587 | N104: 81 | O104: 6 | P104: 9 | Q104: 6 | R104: 132789.385 | S104: =IF($G$4="mensual",S103,0) -> 2008.65297 | U104: 1279.07067 | V104: -159.4325497 | X104: -157.6645043 | Y104: 135760.0116 | AA104: =+Bono!J104 -> 12534.64704 | AC104: 6.75 | AD104: 186255.6173 | AF104: 124 | AG104: 80 | AH104: 841367.2262 | AI104: 17351572.24
A105: 6.833333333 | B105: 82 | C105: 6 | D105: 10 | E105: 50 | F105: 37960.9587 | H105: 360.2036767 | I105: 0 | J105: 0 | K105: -44.45254836 | L105: 38276.70983 | N105: 82 | O105: 6 | P105: 10 | Q105: 6 | R105: 135760.0116 | S105: =IF($G$4="mensual",S96,IF($G$4="trimestral",S96,0)) -> 2008.65297 | U105: 1307.258331 | V105: -159.4325497 | X105: -161.1431288 | Y105: 138755.3472 | AA105: =+Bono!J105 -> 12612.36331 | AC105: 6.833333333 | AD105: 189644.4203
A106: 6.916666667 | B106: 83 | C106: 6 | D106: 11 | E106: 50 | F106: 38276.70983 | H106: 363.1997738 | I106: 0 | J106: 0 | K106: -44.82229514 | L106: 38595.08731 | N106: 83 | O106: 6 | P106: 11 | Q106: 6 | R106: 138755.3472 | S106: =IF($G$17="si",S94*(1+$G$20),S94) -> 2008.65297 | U106: 1335.68045 | V106: -159.4325497 | X106: -164.6506878 | Y106: 141775.5974 | AA106: =+Bono!J106 -> 12690.56142 | AC106: 6.916666667 | AD106: 193061.2461
A107: 7 | B107: 84 | C107: 6 | D107: 12 | E107: 50 | F107: 38595.08731 | H107: 366.2207917 | I107: 0 | J107: =-SUM(F107:H107)*$J$21*1.16 -> -406.7560565 | K107: -44.72328037 | L107: 38509.82876 | N107: 84 | O107: 6 | P107: 12 | Q107: 6 | R107: 141775.5974 | S107: =IF($G$4="mensual",S106,0) -> 2008.65297 | U107: 1364.338979 | V107: -159.4325497 | X107: =-SUM(R107:V107)*0.1%*1.16 -> -168.1874219 | Y107: 144820.9694 | AA107: =+Bono!J107 -> 12654.20614 | AC107: 7 | AD107: 195985.0043
A108: 7.083333333 | B108: 85 | C108: 7 | D108: 1 | E108: 51 | F108: 38509.82876 | H108: 365.4117911 | I108: 0 | J108: 0 | K108: -45.09527904 | L108: 38830.14527 | N108: 85 | O108: 7 | P108: 1 | Q108: 7 | R108: 144820.9694 | S108: =IF($G$17="si",S96*(1+$G$20),S96) -> 2108.824895 | U108: 1394.186394 | V108: =V107*(1+$G$18) -> -167.3834829 | X108: -171.8616527 | Y108: 147984.7355 | AA108: =+Bono!J108 -> 12732.66368 | AC108: 7.083333333 | AD108: 199547.5445
A109: 7.166666667 | B109: 86 | C109: 7 | D109: 2 | E109: 51 | F109: 38830.14527 | H109: 368.4512081 | I109: 0 | J109: 0 | K109: -45.47037192 | L109: 39153.12611 | N109: 86 | O109: 7 | P109: 2 | Q109: 7 | R109: 147984.7355 | S109: =IF($G$4="mensual",S108,0) -> 2108.824895 | U109: 1424.206716 | V109: -167.3834829 | X109: -175.566445 | Y109: 151174.8172 | AA109: =+Bono!J109 -> 12811.60767 | AC109: 7.166666667 | AD109: 203139.551
A110: 7.25 | B110: 87 | C110: 7 | D110: 3 | E110: 51 | F110: 39153.12611 | H110: 371.5159064 | I110: 0 | J110: =-SUM(F110:H110)*$J$21*1.16 -> -412.6372626 | K110: -45.36992551 | L110: 39066.63483 | N110: 87 | O110: 7 | P110: 3 | Q110: 7 | R110: 151174.8172 | S110: =IF($G$4="mensual",S109,0) -> 2108.824895 | U110: 1454.47674 | V110: -167.3834829 | X110: -179.302053 | Y110: 154391.4333 | AA110: =+Bono!J110 -> 12774.90562 | AC110: 7.25 | AD110: 206232.9738
A111: 7.333333333 | B111: 88 | C111: 7 | D111: 4 | E111: 51 | F111: 39066.63483 | H111: 370.6952085 | I111: 0 | J111: 0 | K111: -45.74730284 | L111: 39391.58273 | N111: 88 | O111: 7 | P111: 4 | Q111: 7 | R111: 154391.4333 | S111: =IF($G$4="mensual",S108,IF($G$4="trimestral",S108,0)) -> 2108.824895 | U111: 1484.998544 | V111: -167.3834829 | X111: -183.068733 | Y111: 157634.8045 | AA111: =+Bono!J111 -> 12854.11152 | AC111: 7.333333333 | AD111: 209880.4988
A112: 7.416666667 | B112: 89 | C112: 7 | D112: 5 | E112: 51 | F112: 39391.58273 | H112: 373.7785719 | I112: 0 | J112: 0 | K112: -46.12781911 | L112: 39719.23349 | N112: 89 | O112: 7 | P112: 5 | Q112: 7 | R112: 157634.8045 | S112: =IF($G$4="mensual",S111,0) -> 2108.824895 | U112: 1515.774222 | V112: -167.3834829 | X112: -186.8667434 | Y112: 160905.1534 | AA112: =+Bono!J112 -> 12933.8085 | AC112: 7.416666667 | AD112: 213558.1954
A113: 7.5 | B113: 90 | C113: 7 | D113: 6 | E113: 51 | F113: 39719.23349 | H113: 376.8875821 | I113: 0 | J113: =-SUM(F113:H113)*$J$21*1.16 -> -418.6035039 | K113: -46.02592037 | L113: 39631.49164 | N113: 90 | O113: 7 | P113: 6 | Q113: 7 | R113: 160905.1534 | S113: =IF($G$4="mensual",S112,0) -> 2108.824895 | U113: 1546.805886 | V113: -167.3834829 | X113: -190.6963448 | Y113: 164202.7044 | AA113: =+Bono!J113 -> 12896.75637 | AC113: 7.5 | AD113: 216730.9524
A114: 7.583333333 | B114: 91 | C114: 7 | D114: 7 | E114: 51 | F114: 39631.49164 | H114: 376.0550179 | I114: 0 | J114: 0 | K114: -46.40875413 | L114: 39961.13791 | N114: 91 | O114: 7 | P114: 7 | Q114: 7 | R114: 164202.7044 | S114: =+IF($G$4="mensual",S108,IF($G$4="trimestral",S108,IF($G$4="semestral",S108,0))) -> 2108.824895 | U114: 1578.095664 | V114: -167.3834829 | X114: -194.5578001 | Y114: 167527.6837 | AA114: =+Bono!J114 -> 12976.71776 | AC114: 7.583333333 | AD114: 220465.5393
A115: 7.666666667 | B115: 92 | C115: 7 | D115: 8 | E115: 51 | F115: 39961.13791 | H115: 379.182963 | I115: 0 | J115: 0 | K115: -46.79477221 | L115: 40293.5261 | N115: 92 | O115: 7 | P115: 8 | Q115: 7 | R115: 167527.6837 | S115: =IF($G$4="mensual",S114,0) -> 2108.824895 | U115: 1609.645704 | V115: -167.3834829 | X115: -198.4513741 | Y115: 170880.3194 | AA115: =+Bono!J115 -> 13057.17492 | AC115: 7.666666667 | AD115: 224231.0204
A116: 7.75 | B116: 93 | C116: 7 | D116: 9 | E116: 51 | F116: 40293.5261 | H116: 382.3369257 | I116: 0 | J116: =-SUM(F116:H116)*$J$21*1.16 -> -424.65601 | K116: -46.69140014 | L116: 40204.51561 | N116: 93 | O116: 7 | P116: 9 | Q116: 7 | R116: 170880.3194 | S116: =IF($G$4="mensual",S115,0) -> 2108.824895 | U116: 1641.45817 | V116: -167.3834829 | X116: -202.377334 | Y116: 174260.8416 | AA116: =+Bono!J116 -> 13019.76937 | AC116: 7.75 | AD116: 227485.1266
A117: 7.833333333 | B117: 94 | C117: 7 | D117: 10 | E117: 51 | F117: 40204.51561 | H117: 381.4923237 | I117: 0 | J117: 0 | K117: -47.07976921 | L117: 40538.92817 | N117: 94 | O117: 7 | P117: 10 | Q117: 7 | R117: 174260.8416 | S117: =IF($G$4="mensual",S108,IF($G$4="trimestral",S108,0)) -> 2108.824895 | U117: 1673.535246 | V117: -167.3834829 | X117: -206.3359492 | Y117: 177669.4824 | AA117: =+Bono!J117 -> 13100.49345 | AC117: 7.833333333 | AD117: 231308.904
A118: 7.916666667 | B118: 95 | C118: 7 | D118: 11 | E118: 51 | F118: 40538.92817 | H118: 384.6654952 | I118: 0 | J118: 0 | K118: -47.47136865 | L118: 40876.12229 | N118: 95 | O118: 7 | P118: 11 | Q118: 7 | R118: 177669.4824 | S118: =IF($G$17="si",S106*(1+$G$20),S106) -> 2108.824895 | U118: 1705.879132 | V118: -167.3834829 | X118: -210.3274914 | Y118: 181106.4754 | AA118: =+Bono!J118 -> 13181.71803 | AC118: 7.916666667 | AD118: 235164.3157
A119: 8 | B119: 96 | C119: 7 | D119: 12 | E119: 51 | F119: 40876.12229 | H119: 387.8650604 | I119: 0 | J119: =-SUM(F119:H119)*$J$21*1.16 -> -430.796028 | K119: -47.36650194 | L119: 40785.82482 | N119: 96 | O119: 7 | P119: 12 | Q119: 7 | R119: 181106.4754 | S119: =IF($G$4="mensual",S118,0) -> 2108.824895 | U119: 1738.492047 | V119: -167.3834829 | X119: -214.3522343 | Y119: 184572.0566 | AA119: =+Bono!J119 -> 13143.95571 | AC119: 8 | AD119: 238501.8372
A120: 8.083333333 | B120: 97 | C120: 8 | D120: 1 | E120: 52 | F120: 40785.82482 | H120: 387.0082464 | I120: 0 | J120: 0 | K120: -47.76048636 | L120: 41125.07258 | N120: 97 | O120: 8 | P120: 1 | Q120: 8 | R120: 184572.0566 | S120: =IF($G$17="si",S108*(1+$G$20),S108) -> 2213.992414 | U120: 1772.374142 | V120: =V119*(1+$G$18) -> -175.7309306 | X120: -218.523923 | Y120: 188164.1683 | AA120: =+Bono!J120 -> 13225.44976 | AC120: 8.083333333 | AD120: 242514.6907
A121: 8.166666667 | B121: 98 | C121: 8 | D121: 2 | E121: 52 | F121: 41125.07258 | H121: 390.2272982 | I121: 0 | J121: 0 | K121: -48.15774786 | L121: 41467.14214 | N121: 98 | O121: 8 | P121: 2 | Q121: 8 | R121: 188164.1683 | S121: =IF($G$4="mensual",S120,0) -> 2213.992414 | U121: 1806.458947 | V121: -175.7309306 | X121: -222.730311 | Y121: 191786.1585 | AA121: =+Bono!J121 -> 13307.44908 | AC121: 8.166666667 | AD121: 246560.7497
A122: 8.25 | B122: 99 | C122: 8 | D122: 3 | E122: 52 | F122: 41467.14214 | H122: 393.4731253 | I122: 0 | J122: =-SUM(F122:H122)*$J$21*1.16 -> -437.0248233 | K122: -48.05136491 | L122: 41375.53907 | N122: 99 | O122: 8 | P122: 3 | Q122: 8 | R122: 191786.1585 | S122: =IF($G$4="mensual",S121,0) -> 2213.992414 | U122: 1840.827261 | V122: -175.7309306 | X122: -226.9716867 | Y122: 195438.2755 | AA122: =+Bono!J122 -> 13269.32657 | AC122: 8.25 | AD122: 250083.1411
A123: 8.333333333 | B123: 100 | C123: 8 | D123: 4 | E123: 52 | F123: 41375.53907 | H123: 392.6039228 | I123: 0 | J123: 0 | K123: -48.45104587 | L123: 41719.69195 | N123: 100 | O123: 8 | P123: 4 | Q123: 8 | R123: 195438.2755 | S123: =IF($G$4="mensual",S120,IF($G$4="trimestral",S120,0)) -> 2213.992414 | U123: 1875.481443 | V123: -175.7309306 | X123: -231.2483414 | Y123: 199120.7701 | AA123: =+Bono!J123 -> 13351.59793 | AC123: 8.333333333 | AD123: 254192.06
A124: 8.416666667 | B124: 101 | C124: 8 | D124: 5 | E124: 52 | F124: 41719.69195 | H124: 395.8695182 | I124: 0 | J124: 0 | K124: -48.8540513 | L124: 42066.70742 | N124: 101 | O124: 8 | P124: 5 | Q124: 8 | R124: 199120.7701 | S124: =IF($G$4="mensual",S123,0) -> 2213.992414 | U124: 1910.423872 | V124: -175.7309306 | X124: -235.5605683 | Y124: 202833.8949 | AA124: =+Bono!J124 -> 13434.37939 | AC124: 8.416666667 | AD124: 258334.9817
A125: 8.5 | B125: 102 | C125: 8 | D125: 6 | E125: 52 | F125: 42066.70742 | H125: 399.1622761 | I125: 0 | J125: =-SUM(F125:H125)*$J$21*1.16 -> -443.3436796 | K125: -48.74613017 | L125: 41973.77988 | N125: 102 | O125: 8 | P125: 6 | Q125: 8 | R125: 202833.8949 | S125: =IF($G$4="mensual",S124,0) -> 2213.992414 | U125: 1945.656944 | V125: =V124 -> -175.7309306 | X125: -239.9086634 | Y125: 206577.9046 | AA125: =+Bono!J125 -> 13395.89325 | AC125: 8.5 | AD125: 261947.5778
A126: 8.583333333 | B126: 103 | C126: 8 | D126: 7 | E126: 52 | F126: 41973.77988 | H126: 398.280506 | I126: 0 | J126: 0 | K126: -49.15159005 | L126: 42322.9088 | N126: 103 | O126: 8 | P126: 7 | Q126: 8 | R126: 206577.9046 | S126: =+IF($G$4="mensual",S120,IF($G$4="trimestral",S120,IF($G$4="semestral",S120,0))) -> 2213.992414 | U126: 1981.183078 | V126: -175.7309306 | X126: -244.2929251 | Y126: 210353.0563 | AA126: =+Bono!J126 -> 13478.94934 | AC126: 8.583333333 | AD126: 266154.9144
A127: 8.666666667 | B127: 104 | C127: 8 | D127: 8 | E127: 52 | F127: 42322.9088 | H127: 401.593318 | I127: 0 | J127: 0 | K127: -49.56042245 | L127: 42674.94169 | N127: 104 | O127: 8 | P127: 8 | Q127: 8 | R127: 210353.0563 | S127: =IF($G$4="mensual",S126,0) -> 2213.992414 | U127: 2017.00471 | V127: -175.7309306 | X127: -248.7136541 | Y127: 214159.6088 | AA127: =+Bono!J127 -> 13562.52039 | AC127: 8.666666667 | AD127: 270397.0709
A128: 8.75 | B128: 105 | C128: 8 | D128: 9 | E128: 52 | F128: 42674.94169 | H128: 404.9336852 | I128: 0 | J128: =-SUM(F128:H128)*$J$21*1.16 -> -449.753899 | K128: -49.45094092 | L128: 42580.67054 | N128: 105 | O128: 8 | P128: 9 | Q128: 8 | R128: 214159.6088 | S128: =IF($G$4="mensual",S127,0) -> 2213.992414 | U128: 2053.124299 | V128: -175.7309306 | X128: -253.1711537 | Y128: 217997.8234 | AA128: =+Bono!J128 -> 13523.66716 | AC128: 8.75 | AD128: 274102.1611
A129: 8.833333333 | B129: 106 | C129: 8 | D129: 10 | E129: 52 | F129: 42580.67054 | H129: 404.0391658 | I129: 0 | J129: 0 | K129: -49.86226326 | L129: 42934.84744 | N129: 106 | O129: 8 | P129: 10 | Q129: 8 | R129: 217997.8234 | S129: =IF($G$4="mensual",S120,IF($G$4="trimestral",S120,0)) -> 2213.992414 | U129: 2089.544322 | V129: -175.7309306 | X129: -257.6657299 | Y129: 221867.9635 | AA129: =+Bono!J129 -> 13607.51547 | AC129: 8.833333333 | AD129: 278410.3264
A130: 8.916666667 | B130: 107 | C130: 8 | D130: 11 | E130: 52 | F130: 42934.84744 | H130: 407.3998771 | I130: 0 | J130: 0 | K130: -50.27700689 | L130: 43291.97031 | N130: 107 | O130: 8 | P130: 11 | Q130: 8 | R130: 221867.9635 | S130: =IF($G$17="si",S118*(1+$G$20),S118) -> 2213.992414 | U130: 2126.26728 | V130: -175.7309306 | X130: -262.1976911 | Y130: 225770.2946 | AA130: =+Bono!J130 -> 13691.88364 | AC130: 8.916666667 | AD130: 282754.1486
A131: 9 | B131: 108 | C131: 8 | D131: 12 | E131: 52 | F131: 43291.97031 | H131: 410.788542 | I131: 0 | J131: =-SUM(F131:H131)*$J$21*1.16 -> -456.2568024 | K131: -50.16594238 | L131: 43196.33611 | N131: 108 | O131: 8 | P131: 12 | Q131: 8 | R131: 225770.2946 | S131: =IF($G$4="mensual",S130,0) -> 2213.992414 | U131: 2163.295692 | V131: -175.7309306 | X131: -266.7673481 | Y131: 229705.0844 | AA131: =+Bono!J131 -> 13652.65982 | AC131: 9 | AD131: 286554.0804
A132: 9.083333333 | B132: 109 | C132: 9 | D132: 1 | E132: 53 | F132: 43196.33611 | H132: 409.8810889 | I132: 0 | J132: 0 | K132: -50.58321195 | L132: 43555.63399 | N132: 109 | O132: 9 | P132: 1 | Q132: 9 | R132: 229705.0844 | S132: =IF($G$17="si",S120*(1+$G$20),S120) -> 2324.404659 | U132: 2201.679777 | V132: =V131*(1+$G$18) -> -184.4946673 | X132: -271.4941421 | Y132: 233775.1801 | AA132: =+Bono!J132 -> 13737.30789 | AC132: 9.083333333 | AD132: 291068.1219
A133: 9.166666667 | B133: 110 | C133: 9 | D133: 2 | E133: 53 | F133: 43555.63399 | H133: 413.290392 | I133: 0 | J133: 0 | K133: -51.00395228 | L133: 43917.92043 | N133: 110 | O133: 9 | P133: 2 | Q133: 9 | R133: 233775.1801 | S133: =IF($G$4="mensual",S132,0) -> 2324.404659 | U133: 2240.300071 | V133: -184.4946673 | X133: -276.2602525 | Y133: 237879.1299 | AA133: =+Bono!J133 -> 13822.4808 | AC133: 9.166666667 | AD133: 295619.5311
A134: 9.25 | B134: 111 | C134: 9 | D134: 3 | E134: 53 | F134: 43917.92043 | H134: 416.728053 | I134: 0 | J134: =-SUM(F134:H134)*$J$21*1.16 -> -462.8537301 | K134: -50.89128191 | L134: 43820.90347 | N134: 111 | O134: 9 | P134: 3 | Q134: 9 | R134: 237879.1299 | S134: =IF($G$4="mensual",S133,0) -> 2324.404659 | U134: 2279.241601 | V134: -184.4946673 | X134: -281.0660065 | Y134: 242017.2154 | AA134: =+Bono!J134 -> 13782.88284 | AC134: 9.25 | AD134: 299621.0018
A135: 9.333333333 | B135: 112 | C135: 9 | D135: 4 | E135: 53 | F135: 43820.90347 | H135: 415.8074792 | I135: 0 | J135: 0 | K135: -51.3145847 | L135: 44185.39636 | N135: 112 | O135: 9 | P135: 4 | Q135: 9 | R135: 242017.2154 | S135: =IF($G$4="mensual",S132,IF($G$4="trimestral",S132,0)) -> 2324.404659 | U135: 2318.507038 | V135: -184.4946673 | X135: -285.9117337 | Y135: 246189.7207 | AA135: =+Bono!J135 -> 13868.33832 | AC135: 9.333333333 | AD135: 304243.4554
A136: 9.416666667 | B136: 113 | C136: 9 | D136: 5 | E136: 53 | F136: 44185.39636 | H136: 419.2660768 | I136: 0 | J136: 0 | K136: -51.74140843 | L136: 44552.92103 | N136: 113 | O136: 9 | P136: 5 | Q136: 9 | R136: 246189.7207 | S136: =IF($G$4="mensual",S135,0) -> 2324.404659 | U136: 2358.099077 | V136: -184.4946673 | X136: -290.7977666 | Y136: 250396.932 | AA136: =+Bono!J136 -> 13954.32362 | AC136: 9.416666667 | AD136: 308904.1767
A137: 9.5 | B137: 114 | C137: 9 | D137: 6 | E137: 53 | F137: 44552.92103 | H137: 422.7534423 | I137: 0 | J137: =-SUM(F137:H137)*$J$21*1.16 -> -469.5460415 | K137: -51.62710898 | L137: 44454.50132 | N137: 114 | O137: 9 | P137: 6 | Q137: 9 | R137: 250396.932 | S137: =IF($G$4="mensual",S136,0) -> 2324.404659 | U137: 2398.020434 | V137: -184.4946673 | X137: -295.7244405 | Y137: 254639.138 | AA137: =+Bono!J137 -> 13914.34798 | AC137: 9.5 | AD137: 313007.9873
A138: 9.583333333 | B138: 115 | C138: 9 | D138: 7 | E138: 53 | F138: 44454.50132 | H138: 421.819558 | I138: 0 | J138: 0 | K138: -52.05653222 | L138: 44824.26435 | N138: 115 | O138: 9 | P138: 7 | Q138: 9 | R138: 254639.138 | S138: =+IF($G$4="mensual",S132,IF($G$4="trimestral",S132,IF($G$4="semestral",S132,0))) -> 2324.404659 | U138: 2438.273848 | V138: -184.4946673 | X138: -300.6920934 | Y138: 258916.6298 | AA138: =+Bono!J138 -> 14000.61855 | AC138: 9.583333333 | AD138: 317741.5127
A139: 9.666666667 | B139: 116 | C139: 9 | D139: 8 | E139: 53 | F139: 44824.26435 | H139: 425.3281628 | I139: 0 | J139: 0 | K139: -52.48952731 | L139: 45197.10298 | N139: 116 | O139: 9 | P139: 8 | Q139: 9 | R139: 258916.6298 | S139: =IF($G$4="mensual",S138,0) -> 2324.404659 | U139: 2478.862082 | V139: -184.4946673 | X139: -305.7010661 | Y139: 263229.7008 | AA139: =+Bono!J139 -> 14087.42401 | AC139: 9.666666667 | AD139: 322514.2278
A140: 9.75 | B140: 117 | C140: 9 | D140: 9 | E140: 53 | F140: 45197.10298 | H140: 428.8659514 | I140: 0 | J140: =-SUM(F140:H140)*$J$21*1.16 -> -476.3351157 | K140: -52.37357523 | L140: 45097.26024 | N140: 117 | O140: 9 | P140: 9 | Q140: 9 | R140: 263229.7008 | S140: =IF($G$4="mensual",S139,0) -> 2324.404659 | U140: 2519.787919 | V140: -184.4946673 | X140: -310.7517025 | Y140: 267578.647 | AA140: =+Bono!J140 -> 14047.06706 | AC140: 9.75 | AD140: 326722.9743
A141: 9.833333333 | B141: 118 | C141: 9 | D141: 10 | E141: 53 | F141: 45097.26024 | H141: 427.9185644 | I141: 0 | J141: 0 | K141: -52.80920742 | L141: 45472.3696 | N141: 118 | O141: 9 | P141: 10 | Q141: 9 | R141: 267578.647 | S141: =IF($G$4="mensual",S132,IF($G$4="trimestral",S132,0)) -> 2324.404659 | U141: 2561.05417 | V141: -184.4946673 | X141: -315.8443489 | Y141: 271963.7668 | AA141: =+Bono!J141 -> 14134.1605 | AC141: 9.833333333 | AD141: 331570.2969
A142: 9.916666667 | B142: 119 | C142: 9 | D142: 11 | E142: 53 | F142: 45472.3696 | H142: 431.4778994 | I142: 0 | J142: 0 | K142: -53.2484631 | L142: 45850.59904 | N142: 119 | O142: 9 | P142: 11 | Q142: 9 | R142: 271963.7668 | S142: =IF($G$17="si",S130*(1+$G$20),S130) -> 2324.404659 | U142: 2602.663663 | V142: -184.4946673 | X142: -320.9793549 | Y142: 276385.3611 | AA142: =+Bono!J142 -> 14221.79394 | AC142: 9.916666667 | AD142: 336457.7541
A143: 10 | B143: 120 | C143: 9 | D143: 12 | E143: 53 | F143: 45850.59904 | H143: 435.0668402 | I143: 0 | J143: =-SUM(F143:H143)*$J$21*1.16 -> -483.2223518 | K143: -53.13083449 | L143: 45749.31269 | N143: 120 | O143: 9 | P143: 12 | Q143: 9 | R143: 276385.3611 | S143: =IF($G$4="mensual",S142,0) -> 2324.404659 | U143: 2644.619256 | V143: -184.4946673 | X143: -326.1570728 | Y143: 280843.7333 | AA143: =+Bono!J143 -> 14181.05206 | AC143: 10 | AD143: 340774.098
A144: 10.08333333 | B144: 121 | C144: 10 | D144: 1 | E144: 54 | F144: 45749.31269 | H144: 434.105755 | I144: 0 | J144: 0 | K144: -53.5727654 | L144: 46129.84568 | N144: 121 | O144: 10 | P144: 1 | Q144: 10 | R144: 280843.7333 | S144: =IF($G$17="si",S132*(1+$G$20),S132) -> 2440.323184 | U144: 2688.023753 | V144: =V143*(1+$G$18) -> -193.6954532 | X144: -331.5029263 | Y144: 285446.8818 | AA144: =+Bono!J144 -> 14268.97622 | AC144: 10.08333333 | AD144: 345845.7037
A145: 10.16666667 | B145: 122 | C145: 10 | D145: 2 | E145: 54 | F145: 46129.84568 | H145: 437.7165538 | I145: 0 | J145: 0 | K145: -54.01837219 | L145: 46513.54386 | N145: 122 | O145: 10 | P145: 2 | Q145: 10 | R145: 285446.8818 | S145: =IF($G$4="mensual",S144,0) -> 2440.323184 | U145: 2731.702077 | V145: -193.6954532 | X145: -336.8932455 | Y145: 290088.3184 | AA145: =+Bono!J145 -> 14357.44553 | AC145: 10.16666667 | AD145: 350959.3078
A146: 10.25 | B146: 123 | C146: 10 | D146: 3 | E146: 54 | F146: 46513.54386 | H146: 441.3573864 | I146: 0 | J146: =-SUM(F146:H146)*$J$21*1.16 -> -490.209169 | K146: -53.89904281 | L146: 46410.79304 | N146: 123 | O146: 10 | P146: 3 | Q146: 10 | R146: 290088.3184 | S146: =IF($G$4="mensual",S145,0) -> 2440.323184 | U146: 2775.743707 | V146: -193.6954532 | X146: -342.3284002 | Y146: 294768.3614 | AA146: =+Bono!J146 -> 14316.31504 | AC146: 10.25 | AD146: 355495.4695
A147: 10.33333333 | B147: 124 | C147: 10 | D147: 4 | E147: 54 | F147: 46410.79304 | H147: 440.3824051 | I147: 0 | J147: 0 | K147: -54.34736351 | L147: 46796.82808 | N147: 124 | O147: 10 | P147: 4 | Q147: 10 | R147: 294768.3614 | S147: =IF($G$4="mensual",S144,IF($G$4="trimestral",S144,0)) -> 2440.323184 | U147: 2820.151667 | V147: -193.6954532 | X147: -347.8087634 | Y147: 299487.3321 | AA147: =+Bono!J147 -> 14405.07785 | AC147: 10.33333333 | AD147: 360689.238
A148: 10.41666667 | B148: 125 | C148: 10 | D148: 5 | E148: 54 | F148: 46796.82808 | H148: 444.0454116 | I148: 0 | J148: 0 | K148: -54.79941325 | L148: 47186.07408 | N148: 125 | O148: 10 | P148: 5 | Q148: 10 | R148: 299487.3321 | S148: =IF($G$4="mensual",S147,0) -> 2440.323184 | U148: 2864.929002 | V148: -193.6954532 | X148: -353.334711 | Y148: 304245.5541 | AA148: =+Bono!J148 -> 14494.39101 | AC148: 10.41666667 | AD148: 365926.0192
A149: 10.5 | B149: 126 | C149: 10 | D149: 6 | E149: 54 | F149: 47186.07408 | H149: 447.7388863 | I149: 0 | J149: =-SUM(F149:H149)*$J$21*1.16 -> -497.2970073 | K149: -54.67835851 | L149: 47081.8376 | N149: 126 | O149: 10 | P149: 6 | Q149: 10 | R149: 304245.5541 | S149: =IF($G$4="mensual",S148,0) -> 2440.323184 | U149: 2910.078785 | V149: -193.6954532 | X149: -358.9066223 | Y149: 309043.354 | AA149: =+Bono!J149 -> 14452.8682 | AC149: 10.5 | AD149: 370578.0598
A150: 10.58333333 | B150: 127 | C150: 10 | D150: 7 | E150: 54 | F150: 47081.8376 | H150: 446.7498079 | I150: 0 | J150: 0 | K150: -55.13316139 | L150: 47473.45424 | N150: 127 | O150: 10 | P150: 7 | Q150: 10 | R150: 309043.354 | S150: =+IF($G$4="mensual",S144,IF($G$4="trimestral",S144,IF($G$4="semestral",S144,0))) -> 2440.323184 | U150: 2955.604115 | V150: -193.6954532 | X150: -364.5248796 | Y150: 313881.0609 | AA150: =+Bono!J150 -> 14542.47766 | AC150: 10.58333333 | AD150: 375896.9929
A151: 10.66666667 | B151: 128 | C151: 10 | D151: 8 | E151: 54 | F151: 47473.45424 | H151: 450.4657772 | I151: 0 | J151: 0 | K151: -55.59174722 | L151: 47868.32827 | N151: 128 | O151: 10 | P151: 8 | Q151: 10 | R151: 313881.0609 | S151: =IF($G$4="mensual",S150,0) -> 2440.323184 | U151: 3001.508115 | V151: -193.6954532 | X151: -370.1898683 | Y151: 318759.0069 | AA151: =+Bono!J151 -> 14632.64271 | AC151: 10.66666667 | AD151: 381259.9779
A152: 10.75 | B152: 129 | C152: 10 | D152: 9 | E152: 54 | F152: 47868.32827 | H152: =SUM(F152:G152)*$G$8 -> 454.2126551 | I152: 0 | J152: =-SUM(F152:H152)*$J$21*1.16 -> -504.4873273 | K152: -55.46894218 | L152: =SUM(F152:K152) -> 47762.58466 | N152: 129 | O152: 10 | P152: 9 | Q152: 10 | R152: 318759.0069 | S152: =IF($G$4="mensual",S151,0) -> 2440.323184 | U152: 3047.793934 | V152: -193.6954532 | X152: -375.9019772 | Y152: =SUM(R152:X152) -> 323677.5266 | AA152: =+Bono!J152 -> 14590.72385 | AC152: =+B152/12 -> 10.75 | AD152: =+AA152+Y152+L152 -> 386030.8351
A153: =+B153/12 -> 10.83333333 | B153: =+B152+1 -> 130 | C153: 10 | D153: 10 | E153: 54 | F153: =L152 -> 47762.58466 | H153: 453.2092758 | I153: 0 | J153: 0 | K153: =-SUM(F153:J153)*0.1%*1.16 -> -55.93032096 | L153: 48159.86361 | N153: =+N152+1 -> 130 | O153: 10 | P153: 10 | Q153: 10 | R153: =Y152 -> 323677.5266 | S153: =IF($G$4="mensual",S144,IF($G$4="trimestral",S144,0)) -> 2440.323184 | U153: 3094.464749 | V153: -193.6954532 | X153: -381.6615981 | Y153: 328636.9575 | AA153: =+Bono!J153 -> 14681.18803 | AC153: 10.83333333 | AD153: 391478.0091
A154: 10.91666667 | B154: 131 | C154: 10 | D154: 11 | E154: 54 | F154: 48159.86361 | H154: 456.9789736 | I154: 0 | J154: 0 | K154: -56.3955374 | L154: 48560.44705 | N154: 131 | O154: 10 | P154: 11 | Q154: 10 | R154: 328636.9575 | S154: =IF($G$17="si",S142*(1+$G$20),S142) -> 2440.323184 | U154: 3141.523762 | V154: -193.6954532 | X154: -387.4691264 | Y154: 333637.6399 | AA154: =+Bono!J154 -> 14772.2131 | AC154: 10.91666667 | AD154: 396970.3
A155: 11 | B155: 132 | C155: 10 | D155: 12 | E155: 54 | F155: 48560.44705 | H155: 460.7800269 | I155: 0 | J155: =-SUM(F155:H155)*$J$21*1.16 -> -511.7816107 | K155: -56.27095674 | L155: 48453.17451 | N155: 132 | O155: 10 | P155: 12 | Q155: 10 | R155: 333637.6399 | S155: =IF($G$4="mensual",S154,0) -> 2440.323184 | U155: 3188.974201 | V155: -193.6954532 | X155: -393.3249605 | Y155: 338679.9168 | AA155: =+Bono!J155 -> 14729.8944 | AC155: 11 | AD155: 401862.9857
A156: 11.08333333 | B156: 133 | C156: 11 | D156: 1 | E156: 55 | F156: 48453.17451 | H156: 459.7621399 | I156: 0 | J156: 0 | K156: -56.73900651 | L156: 48856.19764 | N156: 133 | O156: 11 | P156: 1 | Q156: 11 | R156: 338679.9168 | S156: =IF($G$17="si",S144*(1+$G$20),S144) -> 2562.022589 | U156: 3237.974104 | V156: =V155*(1+$G$18) -> -203.3550842 | X156: -399.3608078 | Y156: 343877.1976 | AA156: =+Bono!J156 -> 14821.22145 | AC156: 11.08333333 | AD156: 407554.6167
A157: 11.16666667 | B157: 134 | C157: 11 | D157: 2 | E157: 55 | F157: 48856.19764 | H157: 463.586343 | I157: 0 | J157: 0 | K157: -57.21094942 | L157: 49262.57304 | N157: 134 | O157: 11 | P157: 2 | Q157: 11 | R157: 343877.1976 | S157: =IF($G$4="mensual",S156,0) -> 2562.022589 | U157: 3287.290025 | V157: -203.3550842 | X157: -405.44686 | Y157: 349117.7083 | AA157: =+Bono!J157 -> 14913.11475 | AC157: 11.16666667 | AD157: 413293.3961
A158: 11.25 | B158: 135 | C158: 11 | D158: 3 | E158: 55 | F158: 49262.57304 | H158: 467.442355 | I158: 0 | J158: =-SUM(F158:H158)*$J$21*1.16 -> -519.1813607 | K158: -57.08456748 | L158: 49153.74946 | N158: 135 | O158: 11 | P158: 3 | Q158: 11 | R158: 349117.7083 | S158: =IF($G$4="mensual",S157,0) -> 2562.022589 | U158: 3337.016146 | V158: -203.3550842 | X158: -411.5835347 | Y158: 354401.8084 | AA158: =+Bono!J158 -> 14870.3924 | AC158: 11.25 | AD158: 418425.9503
A159: 11.33333333 | B159: 136 | C159: 11 | D159: 4 | E159: 55 | F159: 49153.74946 | H159: 466.4097506 | I159: 0 | J159: 0 | K159: -57.55938469 | L159: 49562.59983 | N159: 136 | O159: 11 | P159: 4 | Q159: 11 | R159: 354401.8084 | S159: =IF($G$4="mensual",S156,IF($G$4="trimestral",S156,0)) -> 2562.022589 | U159: 3387.155878 | V159: -203.3550842 | X159: -417.7712529 | Y159: 359729.8605 | AA159: =+Bono!J159 -> 14962.59056 | AC159: 11.33333333 | AD159: 424255.0509
A160: 11.41666667 | B160: 137 | C160: 11 | D160: 5 | E160: 55 | F160: 49562.59983 | H160: 470.2892471 | I160: 0 | J160: 0 | K160: -58.03815133 | L160: 49974.85092 | N160: 137 | O160: 11 | P160: 5 | Q160: 11 | R160: 359729.8605 | S160: =IF($G$4="mensual",S159,0) -> 2562.022589 | U160: 3437.712661 | V160: -203.3550842 | X160: -424.0104392 | Y160: 365102.2303 | AA160: =+Bono!J160 -> 15055.36036 | AC160: 11.41666667 | AD160: 430132.4416
A161: 11.5 | B161: 138 | C161: 11 | D161: 6 | E161: 55 | F161: 49974.85092 | H161: 474.2010124 | I161: 0 | J161: =-SUM(F161:H161)*$J$21*1.16 -> -526.6881022 | K161: -57.90994205 | L161: 49864.45389 | N161: 138 | O161: 11 | P161: 6 | Q161: 11 | R161: 365102.2303 | S161: =IF($G$4="mensual",S160,0) -> 2562.022589 | U161: 3488.689965 | V161: -203.3550842 | X161: -430.3015218 | Y161: 370519.2862 | AA161: =+Bono!J161 -> 15012.23052 | AC161: 11.5 | AD161: 435395.9706
A162: 11.58333333 | B162: 139 | C162: 11 | D162: 7 | E162: 55 | F162: 49864.45389 | H162: 473.1534778 | I162: 0 | J162: 0 | K162: -58.39162455 | L162: 50279.21575 | N162: 139 | O162: 11 | P162: 7 | Q162: 11 | R162: 370519.2862 | S162: =+IF($G$4="mensual",S156,IF($G$4="trimestral",S156,IF($G$4="semestral",S156,0))) -> 2562.022589 | U162: 3540.091287 | V162: -203.3550842 | X162: -436.6449322 | Y162: 375981.4001 | AA162: =+Bono!J162 -> 15105.30809 | AC162: 11.58333333 | AD162: 441365.9239
A163: 11.66666667 | B163: 140 | C163: 11 | D163: 8 | E163: 55 | F163: 50279.21575 | H163: 477.0890671 | I163: 0 | J163: 0 | K163: -58.87731358 | L163: 50697.4275 | N163: 140 | O163: 11 | P163: 8 | Q163: 11 | R163: 375981.4001 | S163: =IF($G$4="mensual",S162,0) -> 2562.022589 | U163: 3591.920154 | V163: -203.3550842 | X163: -443.0411058 | Y163: 381488.9466 | AA163: =+Bono!J163 -> 15198.96275 | AC163: 11.66666667 | AD163: 447385.3369
A164: 11.75 | B164: 141 | C164: =C152+1 -> 11 | D164: =D152 -> 9 | E164: =E152+1 -> 55 | F164: 50697.4275 | H164: 481.0573919 | I164: 0 | J164: =-SUM(F164:H164)*$J$21*1.16 -> -534.3033823 | K164: -58.74725055 | L164: 50585.43426 | N164: 141 | O164: =O152+1 -> 11 | P164: =P152 -> 9 | Q164: =Q152+1 -> 11 | R164: 381488.9466 | S164: =IF($G$4="mensual",S163,0) -> 2562.022589 | U164: =SUM(R164:T164)*$G$8 -> 3644.180123 | V164: -203.3550842 | X164: -449.4904813 | Y164: 387042.3038 | AA164: =+Bono!J164 -> 15155.42152 | AC164: 11.75 | AD164: 452783.1596
A165: 11.83333333 | B165: 142 | C165: 11 | D165: 10 | E165: 55 | F165: 50585.43426 | H165: 479.9947112 | I165: 0 | J165: 0 | K165: -59.23589761 | L165: 51006.19307 | N165: 142 | O165: 11 | P165: 10 | Q165: 11 | R165: 387042.3038 | S165: =IF($G$4="mensual",S156,IF($G$4="trimestral",S156,0)) -> 2562.022589 | U165: 3696.874779 | V165: -203.3550842 | X165: -455.9935014 | Y165: 392641.8526 | AA165: =+Bono!J165 -> 15249.38689 | AC165: 11.83333333 | AD165: 458897.4325
A166: 11.91666667 | B166: 143 | C166: 11 | D166: 11 | E166: 55 | F166: 51006.19307 | H166: 483.9872044 | I166: 0 | J166: 0 | K166: -59.72860912 | L166: 51430.45167 | N166: 143 | O166: 11 | P166: 11 | Q166: 11 | R166: 392641.8526 | S166: =IF($G$17="si",S154*(1+$G$20),S154) -> 2562.022589 | U166: 3750.007738 | V166: -203.3550842 | X166: -462.5506123 | Y166: 398287.9772 | AA166: =+Bono!J166 -> 15343.93486 | AC166: 11.91666667 | AD166: 465062.3637
A167: 12 | B167: 144 | C167: 11 | D167: 12 | E167: 55 | F167: 51430.45167 | H167: 488.0129064 | I167: 0 | J167: =-SUM(F167:H167)*$J$21*1.16 -> -542.0287702 | K167: -59.59666553 | L167: 51316.83914 | N167: 144 | O167: 11 | P167: 12 | Q167: 11 | R167: 398287.9772 | S167: =IF($G$4="mensual",S166,0) -> 2562.022589 | U167: 3803.582646 | V167: -203.3550842 | X167: -469.1622637 | Y167: 403981.0651 | AA167: =+Bono!J167 -> 15299.97832 | AC167: 12 | AD167: 470597.8825
A168: 12.08333333 | B168: 145 | C168: 12 | D168: 1 | E168: 56 | F168: 51316.83914 | H168: 486.9348606 | I168: 0 | J168: 0 | K168: -60.09237784 | L168: 51743.68162 | N168: 145 | O168: 12 | P168: 1 | Q168: 12 | R168: 403981.0651 | S168: =IF($G$17="si",S156*(1+$G$20),S156) -> 2689.791168 | U168: 3858.815548 | V168: =V167*(1+$G$18) -> -213.496443 | X168: -475.9667634 | Y168: 409840.2086 | AA168: =+Bono!J168 -> 15394.83996 | AC168: 12.08333333 | AD168: 476978.7302
A169: 12.16666667 | B169: 146 | C169: 12 | D169: 2 | E169: 56 | F169: 51743.68162 | H169: 490.9850806 | I169: 0 | J169: 0 | K169: -60.59221337 | L169: 52174.07449 | N169: 146 | O169: 12 | P169: 2 | Q169: 12 | R169: 409840.2086 | S169: =IF($G$4="mensual",S168,0) -> 2689.791168 | U169: 3914.411747 | V169: -213.496443 | X169: -482.8278615 | Y169: 415748.0872 | AA169: =+Bono!J169 -> 15490.28976 | AC169: 12.16666667 | AD169: 483412.4514
A170: 12.25 | B170: 147 | C170: 12 | D170: 3 | E170: 56 | F170: 52174.07449 | H170: 495.0689894 | I170: 0 | J170: =-SUM(F170:H170)*$J$21*1.16 -> -549.8658579 | K170: -60.45836204 | L170: 52058.81926 | N170: 147 | O170: 12 | P170: 3 | Q170: 12 | R170: 415748.0872 | S170: =IF($G$4="mensual",S169,0) -> 2689.791168 | U170: 3970.470384 | V170: -213.496443 | X170: -489.7460287 | Y170: 421705.1063 | AA170: =+Bono!J170 -> 15445.91395 | AC170: 12.25 | AD170: 489209.8395
A171: 12.33333333 | B171: 148 | C171: 12 | D171: 4 | E171: 56 | F171: 52058.81926 | H171: 493.9753564 | I171: 0 | J171: 0 | K171: -60.96124175 | L171: 52491.83337 | N171: 148 | O171: 12 | P171: 4 | Q171: 12 | R171: 421705.1063 | S171: =IF($G$4="mensual",S168,IF($G$4="trimestral",S168,0)) -> 2689.791168 | U171: 4026.995304 | V171: -213.496443 | X171: =-SUM(R171:V171)*0.1%*1.16 -> -496.7217397 | Y171: 427711.6746 | AA171: =+Bono!J171 -> 15541.68041 | AC171: 12.33333333 | AD171: 495745.1884
A172: 12.41666667 | B172: 149 | C172: 12 | D172: 5 | E172: 56 | F172: 52491.83337 | H172: 498.0841376 | I172: 0 | J172: 0 | K172: -61.46830431 | L172: 52928.44921 | N172: 149 | O172: 12 | P172: 5 | Q172: 12 | R172: 427711.6746 | S172: =IF($G$4="mensual",S171,0) -> 2689.791168 | U172: 4083.990387 | V172: -213.496443 | X172: -503.7554732 | Y172: 433768.2042 | AA172: =+Bono!J172 -> 15638.04063 | AC172: 12.41666667 | AD172: 502334.694
A173: 12.5 | B173: 150 | C173: 12 | D173: 6 | E173: 56 | F173: 52928.44921 | H173: 502.2270949 | I173: 0 | J173: =-SUM(F173:H173)*$J$21*1.16 -> -557.8162606 | K173: -61.33251765 | L173: 52811.52752 | N173: 150 | O173: 12 | P173: 6 | Q173: 12 | R173: 433768.2042 | S173: =IF($G$4="mensual",S172,0) -> 2689.791168 | U173: 4141.459543 | V173: -213.496443 | X173: -510.8477118 | Y173: 439875.1108 | AA173: =+Bono!J173 -> 15593.24155 | AC173: 12.5 | AD173: 508279.8798
A174: 12.58333333 | B174: 151 | C174: 12 | D174: 7 | E174: 56 | F174: 52811.52752 | H174: 501.1176492 | I174: 0 | J174: 0 | K174: -61.8426684 | L174: 53250.8025 | N174: 151 | O174: 12 | P174: 7 | Q174: 12 | R174: 439875.1108 | S174: =+IF($G$4="mensual",S168,IF($G$4="trimestral",S168,IF($G$4="semestral",S168,0))) -> 2689.791168 | U174: 4199.406715 | V174: -213.496443 | X174: -517.9989422 | Y174: 446032.8133 | AA174: =+Bono!J174 -> 15689.92146 | AC174: 12.58333333 | AD174: 514973.5372
A175: 12.66666667 | B175: 152 | C175: 12 | D175: 8 | E175: 56 | F175: 53250.8025 | H175: 505.2858386 | I175: 0 | J175: 0 | K175: -62.35706248 | L175: 53693.73128 | N175: 152 | O175: 12 | P175: 8 | Q175: 12 | R175: 446032.8133 | S175: =IF($G$4="mensual",S174,0) -> 2689.791168 | U175: 4257.835879 | V175: -213.496443 | X175: -525.2096549 | Y175: 452241.7342 | AA175: =+Bono!J175 -> 15787.20079 | AC175: 12.66666667 | AD175: 521722.6663
A176: 12.75 | B176: 153 | C176: 12 | D176: 9 | E176: 56 | F176: 53693.73128 | H176: 509.488698 | I176: 0 | J176: =-SUM(F176:H176)*$J$21*1.16 -> -565.8816166 | K176: -62.2193125 | L176: 53575.11905 | N176: 153 | O176: 12 | P176: 9 | Q176: 12 | R176: 452241.7342 | S176: =IF($G$4="mensual",S175,0) -> 2689.791168 | U176: 4316.751044 | V176: -213.496443 | X176: -532.4803448 | Y176: 458502.2996 | AA176: =+Bono!J176 -> 15741.97441 | AC176: 12.75 | AD176: 527819.3931
A177: 12.83333333 | B177: 154 | C177: 12 | D177: 10 | E177: 56 | F177: 53575.11905 | H177: 508.3632111 | I177: 0 | J177: 0 | K177: -62.73683942 | L177: 54020.74542 | N177: 154 | O177: 12 | P177: 10 | Q177: 12 | R177: 458502.2996 | S177: =IF($G$4="mensual",S168,IF($G$4="trimestral",S168,0)) -> 2689.791168 | U177: 4376.156253 | V177: -213.496443 | X177: -539.8115107 | Y177: 464814.9391 | AA177: =+Bono!J177 -> 15839.57648 | AC177: 12.83333333 | AD177: 534675.261
A178: 12.91666667 | B178: 155 | C178: 12 | D178: 11 | E178: 56 | F178: 54020.74542 | H178: 512.5916675 | I178: 0 | J178: 0 | K178: -63.25867102 | L178: 54470.07842 | N178: 155 | O178: 12 | P178: 11 | Q178: 12 | R178: 464814.9391 | S178: =IF($G$17="si",S166*(1+$G$20),S166) -> 2689.791168 | U178: 4436.055582 | V178: -213.496443 | X178: -547.2036557 | Y178: 471180.0858 | AA178: =+Bono!J178 -> 15937.78369 | AC178: 12.91666667 | AD178: 541587.9479
A179: 13 | B179: 156 | C179: 12 | D179: 12 | E179: 56 | F179: 54470.07842 | H179: 516.8552952 | I179: 0 | J179: =-SUM(F179:H179)*$J$21*1.16 -> -574.0635879 | K179: -63.11892934 | L179: 54349.75119 | N179: 156 | O179: 12 | P179: 12 | Q179: 12 | R179: 471180.0858 | S179: =IF($G$4="mensual",S178,0) -> 2689.791168 | U179: 4496.45314 | V179: -213.496443 | X179: -554.657287 | Y179: 477598.1763 | AA179: =+Bono!J179 -> 15892.12593 | AC179: 13 | AD179: 547840.0535
A180: 13.08333333 | B180: 157 | C180: 13 | D180: 1 | E180: 57 | F180: 54349.75119 | H180: 515.7135351 | I180: 0 | J180: 0 | K180: -63.64393909 | L180: 54801.82079 | N180: 157 | O180: 13 | P180: 1 | Q180: 13 | R180: 477598.1763 | S180: =IF($G$17="si",S168*(1+$G$20),S168) -> 2823.931591 | U180: 4558.625903 | V180: =V179*(1+$G$18) -> -224.1435533 | X180: -562.3176447 | Y180: 484194.2726 | AA180: =+Bono!J180 -> 15990.65895 | AC180: 13.08333333 | AD180: 554986.7524
A181: 13.16666667 | B181: 158 | C181: 13 | D181: 2 | E181: 57 | F181: 54801.82079 | H181: 520.0031299 | I181: 0 | J181: 0 | K181: -64.17331575 | L181: 55257.6506 | N181: 158 | O181: 13 | P181: 2 | Q181: 13 | R181: 484194.2726 | S181: =IF($G$4="mensual",S180,0) -> 2823.931591 | U181: 4621.214895 | V181: -224.1435533 | X181: -570.0417197 | Y181: 490845.2338 | AA181: =+Bono!J181 -> 16089.80289 | AC181: 13.16666667 | AD181: 562192.6873
A182: 13.25 | B182: 159 | C182: 13 | D182: 3 | E182: 57 | F182: 55257.6506 | H182: 524.3284046 | I182: 0 | J182: =-SUM(F182:H182)*$J$21*1.16 -> -582.3638609 | K182: -64.03155357 | L182: 55135.58359 | N182: 159 | O182: 13 | P182: 3 | Q182: 13 | R182: 490845.2338 | S182: =IF($G$4="mensual",S181,0) -> 2823.931591 | U182: 4684.324489 | V182: -224.1435533 | X182: -577.8300418 | Y182: 497551.5163 | AA182: =+Bono!J182 -> 16043.70963 | AC182: 13.25 | AD182: 568730.8096
A183: 13.33333333 | B183: 160 | C183: 13 | D183: 4 | E183: 57 | F183: 55135.58359 | H183: 523.1701361 | I183: 0 | J183: 0 | K183: -64.56415433 | L183: 55594.18958 | N183: 160 | O183: 13 | P183: 4 | Q183: 13 | R183: 497551.5163 | S183: =IF($G$4="mensual",S180,IF($G$4="trimestral",S180,0)) -> 2823.931591 | U183: 4747.959015 | V183: -224.1435533 | X183: -585.6831455 | Y183: 504313.5802 | AA183: =+Bono!J183 -> 16143.18249 | AC183: 13.33333333 | AD183: 576050.9523
A184: 13.41666667 | B184: 161 | C184: 13 | D184: 5 | E184: 57 | F184: 55594.18958 | H184: 527.5217533 | I184: 0 | J184: 0 | K184: -65.10118514 | L184: 56056.61014 | N184: 161 | O184: 13 | P184: 5 | Q184: 13 | R184: 504313.5802 | S184: =IF($G$4="mensual",S183,0) -> 2823.931591 | U184: 4812.122839 | V184: -224.1435533 | X184: -593.6015697 | Y184: 511131.8895 | AA184: =+Bono!J184 -> 16243.27209 | AC184: 13.41666667 | AD184: 583431.7718
A185: 13.5 | B185: 162 | C185: 13 | D185: 6 | E185: 57 | F185: 56056.61014 | H185: 531.9095663 | I185: 0 | J185: =-SUM(F185:H185)*$J$21*1.16 -> -590.7841458 | K185: -64.95737326 | L185: 55932.77819 | N185: 162 | O185: 13 | P185: 6 | Q185: 13 | R185: 511131.8895 | S185: =IF($G$4="mensual",S184,0) -> 2823.931591 | U185: 4876.820364 | V185: -224.1435533 | X185: -601.5858576 | Y185: 518006.9121 | AA185: =+Bono!J185 -> 16196.73918 | AC185: 13.5 | AD185: 590136.4295
A186: 13.58333333 | B186: 163 | C186: 13 | D186: 7 | E186: 57 | F186: 55932.77819 | H186: 530.7345505 | I186: 0 | J186: 0 | K186: -65.49767478 | L186: 56398.01507 | N186: 163 | O186: 13 | P186: 7 | Q186: 13 | R186: 518006.9121 | S186: =+IF($G$4="mensual",S180,IF($G$4="trimestral",S180,IF($G$4="semestral",S180,0))) -> 2823.931591 | U186: 4942.05603 | V186: -224.1435533 | X186: -609.6365571 | Y186: 524939.1196 | AA186: =+Bono!J186 -> 16297.16084 | AC186: 13.58333333 | AD186: 597634.2955
A187: 13.66666667 | B187: 164 | C187: 13 | D187: 8 | E187: 57 | F187: 56398.01507 | H187: 535.1490869 | I187: 0 | J187: 0 | K187: -66.04247042 | L187: 56867.12168 | N187: 164 | O187: 13 | P187: 8 | Q187: 13 | R187: 524939.1196 | S187: =IF($G$4="mensual",S186,0) -> 2823.931591 | U187: 5007.834311 | V187: -224.1435533 | X187: -617.7542207 | Y187: 531928.9877 | AA187: =+Bono!J187 -> 16398.20513 | AC187: 13.66666667 | AD187: 605194.3145
A188: 13.75 | B188: 165 | C188: 13 | D188: 9 | E188: 57 | F188: 56867.12168 | H188: 539.6003424 | I188: 0 | J188: =-SUM(F188:H188)*$J$21*1.16 -> -599.326178 | K188: -65.89657918 | L188: 56741.49927 | N188: 165 | O188: 13 | P188: 9 | Q188: 13 | R188: 531928.9877 | S188: =IF($G$4="mensual",S187,0) -> 2823.931591 | U188: 5074.159723 | V188: -224.1435533 | X188: -625.9394052 | Y188: 538976.9961 | AA188: =+Bono!J188 -> 16351.22837 | AC188: 13.75 | AD188: 612069.7237
A189: 13.83333333 | B189: 166 | C189: 13 | D189: 10 | E189: 57 | F189: 56741.49927 | H189: 538.4083374 | I189: 0 | J189: 0 | K189: -66.44469282 | L189: 57213.46291 | N189: 166 | O189: 13 | P189: 10 | Q189: 13 | R189: 538976.9961 | S189: =IF($G$4="mensual",S180,IF($G$4="trimestral",S180,0)) -> 2823.931591 | U189: 5141.036814 | V189: =V188 -> -224.1435533 | X189: -634.1926723 | Y189: 546083.6283 | AA189: =+Bono!J189 -> 16452.60789 | AC189: 13.83333333 | AD189: 619749.6991
A190: 13.91666667 | B190: 167 | C190: 13 | D190: 11 | E190: 57 | F190: 57213.46291 | H190: 542.8867027 | I190: 0 | J190: 0 | K190: -66.99736556 | L190: 57689.35225 | N190: 167 | O190: 13 | P190: 11 | Q190: 13 | R190: 546083.6283 | S190: =IF($G$17="si",S178*(1+$G$20),S178) -> 2823.931591 | U190: 5208.470176 | V190: =V189 -> -224.1435533 | X190: -642.5145883 | Y190: 553249.3719 | AA190: =+Bono!J190 -> 16554.61596 | AC190: 13.91666667 | AD190: 627493.3401
A191: 14 | B191: 168 | C191: 13 | D191: 12 | E191: 57 | F191: 57689.35225 | H191: 547.402318 | I191: 0 | J191: =-SUM(F191:H191)*$J$21*1.16 -> -607.9917177 | K191: -66.84936491 | L191: 57561.91349 | N191: 168 | O191: 13 | P191: 12 | Q191: 13 | R191: 553249.3719 | S191: =IF($G$4="mensual",S190,0) -> 2823.931591 | U191: 5276.464433 | V191: =V190 -> -224.1435533 | X191: -650.9057243 | Y191: 560474.7186 | AA191: =+Bono!J191 -> 16507.19113 | AC191: 14 | AD191: 634543.8233
A192: 14.08333333 | B192: 169 | C192: 14 | D192: 1 | E192: 58 | F192: 57561.91349 | H192: 546.193078 | I192: 0 | J192: 0 | K192: -67.40540361 | L192: 58040.70116 | N192: 169 | O192: 14 | P192: 1 | Q192: 14 | R192: 560474.7186 | S192: =IF($G$17="si",S180*(1+$G$20),S180) -> 2964.761625 | U192: 5346.360559 | V192: =V191*(1+$G$18) -> -235.3216371 | X192: -659.5186023 | Y192: 567891.0006 | AA192: =+Bono!J192 -> 16609.53763 | AC192: 14.08333333 | AD192: 642541.2394
A193: 14.16666667 | B193: 170 | C193: 14 | D193: 2 | E193: 58 | F193: 58040.70116 | H193: 550.7361951 | I193: 0 | J193: 0 | K193: -67.96606733 | L193: 58523.47129 | N193: 170 | O193: 14 | P193: 2 | Q193: 14 | R193: 567891.0006 | S193: =IF($G$4="mensual",S192,0) -> 2964.761625 | U193: 5416.732123 | V193: =V192 -> -235.3216371 | X193: -668.2031203 | Y193: 575368.9696 | AA193: =+Bono!J193 -> 16712.51869 | AC193: 14.16666667 | AD193: 650604.9596
A194: 14.25 | B194: 171 | C194: 14 | D194: 3 | E194: 58 | F194: 58523.47129 | H194: 555.3171009 | I194: 0 | J194: =-SUM(F194:H194)*$J$21*1.16 -> -616.7825508 | K194: -67.81592677 | L194: 58394.18991 | N194: 171 | O194: 14 | P194: 3 | Q194: 14 | R194: 575368.9696 | S194: =IF($G$4="mensual",S193,0) -> 2964.761625 | U194: 5487.689022 | V194: -235.3216371 | X194: -676.9598744 | Y194: 582909.1387 | AA194: =+Bono!J194 -> 16664.6415 | AC194: 14.25 | AD194: 657967.9701
A195: 14.33333333 | B195: 172 | C195: 14 | D195: 4 | E195: 58 | F195: 58394.18991 | H195: 554.0903767 | I195: 0 | J195: 0 | K195: -68.38000513 | L195: 58879.90028 | N195: 172 | O195: 14 | P195: 4 | Q195: 14 | R195: 582909.1387 | S195: =IF($G$4="mensual",S192,IF($G$4="trimestral",S192,0)) -> 2964.761625 | U195: 5559.236126 | V195: -235.3216371 | X195: -685.7894652 | Y195: 590512.0254 | AA195: =+Bono!J195 -> 16767.96421 | AC195: 14.33333333 | AD195: 666159.8899
A196: 14.41666667 | B196: 173 | C196: 14 | D196: 5 | E196: 58 | F196: 58879.90028 | H196: 558.6991818 | I196: 0 | J196: 0 | K196: -68.94877538 | L196: 59369.65069 | N196: 173 | O196: 14 | P196: 5 | Q196: 14 | R196: 590512.0254 | S196: =IF($G$4="mensual",S195,0) -> 2964.761625 | U196: 5631.378343 | V196: -235.3216371 | X196: -694.6924987 | Y196: 598178.1512 | AA196: =+Bono!J196 -> 16871.92754 | AC196: 14.41666667 | AD196: 674419.7294
A197: 14.5 | B197: 174 | C197: 14 | D197: 6 | E197: 58 | F197: 59369.65069 | H197: 563.346322 | I197: 0 | J197: =-SUM(F197:H197)*$J$21*1.16 -> -625.7004888 | K197: -68.79646397 | L197: 59238.50006 | N197: 174 | O197: 14 | P197: 6 | Q197: 14 | R197: 598178.1512 | S197: =IF($G$4="mensual",S196,0) -> 2964.761625 | U197: 5704.120624 | V197: -235.3216371 | X197: -703.6695857 | Y197: 605908.0422 | AA197: =+Bono!J197 -> 16823.59368 | AC197: 14.5 | AD197: 681970.136
A198: 14.58333333 | B198: 175 | C198: 14 | D198: 7 | E198: 58 | F198: 59238.50006 | H198: 562.1018608 | I198: 0 | J198: 0 | K198: -69.36869823 | L198: 59731.23322 | N198: 175 | O198: 14 | P198: 7 | Q198: 14 | R198: 605908.0422 | S198: =+IF($G$4="mensual",S192,IF($G$4="trimestral",S192,IF($G$4="semestral",S192,0))) -> 2964.761625 | U198: 5777.467959 | V198: -235.3216371 | X198: -712.7213422 | Y198: 613702.2288 | AA198: =+Bono!J198 -> 16927.90191 | AC198: 14.58333333 | AD198: 690361.364
A199: 14.66666667 | B199: 176 | C199: 14 | D199: 8 | E199: 58 | F199: 59731.23322 | H199: 566.7773038 | I199: 0 | J199: 0 | K199: -69.94569221 | L199: 60228.06483 | N199: 176 | O199: 14 | P199: 8 | Q199: 14 | R199: 613702.2288 | S199: =IF($G$4="mensual",S198,0) -> 2964.761625 | U199: 5851.425382 | V199: -235.3216371 | X199: -721.8483893 | Y199: 621561.2458 | AA199: =+Bono!J199 -> 17032.85687 | AC199: 14.66666667 | AD199: 698822.1675
A200: 14.75 | B200: 177 | C200: 14 | D200: 9 | E200: 58 | F200: 60228.06483 | H200: 571.4916361 | I200: 0 | J200: =-SUM(F200:H200)*$J$21*1.16 -> -634.7473695 | K200: -69.79117856 | L200: 60095.01792 | N200: 177 | O200: 14 | P200: 9 | Q200: 14 | R200: 621561.2458 | S200: =IF($G$4="mensual",S199,0) -> 2964.761625 | U200: 5925.997967 | V200: -235.3216371 | X200: -731.0513532 | Y200: 629485.6324 | AA200: =+Bono!J200 -> 16984.06199 | AC200: 14.75 | AD200: 706564.7123
A201: 14.83333333 | B201: 178 | C201: 14 | D201: 10 | E201: 58 | F201: 60095.01792 | H201: 570.2291815 | I201: 0 | J201: 0 | K201: -70.37168664 | L201: 60594.87542 | N201: 178 | O201: 14 | P201: 10 | Q201: 14 | R201: 629485.6324 | S201: =IF($G$4="mensual",S192,IF($G$4="trimestral",S192,0)) -> 2964.761625 | U201: 6001.19083 | V201: -235.3216371 | X201: -740.3308653 | Y201: 637475.9324 | AA201: =+Bono!J201 -> 17089.36515 | AC201: 14.83333333 | AD201: 715160.1729
... 554 more rows

Sheet Deducible 185 (hidden)
F2: Edad | G2: =+'OptiMaxx plus'!T7 -> 44 | I2: Portafolio | J2: Tasa
F3: Aportación | G3: =+'OptiMaxx plus'!D12 -> 1500 | I3: Conservador Pesos | J3: 0.06 | K3: =+J3 -> 0.06 | L3: =+'OptiMaxx plus'!F20 -> 0
F4: Periodicidad | G4: =+'OptiMaxx plus'!K12 -> Mensual | I4: Moderado Pesos | J4: 0.09 | K4: =+J4 -> 0.09 | L4: =+'OptiMaxx plus'!#REF! -> 
F5: Plazo | G5: =+'OptiMaxx plus'!D15 -> 21 | I5: Dinámico Pesos | J5: 0.12 | K5: 0.12 | L5: =+'OptiMaxx plus'!#REF! -> 
F6: Portafolio | G6: =L20 -> 0.12 | I6: Conservador Dólares | J6: 0.03 | K6: 0.03 | L6: =+'OptiMaxx plus'!#REF! -> 
F7: Interés Anual | G7: =+L20 -> 0.12 | I7: Moderado Dólares | J7: 0.06 | K7: 0.06 | L7: =+'OptiMaxx plus'!#REF! -> 
F8: Interés Mensual | G8: =(1+G7)^(1/12)-1 -> 0.009488792935 | I8: Dinámico Dólares | J8: 0.1 | K8: 0.1 | L8: =+'OptiMaxx plus'!N21 -> 0
F9: % Bono | G9: =+Bono!F9 -> 0.55 | I9: Conservador Euros | J9: 0.03 | K9: 0.03 | L9: =+'OptiMaxx plus'!#REF! -> 
I10: Moderado Euros | J10: 0.06 | K10: 0.06 | L10: =+'OptiMaxx plus'!#REF! -> 
I11: Dinámico Euros | J11: 0.09 | K11: 0.09 | L11: =+'OptiMaxx plus'!#REF! -> 
I12: Pesos Revaluables | J12: 0.08 | K12: 0.08 | L12: =+'OptiMaxx plus'!F24 -> 0.05400445122
I13: BRIC | J13: 0.08 | K13: 0.08 | L13: =+'OptiMaxx plus'!F27 -> BRIC
I14: China | J14: 0.08 | K14: 0.08 | L14: =+'OptiMaxx plus'!N24 -> 0.1636132729
I15: Brasil | J15: 0.08 | K15: 0.08 | L15: =+'OptiMaxx plus'!F25 -> 0.04584263279
I16: Oro | J16: 0.08 | K16: 0.08 | L16: =+'OptiMaxx plus'!N26 -> 0
F17: Incremento Inflación | G17: =+'OptiMaxx plus'!K15 -> Si | I17: Mercado Emergentes | J17: 0.08 | K17: 0.08 | L17: =+'OptiMaxx plus'!N25 -> 0.08468172207
F18: Inflación | G18: =+Rendimientos_UDI_Inflación!S36/100 -> 0.0498702
F19: Udi | G19: =+Rendimientos_UDI_Inflación!S17 -> 6.842488737
G20: =+G18 -> 0.0498702 | I20: Tasa Ponderada Bruta | L20: =+'OptiMaxx plus'!D20 -> 0.12
J21: =3.6%/4 -> 0.009
C22: Saldo Inicial | O22: Saldo Comprometido | AA22: Bono
C23: Año | D23: Mes | E23: Edad | F23: Saldo Anterior | G23: Aportación | H23: Interés | I23: Cargo Fijo | J23: Cargo Administrativo | K23: Cargo Gestión Inversión | L23: Saldo Final | O23: Año | P23: Mes | Q23: Edad | R23: Saldo Anterior | S23: Aportación | T23: Bono | U23: Interés | V23: Cargo Fijo | W23: Cargo Administrativo | X23: Cargo Gestión Inversión | Y23: Saldo Final | AA23: Saldo Final | AD23: Saldo Fondo
A24: =+B24/12 -> 0.08333333333 | B24: 1 | C24: 0 | D24: 1 | E24: =G2 -> 44 | F24: 0 | G24: =G3 -> 1500 | H24: =SUM(F24:G24)*$G$8 -> 14.2331894 | I24: -500 | J24: 0 | K24: =-SUM(F24:J24)*0.1% -> -1.014233189 | L24: =SUM(F24:K24) -> 1013.218956 | N24: 1 | O24: 0 | P24: 1 | Q24: =S9 -> 0 | R24: 0 | T24: =S24*$G$9 -> 0 | U24: =SUM(R24:T24)*$G$8 -> 0 | V24: 0 | X24: =-SUM(R24:U24)*0.1% -> 0 | Y24: =SUM(R24:X24) -> 0 | AA24: =+Bono!J24 -> 830.1150957 | AC24: =+B24/12 -> 0.08333333333 | AD24: =+AA24+Y24+L24 -> 1843.334052 | AH24: Aportación Anual
B25: =+B24+1 -> 2 | C25: 0 | D25: 2 | E25: =E24 -> 44 | F25: =L24 -> 1013.218956 | G25: =IF($G$4="mensual",$G$3,0) -> 1500 | H25: 23.84741427 | I25: 0 | J25: 0 | K25: =-SUM(F25:J25)*0.1% -> -2.53706637 | L25: 2534.529304 | N25: =+N24+1 -> 2 | O25: 0 | P25: 2 | Q25: =Q24 -> 0 | R25: =Y24 -> 0 | T25: 0 | U25: 0 | V25: 0 | X25: 0 | Y25: 0 | AA25: =+Bono!J25 -> 1665.377001 | AC25: 0.1666666667 | AD25: 4199.906305 | AG25: 1 | AH25: =VLOOKUP(G4,$AK$25:$AL$28,2,0)*G3 -> 18000 | AK25: Mensual | AL25: 12
B26: 3 | C26: 0 | D26: 3 | E26: 44 | F26: 2534.529304 | G26: =IF($G$4="mensual",$G$3,0) -> 1500 | H26: 38.28281316 | I26: 0 | J26: =-SUM(F26:H26)*$J$21 -> -36.65530906 | K26: -4.036156808 | L26: 4032.120651 | N26: 3 | O26: 0 | P26: 3 | Q26: 0 | R26: 0 | T26: 0 | U26: 0 | V26: 0 | X26: 0 | Y26: 0 | AA26: =+Bono!J26 -> 2483.242694 | AC26: 0.25 | AD26: 6515.363345 | AG26: =+AG25+1 -> 2 | AH26: =IF($G$17="Si",(1+$G$20)*AH25,AH25) -> 18897.6636 | AK26: Trimestral | AL26: 4
B27: 4 | C27: 0 | D27: 4 | E27: 44 | F27: 4032.120651 | G27: =IF($G$4="mensual",$G$3,IF($G$4="trimestral",G3,0)) -> 1500 | H27: 52.49314735 | I27: 0 | J27: 0 | K27: -5.584613799 | L27: 5579.029185 | N27: 4 | O27: 0 | P27: 4 | Q27: 0 | R27: 0 | T27: 0 | U27: =SUM(R27:T27)*$G$8 -> 0 | V27: 0 | X27: 0 | Y27: 0 | AA27: =+Bono!J27 -> 3328.754182 | AC27: 0.3333333333 | AD27: 8907.783367 | AG27: 3 | AH27: 19840.09386 | AK27: Semestral | AL27: 2
B28: 5 | C28: 0 | D28: 5 | E28: 44 | F28: 5579.029185 | G28: =IF($G$4="mensual",$G$3,0) -> 1500 | H28: 67.17144211 | I28: 0 | J28: 0 | K28: -7.146200627 | L28: 7139.054426 | N28: 5 | O28: 0 | P28: 5 | Q28: 0 | R28: 0 | T28: 0 | U28: 0 | V28: 0 | X28: 0 | Y28: 0 | AA28: =+Bono!J28 -> 4179.50794 | AC28: 0.4166666667 | AD28: 11318.56237 | AG28: 4 | AH28: 20829.52331 | AK28: Anual | AL28: 1
B29: 6 | C29: 0 | D29: 6 | E29: 44 | F29: 7139.054426 | G29: =IF($G$4="mensual",$G$3,0) -> 1500 | H29: 81.9741986 | I29: 0 | J29: =-SUM(F29:H29)*$J$21 -> -78.48925763 | K29: -8.642539367 | L29: 8633.896828 | N29: 6 | O29: 0 | P29: 6 | Q29: 0 | R29: 0 | T29: 0 | U29: 0 | V29: 0 | X29: 0 | Y29: 0 | AA29: =+Bono!J29 -> 4990.171276 | AC29: 0.5 | AD29: 13624.0681 | AG29: 5 | AH29: 21868.29581
B30: 7 | C30: 0 | D30: 7 | E30: 44 | F30: 8633.896828 | G30: =IF($G$4="mensual",$G$3,IF($G$4="trimestral",$G$3,IF(G4="semestral",$G$3,0))) -> 1500 | H30: 96.15844862 | I30: 0 | J30: 0 | K30: -10.23005528 | L30: 10219.82522 | N30: 7 | O30: 0 | P30: 7 | Q30: 0 | R30: 0 | T30: 0 | U30: =SUM(R30:T30)*$G$8 -> 0 | V30: 0 | X30: 0 | Y30: 0 | AA30: =+Bono!J30 -> 5851.226013 | AC30: 0.5833333333 | AD30: 16071.05123 | AG30: 6 | AH30: 22958.87209
B31: 8 | C31: 0 | D31: 8 | E31: 44 | F31: 10219.82522 | G31: =IF($G$4="mensual",$G$3,0) -> 1500 | H31: 111.2069948 | I31: 0 | J31: 0 | K31: -11.83103222 | L31: 11819.20118 | N31: 8 | O31: 0 | P31: 8 | Q31: 0 | R31: 0 | T31: 0 | U31: 0 | V31: 0 | X31: 0 | Y31: 0 | AA31: =+Bono!J31 -> 6717.619389 | AC31: 0.6666666667 | AD31: 18536.82057 | AG31: 7 | AH31: 24103.83563 | AK31: Las tasas de crecimiento elegidas tienen fines ilustrativos únicamente. La tasa anual proyectada está expresada antes de cargos. La ganancia real podría ser otra, ya que, debido a la naturaleza de este tipo de inversiones, su rendimiento puede indistintamente subir o bajar. El saldo proyectado se expresa después de los cargos del producto. Si se rescata de forma anticipada el Saldo Sujeto a Retiro, el valor ilustrado le da una estimación de lo que podrá recibir, por lo tanto, para obtener los máximos beneficios de esta inversión, la aportación debería ser realizada por la duración del plazo contratado. En caso de fallecimiento se entregará a los beneficiarios el Saldo del Fondo menos el Bono de fidelidad después de aplicar la retención de impuestos.
B32: 9 | C32: 0 | D32: 9 | E32: 44 | F32: 11819.20118 | G32: =IF($G$4="mensual",$G$3,0) -> 1500 | H32: 126.3831421 | I32: 0 | J32: =-SUM(F32:H32)*$J$21 -> -121.0102589 | K32: -13.32457407 | L32: 13311.24949 | N32: 9 | O32: 0 | P32: 9 | Q32: 0 | R32: 0 | T32: 0 | U32: 0 | V32: 0 | X32: 0 | Y32: 0 | AA32: =+Bono!J32 -> 7521.01167 | AC32: 0.75 | AD32: 20832.26116 | AG32: 8 | AH32: 25305.89874
B33: 10 | C33: 0 | D33: 10 | E33: 44 | F33: 13311.24949 | G33: =IF($G$4="mensual",$G$3,IF($G$4="trimestral",$G$3,0)) -> 1500 | H33: 140.5408795 | I33: 0 | J33: 0 | K33: -14.95179037 | L33: 14936.83858 | N33: 10 | O33: 0 | P33: 10 | Q33: 0 | R33: 0 | T33: 0 | U33: =SUM(R33:T33)*$G$8 -> 0 | V33: 0 | X33: 0 | Y33: 0 | AA33: =+Bono!J33 -> 8397.757911 | AC33: 0.8333333333 | AD33: 23334.59649 | AG33: 9 | AH33: 26567.90897
B34: 11 | C34: 0 | D34: 11 | E34: 44 | F34: 14936.83858 | G34: =IF($G$4="mensual",$G$3,0) -> 1500 | H34: 155.9657578 | I34: 0 | J34: 0 | K34: -16.59280434 | L34: 16576.21154 | N34: 11 | O34: 0 | P34: 11 | Q34: 0 | R34: 0 | T34: 0 | U34: 0 | V34: 0 | X34: 0 | Y34: 0 | AA34: =+Bono!J34 -> 9279.94008 | AC34: 0.9166666667 | AD34: 25856.15162 | AG34: 10 | AH34: 27892.8559
B35: 12 | C35: 0 | D35: 12 | E35: 44 | F35: 16576.21154 | G35: =IF($G$4="mensual",$G$3,0) -> 1500 | H35: 171.5214283 | I35: 0 | J35: =-SUM(F35:H35)*$J$21 -> -164.2295967 | K35: -18.08350337 | L35: 18065.41986 | N35: 12 | O35: 0 | P35: 12 | Q35: 0 | R35: 0 | T35: 0 | U35: 0 | V35: 0 | X35: 0 | Y35: 0 | AA35: =+Bono!J35 -> 10075.99195 | AC35: 1 | AD35: 28141.41182 | AG35: 11 | AH35: 29283.87821
B36: 13 | C36: =C24+1 -> 1 | D36: =D24 -> 1 | E36: =E24+1 -> 45 | F36: 18065.41986 | G36: =IF(AND(G4="Anual",$G$17="si"),G24*(1+$G$20)/2,IF(AND(G4="Anual",G17="No"),G24/2,IF(G17="Si",G24*(1+$G$20),G24))) -> 1574.8053 | H36: 186.3620298 | I36: 0 | J36: 0 | K36: -19.82658719 | L36: 19806.76061 | N36: 13 | O36: =O24+1 -> 1 | P36: =P24 -> 1 | Q36: =Q24+1 -> 1 | R36: 0 | S36: =IF(G4="Anual",G36,0) -> 0 | U36: =SUM(R36:T36)*$G$8 -> 0 | V36: 0 | X36: 0 | Y36: 0 | AA36: =+Bono!J36 -> 10138.46427 | AC36: 1.083333333 | AD36: 29945.22488 | AG36: 12 | AH36: 30744.27107 | AK36: Todo retiro es acumulable al ingreso de (los) beneficiario(s), por lo que la retención representa un pago provisional de los impuestos. La presente ilustración se ofrece únicamente a modo de guía y no debe ser considerada como un contrato desde el punto de vista legal. Para mayores detalles vea el folleto del cliente y las Condiciones de la Póliza.
B37: 14 | C37: 1 | D37: 2 | E37: 45 | F37: 19806.76061 | G37: =+IF($G$4="mensual",G36,0) -> 1574.8053 | H37: 202.8852515 | I37: 0 | J37: 0 | K37: -21.58445116 | L37: 21562.86671 | N37: 14 | O37: 1 | P37: 2 | Q37: 1 | R37: 0 | U37: 0 | V37: 0 | X37: 0 | Y37: 0 | AA37: =+Bono!J37 -> 10201.32393 | AC37: 1.166666667 | AD37: 31764.19063 | AG37: 13 | AH37: 32277.49402
B38: 15 | C38: 1 | D38: 3 | E38: 45 | F38: 21562.86671 | G38: =+G37 -> 1574.8053 | H38: 219.5485787 | I38: 0 | J38: =-SUM(F38:H38)*$J$21 -> -210.2149853 | K38: -23.1470056 | L38: 23123.85859 | N38: 15 | O38: 1 | P38: 3 | Q38: 1 | R38: 0 | U38: 0 | V38: 0 | X38: 0 | Y38: 0 | AA38: =+Bono!J38 -> 10172.09968 | AC38: 1.25 | AD38: 33295.95828 | AG38: 14 | AH38: 33887.1791
B39: 16 | C39: 1 | D39: 4 | E39: 45 | F39: 23123.85859 | G39: =IF($G$4="mensual",G36,IF($G$4="trimestral",G36,0)) -> 1574.8053 | H39: 234.3605075 | I39: 0 | J39: 0 | K39: -24.9330244 | L39: 24908.09138 | N39: 16 | O39: 1 | P39: 4 | Q39: 1 | R39: 0 | U39: 0 | V39: 0 | X39: 0 | Y39: 0 | AA39: =+Bono!J39 -> 10235.16788 | AC39: 1.333333333 | AD39: 35143.25926 | AG39: 15 | AH39: 35577.1395
B40: 17 | C40: 1 | D40: 5 | E40: 45 | F40: 24908.09138 | G40: =+IF($G$4="mensual",G39,0) -> 1574.8053 | H40: 251.2907229 | I40: 0 | J40: 0 | K40: -26.7341874 | L40: 26707.45321 | N40: 17 | O40: 1 | P40: 5 | Q40: 1 | R40: 0 | U40: 0 | V40: 0 | X40: 0 | Y40: 0 | AA40: =+Bono!J40 -> 10298.62711 | AC40: 1.416666667 | AD40: 37006.08032 | AG40: 16 | AH40: 37351.37856
B41: 18 | C41: 1 | D41: 6 | E41: 45 | F41: 26707.45321 | G41: =+G40 -> 1574.8053 | H41: 268.3644948 | I41: 0 | J41: =-SUM(F41:H41)*$J$21 -> -256.9556071 | K41: -28.2936674 | L41: 28265.37373 | N41: 18 | O41: 1 | P41: 6 | Q41: 1 | R41: 0 | S41: 0 | U41: 0 | V41: 0 | X41: 0 | Y41: 0 | AA41: =+Bono!J41 -> 10269.12412 | AC41: 1.5 | AD41: 38534.49785 | AG41: 17 | AH41: 39214.09928
B42: 19 | C42: 1 | D42: 7 | E42: 45 | F42: 28265.37373 | H42: 268.2042786 | I42: 0 | J42: 0 | K42: -28.53357801 | L42: 28505.04443 | N42: 19 | O42: 1 | P42: 7 | Q42: 1 | R42: 0 | S42: =+IF($G$4="mensual",G36,IF($G$4="trimestral",G36,IF(G4="semestral",G36,0))) -> 1574.8053 | U42: 14.9430014 | V42: =-15*G19*(1+$G$18) -> -107.7558753 | X42: -1.589748301 | Y42: 1480.402678 | AA42: =+Bono!J42 -> 10332.79388 | AC42: 1.583333333 | AD42: 40318.24099 | AG42: 18 | AH42: 41169.71425
B43: 20 | C43: 1 | D43: 8 | E43: 45 | F43: 28505.04443 | H43: 270.4784642 | I43: 0 | J43: 0 | K43: -28.7755229 | L43: 28746.74738 | N43: 20 | O43: 1 | P43: 8 | Q43: 1 | R43: 1480.402678 | S43: =IF($G$4="mensual",G36,0) -> 1574.8053 | U43: 28.99023587 | V43: =V42 -> -107.7558753 | X43: -3.084198214 | Y43: 2973.35814 | AA43: =+Bono!J43 -> 10396.8584 | AC43: 1.666666667 | AD43: 42116.96392 | AG43: 19 | AH43: 43222.85614
B44: 21 | C44: 1 | D44: 9 | E44: 45 | F44: 28746.74738 | H44: 272.7719334 | I44: 0 | J44: =-SUM(F44:H44)*$J$21 -> -261.1756738 | K44: -28.75834363 | L44: 28729.58529 | N44: 21 | O44: 1 | P44: 9 | Q44: 1 | R44: 2973.35814 | S44: =IF($G$4="mensual",G36,0) -> 1574.8053 | U44: 43.15658112 | V44: =V43 -> -107.7558753 | X44: -4.591320021 | Y44: 4478.972826 | AA44: =+Bono!J44 -> 10367.074 | AC44: 1.75 | AD44: 43575.63212 | AG44: 20 | AH44: 45378.38862
B45: 22 | C45: 1 | D45: 10 | E45: 45 | F45: 28729.58529 | H45: 272.6090859 | I45: 0 | J45: 0 | K45: -29.00219438 | L45: 28973.19218 | N45: 22 | O45: 1 | P45: 10 | Q45: 1 | R45: 4478.972826 | S45: =IF($G$4="mensual",G36,IF($G$4="trimestral",G36,0)) -> 1574.8053 | U45: 57.44304711 | V45: =V44 -> -107.7558753 | X45: -6.111221173 | Y45: 5997.354077 | AA45: =+Bono!J45 -> 10431.35106 | AC45: 1.833333333 | AD45: 45401.89732 | AG45: 21 | AH45: 47641.41793
B46: 23 | C46: 1 | D46: 11 | E46: 45 | F46: 28973.19218 | H46: 274.9206213 | I46: 0 | J46: 0 | K46: -29.2481128 | L46: 29218.86469 | N46: 23 | O46: 1 | P46: 11 | Q46: 1 | R46: 5997.354077 | S46: =IF($G$4="mensual",G36,0) -> 1574.8053 | U46: 71.85065239 | V46: =V45 -> -107.7558753 | X46: -7.644010029 | Y46: 7528.610144 | AA46: =+Bono!J46 -> 10496.02665 | AC46: 1.916666667 | AD46: 47243.50148 | AG46: 22 | AH46: 50017.30497
B47: 24 | C47: 1 | D47: 12 | E47: 45 | F47: 29218.86469 | H47: 277.2517568 | I47: 0 | J47: =-SUM(F47:H47)*$J$21 -> -265.465048 | K47: -29.2306514 | L47: 29201.42075 | N47: 24 | O47: 1 | P47: 12 | Q47: 1 | R47: 7528.610144 | S47: =IF($G$4="mensual",G36,0) -> 1574.8053 | U47: 86.38042414 | V47: =V46 -> -107.7558753 | X47: -9.189795868 | Y47: 9072.850197 | AA47: =+Bono!J47 -> 10465.95816 | AC47: 2 | AD47: 48740.2291 | AG47: 23 | AH47: 52511.67797
B48: 25 | C48: 2 | D48: 1 | E48: 46 | F48: 29201.42075 | H48: 277.0862349 | I48: 0 | J48: 0 | K48: -29.47850698 | L48: 29449.02848 | N48: 25 | O48: 2 | P48: 1 | Q48: 2 | R48: 9072.850197 | S48: =IF(AND($G$17="si",$G$4="Anual"),G36*(1+$G$20)*2,IF(AND($G$17="no",$G$4="Anual"),G36*2,IF($G$17="si",G36*(1+$G$20),G36))) -> 1653.341155 | U48: 101.7786087 | V48: =V47*(1+$G$18) -> -113.1296823 | X48: -10.82796996 | Y48: 10704.01231 | AA48: =+Bono!J48 -> 10530.84831 | AC48: 2.083333333 | AD48: 50683.8891 | AG48: 24 | AH48: 55130.44586
B49: 26 | C49: 2 | D49: 2 | E49: 46 | F49: 29449.02848 | H49: 279.4357333 | I49: 0 | J49: 0 | K49: -29.72846421 | L49: 29698.73575 | N49: 26 | O49: 2 | P49: 2 | Q49: 2 | R49: 10704.01231 | S49: =IF($G$4="mensual",S48,0) -> 1653.341155 | U49: 117.2563682 | V49: =V48 -> -113.1296823 | X49: -12.47460983 | Y49: 12349.00554 | AA49: =+Bono!J49 -> 10596.14079 | AC49: 2.166666667 | AD49: 52643.88208 | AG49: 25 | AH49: 57879.81222
B50: 27 | C50: 2 | D50: 3 | E50: 46 | F50: 29698.73575 | H50: 281.8051539 | I50: 0 | J50: =-SUM(F50:H50)*$J$21 -> -269.8248681 | K50: -29.71071603 | L50: 29681.00532 | N50: 27 | O50: 2 | P50: 3 | Q50: 2 | R50: 12349.00554 | S50: =IF($G$4="mensual",S49,0) -> 1653.341155 | U50: 132.8653684 | V50: =V49 -> -113.1296823 | X50: -14.13521206 | Y50: 14007.94717 | AA50: =+Bono!J50 -> 10565.7855 | AC50: 2.25 | AD50: 54254.73798 | AN50: Portafolio | AO50: Tasa
B51: 28 | C51: 2 | D51: 4 | E51: 46 | F51: 29681.00532 | H51: 281.6369135 | I51: 0 | J51: 0 | K51: -29.96264223 | L51: 29932.67959 | N51: 28 | O51: 2 | P51: 4 | Q51: 2 | R51: 14007.94717 | S51: =IF($G$4="mensual",S48,IF($G$4="trimestral",S48,0)) -> 1653.341155 | U51: 148.606722 | V51: -113.1296823 | X51: -15.80989505 | Y51: 15680.95547 | AA51: =+Bono!J51 -> 10631.2946 | AC51: 2.333333333 | AD51: 56244.92965 | AN51: Conservador Pesos | AO51: 0.06
B52: 29 | C52: 2 | D52: 5 | E52: 46 | F52: 29932.67959 | H52: 284.0249986 | I52: 0 | J52: 0 | K52: -30.21670459 | L52: 30186.48788 | N52: 29 | O52: 2 | P52: 5 | Q52: 2 | R52: 15680.95547 | S52: =IF($G$4="mensual",S51,0) -> 1653.341155 | U52: 164.4815513 | V52: -113.1296823 | X52: -17.49877818 | Y52: 17368.14972 | AA52: =+Bono!J52 -> 10697.20986 | AC52: 2.416666667 | AD52: 58251.84745 | AN52: Moderado Pesos | AO52: 0.09
B53: 30 | C53: 2 | D53: 6 | E53: 46 | F53: 30186.48788 | H53: 286.4333329 | I53: 0 | J53: =-SUM(F53:H53)*$J$21 -> -274.2562909 | K53: -30.19866492 | L53: 30168.46626 | N53: 30 | O53: 2 | P53: 6 | Q53: 2 | R53: 17368.14972 | S53: =IF($G$4="mensual",S52,0) -> 1653.341155 | U53: 180.4909882 | V53: -113.1296823 | X53: -19.20198186 | Y53: 19069.65019 | AA53: =+Bono!J53 -> 10666.56502 | AC53: 2.5 | AD53: 59904.68148 | AN53: Dinámico Pesos | AO53: 0.12
B54: 31 | C54: 2 | D54: 7 | E54: 46 | F54: 30168.46626 | H54: 286.2623295 | I54: 0 | J54: 0 | K54: -30.45472859 | L54: 30424.27386 | N54: 31 | O54: 2 | P54: 7 | Q54: 2 | R54: 19069.65019 | S54: =+IF($G$4="mensual",S48,IF($G$4="trimestral",S48,IF($G$4="semestral",S48,0))) -> 1653.341155 | U54: 196.6361739 | V54: -113.1296823 | X54: -20.91962752 | Y54: 20785.57821 | AA54: =+Bono!J54 -> 10732.69896 | AC54: 2.583333333 | AD54: 61942.55104 | AN54: Conservador Dólares | AO54: 0.03
B55: 32 | C55: 2 | D55: 8 | E55: 46 | F55: 30424.27386 | H55: 288.6896348 | I55: 0 | J55: 0 | K55: -30.71296349 | L55: 30682.25053 | N55: 32 | O55: 2 | P55: 8 | Q55: 2 | R55: 20785.57821 | S55: =IF($G$4="mensual",S54,0) -> 1653.341155 | U55: 212.9182596 | V55: -113.1296823 | X55: -22.65183763 | Y55: 22516.05611 | AA55: =+Bono!J55 -> 10799.24294 | AC55: 2.666666667 | AD55: 63997.54958 | AN55: Moderado Dólares | AO55: 0.06
B56: 33 | C56: 2 | D56: 9 | E56: 46 | F56: 30682.25053 | H56: 291.137522 | I56: 0 | J56: =-SUM(F56:H56)*$J$21 -> -278.7604925 | K56: -30.69462756 | L56: 30663.93293 | N56: 33 | O56: 2 | P56: 9 | Q56: 2 | R56: 22516.05611 | S56: =IF($G$4="mensual",S55,0) -> 1653.341155 | U56: 229.338406 | V56: -113.1296823 | X56: -24.39873567 | Y56: 24261.20725 | AA56: =+Bono!J56 -> 10768.30581 | AC56: 2.75 | AD56: 65693.446 | AN56: Dinámico Dólares | AO56: 0.1
B57: 34 | C57: 2 | D57: 10 | E57: 46 | F57: 30663.93293 | H57: 290.9637102 | I57: 0 | J57: 0 | K57: -30.95489664 | L57: 30923.94175 | N57: 34 | O57: 2 | P57: 10 | Q57: 2 | R57: 24261.20725 | S57: =IF($G$4="mensual",S48,IF($G$4="trimestral",S48,0)) -> 1653.341155 | U57: 245.8977838 | V57: -113.1296823 | X57: -26.16044619 | Y57: 26021.15606 | AA57: =+Bono!J57 -> 10835.07056 | AC57: 2.833333333 | AD57: 67780.16837 | AN57: Conservador Euros | AO57: 0.03
B58: 35 | C58: 2 | D58: 11 | E58: 46 | F58: 30923.94175 | H58: 293.4308799 | I58: 0 | J58: 0 | K58: -31.21737263 | L58: 31186.15525 | N58: 35 | O58: 2 | P58: 11 | Q58: 2 | R58: 26021.15606 | S58: =IF($G$4="mensual",S57,0) -> 1653.341155 | U58: 262.5975737 | V58: -113.1296823 | X58: -27.93709479 | Y58: 27796.02801 | AA58: =+Bono!J58 -> 10902.24925 | AC58: 2.916666667 | AD58: 69884.43252 | AN58: Moderado Euros | AO58: 0.06
B59: 36 | C59: 2 | D59: 12 | E59: 46 | F59: 31186.15525 | H59: 295.9189696 | I59: 0 | J59: =-SUM(F59:H59)*$J$21 -> -283.338668 | K59: -31.19873555 | L59: 31167.53682 | N59: 36 | O59: 2 | P59: 12 | Q59: 2 | R59: 27796.02801 | S59: =IF($G$4="mensual",S58,0) -> 1653.341155 | U59: 279.4389661 | V59: -113.1296823 | X59: -29.72880814 | Y59: 29585.94965 | AA59: =+Bono!J59 -> 10871.01703 | AC59: 3 | AD59: 71624.5035 | AN59: Dinámico Euros | AO59: 0.09
B60: 37 | C60: 3 | D60: 1 | E60: 47 | F60: 31167.53682 | H60: 295.7423032 | I60: 0 | J60: 0 | K60: -31.46327912 | L60: 31431.81584 | N60: 37 | O60: 3 | P60: 1 | Q60: 3 | R60: 29585.94965 | S60: =IF($G$17="si",S48*(1+$G$20),S48) -> 1735.793609 | U60: 297.2055361 | V60: =V59*(1+$G$18) -> -118.7714822 | X60: -31.61894879 | Y60: 31468.55836 | AA60: =+Bono!J60 -> 10938.4186 | AC60: 3.083333333 | AD60: 73838.7928 | AN60: Pesos Revaluables | AO60: 0.08
B61: 38 | C61: 3 | D61: 2 | E61: 47 | F61: 31431.81584 | H61: 298.2499921 | I61: 0 | J61: 0 | K61: -31.73006584 | L61: 31698.33577 | N61: 38 | O61: 3 | P61: 2 | Q61: 3 | R61: 31468.55836 | S61: =IF($G$4="mensual",S60,0) -> 1735.793609 | U61: 315.0692204 | V61: =V60 -> -118.7714822 | X61: -33.51942119 | Y61: 33367.13029 | AA61: =+Bono!J61 -> 11006.23807 | AC61: 3.166666667 | AD61: 76071.70412 | AN61: BRIC | AO61: 0.12
B62: 39 | C62: 3 | D62: 3 | E62: 47 | F62: 31698.33577 | H62: 300.7789445 | I62: 0 | J62: =-SUM(F62:H62)*$J$21 -> -287.9920324 | K62: -31.71112268 | L62: 31679.41156 | N62: 39 | O62: 3 | P62: 3 | Q62: 3 | R62: 33367.13029 | S62: =IF($G$4="mensual",S61,0) -> 1735.793609 | U62: 333.0843762 | V62: -118.7714822 | X62: -35.43600827 | Y62: 35281.80078 | AA62: =+Bono!J62 -> 10974.70795 | AC62: 3.25 | AD62: 77935.92029 | AN62: China | AO62: 0.12
B63: 40 | C63: 3 | D63: 4 | E63: 47 | F63: 31679.41156 | H63: 300.5993766 | I63: 0 | J63: 0 | K63: -31.98001094 | L63: 31948.03092 | N63: 40 | O63: 3 | P63: 4 | Q63: 3 | R63: 35281.80078 | S63: =IF($G$4="mensual",S60,IF($G$4="trimestral",S60,0)) -> 1735.793609 | U63: 351.2522881 | V63: -118.7714822 | X63: -37.36884668 | Y63: 37212.70635 | AA63: =+Bono!J63 -> 11042.75241 | AC63: 3.333333333 | AD63: 80203.48968 | AN63: Brasil | AO63: 0.12
B64: 41 | C64: 3 | D64: 5 | E64: 47 | F64: 31948.03092 | H64: 303.1482501 | I64: 0 | J64: 0 | K64: -32.25117917 | L64: 32218.928 | N64: 41 | O64: 3 | P64: 5 | Q64: 3 | R64: 37212.70635 | S64: =IF($G$4="mensual",S63,0) -> 1735.793609 | U64: 369.5742512 | V64: -118.7714822 | X64: -39.31807421 | Y64: 39159.98465 | AA64: =+Bono!J64 -> 11111.21875 | AC64: 3.416666667 | AD64: 82490.1314 | AN64: Oro | AO64: 0.05
B65: 42 | C65: 3 | D65: 6 | E65: 47 | F65: 32218.928 | H65: 305.7187363 | I65: 0 | J65: =-SUM(F65:H65)*$J$21 -> -292.7218206 | K65: -32.23192491 | L65: 32199.69299 | N65: 42 | O65: 3 | P65: 6 | Q65: 3 | R65: 39159.98465 | S65: =IF($G$4="mensual",S64,0) -> 1735.793609 | U65: 388.0515718 | V65: -118.7714822 | X65: -41.28382983 | Y65: 41123.77452 | AA65: =+Bono!J65 -> 11079.38789 | AC65: 3.5 | AD65: 84402.8554 | AN65: Mercado Emergentes | AO65: 0.12
B66: 43 | C66: 3 | D66: 7 | E66: 47 | F66: 32199.69299 | H66: 305.5362193 | I66: 0 | J66: 0 | K66: -32.50522921 | L66: 32472.72398 | N66: 43 | O66: 3 | P66: 7 | Q66: 3 | R66: 41123.77452 | S66: =+IF($G$4="mensual",S60,IF($G$4="trimestral",S60,IF($G$4="semestral",S60,0))) -> 1735.793609 | U66: 406.6855673 | V66: -118.7714822 | X66: -43.2662537 | Y66: 43104.21596 | AA66: =+Bono!J66 -> 11148.08138 | AC66: 3.583333333 | AD66: 86725.02132
B67: 44 | C67: 3 | D67: 8 | E67: 47 | F67: 32472.72398 | H67: 308.1269538 | I67: 0 | J67: 0 | K67: -32.78085093 | L67: 32748.07008 | N67: 44 | O67: 3 | P67: 8 | Q67: 3 | R67: 43104.21596 | S67: =IF($G$4="mensual",S66,0) -> 1735.793609 | U67: 425.477566 | V67: -118.7714822 | X67: -45.26548714 | Y67: 45101.45017 | AA67: =+Bono!J67 -> 11217.20078 | AC67: 3.666666667 | AD67: 89066.72103
B68: 45 | C68: 3 | D68: 9 | E68: 47 | F68: 32748.07008 | H68: 310.739656 | I68: 0 | J68: =-SUM(F68:H68)*$J$21 -> -297.5292876 | K68: -32.76128045 | L68: 32728.51917 | N68: 45 | O68: 3 | P68: 9 | Q68: 3 | R68: 45101.45017 | S68: =IF($G$4="mensual",S67,0) -> 1735.793609 | U68: 444.4289078 | V68: -118.7714822 | X68: -47.28167269 | Y68: 47115.61953 | AA68: =+Bono!J68 -> 11185.0663 | AC68: 3.75 | AD68: 91029.205
B69: 46 | C69: 3 | D69: 10 | E69: 47 | F69: 32728.51917 | H69: 310.5541414 | I69: 0 | J69: 0 | K69: -33.03907331 | L69: 33006.03424 | N69: 46 | O69: 3 | P69: 10 | Q69: 3 | R69: 47115.61953 | S69: =IF($G$4="mensual",S60,IF($G$4="trimestral",S60,0)) -> 1735.793609 | U69: 463.5409439 | V69: -118.7714822 | X69: -49.31495408 | Y69: 49146.86765 | AA69: =+Bono!J69 -> 11254.41501 | AC69: 3.833333333 | AD69: 93407.3169
B70: 47 | C70: 3 | D70: 11 | E70: 47 | F70: 33006.03424 | H70: 313.1874244 | I70: 0 | J70: 0 | K70: -33.31922166 | L70: 33285.90244 | N70: 47 | O70: 3 | P70: 11 | Q70: 3 | R70: 49146.86765 | S70: =IF($G$17="si",S58*(1+$G$20),S58) -> 1735.793609 | U70: 482.8150366 | V70: -118.7714822 | X70: -51.36547629 | Y70: 51195.33934 | AA70: =+Bono!J70 -> 11324.19369 | AC70: 3.916666667 | AD70: 95805.43546
B71: 48 | C71: 3 | D71: 12 | E71: 47 | F71: 33285.90244 | H71: 315.8430359 | I71: 0 | J71: =-SUM(F71:H71)*$J$21 -> -302.4157093 | K71: -33.29932976 | L71: 33266.03043 | N71: 48 | O71: 3 | P71: 12 | Q71: 3 | R71: 51195.33934 | S71: =IF($G$4="mensual",S70,0) -> 1735.793609 | U71: 502.2525603 | V71: -118.7714822 | X71: -53.43338551 | Y71: 53261.18064 | AA71: =+Bono!J71 -> 11291.75271 | AC71: 4 | AD71: 97818.96378
B72: 49 | C72: 4 | D72: 1 | E72: 48 | F72: 33266.03043 | H72: 315.6544746 | I72: 0 | J72: 0 | K72: -33.58168491 | L72: 33548.10322 | N72: 49 | O72: 4 | P72: 1 | Q72: 4 | R72: 53261.18064 | S72: =IF($G$17="si",S60*(1+$G$20),S60) -> 1822.357984 | U72: 522.6762921 | V72: =V71*(1+$G$18) -> -124.6946398 | X72: -55.60621491 | Y72: 55425.91406 | AA72: =+Bono!J72 -> 11361.76288 | AC72: 4.083333333 | AD72: 100335.7802
B73: 50 | C73: 4 | D73: 2 | E73: 48 | F73: 33548.10322 | H73: 318.3310048 | I73: 0 | J73: 0 | K73: -33.86643423 | L73: 33832.5678 | N73: 50 | O73: 4 | P73: 2 | Q73: 4 | R73: 55425.91406 | S73: =IF($G$4="mensual",S72,0) -> 1822.357984 | U73: 543.2169993 | V73: =V72 -> -124.6946398 | X73: -57.79148904 | Y73: 57609.00291 | AA73: =+Bono!J73 -> 11432.20713 | AC73: 4.166666667 | AD73: 102873.7778
B74: 51 | C74: 4 | D74: 3 | E74: 48 | F74: 33832.5678 | H74: 321.0302303 | I74: 0 | J74: =-SUM(F74:H74)*$J$21 -> -307.3823822 | K74: -33.84621564 | L74: 33812.36943 | N74: 51 | O74: 4 | P74: 3 | Q74: 4 | R74: 57609.00291 | S74: =IF($G$4="mensual",S73,0) -> 1822.357984 | U74: 563.9318774 | V74: -124.6946398 | X74: -59.99529277 | Y74: 59810.60284 | AA74: =+Bono!J74 -> 11399.45672 | AC74: 4.25 | AD74: 105022.429
B75: 52 | C75: 4 | D75: 4 | E75: 48 | F75: 33812.36943 | H75: 320.8385721 | I75: 0 | J75: 0 | K75: -34.133208 | L75: 34099.07479 | N75: 52 | O75: 4 | P75: 4 | Q75: 4 | R75: 59810.60284 | S75: =IF($G$4="mensual",S72,IF($G$4="trimestral",S72,0)) -> 1822.357984 | U75: 584.8224032 | V75: -124.6946398 | X75: -62.21778323 | Y75: 62030.87081 | AA75: =+Bono!J75 -> 11470.13467 | AC75: 4.333333333 | AD75: 107600.0803
B76: 53 | C76: 4 | D76: 5 | E76: 48 | F76: 34099.07479 | H76: 323.55906 | I76: 0 | J76: 0 | K76: -34.42263385 | L76: 34388.21122 | N76: 53 | O76: 4 | P76: 5 | Q76: 4 | R76: 62030.87081 | S76: =IF($G$4="mensual",S75,0) -> 1822.357984 | U76: 605.8900662 | V76: -124.6946398 | X76: -64.45911886 | Y76: 64269.9651 | AA76: =+Bono!J76 -> 11541.25084 | AC76: 4.416666667 | AD76: 110199.4272
B77: 54 | C77: 4 | D77: 6 | E77: 48 | F77: 34388.21122 | H77: 326.3026156 | I77: 0 | J77: =-SUM(F77:H77)*$J$21 -> -312.4306245 | K77: -34.40208321 | L77: 34367.68113 | N77: 54 | O77: 4 | P77: 6 | Q77: 4 | R77: 64269.9651 | S77: =IF($G$4="mensual",S76,0) -> 1822.357984 | U77: 627.1363683 | V77: -124.6946398 | X77: -66.71945945 | Y77: 66528.04535 | AA77: =+Bono!J77 -> 11508.18804 | AC77: 4.5 | AD77: 112403.9145
B78: 55 | C78: 4 | D78: 7 | E78: 48 | F78: 34367.68113 | H78: 326.1078098 | I78: 0 | J78: 0 | K78: -34.69378894 | L78: 34659.09515 | N78: 55 | O78: 4 | P78: 7 | Q78: 4 | R78: 66528.04535 | S78: =+IF($G$4="mensual",S72,IF($G$4="trimestral",S72,IF($G$4="semestral",S72,0))) -> 1822.357984 | U78: 648.5628242 | V78: -124.6946398 | X78: -68.99896616 | Y78: 68805.27255 | AA78: =+Bono!J78 -> 11579.54014 | AC78: 4.583333333 | AD78: 115043.9078
B79: 56 | C79: 4 | D79: 8 | E79: 48 | F79: 34659.09515 | H79: 328.8729771 | I79: 0 | J79: 0 | K79: -34.98796812 | L79: 34952.98016 | N79: 56 | O79: 4 | P79: 8 | Q79: 4 | R79: 68805.27255 | S79: =IF($G$4="mensual",S78,0) -> 1822.357984 | U79: 670.1709616 | V79: -124.6946398 | X79: -71.2978015 | Y79: 71101.80906 | AA79: =+Bono!J79 -> 11651.33463 | AC79: 4.666666667 | AD79: 117706.1238
B80: 57 | C80: 4 | D80: 9 | E80: 48 | F80: 34952.98016 | H80: 331.6615911 | I80: 0 | J80: =-SUM(F80:H80)*$J$21 -> -317.5617757 | K80: -34.96707997 | L80: 34932.11289 | N80: 57 | O80: 4 | P80: 9 | Q80: 4 | R80: 71101.80906 | S80: =IF($G$4="mensual",S79,0) -> 1822.357984 | U80: 691.962321 | V80: -124.6946398 | X80: -73.61612936 | Y80: 73417.81859 | AA80: =+Bono!J80 -> 11617.95647 | AC80: 4.75 | AD80: 119967.888
B81: 58 | C81: 4 | D81: 10 | E81: 48 | F81: 34932.11289 | H81: 331.463586 | I81: 0 | J81: 0 | K81: -35.26357648 | L81: 35228.3129 | N81: 58 | O81: 4 | P81: 10 | Q81: 4 | R81: 73417.81859 | S81: =IF($G$4="mensual",S72,IF($G$4="trimestral",S72,0)) -> 1822.357984 | U81: 713.9384559 | V81: -124.6946398 | X81: -75.95411503 | Y81: 75753.46628 | AA81: =+Bono!J81 -> 11689.98915 | AC81: 4.833333333 | AD81: 122671.7683
B82: 59 | C82: 4 | D82: 11 | E82: 48 | F82: 35228.3129 | H82: 334.2741665 | I82: 0 | J82: 0 | K82: -35.56258707 | L82: 35527.02448 | N82: 59 | O82: 4 | P82: 11 | Q82: 4 | R82: 75753.46628 | S82: =IF($G$17="si",S70*(1+$G$20),S70) -> 1822.357984 | U82: 736.1009331 | V82: -124.6946398 | X82: -78.31192519 | Y82: 78108.91863 | AA82: =+Bono!J82 -> 11762.46844 | AC82: 4.916666667 | AD82: 125398.4115
B83: 60 | C83: 4 | D83: 12 | E83: 48 | F83: 35527.02448 | H83: 337.1085789 | I83: 0 | J83: =-SUM(F83:H83)*$J$21 -> -322.7771975 | K83: -35.54135586 | L83: 35505.81451 | N83: 60 | O83: 4 | P83: 12 | Q83: 4 | R83: 78108.91863 | S83: =IF($G$4="mensual",S82,0) -> 1822.357984 | U83: 758.4513328 | V83: -124.6946398 | X83: -80.68972795 | Y83: 80484.34358 | AA83: =+Bono!J83 -> 11728.77191 | AC83: 5 | AD83: 127718.93
B84: 61 | C84: 5 | D84: 1 | E84: 49 | F84: 35505.81451 | H84: 336.9073218 | I84: 0 | J84: 0 | K84: -35.84272183 | L84: 35806.87911 | N84: 61 | O84: 5 | P84: 1 | Q84: 5 | R84: 80484.34358 | S84: =IF($G$17="si",S72*(1+$G$20),S72) -> 1913.239341 | U84: 781.8536026 | V84: =V83*(1+$G$18) -> -130.9131864 | X84: -83.17943652 | Y84: 82965.3439 | AA84: =+Bono!J84 -> 11801.49165 | AC84: 5.083333333 | AD84: 130573.7147
B85: 62 | C85: 5 | D85: 2 | E85: 49 | F85: 35806.87911 | H85: 339.7640615 | I85: 0 | J85: 0 | K85: -36.14664317 | L85: 36110.49652 | N85: 62 | O85: 5 | P85: 2 | Q85: 5 | R85: 82965.3439 | S85: =IF($G$4="mensual",S84,0) -> 1913.239341 | U85: 805.3953009 | V85: =V84 -> -130.9131864 | X85: -85.68397854 | Y85: 85467.38138 | AA85: =+Bono!J85 -> 11874.66227 | AC85: 5.166666667 | AD85: 133452.5402
B86: 63 | C86: 5 | D86: 3 | E86: 49 | F86: 36110.49652 | H86: 342.6450243 | I86: 0 | J86: =-SUM(F86:H86)*$J$21 -> -328.0782739 | K86: -36.12506327 | L86: 36088.93821 | N86: 63 | O86: 5 | P86: 3 | Q86: 5 | R86: 85467.38138 | S86: =IF($G$4="mensual",S85,0) -> 1913.239341 | U86: 829.1366165 | V86: -130.9131864 | X86: -88.20975733 | Y86: 87990.63439 | AA86: =+Bono!J86 -> 11840.64433 | AC86: 5.25 | AD86: 135920.2169
B87: 64 | C87: 5 | D87: 4 | E87: 49 | F87: 36088.93821 | H87: 342.4404619 | I87: 0 | J87: 0 | K87: -36.43137867 | L87: 36394.94729 | N87: 64 | O87: 5 | P87: 4 | Q87: 5 | R87: 87990.63439 | S87: =IF($G$4="mensual",S84,IF($G$4="trimestral",S84,0)) -> 1913.239341 | U87: 853.0792418 | V87: -130.9131864 | X87: -90.75695297 | Y87: 90535.28283 | AA87: =+Bono!J87 -> 11914.0577 | AC87: 5.333333333 | AD87: 138844.2878
B88: 65 | C88: 5 | D88: 5 | E88: 49 | F88: 36394.94729 | H88: =SUM(F88:G88)*$G$8 -> 345.3441187 | I88: 0 | J88: 0 | K88: -36.74029141 | L88: =SUM(F88:K88) -> 36703.55112 | N88: 65 | O88: 5 | P88: 5 | Q88: 5 | R88: 90535.28283 | S88: =IF($G$4="mensual",S87,0) -> 1913.239341 | U88: 877.224884 | V88: -130.9131864 | X88: =-SUM(R88:U88)*0.1% -> -93.32574706 | Y88: =SUM(R88:X88) -> 93101.50812 | AA88: =+Bono!J88 -> 11987.92624 | AC88: =+B88/12 -> 5.416666667 | AD88: =+AA88+Y88+L88 -> 141792.9855
B89: =+B88+1 -> 66 | C89: 5 | D89: 6 | E89: 49 | F89: =L88 -> 36703.55112 | H89: 348.2723966 | I89: 0 | J89: =-SUM(F89:H89)*$J$21 -> -333.4664117 | K89: =-SUM(F89:J89)*0.1% -> -36.71835711 | L89: 36681.63875 | N89: =+N88+1 -> 66 | O89: 5 | P89: 6 | Q89: 5 | R89: =Y88 -> 93101.50812 | S89: =IF($G$4="mensual",S88,0) -> 1913.239341 | U89: 901.5752644 | V89: -130.9131864 | X89: -95.91632273 | Y89: 95689.49322 | AA89: =+Bono!J89 -> 11953.58383 | AC89: 5.5 | AD89: 144324.7158
B90: 67 | C90: 5 | D90: 7 | E90: 49 | F90: 36681.63875 | H90: 348.0644746 | I90: 0 | J90: 0 | K90: -37.02970322 | L90: 36992.67352 | N90: 67 | O90: 5 | P90: 7 | Q90: 5 | R90: 95689.49322 | S90: =+IF($G$4="mensual",S84,IF($G$4="trimestral",S84,IF($G$4="semestral",S84,0))) -> 1913.239341 | U90: 926.1321191 | V90: -130.9131864 | X90: -98.52886468 | Y90: 98299.42263 | AA90: =+Bono!J90 -> 12027.69744 | AC90: 5.583333333 | AD90: 147319.7936
B91: 68 | C91: 5 | D91: 8 | E91: 49 | F91: 36992.67352 | H91: 351.0158191 | I91: 0 | J91: 0 | K91: -37.34368934 | L91: 37306.34565 | N91: 68 | O91: 5 | P91: 8 | Q91: 5 | R91: 98299.42263 | S91: =IF($G$4="mensual",S90,0) -> 1913.239341 | U91: 950.8971989 | V91: -130.9131864 | X91: -101.1635592 | Y91: 100931.4824 | AA91: =+Bono!J91 -> 12102.27056 | AC91: 5.666666667 | AD91: 150340.0986
B92: 69 | C92: 5 | D92: 9 | E92: 49 | F92: 37306.34565 | H92: 353.992189 | I92: 0 | J92: =-SUM(F92:H92)*$J$21 -> -338.9430406 | K92: -37.3213948 | L92: 37284.0734 | N92: 69 | O92: 5 | P92: 9 | Q92: 5 | R92: 100931.4824 | S92: =IF($G$4="mensual",S91,0) -> 1913.239341 | U92: 975.8722692 | V92: -130.9131864 | X92: -103.820594 | Y92: 103585.8603 | AA92: =+Bono!J92 -> 12067.60058 | AC92: 5.75 | AD92: 152937.5342
B93: 70 | C93: 5 | D93: 10 | E93: 49 | F93: 37284.0734 | H93: 353.7808523 | I93: 0 | J93: 0 | K93: -37.63785426 | L93: 37600.2164 | N93: 70 | O93: 5 | P93: 10 | Q93: 5 | R93: 103585.8603 | S93: =IF($G$4="mensual",S84,IF($G$4="trimestral",S84,0)) -> 1913.239341 | U93: 1001.059111 | V93: -130.9131864 | X93: -106.5001587 | Y93: 106262.7454 | AA93: =+Bono!J93 -> 12142.4211 | AC93: 5.833333333 | AD93: 156005.3829
B94: 71 | C94: 5 | D94: 11 | E94: 49 | F94: 37600.2164 | H94: 356.7806677 | I94: 0 | J94: 0 | K94: -37.95699707 | L94: 37919.04007 | N94: 71 | O94: 5 | P94: 11 | Q94: 5 | R94: 106262.7454 | S94: =IF($G$17="si",S82*(1+$G$20),S82) -> 1913.239341 | U94: 1026.459519 | V94: -130.9131864 | X94: -109.2024442 | Y94: 108962.3286 | AA94: =+Bono!J94 -> 12217.70552 | AC94: 5.916666667 | AD94: 159099.0742
B95: 72 | C95: 5 | D95: 12 | E95: 49 | F95: 37919.04007 | H95: 359.8059195 | I95: 0 | J95: =-SUM(F95:H95)*$J$21 -> -344.5096139 | K95: -37.93433638 | L95: 37896.40204 | N95: 72 | O95: 5 | P95: 12 | Q95: 5 | R95: 108962.3286 | S95: =IF($G$4="mensual",S94,0) -> 1913.239341 | U95: 1052.075306 | V95: -130.9131864 | X95: -111.9276432 | Y95: 111684.8024 | AA95: =+Bono!J95 -> 12182.70485 | AC95: 6 | AD95: 161763.9093
B96: 73 | C96: 6 | D96: 1 | E96: 50 | F96: 37896.40204 | H96: 359.5911119 | I96: 0 | J96: 0 | K96: -38.25599315 | L96: 38217.73716 | N96: 73 | O96: 6 | P96: 1 | Q96: 6 | R96: 111684.8024 | S96: =IF($G$17="si",S84*(1+$G$20),S84) -> 2008.65297 | U96: 1078.813656 | V96: =V95*(1+$G$18) -> -137.4418532 | X96: -114.772269 | Y96: 114520.0549 | AA96: =+Bono!J96 -> 12258.23903 | AC96: 6.083333333 | AD96: 164996.0311
B97: 74 | C97: 6 | D97: 2 | E97: 50 | F97: 38217.73716 | H97: 362.6401943 | I97: 0 | J97: 0 | K97: -38.58037736 | L97: 38541.79698 | N97: 74 | O97: 6 | P97: 2 | Q97: 6 | R97: 114520.0549 | S97: =IF($G$4="mensual",S96,0) -> 2008.65297 | U97: 1105.71678 | V97: =V96 -> -137.4418532 | X97: -117.6344247 | Y97: 117379.3484 | AA97: =+Bono!J97 -> 12334.24154 | AC97: 6.166666667 | AD97: 168255.3869
B98: 75 | C98: 6 | D98: 3 | E98: 50 | F98: 38541.79698 | H98: 365.7151308 | I98: 0 | J98: =-SUM(F98:H98)*$J$21 -> -350.167609 | K98: -38.5573445 | L98: 38518.78716 | N98: 75 | O98: 6 | P98: 3 | Q98: 6 | R98: 117379.3484 | S98: =IF($G$4="mensual",S97,0) -> 2008.65297 | U98: 1132.848024 | V98: -137.4418532 | X98: -120.5208494 | Y98: 120262.8867 | AA98: =+Bono!J98 -> 12298.90702 | AC98: 6.25 | AD98: 171080.5808
B99: 76 | C99: 6 | D99: 4 | E99: 50 | F99: 38518.78716 | H99: 365.4967954 | I99: 0 | J99: 0 | K99: -38.88428395 | L99: 38845.39967 | N99: 76 | O99: 6 | P99: 4 | Q99: 6 | R99: 120262.8867 | S99: =IF($G$4="mensual",S96,IF($G$4="trimestral",S96,0)) -> 2008.65297 | U99: 1160.209321 | V99: -137.4418532 | X99: -123.431749 | Y99: 123170.8754 | AA99: =+Bono!J99 -> 12375.16167 | AC99: 6.333333333 | AD99: 174391.4367
B100: 77 | C100: =C88+1 -> 6 | D100: =D88 -> 5 | E100: =E88+1 -> 50 | F100: 38845.39967 | H100: 368.5959539 | I100: 0 | J100: 0 | K100: -39.21399562 | L100: 39174.78162 | N100: 77 | O100: =O88+1 -> 6 | P100: =P88 -> 5 | Q100: =Q88+1 -> 6 | R100: 123170.8754 | S100: =IF($G$4="mensual",S99,0) -> 2008.65297 | U100: =SUM(R100:T100)*$G$8 -> 1187.802624 | V100: -137.4418532 | X100: -126.367331 | Y100: 126103.5218 | AA100: =+Bono!J100 -> 12451.88911 | AC100: 6.416666667 | AD100: 177730.1925
B101: 78 | C101: 6 | D101: 6 | E101: 50 | F101: 39174.78162 | H101: 371.7213911 | I101: 0 | J101: =-SUM(F101:H101)*$J$21 -> -355.9185271 | K101: -39.19058449 | L101: 39151.3939 | N101: 78 | O101: 6 | P101: 6 | Q101: 6 | R101: 126103.5218 | S101: =IF($G$4="mensual",S100,0) -> 2008.65297 | U101: 1215.629899 | V101: -137.4418532 | X101: -129.3278046 | Y101: 129061.035 | AA101: =+Bono!J101 -> 12416.21756 | AC101: 6.5 | AD101: 180628.6464
B102: 79 | C102: 6 | D102: 7 | E102: 50 | F102: 39151.3939 | H102: 371.4994699 | I102: 0 | J102: 0 | K102: -39.52289337 | L102: 39483.37048 | N102: 79 | O102: 6 | P102: 7 | Q102: 6 | R102: 129061.035 | S102: =+IF($G$4="mensual",S96,IF($G$4="trimestral",S96,IF($G$4="semestral",S96,0))) -> 2008.65297 | U102: 1243.693129 | V102: -137.4418532 | X102: -132.3133811 | Y102: 132043.6258 | AA102: =+Bono!J102 -> 12493.19955 | AC102: 6.583333333 | AD102: 184020.1959
B103: 80 | C103: 6 | D103: 8 | E103: 50 | F103: 39483.37048 | H103: 374.6495269 | I103: 0 | J103: 0 | K103: -39.85802001 | L103: 39818.16199 | N103: 80 | O103: 6 | P103: 8 | Q103: 6 | R103: 132043.6258 | S103: =IF($G$4="mensual",S102,0) -> 2008.65297 | U103: 1271.994316 | V103: -137.4418532 | X103: -135.3242731 | Y103: 135051.507 | AA103: =+Bono!J103 -> 12570.65883 | AC103: 6.666666667 | AD103: 187440.3278
B104: 81 | C104: 6 | D104: 9 | E104: 50 | F104: 39818.16199 | H104: 377.8262941 | I104: 0 | J104: =-SUM(F104:H104)*$J$21 -> -361.7638945 | K104: -39.83422439 | L104: 39794.39016 | N104: 81 | O104: 6 | P104: 9 | Q104: 6 | R104: 135051.507 | S104: =IF($G$4="mensual",S103,0) -> 2008.65297 | U104: 1300.535478 | V104: -137.4418532 | X104: -138.3606955 | Y104: 138084.8929 | AA104: =+Bono!J104 -> 12534.64704 | AC104: 6.75 | AD104: 190413.9301
B105: 82 | C105: 6 | D105: 10 | E105: 50 | F105: 39794.39016 | H105: 377.6007282 | I105: 0 | J105: 0 | K105: -40.17199089 | L105: 40131.8189 | N105: 82 | O105: 6 | P105: 10 | Q105: 6 | R105: 138084.8929 | S105: =IF($G$4="mensual",S96,IF($G$4="trimestral",S96,0)) -> 2008.65297 | U105: 1329.318648 | V105: -137.4418532 | X105: -141.4228645 | Y105: 141143.9998 | AA105: =+Bono!J105 -> 12612.36331 | AC105: 6.833333333 | AD105: 193888.182
B106: 83 | C106: 6 | D106: 11 | E106: 50 | F106: 40131.8189 | H106: 380.8025196 | I106: 0 | J106: 0 | K106: -40.51262142 | L106: 40472.1088 | N106: 83 | O106: 6 | P106: 11 | Q106: 6 | R106: 141143.9998 | S106: =IF($G$17="si",S94*(1+$G$20),S94) -> 2008.65297 | U106: 1358.34588 | V106: -137.4418532 | X106: -144.5109987 | Y106: 144229.0458 | AA106: =+Bono!J106 -> 12690.56142 | AC106: 6.916666667 | AD106: 197391.716
B107: 84 | C107: 6 | D107: 12 | E107: 50 | F107: 40472.1088 | H107: 384.03146 | I107: 0 | J107: =-SUM(F107:H107)*$J$21 -> -367.7052623 | K107: -40.488435 | L107: 40447.94656 | N107: 84 | O107: 6 | P107: 12 | Q107: 6 | R107: 144229.0458 | S107: =IF($G$4="mensual",S106,0) -> 2008.65297 | U107: 1387.619243 | V107: -137.4418532 | X107: -147.625318 | Y107: 147340.2508 | AA107: =+Bono!J107 -> 12654.20614 | AC107: 7 | AD107: 200442.4035
B108: 85 | C108: 7 | D108: 1 | E108: 51 | F108: 40447.94656 | H108: 383.8021895 | I108: 0 | J108: 0 | K108: -40.83174875 | L108: 40790.917 | N108: 85 | O108: 7 | P108: 1 | Q108: 7 | R108: 147340.2508 | S108: =IF($G$17="si",S96*(1+$G$20),S96) -> 2108.824895 | U108: 1418.091334 | V108: =V107*(1+$G$18) -> -144.2961059 | X108: -150.8671671 | Y108: 150572.0038 | AA108: =+Bono!J108 -> 12732.66368 | AC108: 7.083333333 | AD108: 204095.5845
B109: 86 | C109: 7 | D109: 2 | E109: 51 | F109: 40790.917 | H109: 387.056565 | I109: 0 | J109: 0 | K109: -41.17797357 | L109: 41136.79559 | N109: 86 | O109: 7 | P109: 2 | Q109: 7 | R109: 150572.0038 | S109: =IF($G$4="mensual",S108,0) -> 2108.824895 | U109: 1448.756769 | V109: =V108 -> -144.2961059 | X109: -154.1295855 | Y109: 153831.1598 | AA109: =+Bono!J109 -> 12811.60767 | AC109: 7.166666667 | AD109: 207779.563
B110: 87 | C110: 7 | D110: 3 | E110: 51 | F110: 41136.79559 | H110: 390.3385354 | I110: 0 | J110: =-SUM(F110:H110)*$J$21 -> -373.7442072 | K110: -41.15338992 | L110: 41112.23653 | N110: 87 | O110: 7 | P110: 3 | Q110: 7 | R110: 153831.1598 | S110: =IF($G$4="mensual",S109,0) -> 2108.824895 | U110: 1479.682225 | V110: -144.2961059 | X110: -157.4196669 | Y110: 157117.9511 | AA110: =+Bono!J110 -> 12774.90562 | AC110: 7.25 | AD110: 211005.0933
B111: 88 | C111: 7 | D111: 4 | E111: 51 | F111: 41112.23653 | H111: 390.1054995 | I111: 0 | J111: 0 | K111: -41.50234203 | L111: 41460.83969 | N111: 88 | O111: 7 | P111: 4 | Q111: 7 | R111: 157117.9511 | S111: =IF($G$4="mensual",S108,IF($G$4="trimestral",S108,0)) -> 2108.824895 | U111: 1510.869907 | V111: -144.2961059 | X111: -160.7376459 | Y111: 160432.6122 | AA111: =+Bono!J111 -> 12854.11152 | AC111: 7.333333333 | AD111: 214747.5634
B112: 89 | C112: 7 | D112: 5 | E112: 51 | F112: 41460.83969 | H112: 393.4133227 | I112: 0 | J112: 0 | K112: -41.85425301 | L112: 41812.39876 | N112: 89 | O112: 7 | P112: 5 | Q112: 7 | R112: 160432.6122 | S112: =IF($G$4="mensual",S111,0) -> 2108.824895 | U112: 1542.32204 | V112: -144.2961059 | X112: -164.0837591 | Y112: 163775.3792 | AA112: =+Bono!J112 -> 12933.8085 | AC112: 7.416666667 | AD112: 218521.5865
B113: 90 | C113: 7 | D113: 6 | E113: 51 | F113: 41812.39876 | H113: 396.7491939 | I113: 0 | J113: =-SUM(F113:H113)*$J$21 -> -379.8823316 | K113: -41.82926562 | L113: 41787.43636 | N113: 90 | O113: 7 | P113: 6 | Q113: 7 | R113: 163775.3792 | S113: =IF($G$4="mensual",S112,0) -> 2108.824895 | U113: 1574.040864 | V113: -144.2961059 | X113: -167.458245 | Y113: 167146.4906 | AA113: =+Bono!J113 -> 12896.75637 | AC113: 7.5 | AD113: 221830.6834
B114: 91 | C114: 7 | D114: 7 | E114: 51 | F114: 41787.43636 | H114: 396.5123308 | I114: 0 | J114: 0 | K114: -42.18394869 | L114: 42141.76474 | N114: 91 | O114: 7 | P114: 7 | Q114: 7 | R114: 167146.4906 | S114: =+IF($G$4="mensual",S108,IF($G$4="trimestral",S108,IF($G$4="semestral",S108,0))) -> 2108.824895 | U114: 1606.028642 | V114: -144.2961059 | X114: -170.8613442 | Y114: 170546.1867 | AA114: =+Bono!J114 -> 12976.71776 | AC114: 7.583333333 | AD114: 225664.6692
B115: 92 | C115: 7 | D115: 8 | E115: 51 | F115: 42141.76474 | H115: 399.8744795 | I115: 0 | J115: 0 | K115: -42.54163922 | L115: 42499.09758 | N115: 92 | O115: 7 | P115: 8 | Q115: 7 | R115: 170546.1867 | S115: =IF($G$4="mensual",S114,0) -> 2108.824895 | U115: 1638.287654 | V115: -144.2961059 | X115: -174.2932993 | Y115: 173974.7099 | AA115: =+Bono!J115 -> 13057.17492 | AC115: 7.666666667 | AD115: 229530.9824
B116: 93 | C116: 7 | D116: 9 | E116: 51 | F116: 42499.09758 | H116: 403.2651368 | I116: 0 | J116: =-SUM(F116:H116)*$J$21 -> -386.1212644 | K116: -42.51624145 | L116: 42473.72521 | N116: 93 | O116: 7 | P116: 9 | Q116: 7 | R116: 173974.7099 | S116: =IF($G$4="mensual",S115,0) -> 2108.824895 | U116: 1670.820201 | V116: -144.2961059 | X116: -177.754355 | Y116: 177432.3045 | AA116: =+Bono!J116 -> 13019.76937 | AC116: 7.75 | AD116: 232925.7991
B117: 94 | C117: 7 | D117: 10 | E117: 51 | F117: 42473.72521 | H117: 403.0243837 | I117: 0 | J117: 0 | K117: -42.87674959 | L117: 42833.87284 | N117: 94 | O117: 7 | P117: 10 | Q117: 7 | R117: 177432.3045 | S117: =IF($G$4="mensual",S108,IF($G$4="trimestral",S108,0)) -> 2108.824895 | U117: 1703.6286 | V117: -144.2961059 | X117: -181.244758 | Y117: 180919.2171 | AA117: =+Bono!J117 -> 13100.49345 | AC117: 7.833333333 | AD117: 236853.5834
B118: 95 | C118: 7 | D118: 11 | E118: 51 | F118: 42833.87284 | H118: 406.44175 | I118: 0 | J118: 0 | K118: -43.24031459 | L118: 43197.07428 | N118: 95 | O118: 7 | P118: 11 | Q118: 7 | R118: 180919.2171 | S118: =IF($G$17="si",S106*(1+$G$20),S106) -> 2108.824895 | U118: 1736.715192 | V118: -144.2961059 | X118: -184.7647572 | Y118: 184435.6964 | AA118: =+Bono!J118 -> 13181.71803 | AC118: 7.916666667 | AD118: 240814.4887
B119: 96 | C119: 7 | D119: 12 | E119: 51 | F119: 43197.07428 | H119: 409.8880932 | I119: 0 | J119: =-SUM(F119:H119)*$J$21 -> -392.4626613 | K119: -43.21449971 | L119: 43171.28521 | N119: 96 | O119: 7 | P119: 12 | Q119: 7 | R119: 184435.6964 | S119: =IF($G$4="mensual",S118,0) -> 2108.824895 | U119: 1770.082335 | V119: -144.2961059 | X119: -188.3146036 | Y119: 187981.9929 | AA119: =+Bono!J119 -> 13143.95571 | AC119: 8 | AD119: 244297.2338
B120: 97 | C120: 8 | D120: 1 | E120: 52 | F120: 43171.28521 | H120: 409.6433861 | I120: 0 | J120: 0 | K120: -43.5809286 | L120: 43537.34767 | N120: 97 | O120: 8 | P120: 1 | Q120: 8 | R120: 187981.9929 | S120: =IF($G$17="si",S108*(1+$G$20),S108) -> 2213.992414 | U120: 1804.730321 | V120: =V119*(1+$G$18) -> -151.4921816 | X120: -192.0007156 | Y120: 191657.2227 | AA120: =+Bono!J120 -> 13225.44976 | AC120: 8.083333333 | AD120: 248420.0201
B121: 98 | C121: 8 | D121: 2 | E121: 52 | F121: 43537.34767 | H121: 413.1168769 | I121: 0 | J121: 0 | K121: -43.95046454 | L121: 43906.51408 | N121: 98 | O121: 8 | P121: 2 | Q121: 8 | R121: 191657.2227 | S121: =IF($G$4="mensual",S120,0) -> 2213.992414 | U121: 1839.603816 | V121: =V120 -> -151.4921816 | X121: -195.710819 | Y121: 195363.616 | AA121: =+Bono!J121 -> 13307.44908 | AC121: 8.166666667 | AD121: 252577.5791
B122: 99 | C122: 8 | D122: 3 | E122: 52 | F122: 43906.51408 | H122: 416.6198206 | I122: 0 | J122: =-SUM(F122:H122)*$J$21 -> -398.9082051 | K122: -43.9242257 | L122: 43880.30147 | N122: 99 | O122: 8 | P122: 3 | Q122: 8 | R122: 195363.616 | S122: =IF($G$4="mensual",S121,0) -> 2213.992414 | U122: 1874.773014 | V122: -151.4921816 | X122: -199.4523814 | Y122: 199101.4368 | AA122: =+Bono!J122 -> 13269.32657 | AC122: 8.25 | AD122: 256251.0649
B123: 100 | C123: 8 | D123: 4 | E123: 52 | F123: 43880.30147 | H123: 416.3710946 | I123: 0 | J123: 0 | K123: -44.29667256 | L123: 44252.37589 | N123: 100 | O123: 8 | P123: 4 | Q123: 8 | R123: 199101.4368 | S123: =IF($G$4="mensual",S120,IF($G$4="trimestral",S120,0)) -> 2213.992414 | U123: 1910.240423 | V123: -151.4921816 | X123: -203.2256697 | Y123: 202870.9518 | AA123: =+Bono!J123 -> 13351.59793 | AC123: 8.333333333 | AD123: 260474.9256
B124: 101 | C124: 8 | D124: 5 | E124: 52 | F124: 44252.37589 | H124: 419.9016317 | I124: 0 | J124: 0 | K124: -44.67227752 | L124: 44627.60525 | N124: 101 | O124: 8 | P124: 5 | Q124: 8 | R124: 202870.9518 | S124: =IF($G$4="mensual",S123,0) -> 2213.992414 | U124: 1946.00857 | V124: -151.4921816 | X124: -207.0309528 | Y124: 206672.4297 | AA124: =+Bono!J124 -> 13434.37939 | AC124: 8.416666667 | AD124: 264734.4143
B125: 102 | C125: 8 | D125: 6 | E125: 52 | F125: 44627.60525 | H125: 423.4621053 | I125: 0 | J125: =-SUM(F125:H125)*$J$21 -> -405.4596062 | K125: -44.64560775 | L125: 44600.96214 | N125: 102 | O125: 8 | P125: 6 | Q125: 8 | R125: 206672.4297 | S125: =IF($G$4="mensual",S124,0) -> 2213.992414 | U125: 1982.080006 | V125: =V124 -> -151.4921816 | X125: -210.8685021 | Y125: 210506.1414 | AA125: =+Bono!J125 -> 13395.89325 | AC125: 8.5 | AD125: 268502.9968
B126: 103 | C126: 8 | D126: 7 | E126: 52 | F126: 44600.96214 | H126: 423.2092944 | I126: 0 | J126: 0 | K126: -45.02417143 | L126: 44979.14726 | N126: 103 | O126: 8 | P126: 7 | Q126: 8 | R126: 210506.1414 | S126: =+IF($G$4="mensual",S120,IF($G$4="trimestral",S120,IF($G$4="semestral",S120,0))) -> 2213.992414 | U126: 2018.457303 | V126: -151.4921816 | X126: -214.7385911 | Y126: 214372.3603 | AA126: =+Bono!J126 -> 13478.94934 | AC126: 8.583333333 | AD126: 272830.4569
B127: 104 | C127: 8 | D127: 8 | E127: 52 | F127: 44979.14726 | H127: 426.7978147 | I127: 0 | J127: 0 | K127: -45.40594508 | L127: 45360.53913 | N127: 104 | O127: 8 | P127: 8 | Q127: 8 | R127: 214372.3603 | S127: =IF($G$4="mensual",S126,0) -> 2213.992414 | U127: 2055.143054 | V127: -151.4921816 | X127: -218.6414958 | Y127: 218271.3621 | AA127: =+Bono!J127 -> 13562.52039 | AC127: 8.666666667 | AD127: 277194.4216
B128: 105 | C128: 8 | D128: 9 | E128: 52 | F128: 45360.53913 | H128: 430.4167632 | I128: 0 | J128: =-SUM(F128:H128)*$J$21 -> -412.118603 | K128: -45.37883729 | L128: 45333.45845 | N128: 105 | O128: 8 | P128: 9 | Q128: 8 | R128: 218271.3621 | S128: =IF($G$4="mensual",S127,0) -> 2213.992414 | U128: 2092.139874 | V128: -151.4921816 | X128: -222.5774944 | Y128: 222203.4247 | AA128: =+Bono!J128 -> 13523.66716 | AC128: 8.75 | AD128: 281060.5504
B129: 106 | C129: 8 | D129: 10 | E129: 52 | F129: 45333.45845 | H129: 430.1598003 | I129: 0 | J129: 0 | K129: -45.76361825 | L129: 45717.85464 | N129: 106 | O129: 8 | P129: 10 | Q129: 8 | R129: 222203.4247 | S129: =IF($G$4="mensual",S120,IF($G$4="trimestral",S120,0)) -> 2213.992414 | U129: 2129.450402 | V129: -151.4921816 | X129: -226.5468676 | Y129: 226168.8285 | AA129: =+Bono!J129 -> 13607.51547 | AC129: 8.833333333 | AD129: 285494.1986
B130: 107 | C130: 8 | D130: 11 | E130: 52 | F130: 45717.85464 | H130: 433.807256 | I130: 0 | J130: 0 | K130: -46.15166189 | L130: 46105.51023 | N130: 107 | O130: 8 | P130: 11 | Q130: 8 | R130: 226168.8285 | S130: =IF($G$17="si",S118*(1+$G$20),S118) -> 2213.992414 | U130: 2167.077298 | V130: -151.4921816 | X130: -230.5498982 | Y130: 230167.8561 | AA130: =+Bono!J130 -> 13691.88364 | AC130: 8.916666667 | AD130: 289965.25
B131: 108 | C131: 8 | D131: 12 | E131: 52 | F131: 46105.51023 | H131: 437.4856397 | I131: 0 | J131: =-SUM(F131:H131)*$J$21 -> -418.8869628 | K131: -46.12410891 | L131: 46077.9848 | N131: 108 | O131: 8 | P131: 12 | Q131: 8 | R131: 230167.8561 | S131: =IF($G$4="mensual",S130,0) -> 2213.992414 | U131: 2205.023243 | V131: -151.4921816 | X131: -234.5868718 | Y131: 234200.7927 | AA131: =+Bono!J131 -> 13652.65982 | AC131: 9 | AD131: 293931.4374
B132: 109 | C132: 9 | D132: 1 | E132: 53 | F132: 46077.9848 | H132: 437.2244566 | I132: 0 | J132: 0 | K132: -46.51520925 | L132: 46468.69404 | N132: 109 | O132: 9 | P132: 1 | Q132: 9 | R132: 234200.7927 | S132: =IF($G$17="si",S120*(1+$G$20),S120) -> 2324.404659 | U132: 2244.338622 | V132: =V131*(1+$G$18) -> -159.047127 | X132: -238.769536 | Y132: 238371.7194 | AA132: =+Bono!J132 -> 13737.30789 | AC132: 9.083333333 | AD132: 298577.7213
B133: 110 | C133: 9 | D133: 2 | E133: 53 | F133: 46468.69404 | H133: 440.9318157 | I133: 0 | J133: 0 | K133: -46.90962586 | L133: 46862.71623 | N133: 110 | O133: 9 | P133: 2 | Q133: 9 | R133: 238371.7194 | S133: =IF($G$4="mensual",S132,0) -> 2324.404659 | U133: 2283.915681 | V133: =V132 -> -159.047127 | X133: -242.9800397 | Y133: 242578.0125 | AA133: =+Bono!J133 -> 13822.4808 | AC133: 9.166666667 | AD133: 303263.2096
B134: 111 | C134: 9 | D134: 3 | E134: 53 | F134: 46862.71623 | H134: 444.6706107 | I134: 0 | J134: =-SUM(F134:H134)*$J$21 -> -425.7664816 | K134: -46.88162036 | L134: 46834.73874 | N134: 111 | O134: 9 | P134: 3 | Q134: 9 | R134: 242578.0125 | S134: =IF($G$4="mensual",S133,0) -> 2324.404659 | U134: 2323.828326 | V134: -159.047127 | X134: -247.2262455 | Y134: 246819.9721 | AA134: =+Bono!J134 -> 13782.88284 | AC134: 9.25 | AD134: 307437.5937
B135: 112 | C135: 9 | D135: 4 | E135: 53 | F135: 46834.73874 | H135: 444.4051381 | I135: 0 | J135: 0 | K135: -47.27914388 | L135: 47231.86474 | N135: 112 | O135: 9 | P135: 4 | Q135: 9 | R135: 246819.9721 | S135: =IF($G$4="mensual",S132,IF($G$4="trimestral",S132,0)) -> 2324.404659 | U135: 2364.079402 | V135: -159.047127 | X135: -251.5084562 | Y135: 251097.9006 | AA135: =+Bono!J135 -> 13868.33832 | AC135: 9.333333333 | AD135: 312198.1037
B136: 113 | C136: 9 | D136: 5 | E136: 53 | F136: 47231.86474 | H136: 448.1733844 | I136: 0 | J136: 0 | K136: -47.68003812 | L136: 47632.35808 | N136: 113 | O136: 9 | P136: 5 | Q136: 9 | R136: 251097.9006 | S136: =IF($G$4="mensual",S135,0) -> 2324.404659 | U136: 2404.67178 | V136: -159.047127 | X136: -255.8269771 | Y136: 255412.103 | AA136: =+Bono!J136 -> 13954.32362 | AC136: 9.416666667 | AD136: 316998.7847
B137: 114 | C137: 9 | D137: 6 | E137: 53 | F137: 47632.35808 | H137: 451.9735828 | I137: 0 | J137: =-SUM(F137:H137)*$J$21 -> -432.758985 | K137: -47.65157268 | L137: 47603.92111 | N137: 114 | O137: 9 | P137: 6 | Q137: 9 | R137: 255412.103 | S137: =IF($G$4="mensual",S136,0) -> 2324.404659 | U137: 2445.608352 | V137: -159.047127 | X137: -260.182116 | Y137: 259762.8867 | AA137: =+Bono!J137 -> 13914.34798 | AC137: 9.5 | AD137: 321281.1558
B138: 115 | C138: 9 | D138: 7 | E138: 53 | F138: 47603.92111 | H138: 451.7037503 | I138: 0 | J138: 0 | K138: -48.05562486 | L138: 48007.56923 | N138: 115 | O138: 9 | P138: 7 | Q138: 9 | R138: 259762.8867 | S138: =+IF($G$4="mensual",S132,IF($G$4="trimestral",S132,IF($G$4="semestral",S132,0))) -> 2324.404659 | U138: 2486.892039 | V138: -159.047127 | X138: -264.5741834 | Y138: 264150.5621 | AA138: =+Bono!J138 -> 14000.61855 | AC138: 9.583333333 | AD138: 326158.7499
B139: 116 | C139: 9 | D139: 8 | E139: 53 | F139: 48007.56923 | H139: 455.5338838 | I139: 0 | J139: 0 | K139: -48.46310312 | L139: 48414.64002 | N139: 116 | O139: 9 | P139: 8 | Q139: 9 | R139: 264150.5621 | S139: =IF($G$4="mensual",S138,0) -> 2324.404659 | U139: 2528.525782 | V139: -159.047127 | X139: -269.0034925 | Y139: 268575.4419 | AA139: =+Bono!J139 -> 14087.42401 | AC139: 9.666666667 | AD139: 331077.506
B140: 117 | C140: 9 | D140: 9 | E140: 53 | F140: 48414.64002 | H140: 459.3964941 | I140: 0 | J140: =-SUM(F140:H140)*$J$21 -> -439.8663286 | K140: -48.43417018 | L140: 48385.73601 | N140: 117 | O140: 9 | P140: 9 | Q140: 9 | R140: 268575.4419 | S140: =IF($G$4="mensual",S139,0) -> 2324.404659 | U140: 2570.51255 | V140: -159.047127 | X140: -273.4703591 | Y140: 273037.8417 | AA140: =+Bono!J140 -> 14047.06706 | AC140: 9.75 | AD140: 335470.6447
B141: 118 | C141: 9 | D141: 10 | E141: 53 | F141: 48385.73601 | H141: 459.12223 | I141: 0 | J141: 0 | K141: -48.84485824 | L141: 48796.01338 | N141: 118 | O141: 9 | P141: 10 | Q141: 9 | R141: 273037.8417 | S141: =IF($G$4="mensual",S132,IF($G$4="trimestral",S132,0)) -> 2324.404659 | U141: 2612.855337 | V141: -159.047127 | X141: -277.9751016 | Y141: 277538.0794 | AA141: =+Bono!J141 -> 14134.1605 | AC141: 9.833333333 | AD141: 340468.2533
B142: 119 | C142: 9 | D142: 11 | E142: 53 | F142: 48796.01338 | H142: 463.015267 | I142: 0 | J142: 0 | K142: -49.25902865 | L142: 49209.76962 | N142: 119 | O142: 9 | P142: 11 | Q142: 9 | R142: 277538.0794 | S142: =IF($G$17="si",S130*(1+$G$20),S130) -> 2324.404659 | U142: 2655.557162 | V142: -159.047127 | X142: -282.5180412 | Y142: 282076.4761 | AA142: =+Bono!J142 -> 14221.79394 | AC142: 9.916666667 | AD142: 345508.0396
B143: 120 | C143: 9 | D143: 12 | E143: 53 | F143: 49209.76962 | H143: 466.9413143 | I143: 0 | J143: =-SUM(F143:H143)*$J$21 -> -447.0903984 | K143: -49.22962054 | L143: 49180.39092 | N143: 120 | O143: 9 | P143: 12 | Q143: 9 | R143: 282076.4761 | S143: =IF($G$4="mensual",S142,0) -> 2324.404659 | U143: 2698.621068 | V143: -159.047127 | X143: -287.0995018 | Y143: 286653.3552 | AA143: =+Bono!J143 -> 14181.05206 | AC143: 10 | AD143: 350014.7981
B144: 121 | C144: 10 | D144: 1 | E144: 54 | F144: 49180.39092 | H144: 466.6625458 | I144: 0 | J144: 0 | K144: -49.64705346 | L144: 49597.40641 | N144: 121 | O144: 10 | P144: 1 | Q144: 10 | R144: 286653.3552 | S144: =IF($G$17="si",S132*(1+$G$20),S132) -> 2440.323184 | U144: 2743.150053 | V144: =V143*(1+$G$18) -> -166.978839 | X144: -291.8368284 | Y144: 291378.0127 | AA144: =+Bono!J144 -> 14268.97622 | AC144: 10.08333333 | AD144: 355244.3954
B145: 122 | C145: 10 | D145: 2 | E145: 54 | F145: 49597.40641 | H145: 470.6195195 | I145: 0 | J145: 0 | K145: -50.06802593 | L145: 50017.9579 | N145: 122 | O145: 10 | P145: 2 | Q145: 10 | R145: 291378.0127 | S145: =IF($G$4="mensual",S144,0) -> 2440.323184 | U145: 2787.98135 | V145: =V144 -> -166.978839 | X145: -296.6063173 | Y145: 296142.7321 | AA145: =+Bono!J145 -> 14357.44553 | AC145: 10.16666667 | AD145: 360518.1355
B146: 123 | C146: 10 | D146: 3 | E146: 54 | F146: 50017.9579 | H146: 474.6100455 | I146: 0 | J146: =-SUM(F146:H146)*$J$21 -> -454.4331115 | K146: -50.03813484 | L146: 49988.0967 | N146: 123 | O146: 10 | P146: 3 | Q146: 10 | R146: 296142.7321 | S146: =IF($G$4="mensual",S145,0) -> 2440.323184 | U146: 2833.192786 | V146: -166.978839 | X146: -301.4162481 | Y146: 300947.853 | AA146: =+Bono!J146 -> 14316.31504 | AC146: 10.25 | AD146: 365252.2647
B147: 124 | C147: 10 | D147: 4 | E147: 54 | F147: 49988.0967 | H147: 474.3266988 | I147: 0 | J147: 0 | K147: -50.4624234 | L147: 50411.96098 | N147: 124 | O147: 10 | P147: 4 | Q147: 10 | R147: 300947.853 | S147: =IF($G$4="mensual",S144,IF($G$4="trimestral",S144,0)) -> 2440.323184 | U147: 2878.787583 | V147: -166.978839 | X147: -306.2669638 | Y147: 305793.718 | AA147: =+Bono!J147 -> 14405.07785 | AC147: 10.33333333 | AD147: 370610.7568
B148: 125 | C148: 10 | D148: 5 | E148: 54 | F148: 50411.96098 | H148: 478.3486591 | I148: 0 | J148: 0 | K148: -50.89030964 | L148: 50839.41933 | N148: 125 | O148: 10 | P148: 5 | Q148: 10 | R148: 305793.718 | S148: =IF($G$4="mensual",S147,0) -> 2440.323184 | U148: 2924.768992 | V148: -166.978839 | X148: -311.1588101 | Y148: 310680.6725 | AA148: =+Bono!J148 -> 14494.39101 | AC148: 10.41666667 | AD148: 376014.4828
B149: 126 | C149: 10 | D149: 6 | E149: 54 | F149: 50839.41933 | H149: 482.4047229 | I149: 0 | J149: =-SUM(F149:H149)*$J$21 -> -461.8964164 | K149: -50.85992763 | L149: 50809.0677 | N149: 126 | O149: 10 | P149: 6 | Q149: 10 | R149: 310680.6725 | S149: =IF($G$4="mensual",S148,0) -> 2440.323184 | U149: 2971.140291 | V149: -166.978839 | X149: -316.092136 | Y149: 315609.065 | AA149: =+Bono!J149 -> 14452.8682 | AC149: 10.5 | AD149: 380871.0009
B150: 127 | C150: 10 | D150: 7 | E150: 54 | F150: 50809.0677 | H150: 482.1167226 | I150: 0 | J150: 0 | K150: -51.29118443 | L150: 51239.89324 | N150: 127 | O150: 10 | P150: 7 | Q150: 10 | R150: 315609.065 | S150: =+IF($G$4="mensual",S144,IF($G$4="trimestral",S144,IF($G$4="semestral",S144,0))) -> 2440.323184 | U150: 3017.904787 | V150: -166.978839 | X150: -321.067293 | Y150: 320579.2468 | AA150: =+Bono!J150 -> 14542.47766 | AC150: 10.58333333 | AD150: 386361.6177
B151: 128 | C151: 10 | D151: 8 | E151: 54 | F151: 51239.89324 | H151: 486.204737 | I151: 0 | J151: 0 | K151: -51.72609798 | L151: 51674.37188 | N151: 128 | O151: 10 | P151: 8 | Q151: 10 | R151: 320579.2468 | S151: =IF($G$4="mensual",S150,0) -> 2440.323184 | U151: 3065.065814 | V151: -166.978839 | X151: -326.0846358 | Y151: 325591.5723 | AA151: =+Bono!J151 -> 14632.64271 | AC151: 10.66666667 | AD151: 391898.5869
B152: 129 | C152: 10 | D152: 9 | E152: 54 | F152: 51674.37188 | H152: =SUM(F152:G152)*$G$8 -> 490.3274148 | I152: 0 | J152: =-SUM(F152:H152)*$J$21 -> -469.4822937 | K152: -51.695217 | L152: =SUM(F152:K152) -> 51643.52179 | N152: 129 | O152: 10 | P152: 9 | Q152: 10 | R152: 325591.5723 | S152: =IF($G$4="mensual",S151,0) -> 2440.323184 | U152: 3112.626733 | V152: -166.978839 | X152: =-SUM(R152:U152)*0.1% -> -331.1445223 | Y152: =SUM(R152:X152) -> 330646.3989 | AA152: =+Bono!J152 -> 14590.72385 | AC152: =+B152/12 -> 10.75 | AD152: =+AA152+Y152+L152 -> 396880.6445
B153: =+B152+1 -> 130 | C153: 10 | D153: 10 | E153: 54 | F153: =L152 -> 51643.52179 | H153: 490.0346846 | I153: 0 | J153: 0 | K153: =-SUM(F153:J153)*0.1% -> -52.13355647 | L153: 52081.42291 | N153: =+N152+1 -> 130 | O153: 10 | P153: 10 | Q153: 10 | R153: =Y152 -> 330646.3989 | S153: =IF($G$4="mensual",S144,IF($G$4="trimestral",S144,0)) -> 2440.323184 | U153: 3160.590935 | V153: -166.978839 | X153: -336.247313 | Y153: 335744.0869 | AA153: =+Bono!J153 -> 14681.18803 | AC153: 10.83333333 | AD153: 402506.6978
B154: 131 | C154: 10 | D154: 11 | E154: 54 | F154: 52081.42291 | H154: 494.1898378 | I154: 0 | J154: 0 | K154: -52.57561275 | L154: 52523.03714 | N154: 131 | O154: 10 | P154: 11 | Q154: 10 | R154: 335744.0869 | S154: =IF($G$17="si",S142*(1+$G$20),S142) -> 2440.323184 | U154: 3208.961841 | V154: -166.978839 | X154: -341.3933719 | Y154: 340884.9997 | AA154: =+Bono!J154 -> 14772.2131 | AC154: 10.91666667 | AD154: 408180.2499
B155: 132 | C155: 10 | D155: 12 | E155: 54 | F155: 52523.03714 | H155: 498.3802237 | I155: 0 | J155: =-SUM(F155:H155)*$J$21 -> -477.1927563 | K155: -52.54422461 | L155: 52491.68038 | N155: 132 | O155: 10 | P155: 12 | Q155: 10 | R155: 340884.9997 | S155: =IF($G$4="mensual",S154,0) -> 2440.323184 | U155: 3257.742898 | V155: -166.978839 | X155: -346.5830658 | Y155: 346069.5039 | AA155: =+Bono!J155 -> 14729.8944 | AC155: 11 | AD155: 413291.0786
B156: 133 | C156: 11 | D156: 1 | E156: 55 | F156: 52491.68038 | H156: 498.0826859 | I156: 0 | J156: 0 | K156: -52.98976307 | L156: 52936.7733 | N156: 133 | O156: 11 | P156: 1 | Q156: 11 | R156: 346069.5039 | S156: =IF($G$17="si",S144*(1+$G$20),S144) -> 2562.022589 | U156: 3308.092365 | V156: =V155*(1+$G$18) -> -175.3061071 | X156: -351.9396188 | Y156: 351412.3731 | AA156: =+Bono!J156 -> 14821.22145 | AC156: 11.08333333 | AD156: 419170.3678
B157: 134 | C157: 11 | D157: 2 | E157: 55 | F157: 52936.7733 | H157: 502.3060805 | I157: 0 | J157: 0 | K157: -53.43907939 | L157: 53385.64031 | N157: 134 | O157: 11 | P157: 2 | Q157: 11 | R157: 351412.3731 | S157: =IF($G$4="mensual",S156,0) -> 2562.022589 | U157: 3358.789745 | V157: =V156 -> -175.3061071 | X157: -357.3331854 | Y157: 356800.5461 | AA157: =+Bono!J157 -> 14913.11475 | AC157: 11.16666667 | AD157: 425099.3012
B158: 135 | C158: 11 | D158: 3 | E158: 55 | F158: 53385.64031 | H158: 506.5652865 | I158: 0 | J158: =-SUM(F158:H158)*$J$21 -> -485.0298503 | K158: -53.40717574 | L158: 53353.76857 | N158: 135 | O158: 11 | P158: 3 | Q158: 11 | R158: 356800.5461 | S158: =IF($G$4="mensual",S157,0) -> 2562.022589 | U158: 3409.917003 | V158: -175.3061071 | X158: -362.7724857 | Y158: 362234.4071 | AA158: =+Bono!J158 -> 14870.3924 | AC158: 11.25 | AD158: 430458.5681
B159: 136 | C159: 11 | D159: 4 | E159: 55 | F159: 53353.76857 | H159: 506.2628622 | I159: 0 | J159: 0 | K159: -53.86003143 | L159: 53806.1714 | N159: 136 | O159: 11 | P159: 4 | Q159: 11 | R159: 362234.4071 | S159: =IF($G$4="mensual",S156,IF($G$4="trimestral",S156,0)) -> 2562.022589 | U159: 3461.477785 | V159: -175.3061071 | X159: -368.2579075 | Y159: 367714.3435 | AA159: =+Bono!J159 -> 14962.59056 | AC159: 11.33333333 | AD159: 436483.1054
B160: 137 | C160: 11 | D160: 5 | E160: 55 | F160: 53806.1714 | H160: 510.555619 | I160: 0 | J160: 0 | K160: -54.31672702 | L160: 54262.41029 | N160: 137 | O160: 11 | P160: 5 | Q160: 11 | R160: 367714.3435 | S160: =IF($G$4="mensual",S159,0) -> 2562.022589 | U160: 3513.475766 | V160: -175.3061071 | X160: -373.7898418 | Y160: 373240.7459 | AA160: =+Bono!J160 -> 15055.36036 | AC160: 11.41666667 | AD160: 442558.5165
B161: 138 | C161: 11 | D161: 6 | E161: 55 | F161: 54262.41029 | H161: 514.8847754 | I161: 0 | J161: =-SUM(F161:H161)*$J$21 -> -492.9956556 | K161: -54.28429941 | L161: 54230.01511 | N161: 138 | O161: 11 | P161: 6 | Q161: 11 | R161: 373240.7459 | S161: =IF($G$4="mensual",S160,0) -> 2562.022589 | U161: 3565.914654 | V161: -175.3061071 | X161: -379.3686831 | Y161: 378814.0083 | AA161: =+Bono!J161 -> 15012.23052 | AC161: 11.5 | AD161: 448056.254
B162: 139 | C162: 11 | D162: 7 | E162: 55 | F162: 54230.01511 | H162: 514.5773842 | I162: 0 | J162: 0 | K162: -54.74459249 | L162: 54689.8479 | N162: 139 | O162: 11 | P162: 7 | Q162: 11 | R162: 378814.0083 | S162: =+IF($G$4="mensual",S156,IF($G$4="trimestral",S156,IF($G$4="semestral",S156,0))) -> 2562.022589 | U162: 3618.798188 | V162: -175.3061071 | X162: -384.9948291 | Y162: 384434.5282 | AA162: =+Bono!J162 -> 15105.30809 | AC162: 11.58333333 | AD162: 454229.6842
B163: 140 | C163: 11 | D163: 8 | E163: 55 | F163: 54689.8479 | H163: 518.9406424 | I163: 0 | J163: 0 | K163: -55.20878854 | L163: 55153.57976 | N163: 140 | O163: 11 | P163: 8 | Q163: 11 | R163: 384434.5282 | S163: =IF($G$4="mensual",S162,0) -> 2562.022589 | U163: 3672.130137 | V163: -175.3061071 | X163: -390.6686809 | Y163: 390102.7061 | AA163: =+Bono!J163 -> 15198.96275 | AC163: 11.66666667 | AD163: 460455.2486
B164: 141 | C164: =C152+1 -> 11 | D164: =D152 -> 9 | E164: =E152+1 -> 55 | F164: 55153.57976 | H164: 523.3408979 | I164: 0 | J164: =-SUM(F164:H164)*$J$21 -> -501.0922859 | K164: -55.17582837 | L164: 55120.65254 | N164: 141 | O164: =O152+1 -> 11 | P164: =P152 -> 9 | Q164: =Q152+1 -> 11 | R164: 390102.7061 | S164: =IF($G$4="mensual",S163,0) -> 2562.022589 | U164: =SUM(R164:T164)*$G$8 -> 3725.914304 | V164: -175.3061071 | X164: -396.390643 | Y164: 395818.9463 | AA164: =+Bono!J164 -> 15155.42152 | AC164: 11.75 | AD164: 466095.0203
B165: 142 | C165: 11 | D165: 10 | E165: 55 | F165: 55120.65254 | H165: 523.0284584 | I165: 0 | J165: 0 | K165: -55.643681 | L165: 55588.03732 | N165: 142 | O165: 11 | P165: 10 | Q165: 11 | R165: 395818.9463 | S165: =IF($G$4="mensual",S156,IF($G$4="trimestral",S156,0)) -> 2562.022589 | U165: 3780.154523 | V165: -175.3061071 | X165: -402.1611234 | Y165: 401583.6562 | AA165: =+Bono!J165 -> 15249.38689 | AC165: 11.83333333 | AD165: 472421.0804
B166: 143 | C166: 11 | D166: 11 | E166: 55 | F166: 55588.03732 | H166: 527.4633757 | I166: 0 | J166: 0 | K166: -56.11550069 | L166: 56059.38519 | N166: 143 | O166: 11 | P166: 11 | Q166: 11 | R166: 401583.6562 | S166: =IF($G$17="si",S154*(1+$G$20),S154) -> 2562.022589 | U166: 3834.854661 | V166: -175.3061071 | X166: -407.9805334 | Y166: 407397.2468 | AA166: =+Bono!J166 -> 15343.93486 | AC166: 11.91666667 | AD166: 478800.5668
B167: 144 | C167: 11 | D167: 12 | E167: 55 | F167: 56059.38519 | H167: 531.9358981 | I167: 0 | J167: =-SUM(F167:H167)*$J$21 -> -509.3218898 | K167: -56.0819992 | L167: 56025.9172 | N167: 144 | O167: 11 | P167: 12 | Q167: 11 | R167: 407397.2468 | S167: =IF($G$4="mensual",S166,0) -> 2562.022589 | U167: 3890.018618 | V167: -175.3061071 | X167: -413.849288 | Y167: 413260.1326 | AA167: =+Bono!J167 -> 15299.97832 | AC167: 12 | AD167: 484586.0281
B168: 145 | C168: 12 | D168: 1 | E168: 56 | F168: 56025.9172 | H168: 531.6183273 | I168: 0 | J168: 0 | K168: -56.55753553 | L168: 56500.97799 | N168: 145 | O168: 12 | P168: 1 | Q168: 12 | R168: 413260.1326 | S168: =IF($G$17="si",S156*(1+$G$20),S156) -> 2689.791168 | U168: 3946.862698 | V168: =V167*(1+$G$18) -> -184.0486577 | X168: -419.8967864 | Y168: 419292.841 | AA168: =+Bono!J168 -> 15394.83996 | AC168: 12.08333333 | AD168: 491188.659
B169: 146 | C169: 12 | D169: 2 | E169: 56 | F169: 56500.97799 | H169: 536.1260808 | I169: 0 | J169: 0 | K169: -57.03710407 | L169: 56980.06697 | N169: 146 | O169: 12 | P169: 2 | Q169: 12 | R169: 419292.841 | S169: =IF($G$4="mensual",S168,0) -> 2689.791168 | U169: 4004.105819 | V169: =V168 -> -184.0486577 | X169: -425.986738 | Y169: 425376.7026 | AA169: =+Bono!J169 -> 15490.28976 | AC169: 12.16666667 | AD169: 497847.0593
